Workbook

Sheet A lire
B2: Maquette cas-type 2023
B4: 1. Objectif Estimer le revenu disponible mensuel d'une famille en fonction de ses revenus d'activité et de ses caractéristiques, et obtenir rapidement des graphiques et tableaux comparables pour chaque configuration familiale : - Les salaires des ménages évoluent suivant le salaire moyen par tête les deux années précédant l'année d'intérêt. La personne de référence et son éventuel conjoint sont par hypothèse d’âge actif entre 25 et 65 ans. Le cas des enfants de plus de 20 ans est exclu. Lorsqu'ils travaillent, les individus sont salariés en milieu ordinaire. - Toutes les informations sur les barèmes des dispositifs sont dans l'onglet "Barème" (qui peut être mis à jour chaque année). Les cases de l'onglet "Barème" utilisées dans l'onglet "Base" sont nommées afin de rendre les formules plus simples à comprendre. - Les informations sur la famille (revenus d'activité, nb d'enfants, etc.) sont dans les premières lignes de l'onglet "Base" - L'onglet "Base" contient également (partie centrale) une ligne par niveau de revenus d'activité, et les revenus et montants de prestation correspondants - L'onglet "Base" contient enfin (partie inférieure) des graphiques et tableaux de sortie (à affiner en fonction des besoins) - Une macro VBA-E permet de copier instantanément n fois l'onglet "Base", en modifiant les caractéristiques de la famille à chaque fois (nombre d'enfants, revenus du conjoint).
B6: 2. Procédure pour générer des cas-types Etape 1 : sauvegarder la maquette sous un nouveau nom et activer l'option "Activer les macros" Etape 2 : modifier éventuellement l'onglet "Base" pour coder des barèmes alternatifs ou de nouvelles mesures (en ajoutant des colonnes) Etape 3 : créer les graphiques et tableaux qui seront utilisés dans l'analyse en bas de l'onglet "Base" Etape 4 : se placer dans l'onglet "Base" au niveau des "Graphiques et sorties" (partie inférieure) Etape 5 : activer la macro "Copie_cas_type", via le menu des macros ou via le bouton ci-dessous Etape 6 : copier/coller les tableaux et graphiques générés Etape 7 : éventuellement créer un tableau récapitulatif à l'aide de la macro (comparaison de données issues de différentes configurations familiales sur le même onglet)

Sheet Barème
C2: Valeur | D2: Explication | E2: Source | F2: Valeur au 31/12 | G2: Valeur au 01/07
B3: Barème au 1er juillet ou au 31 décembre 2023
B4: Sauf précision contraire, les montants ont été mensualisés
B5: Les cases surlignées en jaune doivent être modifiées lors de l'actualisation annuelle de la maquette (revalorisation habituellement annuelle)
B7: I. Prestations
B9: A. Revenu de solidarité active (RSA)
B10: 1. RSA non majoré
B11: Montant forfaitaire | C11: =IF(Base!$K$1="31/12",Barème!F11,Barème!G11) -> 607.75 | E11: https://www.caf.fr/allocataires/aides-et-demarches/droits-et-prestations/vie-professionnelle/le-revenu-de-solidarite-active-rsa | F11: =G11 -> 607.75 | G11: 607.75
B12: Majoration pour première personne à charge | C12: =IF(Base!$K$1="31/12",Barème!F12,Barème!G12) -> 0.5 | D12: En proportion du montant forfaitaire | E12: BLS | F12: 0.5 | G12: 0.5
B13: Majoration pour les 2 premiers enfants | C13: =IF(Base!$K$1="31/12",Barème!F13,Barème!G13) -> 0.3 | D13: En proportion du montant forfaitaire | E13: BLS | F13: 0.3 | G13: 0.3
B14: Majoration pour les enfants à partir du 3ème | C14: =IF(Base!$K$1="31/12",Barème!F14,Barème!G14) -> 0.4 | D14: En proportion du montant forfaitaire | E14: BLS | F14: 0.4 | G14: 0.4
B15: 2. RSA majoré
B16: Montant forfaitaire | C16: =IF(Base!$K$1="31/12",Barème!F16,Barème!G16) -> 780.42393 | E16: https://www.aide-sociale.fr/montants-rsa/ | F16: =G16 -> 780.42393 | G16: =128.412%*mont_forfaitaire_rsa -> 780.42393
B17: Majoration pour les 2 premiers enfants | C17: =IF(Base!$K$1="31/12",Barème!F17,Barème!G17) -> 0.3333333333 | D17: En proportion du montant forfaitaire majoré | E17: BLS | F17: =1/3 -> 0.3333333333 | G17: =1/3 -> 0.3333333333
B18: Majoration pour les enfants à partir du 3ème | C18: =IF(Base!$K$1="31/12",Barème!F18,Barème!G18) -> 0.3333333333 | D18: En proportion du montant forfaitaire majoré | E18: BLS | F18: =1/3 -> 0.3333333333 | G18: =1/3 -> 0.3333333333
B19: 3. Forfait logement
B20: 1 personne | C20: =IF(Base!$K$1="31/12",Barème!F20,Barème!G20) -> 72.93 | E20: https://www.caf.fr/allocataires/droits-et-prestations/s-informer-sur-les-aides/solidarite-et-insertion/le-revenu-de-solidarite-active-rsa | F20: =12%*mont_forfaitaire_rsa -> 72.93 | G20: =12%*mont_forfaitaire_rsa -> 72.93
B21: 2 personnes | C21: =IF(Base!$K$1="31/12",Barème!F21,Barème!G21) -> 145.86 | E21: BLS | F21: =16%*mont_forfaitaire_rsa*(1+tx_majo_rsa_pac1) -> 145.86 | G21: =16%*mont_forfaitaire_rsa*(1+tx_majo_rsa_pac1) -> 145.86
B22: 3 personnes ou + | C22: =IF(Base!$K$1="31/12",Barème!F22,Barème!G22) -> 180.50175 | E22: BLS | F22: =16.5%*(1+tx_majo_rsa_pac1+tx_majo_rsa_enf12)*mont_forfaitaire_rsa -> 180.50175 | G22: =16.5%*(1+tx_majo_rsa_pac1+tx_majo_rsa_enf12)*mont_forfaitaire_rsa -> 180.50175
B23: 4. Prime de Noël
B24: 1 pers | C24: =IF(Base!$K$1="31/12",Barème!F24,Barème!G24) -> 12.70416667 | D24: Depuis 2009, les montants de la prime de Noël restent stables. Ils pourraient, en conséquence, rester inchangés pour l’éventuelle prime de Noël 2023. | E24: BLS | F24: =152.45/12 -> 12.70416667 | G24: =152.45/12 -> 12.70416667
B25: 2 pers | C25: =IF(Base!$K$1="31/12",Barème!F25,Barème!G25) -> 19.05583333 | E25: BLS | F25: =228.67/12 -> 19.05583333 | G25: =228.67/12 -> 19.05583333
B26: 3 pers | C26: =IF(Base!$K$1="31/12",Barème!F26,Barème!G26) -> 22.8675 | E26: BLS | F26: =274.41/12 -> 22.8675 | G26: =274.41/12 -> 22.8675
B27: isolé avec 3 enfants | C27: =IF(Base!$K$1="31/12",Barème!F27,Barème!G27) -> 27.94916667 | E27: BLS | F27: =335.39/12 -> 27.94916667 | G27: =335.39/12 -> 27.94916667
B28: couple avec 2 enfants | C28: =IF(Base!$K$1="31/12",Barème!F28,Barème!G28) -> 26.67833333 | E28: BLS | F28: =320.14/12 -> 26.67833333 | G28: =320.14/12 -> 26.67833333
B29: pers. sup | C29: =IF(Base!$K$1="31/12",Barème!F29,Barème!G29) -> 5.081666667 | E29: BLS | F29: =60.98/12 -> 5.081666667 | G29: =60.98/12 -> 5.081666667
B30: 5. Autres paramètres
B31: Seuil de non versement | C31: =IF(Base!$K$1="31/12",Barème!F31,Barème!G31) -> 6 | E31: Legifrance Article R262-39 modifié par décret n°2009-404 du 15 avril 2009 | F31: 6 | G31: 6
B33: B. Allocations familiales (AF)
B34: 2 enfants | C34: =IF(Base!$K$1="31/12",Barème!F34,Barème!G34) -> 141.984112 | D34: montant après CRDS | E34: https://www.caf.fr/allocataires/droits-et-prestations/s-informer-sur-les-aides/petite-enfance/les-allocations-familiales-af | F34: =32%*bmaf*(1-tx_crds) -> 141.984112 | G34: =32%*bmaf*(1-tx_crds) -> 141.984112
B35: par enfant supplémentaire | C35: =IF(Base!$K$1="31/12",Barème!F35,Barème!G35) -> 181.9171435 | D35: montant après CRDS | F35: =41%*bmaf*(1-tx_crds) -> 181.9171435 | G35: =41%*bmaf*(1-tx_crds) -> 181.9171435
B36: majoration pour âge | C36: =IF(Base!$K$1="31/12",Barème!F36,Barème!G36) -> 70.992056 | D36: montant après CRDS | F36: =16%*bmaf*(1-tx_crds) -> 70.992056 | G36: =16%*bmaf*(1-tx_crds) -> 70.992056
B37: Allocation forfaitaire (enfant de 20 ans) | C37: =IF(Base!$K$1="31/12",Barème!F37,Barème!G37) -> 89.77832882 | D37: montant après CRDS | F37: =20.234%*bmaf*(1-tx_crds) -> 89.77832882 | G37: =20.234%*bmaf*(1-tx_crds) -> 89.77832882
B38: 1er seuil de modulation des AF (au-delà, le montant des af est divisé par 2) | C38: =IF(Base!$K$1="31/12",Barème!F38,Barème!G38) -> 5932.833333 | F38: =G38 -> 5932.833333 | G38: =71194/12 -> 5932.833333
B39: 2nd seuil de modulation des AF (au-delà, le montant des af est divisé par 4) | C39: =IF(Base!$K$1="31/12",Barème!F39,Barème!G39) -> 7907.75 | F39: =G39 -> 7907.75 | G39: =94893/12 -> 7907.75
B40: modulation des AF - supplément de plafond par enfant | C40: =IF(Base!$K$1="31/12",Barème!F40,Barème!G40) -> 494.3333333 | F40: =G40 -> 494.3333333 | G40: =5932/12 -> 494.3333333
B42: C. Allocations logement (APL), zone 2
B43: 1. Plafonds de loyer + montant forfaitaire des charges (L+C)
B44: Isolé | C44: =IF(Base!$K$1="31/12",Barème!F44,Barème!G44) -> 324.99 | E44: Loyers plafonds : article 7 de l'arrêté du 25 septembre 2020 | F44: =278.28+58.08 -> 336.36 | G44: =268.87+56.12 -> 324.99
B45: Couple | C45: =IF(Base!$K$1="31/12",Barème!F45,Barème!G45) -> 385.22 | E45: Forfait charges : article 9 de l'arrêté du 25 septembre 2020 | F45: =340.62+58.08 -> 398.7 | G45: =329.1+56.12 -> 385.22
B46: 1 personne à charge | C46: =IF(Base!$K$1="31/12",Barème!F46,Barème!G46) -> 439.16 | F46: =383.28+58.08+13.17 -> 454.53 | G46: =370.32+56.12+12.72 -> 439.16
B47: Par pers. à charge sup | C47: =IF(Base!$K$1="31/12",Barème!F47,Barème!G47) -> 66.62 | F47: =55.79+13.17 -> 68.96 | G47: =53.9+12.72 -> 66.62
B48: 2. Participation minimale
B49: Montant minimum | C49: =IF(Base!$K$1="31/12",Barème!F49,Barème!G49) -> 36.63 | D49: (PO : participation minimale) | E49: Article 13 de l'arrêté du 25 septembre 2020 | F49: 37.91 | G49: 36.63
B50: Taux | C50: =IF(Base!$K$1="31/12",Barème!F50,Barème!G50) -> 0.085 | D50: (PO : participation minimale) | F50: 0.085 | G50: 0.085
B51: 3. Taux de participation complémentaire selon le montant du loyer - TL
B52: Taux moyen | C52: =IF(Base!$K$1="31/12",Barème!F52,Barème!G52) -> 0.00305 | D52: Article 14 de l'arrêté du 27 septembre 2019 Calculé comme 0%*0,45 + 0,45%*(0,75-0,45) + 0,68%*(1-0,75) | E52: Arrêté du 27 septembre 2019 relatif au calcul des aides personnelles au logement et de la prime de déménagement - Légifrance (legifrance.gouv.fr) | F52: 0.00305 | G52: 0.00305
B53: 4. Taux famille
B54: Isolé | C54: =IF(Base!$K$1="31/12",Barème!F54,Barème!G54) -> 0.0283 | E54: Article 14 de l'arrêté du 25 septembre 2020 | F54: 0.0283 | G54: 0.0283
B55: Couple | C55: =IF(Base!$K$1="31/12",Barème!F55,Barème!G55) -> 0.0315 | F55: 0.0315 | G55: 0.0315
B56: 1 personne à charge | C56: =IF(Base!$K$1="31/12",Barème!F56,Barème!G56) -> 0.027 | F56: 0.027 | G56: 0.027
B57: 2 personne à charge | C57: =IF(Base!$K$1="31/12",Barème!F57,Barème!G57) -> 0.0238 | F57: 0.0238 | G57: 0.0238
B58: 3 personne à charge | C58: =IF(Base!$K$1="31/12",Barème!F58,Barème!G58) -> 0.0201 | F58: 0.0201 | G58: 0.0201
B59: 4 personne à charge | C59: =IF(Base!$K$1="31/12",Barème!F59,Barème!G59) -> 0.0185 | F59: 0.0185 | G59: 0.0185
B60: Par personne sup | C60: =IF(Base!$K$1="31/12",Barème!F60,Barème!G60) -> -0.0006 | F60: =-0.06% -> -0.0006 | G60: =-0.06% -> -0.0006
B61: 5. Abattement forfaitaire de ressources - R0 (annuel)
B62: Isolé | C62: =IF(Base!$K$1="31/12",Barème!F62,Barème!G62) -> 4949 | D62: Article 15 de l'arrêté du 26 décembre | E62: https://www.legifrance.gouv.fr/jorf/id/JORFTEXT000046829580 | F62: =G62 -> 4949 | G62: 4949
B63: Couple | C63: =IF(Base!$K$1="31/12",Barème!F63,Barème!G63) -> 7090 | F63: =G63 -> 7090 | G63: 7090
B64: 1 personne à charge | C64: =IF(Base!$K$1="31/12",Barème!F64,Barème!G64) -> 8456 | F64: 8456 | G64: 8456
B65: 2 personnes à charge | C65: =IF(Base!$K$1="31/12",Barème!F65,Barème!G65) -> 8646 | F65: 8646 | G65: 8646
B66: 3 personnes à charge | C66: =IF(Base!$K$1="31/12",Barème!F66,Barème!G66) -> 8977 | F66: 8977 | G66: 8977
B67: 4 personnes à charge | C67: =IF(Base!$K$1="31/12",Barème!F67,Barème!G67) -> 9311 | F67: 9311 | G67: 9311
B68: 5 personnes à charge | C68: =IF(Base!$K$1="31/12",Barème!F68,Barème!G68) -> 9642 | F68: 9642 | G68: 9642
B69: 6 personnes à charge | C69: =IF(Base!$K$1="31/12",Barème!F69,Barème!G69) -> 9975 | F69: 9975 | G69: 9975
B70: Par personne sup | C70: =IF(Base!$K$1="31/12",Barème!F70,Barème!G70) -> 328 | F70: 328 | G70: 328
B71: 6. Montant forfaitaire à déduire - Mfo - fixé par arrêté (depuis octobre 2017)
B72: Valeur | C72: =IF(Base!$K$1="31/12",Barème!F72,Barème!G72) -> 5 | E72: Arrêté du 28 septembre 2017 relatif aux aides personnelles au logement et au seuil de versement | F72: 5 | G72: 5
B73: 7. Seuil de versement
B74: Valeur | C74: =IF(Base!$K$1="31/12",Barème!F74,Barème!G74) -> 10 | E74: Article 12 de l'arrêté du 25 septembre 2020 | F74: 10 | G74: 10
B75: Abattement double activité | C75: =IF(Base!$K$1="31/12",Barème!F75,Barème!G75) -> 7.916666667 | D75: si chacun des deux revenus 2017 est >= 12*BMAF (406,62 au 1e janvier 2017) | E75: Article 3 de l'arrêté du 25 septembre 2020 | F75: =95/12 -> 7.916666667 | G75: =95/12 -> 7.916666667
B77: D. Allocation de rentrée scolaire (ARS) [montant annuel]
B78: enfant de 6 à 10 ans | C78: =IF(Base!$K$1="31/12",Barème!F78,Barème!G78) -> 398.087954 | D78: montant après CRDS | E78: https://www.caf.fr/allocataires/droits-et-prestations/s-informer-sur-les-aides/enfance-et-jeunesse/l-allocation-de-rentree-scolaire-ars | F78: =(89.72%)*bmaf*(1-tx_crds) -> 398.087954 | G78: =(89.72%)*bmaf*(1-tx_crds) -> 398.087954
B79: enfants de 11 à 14 ans | C79: =IF(Base!$K$1="31/12",Barème!F79,Barème!G79) -> 420.0511213 | D79: montant après CRDS | F79: =(94.67%)*bmaf*(1-tx_crds) -> 420.0511213 | G79: =(94.67%)*bmaf*(1-tx_crds) -> 420.0511213
B80: enfants de 15 à 18 ans | C80: =IF(Base!$K$1="31/12",Barème!F80,Barème!G80) -> 434.6044928 | D80: montant après CRDS | F80: =(97.95%)*bmaf*(1-tx_crds) -> 434.6044928 | G80: =(97.95%)*bmaf*(1-tx_crds) -> 434.6044928
B81: plafond de ressources | C81: =IF(Base!$K$1="31/12",Barème!F81,Barème!G81) -> 1652.25 | D81: plafond théorique pour une famille sans enfant | F81: =G81 -> 1652.25 | G81: =(25775-5948)/12 -> 1652.25
B82: par enfant à charge sup. | C82: =IF(Base!$K$1="31/12",Barème!F82,Barème!G82) -> 495.675 | D82: par enfant à charge à compter du premier | F82: =30%*plaf_ars -> 495.675 | G82: =30%*plaf_ars -> 495.675
B84: E. Complément familial (CF)
B85: Montant simple
B86: montant | C86: =IF(Base!$K$1="31/12",Barème!F86,Barème!G86) -> 184.8011958 | D86: montant après CRDS | E86: https://www.caf.fr/allocataires/droits-et-prestations/s-informer-sur-les-aides/enfance-et-jeunesse/le-complement-familialcf | F86: =41.65%*bmaf*(1-tx_crds) -> 184.8011958 | G86: =41.65%*bmaf*(1-tx_crds) -> 184.8011958
B87: plafond simple (couple 1 revenu) | C87: =IF(Base!$K$1="31/12",Barème!F87,Barème!G87) -> 3318.5 | D87: pour 3 enfants | F87: =G87 -> 3318.5 | G87: =39822/12 -> 3318.5
B88: plafond majoré (couple biactif ou parent isolé) | C88: =IF(Base!$K$1="31/12",Barème!F88,Barème!G88) -> 4059.5 | D88: pour 3 enfants | F88: =G88 -> 4059.5 | G88: =48714/12 -> 4059.5
B89: Par personne sup. | C89: =IF(Base!$K$1="31/12",Barème!F89,Barème!G89) -> 553.0833333 | F89: 553.0833333 | G89: =6637/12 -> 553.0833333
B90: Montant majoré
B91: montant majoré | C91: =IF(Base!$K$1="31/12",Barème!F91,Barème!G91) -> 277.2239787 | D91: montant après CRDS | E91: https://www.caf.fr/allocataires/droits-et-prestations/s-informer-sur-les-aides/enfance-et-jeunesse/le-complement-familialcf | F91: =62.48%*bmaf*(1-tx_crds) -> 277.2239787 | G91: =62.48%*bmaf*(1-tx_crds) -> 277.2239787
B92: plafond simple du CF majoré (couple 1 revenu) | C92: =IF(Base!$K$1="31/12",Barème!F92,Barème!G92) -> 1659.583333 | D92: pour 3 enfants | F92: =G92 -> 1659.583333 | G92: =19915/12 -> 1659.583333
B93: plafond majoré du CF majoré (couple biactif ou parent isolé) | C93: =IF(Base!$K$1="31/12",Barème!F93,Barème!G93) -> 2030.083333 | D93: pour 3 enfants | F93: =G93 -> 2030.083333 | G93: =24361/12 -> 2030.083333
B94: Par personne sup. | C94: =IF(Base!$K$1="31/12",Barème!F94,Barème!G94) -> 276.5833333 | F94: =G94 -> 276.5833333 | G94: =3319/12 -> 276.5833333
B95: F. Base mensuelle des allocations familiales (BMAF)
B96: Valeur n-2 | C96: =IF(Base!$K$1="31/12",Barème!F96,Barème!G96) -> 414.81 | D96: 1er avril 2021 | E96: https://solidarites-sante.gouv.fr/IMG/pdf/2021.5.sante.pdf | F96: =G96 -> 414.81 | G96: 414.81
B97: Valeur n-1 | C97: =IF(Base!$K$1="31/12",Barème!F97,Barème!G97) -> 439.17 | D97: 1er avril 2022 | E97: https://solidarites-sante.gouv.fr/IMG/pdf/2021.5.sante.pdf | F97: =G97 -> 439.17 | G97: 439.17
B98: Valeur n | C98: =IF(Base!$K$1="31/12",Barème!F98,Barème!G98) -> 445.93 | D98: 1er avril 2023 | E98: https://www.cleiss.fr/docs/regimes/regime_france6_prestations-familiales. | F98: 445.93 | G98: 445.93
B99: G. Allocation de soutien familial
B100: Montant par enfant privé du soutien de son père ou de sa mère | C100: =IF(Base!$K$1="31/12",Barème!F100,Barème!G100) -> 187.2415477 | D100: montant après CRDS | E100: https://sante.gouv.fr/fichiers/bo/2023/2023.6.sante.pdf | F100: =42.2%*bmaf*(1-tx_crds) -> 187.2415477 | G100: =42.2%*bmaf*(1-tx_crds) -> 187.2415477
B101: Montant de l'ASF hors majoration (part entrant dans la base ressources du RSA) | C101: =IF(Base!$K$1="31/12",Barème!F101,Barème!G101) -> 99.83257875 | E101: https://sante.gouv.fr/fichiers/bo/2023/2023.6.sante.pdf | F101: =22.5%*bmaf*(1-tx_crds) -> 99.83257875 | G101: =22.5%*bmaf*(1-tx_crds) -> 99.83257875
B103: H. Prestation d'accueil du jeune enfant (Paje)
B104: 1. Allocation de base (législation pour les enfants nés après avril 2018 uniquement)
B105: Taux plein
B106: montant à tx plein | C106: =IF(Base!$K$1="31/12",Barème!F106,Barème!G106) -> 184.8011958 | D106: montant après CRDS - enfants nés après le 1er avril 2018 | E106: https://www.caf.fr/allocataires/droits-et-prestations/s-informer-sur-les-aides/petite-enfance/l-allocation-de-base | F106: =41.65%*bmaf*(1-tx_crds) -> 184.8011958 | G106: =41.65%*bmaf*(1-tx_crds) -> 184.8011958
B107: plafond simple (couple 1 revenu) | C107: =IF(Base!$K$1="31/12",Barème!F107,Barème!G107) -> 1843.583333 | D107: plafond théorique pour une famille sans enfant | F107: =G107 -> 1843.583333 | G107: =(27654-(33185-27654))/12 -> 1843.583333
B108: plafond majoré (couple biactif ou parent isolé) | C108: =IF(Base!$K$1="31/12",Barème!F108,Barème!G108) -> 2584.583333 | D108: plafond théorique pour une famille sans enfant | E108: https://www.legifrance.gouv.fr/jorf/id/JORFTEXT000046794210 | F108: =G108 -> 2584.583333 | G108: =plaf_simple_paje_plein+8892/12 -> 2584.583333
B109: pour les deux premiers enfants | C109: =IF(Base!$K$1="31/12",Barème!F109,Barème!G109) -> 460.9166667 | F109: 460.9166667 | G109: =(33185-27654)/12 -> 460.9166667
B110: à partir du 3ème enfant | C110: =IF(Base!$K$1="31/12",Barème!F110,Barème!G110) -> 553.0833333 | F110: 553.0833333 | G110: =6637/12 -> 553.0833333
B111: Taux partiel
B112: montant à tx partiel | C112: =IF(Base!$K$1="31/12",Barème!F112,Barème!G112) -> 92.40059789 | D112: montant après CRDS - enfants nés après le 1er avril 2018 | E112: https://www.caf.fr/allocataires/droits-et-prestations/s-informer-sur-les-aides/petite-enfance/l-allocation-de-base | F112: =20.825%*bmaf*(1-tx_crds) -> 92.40059789 | G112: =20.825%*bmaf*(1-tx_crds) -> 92.40059789
B113: plafond simple (couple 1 revenu) | C113: =IF(Base!$K$1="31/12",Barème!F113,Barème!G113) -> 2202.666667 | D113: plafond théorique pour une famille sans enfant | F113: =G113 -> 2202.666667 | G113: =(33040-(39648-33040))/12 -> 2202.666667
B114: plafond majoré (couple biactif ou parent isolé) | C114: =IF(Base!$K$1="31/12",Barème!F114,Barème!G114) -> 3074.166667 | D114: plafond théorique pour une famille sans enfant | F114: =G114 -> 3074.166667 | G114: =plaf_simple_paje+10458/12 -> 3074.166667
B115: pour les deux premiers enfants | C115: =IF(Base!$K$1="31/12",Barème!F115,Barème!G115) -> 550.6666667 | F115: 550.6666667 | G115: =(39648-33040)/12 -> 550.6666667
B116: à partir du 3ème enfant | C116: =IF(Base!$K$1="31/12",Barème!F116,Barème!G116) -> 660.8333333 | F116: 660.8333333 | G116: =7930/12 -> 660.8333333
B118: I. Prime d'Activité
B119: Montant forfaitaire | C119: =IF(Base!$K$1="31/12",Barème!F119,Barème!G119) -> 595.25 | E119: https://www.caf.fr/partenaires/accompagnement-des-allocataires/baremes/bareme-prime-activite | F119: =G119 -> 595.25 | G119: 595.25
B120: Montant forfaitaire majoré | C120: =IF(Base!$K$1="31/12",Barème!F120,Barème!G120) -> 764.37243 | E120: https://www.legifrance.gouv.fr/codes/section_lc/LEGITEXT000006073189/LEGISCTA000006142022/ | F120: =128.412%*Mont_forfaitaire_PA -> 764.37243 | G120: =128.412%*Mont_forfaitaire_PA -> 764.37243
B121: Tranche 1 de Smic pour calcul de la PA | C121: =IF(Base!$K$1="31/12",Barème!F121,Barème!G121) -> 0.5 | F121: 0.5 | G121: 0.5
B122: Tranche 2 de Smic pour calcul de la PA | C122: =IF(Base!$K$1="31/12",Barème!F122,Barème!G122) -> 1 | F122: 1 | G122: 1
B123: Pente | C123: =IF(Base!$K$1="31/12",Barème!F123,Barème!G123) -> 0.39 | D123: 1-61% | E123: BSP - changement octobre 2018 : https://www.legifrance.gouv.fr/eli/decret/2018/10/3/SSAA1822062D/jo/texte | F123: =1-61% -> 0.39 | G123: =1-61% -> 0.39
B124: Bonus individuel maximum (au-delà de tranche 2 ci-dessus) | C124: =IF(Base!$K$1="31/12",Barème!F124,Barème!G124) -> 173.2237025 | D124: en pourcentage du montant forfaitaire | E124: https://www.caf.fr/node/45449 | F124: =0.29101*Mont_forfaitaire_PA -> 173.2237025 | G124: =0.29101*Mont_forfaitaire_PA -> 173.2237025
B125: Seuil versement | C125: =IF(Base!$K$1="31/12",Barème!F125,Barème!G125) -> 15 | E125: https://www.caf.fr/allocataires/aides-et-demarches/droits-et-prestations/vie-professionnelle/la-prime-d-activite | F125: 15 | G125: 15
B126: Forfait logement
B127: 1 personne | C127: =IF(Base!$K$1="31/12",Barème!F127,Barème!G127) -> 71.43 | E127: https://www.legifrance.gouv.fr/codes/section_lc/LEGITEXT000006073189/LEGISCTA000006142022/ | F127: =12%*Mont_forfaitaire_PA -> 71.43 | G127: =12%*Mont_forfaitaire_PA -> 71.43
B128: 2 personnes | C128: =IF(Base!$K$1="31/12",Barème!F128,Barème!G128) -> 142.86 | F128: =16%*Mont_forfaitaire_PA*(1+tx_majo_rsa_pac1) -> 142.86 | G128: =16%*Mont_forfaitaire_PA*(1+tx_majo_rsa_pac1) -> 142.86
B129: 3 personnes ou + | C129: =IF(Base!$K$1="31/12",Barème!F129,Barème!G129) -> 176.78925 | F129: =16.5%*(1+tx_majo_rsa_pac1+tx_majo_rsa_enf12)*Mont_forfaitaire_PA -> 176.78925 | G129: =16.5%*(1+tx_majo_rsa_pac1+tx_majo_rsa_enf12)*Mont_forfaitaire_PA -> 176.78925
B130: Travailleurs handicapés
B131: Salaire minimum pour prise en compte de l'AAH comme revenu professionnel | C131: =IF(Base!$K$1="31/12",Barème!F131,Barème!G131) -> 334.08 | D131: justification du chiffre 29: article L842-8 du code de la sécu --> liens relatifs -->art D843-4 | E131: https://www.legifrance.gouv.fr/codes/id/LEGIARTI000036579172/2023-04-17/#LEGIARTI000036579172 + Legifrance - article L842-8 du code de la sécu | F131: =29*Smic_brut_horaire -> 334.08 | G131: =29*Smic_brut_horaire -> 334.08
B133: J. Complémentaire santé solidaire (CSS) avec et sans participation financière
B134: 1. Plafonds
B135: Plafond CSS gratuite pour une personne seule | C135: =IF(Base!$K$1="31/12",Barème!F135,Barème!G135) -> 809.9166667 | D135: CSS sans participation financière | E135: https://www.legifrance.gouv.fr/loda/id/JORFTEXT000047387932/#:~:text=Le%20plafond%20pr%C3%A9vu%20au%201,an%20pour%20une%20personne%20seule. | F135: =G135 -> 809.9166667 | G135: =9719/12 -> 809.9166667
B136: suppl. plafond pour la 1ère personne en plus | C136: =IF(Base!$K$1="31/12",Barème!F136,Barème!G136) -> 404.9583333 | D136: revalorisé au 1er avril | E136: Titre VI : Protection complémentaire en matière de santé et crédit d'impôt (Articles R861-2 à R862-13-1) - Légifrance (legifrance.gouv.fr) | F136: =50%*plaf_cmuc_base -> 404.9583333 | G136: =50%*plaf_cmuc_base -> 404.9583333
B137: suppl. plafond pour les 2 et 3è personnes en plus | C137: =IF(Base!$K$1="31/12",Barème!F137,Barème!G137) -> 242.975 | F137: =30%*plaf_cmuc_base -> 242.975 | G137: =30%*plaf_cmuc_base -> 242.975
B138: suppl. plafond à partir de la 4è personne en plus | C138: =IF(Base!$K$1="31/12",Barème!F138,Barème!G138) -> 323.9666667 | F138: =40%*plaf_cmuc_base -> 323.9666667 | G138: =40%*plaf_cmuc_base -> 323.9666667
B139: Plafond CSS payante (en % du plafond CSS gratuite) | C139: =IF(Base!$K$1="31/12",Barème!F139,Barème!G139) -> 1.35 | D139: CSS avec participation financière | E139: Plafond de la CSS 2023 et barème de la CSS payante (commentcamarche.com) | F139: 1.35 | G139: 1.35
B140: 2. Montants
B141: Montant moyen de remboursement CSS gratuite | C141: =IF(Base!$K$1="31/12",Barème!F141,Barème!G141) -> 417 | D141: dépense moyenne CNAM pour la C2SG | E141: rapport annuel sur la C2S (édition 2023), p.45 | F141: =G141 -> 417 | G141: 417
B142: CSS gratuite 0-15 ans | C142: =IF(Base!$K$1="31/12",Barème!F142,Barème!G142) -> 36.52225 | D142: Remboursement moyen multiplié par un coefficient selon l'âge | E142: les coeff. par âge sont hérités de maquettes antérieures | F142: =G142 -> 36.52225 | G142: =G$141*(1+deflat)/12 -> 36.52225
B143: CSS gratuite 16-49 ans | C143: =IF(Base!$K$1="31/12",Barème!F143,Barème!G143) -> 36.52225 | D143: Remboursement moyen multiplié par un coefficient selon l'âge | F143: 36.52225 | G143: =G$141*(1+deflat)/12 -> 36.52225
B144: CSS gratuite 50-59 ans | C144: =IF(Base!$K$1="31/12",Barème!F144,Barème!G144) -> 36.52225 | D144: Remboursement moyen multiplié par un coefficient selon l'âge | F144: 36.52225 | G144: =G$141*(1+deflat)/12 -> 36.52225
B145: CSS gratuite 60 ans et + | C145: =IF(Base!$K$1="31/12",Barème!F145,Barème!G145) -> 36.52225 | D145: Remboursement moyen multiplié par un coefficient selon l'âge | F145: 36.52225 | G145: =G$141*(1+deflat)/12 -> 36.52225
B147: K. Chèque énergie
B148: 1. Plafonds
B149: plafond de RFR 1ère tranche par unité de consommation | C149: =IF(Base!$K$1="31/12",Barème!F149,Barème!G149) -> 475 | D149: =+C149*12 -> 5700 | E149: https://www.service-public.fr/particuliers/actualites/A14791 https://www.aide-sociale.fr/cheque-energie/#montant | F149: =G149 -> 475 | G149: =5700/12 -> 475
B150: plafond de RFR 2ème tranche par unité de consommation | C150: =IF(Base!$K$1="31/12",Barème!F150,Barème!G150) -> 566.6666667 | D150: =+C150*12 -> 6800 | F150: =G150 -> 566.6666667 | G150: =6800/12 -> 566.6666667
B151: plafond de RFR 3ème tranche par unité de consommation | C151: =IF(Base!$K$1="31/12",Barème!F151,Barème!G151) -> 654.1666667 | D151: 7850 | F151: 654.1666667 | G151: =7850/12 -> 654.1666667
B152: plafond de RFR 4ème tranche par unité de consommation | C152: =IF(Base!$K$1="31/12",Barème!F152,Barème!G152) -> 916.6666667 | D152: 11000 | F152: 916.6666667 | G152: =11000/12 -> 916.6666667
B153: plafond de RFR 4ème tranche par unité de consommation | C153: =IF(Base!$K$1="31/12",Barème!F153,Barème!G153) -> 1450 | D153: 17400 | E153: Chèques énergie exceptionnels | Ministères Écologie Énergie Territoires (ecologie.gouv.fr) non reconduit en 2023 | F153: 1450 | G153: =17400/12 -> 1450
B154: 2. Montants
B155: 1ère tranche 1UC | C155: =IF(Base!$K$1="31/12",Barème!F155,Barème!G155) -> 194 | E155: https://www.aide-sociale.fr/cheque-energie/#montant | F155: =G155 -> 194 | G155: =194 -> 194
B156: 1ère tranche entre 1UC-2UC | C156: =IF(Base!$K$1="31/12",Barème!F156,Barème!G156) -> 240 | F156: =G156 -> 240 | G156: =240 -> 240
B157: 1ère tranche 2UC et plus | C157: =IF(Base!$K$1="31/12",Barème!F157,Barème!G157) -> 277 | F157: 277 | G157: =277 -> 277
B158: 2ème tranche 1UC | C158: =IF(Base!$K$1="31/12",Barème!F158,Barème!G158) -> 146 | F158: 146 | G158: =146 -> 146
B159: 2ème tranche entre 1UC-2UC | C159: =IF(Base!$K$1="31/12",Barème!F159,Barème!G159) -> 176 | F159: 176 | G159: =176 -> 176
B160: 2ème tranche 2UC et plus | C160: =IF(Base!$K$1="31/12",Barème!F160,Barème!G160) -> 202 | F160: 202 | G160: =202 -> 202
B161: 3ème tranche 1UC | C161: =IF(Base!$K$1="31/12",Barème!F161,Barème!G161) -> 98 | F161: 98 | G161: =98 -> 98
B162: 3ème tranche entre 1UC-2UC | C162: =IF(Base!$K$1="31/12",Barème!F162,Barème!G162) -> 113 | F162: 113 | G162: =113 -> 113
B163: 3ème tranche 2UC et plus | C163: =IF(Base!$K$1="31/12",Barème!F163,Barème!G163) -> 126 | F163: 126 | G163: =126 -> 126
B164: 4ème tranche 1UC | C164: =IF(Base!$K$1="31/12",Barème!F164,Barème!G164) -> 48 | F164: 48 | G164: =48 -> 48
B165: 4ème tranche entre 1UC-2UC | C165: =IF(Base!$K$1="31/12",Barème!F165,Barème!G165) -> 63 | F165: 63 | G165: =63 -> 63
B166: 4ème tranche 2UC et plus | C166: =IF(Base!$K$1="31/12",Barème!F166,Barème!G166) -> 76 | F166: 76 | G166: =76 -> 76
B167: bonus 2022 | C167: =IF(Base!$K$1="31/12",Barème!F167,Barème!G167) -> 0 | E167: non reconduit en 2023 | F167: 0 | G167: 0
B169: L. Abattement sur les ressources N pour les chômeurs
B170: 1. Plafonds
B171: Abattement sur les revenus d'activité pour les chômeurs | C171: =IF(Base!$K$1="31/12",Barème!F171,Barème!G171) -> 0.3 | F171: 0.3 | G171: 0.3
B173: M. Allocation adulte handicapé (AAH) [hors travail en ESAT et prise en charge en établissement, hors période de cumul intégral de 6 mois après la reprise d'activité, hors période de réduction d'activité]
B174: 1. Plafonds mensualisés (à partir du plafond annuel, non trimestriel)
B175: personne seule | C175: =IF(Base!$K$1="31/12",Barème!F175,Barème!G175) -> 971.37 | E175: https://www.caf.fr/allocataires/droits-et-prestations/s-informer-sur-les-aides/solidarite-et-insertion/l-allocation-aux-adultes-handicapes-aah | F175: =G175 -> 971.37 | G175: =11656.44/12 -> 971.37
B176: couple | C176: =IF(Base!$K$1="31/12",Barème!F176,Barème!G176) -> 971.37 | F176: =G176 -> 971.37 | G176: =AAH_plaf_seul -> 971.37
B177: supplément PAC | C177: =IF(Base!$K$1="31/12",Barème!F177,Barème!G177) -> 485.685 | E177: L’allocation aux adultes handicapés (Aah) | Bienvenue sur Caf.fr | F177: 485.685 | G177: =G175/2 -> 485.685
B178: 2. Montants
B179: normal | C179: =IF(Base!$K$1="31/12",Barème!F179,Barème!G179) -> 971.37 | E179: https://www.caf.fr/allocataires/droits-et-prestations/s-informer-sur-les-aides/solidarite-et-insertion/l-allocation-aux-adultes-handicapes-aah | F179: =G179 -> 971.37 | G179: 971.37
B180: Majoration pour vie autonome | C180: =IF(Base!$K$1="31/12",Barème!F180,Barème!G180) -> 110.63 | D180: conditions : * avoir un taux d'incapacité au moins égal à 80 % * percevoir une aide au logement * ne pas percevoir de revenu d'activité à caractère professionnel | E180: https://fmh-association.org/nos-services/vos-droits-et-prestations/ | F180: =G180 -> 110.63 | G180: =110.63 -> 110.63
B181: 3. Abattements (les pourcentages indiqués ne correspondent pas aux abattements mais à la fraction des revenus pris en compte)
B182: Abattement forfaitaire sur revenu du conjoint | C182: =IF(Base!$K$1="31/12",Barème!F182,Barème!G182) -> 416.6666667 | G182: 416.6666667
B183: Abattement majoré par enfant | C183: =IF(Base!$K$1="31/12",Barème!F183,Barème!G183) -> 116.6666667 | G183: 116.6666667
B184: Abattement spécifique salaires - tranche 1 (< 30 % du Smic brut (35h)) | C184: =IF(Base!$K$1="31/12",Barème!F184,Barème!G184) -> 0.2 | D184: s'applique uniquement aux revenus d'activité de l'allocataire (travail en milieu ordinaire), en lieu et place des autres abattements | E184: "@doc" | F184: =G184 -> 0.2 | G184: =1-80% -> 0.2
B185: Abattement spécifique salaires - tranche 2 (>= 30 % du Smic brut (35h)) | C185: =IF(Base!$K$1="31/12",Barème!F185,Barème!G185) -> 0.6 | E185: "@doc" | F185: 0.6 | G185: =1-40% -> 0.6
B186: Plafond abattement spécifique salaires - tranche 1 (30 % du Smic brut (35h)) | C186: =IF(Base!$K$1="31/12",Barème!F186,Barème!G186) -> 524.17152 | E186: Titre II : Allocation aux adultes handicapés. (Articles D821-1 à D821-11) - Légifrance (legifrance.gouv.fr) | F186: 524.17152 | G186: =30%*smic_b -> 524.17152
B188: N. Allocation de Solidarité Spécifique (ASS)
B189: 1. Plafonds mensuels
B190: personne seule plafond d'ouverture des droits | C190: =IF(Base!$K$1="31/12",Barème!F190,Barème!G190) -> 1272.16 | D190: Ressources soumises à l'IR de la personne concernée à l'année n-1 (dont ASS) | E190: https://www.service-public.fr/particuliers/vosdroits/F12484 | F190: =G190 -> 1272.16 | G190: 1272.16
B191: personne seule plafond ASS montant forfaitaire | C191: =IF(Base!$K$1="31/12",Barème!F191,Barème!G191) -> 726.95 | D191: Ressources soumises à l'IR de la personne concernée à l'année n-1 (dont ASS) | E191: ASS Pôle Emploi : montant 2023, augmentation et calcul (commentcamarche.com) | F191: =G191 -> 726.95 | G191: 726.95
B192: couple plafond d'ouverture des droits | C192: =IF(Base!$K$1="31/12",Barème!F192,Barème!G192) -> 1999.11 | D192: Ressources soumises à l'IR de la personne concernée et de son conjoint à l'année n-1 (dont ASS) | E192: Allocation de solidarité spécifique (ASS) | Service-public.fr | F192: 1999.11 | G192: 1999.11
B193: couple plafond ASS montant forfaitaire | C193: =IF(Base!$K$1="31/12",Barème!F193,Barème!G193) -> 1453.9 | D193: Ressources soumises à l'IR de la personne concernée à l'année n-1 (dont ASS) | F193: 1453.9 | G193: 1453.9
B194: 2.Montants
B195: Montant mensuel forfaitaire de l'ASS (calculé à partir du montant journalier) | C195: =IF(Base!$K$1="31/12",Barème!F195,Barème!G195) -> 545.1 | D195: Lorsque les ressources sont inférieures à ASS_plaf : montant individuel mais examen des ressources du couple | F195: =G195 -> 545.1 | G195: =seuil_vers_ASS*30 -> 545.1
B196: 3. Seuil de versement
B197: Seuil de versement de l'ASS différentielle (personne seule ou couple) | C197: =IF(Base!$K$1="31/12",Barème!F197,Barème!G197) -> 18.17 | E197: https://allocation-chomage.fr/allocation-specifique-solidarite/ | F197: =G197 -> 18.17 | G197: 18.17
B198: 4. Prime de Noël
B199: Montant forfaitaire | C199: =IF(Base!$K$1="31/12",Barème!F199,Barème!G199) -> 12.70416667 | D199: Ne dépend pas du nombre de personne dans le foyer | E199: https://www.service-public.fr/particuliers/vosdroits/F1325 | F199: =G199 -> 12.70416667 | G199: =152.45/12 -> 12.70416667
B201: II. Prélèvements
B203: A. Impôt sur le revenu (IR)
B204: 1. Barème
B205: tranche 1 | C205: =IF(Base!$K$1="31/12",Barème!F205,Barème!G205) -> 0 | E205: page 363 - https://www.impots.gouv.fr/www2/fichiers/documentation/brochure/ir_2023/pdf_som/21-calcul_impot_361a374.pdf | F205: 0 | G205: 0
C206: =IF(Base!$K$1="31/12",Barème!F206,Barème!G206) -> 941.1913333 | F206: =G206 -> 941.1913333 | G206: =1.048*10777/12 -> 941.1913333
B207: tranche 2 | C207: =IF(Base!$K$1="31/12",Barème!F207,Barème!G207) -> 0.11 | F207: 0.11 | G207: 0.11
C208: =IF(Base!$K$1="31/12",Barème!F208,Barème!G208) -> 2399.745333 | F208: =G208 -> 2399.745333 | G208: =1.048*27478/12 -> 2399.745333
B209: tranche 3 | C209: =IF(Base!$K$1="31/12",Barème!F209,Barème!G209) -> 0.3 | F209: 0.3 | G209: 0.3
C210: =IF(Base!$K$1="31/12",Barème!F210,Barème!G210) -> 6861.78 | F210: =G210 -> 6861.78 | G210: =1.048*78570/12 -> 6861.78
B211: tranche 4 | C211: =IF(Base!$K$1="31/12",Barème!F211,Barème!G211) -> 0.41 | F211: 0.41 | G211: 0.41
C212: =IF(Base!$K$1="31/12",Barème!F212,Barème!G212) -> 14758.80933 | F212: =G212 -> 14758.80933 | G212: =1.048*168994/12 -> 14758.80933
B213: tranche 5 | C213: =IF(Base!$K$1="31/12",Barème!F213,Barème!G213) -> 0.45 | F213: 0.45 | G213: 0.45
B214: 2. Décote
B215: Taux à appliquer au seuil de décote et à l'impôt payé | C215: =IF(Base!$K$1="31/12",Barème!F215,Barème!G215) -> 0.4525 | E215: Page 363 - https://www.impots.gouv.fr/www2/fichiers/documentation/brochure/ir_2023/pdf_som/21-calcul_impot_361a374.pdf | F215: 0.4525 | G215: 0.4525
B216: Montant (plafond) célibataire | C216: =IF(Base!$K$1="31/12",Barème!F216,Barème!G216) -> 160.6933333 | F216: =G216 -> 160.6933333 | G216: =1.048*1840/12 -> 160.6933333
... 102 more rows

Sheet Base
A1: Paramètres sur la famille à entrer en input | J1: Date de législation | K1: 01/07
A2: Aller aux graphiques et sorties
A3: Composition familiale | D3: Revenus autres que les salaires | G3: Recours | J3: Divers
A4: Nb adultes (1 ou 2) | B4: 1 | D4: Salaire mensuel brut du conjoint | E4: 0 | G4: Recours prime d'activité | H4: 1 | J4: Majoration isolé RSA | K4: =IF(AND(Nb_adultes=1,$B$6>0),1,0) -> 0
A5: Nb enfants | D5: Temps de travail du conjoint | E5: =MIN(100%,E4/smic_b) -> 0 | G5: Recours CMUc/ACS | H5: 1 | J5: Eligible ASF | K5: =IF(AND(Nb_adultes=1,Nb_enfants>0),1,0) -> 0
A6: dont enfants de moins de 3 ans | B6: 0 | D6: ARE nette du conjoint | E6: 0 | F6: =IF(AND($E$6>0,Nb_adultes<2),"ARE du conjoint >0 et Nb_adultes <2","") ->  | G6: Éligibilité et recours du conjoint à l'ASS | H6: 1 | J6: Ménage propriétaire (non accédant) ou hébergé gratuitement | K6: 0
A7: dont enfants de 3 à 5 ans | B7: 0 | D7: Autres revenus | E7: 0 | G7: Handicap (au sens de l'AAH)
A8: dont enfants de 6 à 10 ans | B8: 0 | G8: Personne | H8: 0
A9: dont enfants de 11 à 13 ans | B9: 0 | D9: Pas salaire brut | E9: =smic_b/40 -> 43.68096 | G9: Conjoint | H9: 0
A10: dont enfants de 14 ans | B10: 0 | D10: Pas ARE | E10: 0 | G10: Taux d'incapacité >80% PR (perception de la MVA) | H10: 0 | I10: Taux d'incapacité >80% Conj (perception de la MVA) | J10: 0
A11: dont enfants de 15 à 19 ans | B11: 0
A12: dont enfants de 20 ans | B12: 0
A14: Paramètres calculés (ne pas modifier)
A15: Nombre d'enfants | E15: RSA | F15: PA | H15: Allocations familiales | M15: Allocations logement | R15: Prélèvements sociaux sur le salaire du conjoint | Y15: Salaires | AD15: Quotient familial | AG15: CMUC/ACS | AK15: Montant d'ASF | AN15: ARE | AQ15: AAH | AU15: Unités de consommation
A16: Nb enfants | B16: =SUM(B6:B12) -> 0 | D16: Montant forfaitaire | E16: =IF(AND(Nb_adultes=1,$K$4=0), mont_forfaitaire_rsa*(1+(Nb_enfants>=1)*tx_majo_rsa_pac1+(Nb_enfants>=2)*tx_majo_rsa_enf12+MAX(Nb_enfants-2,0)*tx_majo_rsa_enf3), IF(Nb_adultes=2, mont_forfaitaire_rsa*(1+tx_majo_rsa_pac1+MIN(Nb_enfants,2)*tx_majo_rsa_enf12+MAX(Nb_enfants-2,0)*tx_majo_rsa_enf3), IF(AND(Nb_adultes=1,$K$4=1), mont_forfaitaire_rsa_majo*(1+MIN(Nb_enfants,2)*tx_majo_rsa_majo_enf12+MAX(Nb_enfants-2,0)*tx_majo_rsa_majo_enf3), mont_forfaitaire_rsa))) -> 607.75 | F16: =IF(AND(Nb_adultes=1,$K$4=0),Mont_forfaitaire_PA*(1+(Nb_enfants>=1)*tx_majo_rsa_pac1+(Nb_enfants>=2)*tx_majo_rsa_enf12+MAX(Nb_enfants-2,0)*tx_majo_rsa_enf3), IF(Nb_adultes=2,Mont_forfaitaire_PA*(1+tx_majo_rsa_pac1+MIN(Nb_enfants,2)*tx_majo_rsa_enf12+MAX(Nb_enfants-2,0)*tx_majo_rsa_enf3), IF(AND(Nb_adultes=1,$K$4=1),Montant_forfaitaire_PA_majo*(1+MIN(Nb_enfants,2)*tx_majo_rsa_majo_enf12+MAX(Nb_enfants-2,0)*tx_majo_rsa_majo_enf3),Mont_forfaitaire_PA))) -> 595.25 | H16: Montant AF max | I16: =(Nb_enfants-$B$12>=2)*(AF_2enft + AF_enft_sup*(Nb_enfants-$B$12-2)) +($B$12>=1)*(Nb_enfants>=3)*AF_20_ans +I17 -> 0 | J16: Plafond AF tranche 1 | K16: =p1_modulation_af +((Nb_enfants-$B$12)>2)*(Nb_enfants-$B$12-2)*sup_enf_modulation_af +($B$12>=1)*(Nb_enfants>2)*$B$12*sup_enf_modulation_af -> 5932.833333 | M16: Loyer plafonné et charges (L+C) | N16: =IF(Nb_enfants=0,IF(Nb_adultes=1,Barème!C44,Barème!C45),IF(Nb_enfants=1,Barème!C46,Barème!C46+Barème!C47*(Nb_enfants-1))) -> 324.99 | O16: Taux famille - TF | P16: =IF(Nb_enfants=0,IF(Nb_adultes=1,Barème!C54,Barème!C55),IF(Nb_enfants=1,Barème!C56,IF(Nb_enfants=2,Barème!C57,IF(Nb_enfants=3,Barème!C58,IF(Nb_enfants=4,Barème!C59,Barème!C59+Barème!C60*(Nb_enfants-4)))))) -> 0.0283 | R16: Cotisations sociales employeurs | S16: =IF(0<$E$4,taux_cs_emp_t1*MIN($E$4,plafond_ss),0) +IF(plafond_ss<$E$4,taux_cs_emp_t2*MIN($E$4-plafond_ss,2*plafond_ss),0) +IF(3*plafond_ss<$E$4,taux_cs_emp_t3*MIN($E$4-3*plafond_ss,plafond_ss),0) +IF(4*plafond_ss<$E$4,taux_cs_emp_t4*($E$4-4*plafond_ss),0) -> 0 | T16: Cotisations sociales salariés | U16: =IF(0<$E$4,taux_cs_sal_t1*MIN($E$4,plafond_ss),0) +IF(plafond_ss<$E$4,taux_cs_sal_t2*MIN($E$4-plafond_ss,2*plafond_ss),0) +IF(3*plafond_ss<$E$4,taux_cs_sal_t3*MIN($E$4-3*plafond_ss,plafond_ss),0) +IF(4*plafond_ss<$E$4,taux_cs_sal_t4*($E$4-4*plafond_ss),0) -> 0 | V16: CSG non déductible /CRDS | W16: =IF(0<$E$4,taux_csgcrds_nondeduc_t1*MIN($E$4,4*plafond_ss),0) +IF(4*plafond_ss<$E$4,taux_csgcrds_nondeduc_t1*($E$4-4*plafond_ss),0) -> 0 | Y16: Salaire mensuel déclaré du conjoint | Z16: =(Nb_adultes=2)*(E4-U16-U17) -> 0 | AA16: Coût du travail mensuel du conjoint | AB16: =(Nb_adultes=2)*(E4+S16-S17) -> 0 | AD16: Avantage maximum lié au QF | AE16: =plafond_qf*(Base!AE17-Nb_adultes)*2 +IF(AND(Nb_adultes=1,Nb_enfants>0),Plafond_QF_1er_enfant_parent_isolé-2*plafond_qf) -> 0 | AG16: Plafond CMUC | AH16: =plaf_cmuc_base +MIN(1,Nb_adultes+Nb_enfants-1)*plaf_cmuc_1pac +MAX(0,MIN(1,Nb_adultes+Nb_enfants-2))*plaf_cmuc_34pac +MAX(0,MIN(1,Nb_adultes+Nb_enfants-3))*plaf_cmuc_34pac +MAX(0,(Nb_adultes+Nb_enfants-4))*plaf_cmuc_5pluspac -> 809.9166667 | AK16: Total | AL16: =IF(AND($K$5=1,Nb_adultes=1),mont_ASF_total*Nb_enfants,0) -> 0 | AN16: Salaire de référence net | AO16: =(Nb_adultes=2)*(E6/rap_salnet_are) -> 0 | AQ16: Plafond | AR16: =IF(OR(Nb_adultes=1,$K$1="31/12"),AAH_plaf_seul,AAH_plaf_couple)+AAH_plaf_sup_pac*Base!Nb_enfants -> 971.37 | AU16: nb UC pour chèque énergie | AV16: =IF(Nb_adultes=1,1,1.5)+IF(Nb_enfants>0,IF(Nb_adultes=1,0.5+(Nb_enfants-1)*0.3,Nb_enfants*0.3),0) -> 1
D17: Montant forfait logement | E17: =((Nb_adultes+Nb_enfants)=1)*forf_logement_rsa_1 +((Nb_adultes+Nb_enfants)=2)*forf_logement_rsa_2 +((Nb_adultes+Nb_enfants)>2)*forf_logement_rsa_3 -> 72.93 | F17: =((Nb_adultes+Nb_enfants)=1)*forf_logement_PA_1 +((Nb_adultes+Nb_enfants)=2)*forf_logement_PA_2 +((Nb_adultes+Nb_enfants)>2)*forf_logement_PA_3 -> 71.43 | H17: dont majo pour âge | I17: =IF((Nb_enfants-$B$12)>=3,($B$11+$B$10)*majo_age_AF,0) +IF(AND((Nb_enfants-$B$12)=2,$B$10+$B$11=2),majo_age_AF,0) -> 0 | J17: Plafond AF tranche 2 | K17: =p2_modulation_af +((Nb_enfants-$B$12)>2)*(Nb_enfants-$B$12-2)*sup_enf_modulation_af +($B$12>=1)*(Nb_enfants>2)*$B$12*sup_enf_modulation_af -> 7907.75 | M17: Participation minimale -PO | N17: =MAX(montant_PO,taux_PO*N16) -> 36.63 | O17: Abattement forfaitaire de ressources - R0 | P17: =IF(Nb_enfants=0,IF(Nb_adultes=1,Barème!C62,Barème!C63),IF(Nb_enfants=1,Barème!C64,IF(Nb_enfants=2,Barème!C65,IF(Nb_enfants=3,Barème!C66,IF(Nb_enfants=4,Barème!C67,IF(Nb_enfants=5,Barème!C68,IF(Nb_enfants=6,Barème!C69,Barème!C69+Barème!C70*(Nb_enfants-6))))))))/12 -> 412.4166667 | R17: Exonération Fillon | S17: =MAX(tx_exo_fillon_smic*$E$4*IF(C23>1,(1-(C23-1)/(plafond_exo_fillon-1)),1),0) -> 0 | T17: CSG déductible | U17: =IF(0<$E$4,taux_csg_deduc_t1*MIN($E$4,4*plafond_ss),0) +IF(4*plafond_ss<$E$4,taux_csg_deduc_t2*($E$4-4*plafond_ss),0) -> 0 | Y17: Salaire mensuel net du conjoint | Z17: =(Nb_adultes=2)*(E4-U16-U17-W16) -> 0 | AD17: Nombre de parts au sens de l'IR | AE17: =Nb_adultes+(Nb_enfants*0.5)+IF(Nb_enfants>2,(Nb_enfants-2)*0.5,0)+IF(AND(Nb_adultes=1,Nb_enfants>0),0.5,0) -> 1 | AG17: Plafond ACS | AH17: =tx_majo_plafond_acs*AH16 -> 1093.3875 | AK17: Entrant dans la BR du RSA | AL17: =IF(AND($K$5=1,Nb_adultes=1),mont_ASF_RSA*Nb_enfants,0) -> 0 | AU17: nb UC pour NDV | AV17: =(1+(Nb_adultes-1+$B$10+$B$11+$B$12)*0.5+(B$6+B$7+B$8+B$9)*0.3) -> 1
A19: Cas-type
A21: Revenus d'activité bruts | D21: Chômage | F21: Prélèvements sociaux | K21: Revenus d'activité nets et coût du travail | P21: Revenu imposable N-1 et N-2 | T21: ASS du conjoint | V21: AL | X21: Allocations familiales | Y21: Comp familial | AB21: AB de la Paje | AE21: AAH | AM21: RSA | AQ21: Prime d'Activité | AT21: ARS | AU21: Impôt sur le revenu | BG21: Revenus totaux | BM21: Distribution | BN21: Prestations en nature | BP21: Revenu ajusté
A22: Revenus d'activité année N bruts | B22: Temps de travail (en % du temps plein Smic brut) | C22: Salaire en % du Smic brut tps plein | D22: ARE nette (année N) | E22: Salaire de référence net (N-1 et N-2) | F22: Cotisations sociales employeurs | G22: Exonération Fillon | H22: Cotisations sociales salariés | I22: CSG déductible (sur les salaires) | J22: CSG non déductible / CRDS | K22: Revenus d'activité année N nets | L22: Revenus d'activité année N déclarés | M22: Temps de travail (en % du temps plein Smic net) | N22: Salaire en % du Smic net tps plein | O22: Coût du travail année N | P22: Base ressource ASS (revenu imposable N-1 avant abattements) | Q22: Revenu imposable (N-1) | R22: Revenu imposable (N-2) | S22: Revenu imposable (N-2) avec abatt. 30 % rev. act. N-2 pour bénéficiaires ARE | T22: Montant ASS | U22: Prime de Noël | V22: Base ressources | W22: AL | X22: Montant des allocations familiales | Y22: plafond CF non majoré | Z22: plafond CF majoré | AA22: montant | AB22: plafond AB tx partiel | AC22: plafond AB tx plein | AD22: montant | AE22: Base ressources (PR) | AF22: Montant (PR) | AG22: Majoration vie autonome (PR) | AH22: Base ressources (conjoint) | AI22: Montant (conjoint) | AJ22: Majoration vie autonome (conjoint) | AK22: Total | AL22: Max (AAH,ASS) du conjoint (non cumul) | AM22: Base ressources | AN22: RSA socle | AO22: Prime de Noël | AP22: Max (primes de Noel RSA, ASS) | AQ22: Base ressources | AR22: Bonus d'activité | AS22: Prime d'activité | AT22: ARS | AU22: Revenu imposable (RFR) | AV22: Revenu imposable par part fiscale | AW22: Impôt par part fiscale | AX22: Impôt total | AY22: Revenu imposable par part fiscale (sans demi-part suppl) | AZ22: Impôt par part fiscale (sans demi-part suppl) | BA22: Impôt total (sans demi-part suppl) | BB22: Avantage lié au QF | BC22: Impôt après plafonnement QF | BD22: Décote | BE22: Impôt après décote et réduction d'impôts | BF22: Impôt après seuil de recouvrement | BG22: Revenus du travail nets | BH22: Revenus hors travail | BI22: Revenu disponible (y.c. impôts, TH, AF et AL) | BJ22: Niveau de vie | BK22: Taux d'imposition marginal implicite (sur le net) | BL22: Taux d'imposition marginal implicite (sur le superbrut) | BM22: Décile de niveau de vie | BN22: CSS gratuite | BO22: Chèque énergie | BP22: Revenu ajusté (revenu disp + CSSg + chèque énergie)
A23: 0 | B23: =MIN(100%,A23/smic_b) -> 0 | C23: =A23/smic_b -> 0 | D23: =0 -> 0 | E23: =D23/rap_salnet_are -> 0 | F23: =IF(0<A23,taux_cs_emp_t1*MIN(A23,plafond_ss),0) +IF(plafond_ss<A23,taux_cs_emp_t2*MIN(A23-plafond_ss,2*plafond_ss),0) +IF(3*plafond_ss<A23,taux_cs_emp_t3*MIN(A23-3*plafond_ss,plafond_ss),0) +IF(4*plafond_ss<A23,taux_cs_emp_t4*MIN(A23-4*plafond_ss,4*plafond_ss),0) +IF(8*plafond_ss<A23,taux_cs_emp_t5*(A23-8*plafond_ss),0) +IF(plafond_ss<A23,MIN(A23,8*plafond_ss)*taux_cet_pat,0) -IF(C23<=part_smic_exo,mod_cotis_fam*A23,0) -IF(C23<=seuil_smic_pat_assmal,reduc_pat_assmal*A23,0) -> 0 | G23: 0 | H23: =IF(0<A23,taux_cs_sal_t1*MIN(A23,plafond_ss),0) +IF(plafond_ss<A23,taux_cs_sal_t2*MIN(A23-plafond_ss,2*plafond_ss),0) +IF(3*plafond_ss<A23,taux_cs_sal_t3*MIN(A23-3*plafond_ss,plafond_ss),0) +IF(4*plafond_ss<A23,taux_cs_sal_t4*MIN(A23-4*plafond_ss,4*plafond_ss),0) +IF(8*plafond_ss<A23,taux_cs_sal_t5*(A23-8*plafond_ss),0) +IF(plafond_ss<A23,MIN(A23,8*plafond_ss)*taux_cet_sal,0) -> 0 | I23: =IF(0<A23,taux_csg_deduc_t1*MIN(A23,4*plafond_ss),0) +IF(4*plafond_ss<A23,taux_csg_deduc_t2*(A23-4*plafond_ss),0) -> 0 | J23: =IF(0<A23,taux_csgcrds_nondeduc_t1*MIN(A23,4*plafond_ss),0) +IF(4*plafond_ss<A23,taux_csgcrds_nondeduc_t2*(A23-4*plafond_ss),0) -> 0 | K23: =A23-H23-I23-J23 -> 0 | L23: =A23-H23-I23 -> 0 | M23: =MIN(100%,K23/smic_n) -> 0 | N23: =K23/smic_n -> 0 | O23: =A23+F23-G23 -> 0 | P23: =($L23+$E$7+$Z$16+$E23+$AO$16)/(1+deflat) -> 0 | Q23: =($L23+$E$7+$Z$16+$E23+$AO$16 + IF($AI23=$AL23,0,$T23))/(1+deflat)*abatt_rfr -> 0 | R23: =($L23+$E$7+$Z$16+$E23+$AO$16+IF($AI23=$AL23,0,$T23))/(1+deflat_2)*abatt_rfr -> 0 | S23: =($L23+$E$7+$Z$16+IF($AI23=$AL23,0,$T23)+(1-abatt_rbg_are)*($E23+$AO$16))/(1+deflat_2)*abatt_rfr -> 0 | T23: =(Nb_adultes=2)*$H$6*IF($P23<ASS_plaf_couple,ASS_mtt_forf,IF(ASS_diff_plaf_couple-$P23>=seuil_vers_ASS,ASS_diff_plaf_couple-$P23,0)) -> 0 | U23: =IF(AND($T23>0,$T23=$AL23),Barème!$C$199,0) -> 0 | V23: =ROUNDUP(12*((1+deflat_2)*rbg-$T23-IF((Nb_adultes=2)*AND(L23>bmaf,$Z$16>bmaf),APL_abatt_biactifs,0)),-2)/12 -> 0 | W23: =TRUNC((1-$K$6) * IF(($N$16-($N$17+12*($P$16+al_taux_compl)*MAX(0,V23-$P$17))-Mfo_AL)* (1-tx_crds)>=seuil_versement_AL, $N$16-($N$17+12*($P$16+al_taux_compl)*MAX(0,V23-$P$17))-Mfo_AL,0) * (1-tx_crds)) -> 281 | X23: =IF(rbg<=p1_modulation_af,$I$16, IF(rbg<=p1_modulation_af+$I$16/2,$I$16+p1_modulation_af-rbg, IF(rbg<=p2_modulation_af,$I$16/2, IF(rbg<=p2_modulation_af+$I$16/4,$I$16/2+p2_modulation_af-rbg,$I$16/4)))) -> 0 | Y23: =IF(OR(Nb_adultes=1,AND(L23/(1+deflat_2)>bmaf_n_2,$Z$16/(1+deflat_2)>bmaf_n_2)), plafond_maj_CF+MAX(Nb_enfants-3,0)*pers_sup_CF, plafond_simple_CF+MAX(Nb_enfants-3,0)*pers_sup_CF) -> 4059.5 | Z23: =IF(OR(Nb_adultes=1,AND(L23/(1+deflat_2)>bmaf_n_2,$Z$16/(1+deflat_2)>bmaf_n_2)), plafond_maj_CF_majo+MAX(Nb_enfants-3,0)*pers_sup_CF_majo, plafond_simple_CF_majo+MAX(Nb_enfants-3,0)*pers_sup_CF_majo) -> 2030.083333 | AA23: =IF(OR(($B$7+$B$8+$B$9+$B$10+$B$11+$B$12)<3,$B$6>=1),0, IF(rbg<$Z23,montant_CF_majo, IF(rbg<$Y23,montant_CF, IF(rbg<($Y23+montant_CF),montant_CF+$Y23-rbg,0)))) -> 0 | AB23: =IF(OR(Nb_adultes=1,AND(L23/(1+deflat_2)>bmaf_n_2,$Z$16/(1+deflat_2)>bmaf_n_2)), plafond_majore_paje+MIN(Nb_enfants,2)*plafond_sup_enf_12_paje+MAX(Nb_enfants-3,0)*plafond_sup_enf_3_paje, plaf_simple_paje+MIN(Nb_enfants,2)*plafond_sup_enf_12_paje+MAX(Nb_enfants-3,0)*plafond_sup_enf_3_paje) -> 3074.166667 | AC23: =IF(OR(Nb_adultes=1,AND(L23/(1+deflat_2)>bmaf_n_2,$Z$16/(1+deflat_2)>bmaf_n_2)), plafond_majore_paje_plein+MIN(Nb_enfants,2)*plafond_sup_enf_12_paje_plein+MAX(Nb_enfants-3,0)*plafond_sup_enf_3_paje_plein, plaf_simple_paje_plein+MIN(Nb_enfants,2)*plafond_sup_enf_12_paje_plein+MAX(Nb_enfants-3,0)*plafond_sup_enf_3_paje_plein) -> 2584.583333 | AD23: =IF(rbg<AC23,montant_paje_plein*($B$6>0),IF(rbg<AB23,montant_paje*($B$6>0),0)) -> 0 | AE23: =($K$1="01/07")*MAX($Z$16*abatt_rfr-AAH_abatt_general-AAH_abatt_majo*Nb_enfants,0)+($E$7+$E$6+$D23+IF($BC23=BE23,0,$T23))*abatt_rfr +MIN($L23,AAH_plafond_abatt_salaire)*AAH_abatt_salaire_t1 +MAX($L23-AAH_plafond_abatt_salaire,0)*AAH_abatt_salaire_t2 -> 0 | AF23: =($H$8=1)*( IF($AR$16-AE23>=AAH_montant, AAH_montant, MAX(0,$AR$16-AE23)) ) -> 0 | AG23: =IF(AND($A23=0,AF23=AAH_montant,Base!$W23>0,$H$10=1),AAH_mva,0) -> 0 | AH23: =($K$1="01/07")*MAX($L23*abatt_rfr-AAH_abatt_general-AAH_abatt_majo*Nb_enfants,0)+($E$7+$E$6+$D23)*abatt_rfr +MIN($Z$16,AAH_plafond_abatt_salaire)*AAH_abatt_salaire_t1 +MAX($Z$16-AAH_plafond_abatt_salaire,0)*AAH_abatt_salaire_t2 -> 0 | AI23: =($H$9=1)*( IF($AR$16-AH23>=AAH_montant, AAH_montant, MAX(0,$AR$16-AH23)) ) -> 0 | AJ23: =IF(AND($E$4=0,AI23=AAH_montant,Base!$W23>0,$J$10=1),AAH_mva,0) -> 0 | AK23: =AF23+AG23+AI23+AJ23 -> 0 | AL23: =MAX($T23,$AI23) -> 0 | AM23: =$K23+$Z$17+$AK23+($W23>0)*MIN($W23,$E$17)+($K$6=1)*$E$17+$I$16-$I$17+MIN($AA23,montant_CF)+$AD23+$AL$17+$D23+$E$6+$E$7+IF($AI23=AL23,0,$T23) -> 72.93 | AN23: =IF(AM23+seuil_versement_rsa<=$E$16,$E$16-AM23,0) -> 534.82 | AO23: =((AN23)>0)* IF((Nb_adultes+Nb_enfants)=1,noel_1pers, IF((Nb_adultes+Nb_enfants)=2,noel_2pers, IF((Nb_adultes+Nb_enfants)=3,noel_3pers, IF(AND(Nb_adultes=1,(Nb_adultes+Nb_enfants)=4),noel_isole_4pers, IF(AND(Nb_adultes=2,(Nb_adultes+Nb_enfants)=4),noel_couple_4pers, IF(Nb_adultes=1,noel_isole_4pers+noel_pers_sup*(Nb_adultes+Nb_enfants-4), noel_couple_4pers+noel_pers_sup*(Nb_adultes+Nb_enfants-4))))))) -> 12.70416667 | AP23: =MAX($AO23,$U23) -> 12.70416667 | AQ23: =$K23+$Z$17+$AK23-$AI23+$AL23+($W23>0)*MIN($W23,$F$17)+($K$6=1)*$F$17+$I$16-$I$17+MIN($AA23,montant_CF)+$AD23+$AL$17+$D23+$E$6+$E$7 -> 71.43 | AR23: =PA_bonus*( IF($K23+($K23>=Sal_min_AAH_PA)*$AF23>PA_tranche1_smic*smic_n, (MIN($K23+($K23>=Sal_min_AAH_PA)*$AF23,PA_tranche2_smic*smic_n)-PA_tranche1_smic*smic_n)/((PA_tranche2_smic-PA_tranche1_smic)*smic_n),0) +(IF($Z$17+($Z$17>=Sal_min_AAH_PA)*($AI23>=$T23)*$AI23>PA_tranche1_smic*smic_n, (MIN($Z$17+($Z$17>=Sal_min_AAH_PA)*($AI23>=$T23)*$AI23,PA_tranche2_smic*smic_n)-PA_tranche1_smic*smic_n)/((PA_tranche2_smic-PA_tranche1_smic)*smic_n),0)) ) -> 0 | AS23: =(OR($H$4,($AN23>0))*($A23+$Z$17>0)* IF(($F$16+(1-PA_pente)*($K23+$Z$17+($K23>=Sal_min_AAH_PA)*$AF23+($Z$17>=Sal_min_AAH_PA)*($AI23>=$T23)*$AI23)+$AR23-MAX($AQ23,$F$16))*(1-tx_crds)>=seuil_versement_PA, $F$16+(1-PA_pente)*($K23+$Z$17+($K23>=Sal_min_AAH_PA)*$AF23+($Z$17>=Sal_min_AAH_PA)*($AI23>=$T23)*$AI23)+$AR23-MAX($AQ23,$F$16), 0))*(1-tx_crds) -> 0 | AT23: =IF(rbg<plaf_ars+plaf_ars_enf*($B$6+$B$7+$B$8+$B$9+$B$10+$B$11+$B$12), (ars6_10*$B$8+ars11_14*($B$9+$B$10)+ars15_18*$B$11)/12, IF(rbg<plaf_ars+plaf_ars_enf*($B$6+$B$7+$B$8+$B$9+$B$10+$B$11+$B$12)+(ars6_10*$B$8+ars11_14*($B$9+$B$10)+ars15_18*$B$11)/12, plaf_ars+plaf_ars_enf*($B$6+$B$7+$B$8+$B$9+$B$10+$B$11+$B$12)+(ars6_10*$B$8+ars11_14*($B$9+$B$10)+ars15_18*$B$11)/12-rbg, 0)) -> 0 | AU23: =$Q23*(1+deflat) -> 0 | AV23: =AU23/$AE$17 -> 0 | AW23: =IF(0<AV23,taux_ir_t1*MIN(AV23,plafond_ir_t1),0) +IF(plafond_ir_t1<AV23,taux_ir_t2*MIN(AV23-plafond_ir_t1,plafond_ir_t2-plafond_ir_t1),0) +IF(plafond_ir_t2<AV23,taux_ir_t3*MIN(AV23-plafond_ir_t2,plafond_ir_t3-plafond_ir_t2),0) +IF(plafond_ir_t3<AV23,taux_ir_t4*MIN(AV23-plafond_ir_t3,plafond_ir_t4-plafond_ir_t3),0) +IF(plafond_ir_t4<AV23,taux_ir_t5*(AV23-plafond_ir_t4),0) -> 0 | AX23: =AW23*$AE$17 -> 0 | AY23: =AU23/Nb_adultes -> 0 | AZ23: =IF(0<AY23,taux_ir_t1*MIN(AY23,plafond_ir_t1),0) +IF(plafond_ir_t1<AY23,taux_ir_t2*MIN(AY23-plafond_ir_t1,plafond_ir_t2-plafond_ir_t1),0) +IF(plafond_ir_t2<AY23,taux_ir_t3*MIN(AY23-plafond_ir_t2,plafond_ir_t3-plafond_ir_t2),0) +IF(plafond_ir_t3<AY23,taux_ir_t4*MIN(AY23-plafond_ir_t3,plafond_ir_t4-plafond_ir_t3),0) +IF(plafond_ir_t4<AY23,taux_ir_t5*(AY23-plafond_ir_t4),0) -> 0 | BA23: =AZ23*Nb_adultes -> 0 | BB23: =BA23-AX23 -> 0 | BC23: =IF(BB23<$AE$16,AX23,BA23-$AE$16) -> 0 | BD23: =IF(Nb_adultes=1, MAX(Decote_taux*mont_decote_celib-Decote_taux*BC23,0),MAX(Decote_taux*mont_decote_couple-Decote_taux*BC23,0)) -> 72.71373333 | BE23: =MAX(0,BC23-BD23) -> 0 | BF23: =IF(BE23>seuil_recouvrement_IR,BE23,0) -> 0 | BG23: =$K23+$Z$17 -> 0 | BH23: =X23+AN23+AS23+AA23+W23+AT23+AD23+$AL$16+D23+$E$6+AK23-$AI23+$AL23+$AP23 -> 828.5241667 | BI23: =BG23+BH23-BF23+$E$7 -> 828.5241667 | BJ23: =BI23/$AV$17 -> 828.5241667 | BK23: =1-(BI24-BI23)/(BG24-BG23) -> 0.39305 | BL23: =1-(BI24-BI23)/(O24-O23) -> 0.5349606038 | BM23: =1+IF(seuil_D1< BJ23*12,1,0)+IF(seuil_D2<BJ23*12,1,0)+IF(seuil_D3<BJ23*12,1,0)+IF(seuil_D4<BJ23*12,1,0)+IF(seuil_D5<BJ23*12,1,0)+IF(seuil_D6<BJ23*12,1,0)+IF(seuil_D7<BJ23*12,1,0)+IF(seuil_D8<BJ23*12,1,0)+IF(seuil_D9<BJ23*12,1,0) -> 1 | BN23: =$H$5*IF(AN23=0, (AM23<$AH$16)*(Nb_adultes*montant_cmuc_16_49+(Nb_enfants-$B$11-$B$12)*montant_cmuc_0_15+($B$11+$B$12)*montant_cmuc_16_49), (Nb_adultes*montant_cmuc_16_49+(Nb_enfants-$B$11-$B$12)*montant_cmuc_0_15+($B$11+$B$12)*montant_cmuc_16_49)) -> 36.52225 | BO23: =((Q23/$AV$16<plaf_cheque_energie_t1) * IF($AV$16=1,montant_t1_1UC,IF($AV$16<2,montant_t1_12UC,montant_t1_2UC_et_plus))+ (AND(Q23/$AV$16>=plaf_cheque_energie_t1,Q23/$AV$16<plaf_cheque_energie_t2)) * IF($AV$16=1,montant_t2_1UC,IF($AV$16<2,montant_t2_12UC,montant_t2_2UC_et_plus))+ (AND(Q23/$AV$16>=plaf_cheque_energie_t2,Q23/$AV$16<plaf_cheque_energie_t3)) * IF($AV$16=1,montant_t3_1UC,IF($AV$16<2,montant_t3_12UC,montant_t3_2UC_et_plus))+ (AND(Q23/$AV$16>=plaf_cheque_energie_t3,Q23/$AV$16<plaf_cheque_energie_t4)) * IF($AV$16=1,montant_t4_1UC,IF($AV$16<2,montant_t4_12UC,montant_t4_2UC_et_plus))+ (AND(Q23/$AV$16>=plaf_cheque_energie_t3,Q23/$AV$16<plaf_cheque_energie_t5)) *bonus_2022 )/12 -> 16.16666667 | BP23: =BI23+BN23+BO23 -> 881.2130833
A24: =A23+$E$9 -> 43.68096 | B24: 0.025 | C24: 0.025 | D24: =D23+$E$10 -> 0 | E24: 0 | F24: =IF(0<A24,taux_cs_emp_t1*MIN(A24,plafond_ss),0) +IF(plafond_ss<A24,taux_cs_emp_t2*MIN(A24-plafond_ss,2*plafond_ss),0) +IF(3*plafond_ss<A24,taux_cs_emp_t3*MIN(A24-3*plafond_ss,plafond_ss),0) +IF(4*plafond_ss<A24,taux_cs_emp_t4*MIN(A24-4*plafond_ss,4*plafond_ss),0) +IF(8*plafond_ss<A24,taux_cs_emp_t5*(A24-8*plafond_ss),0) +IF(plafond_ss<A24,MIN(A24,8*plafond_ss)*taux_cet_pat,0) -IF(C24<=part_smic_exo,mod_cotis_fam*A24,0) -IF(C24<=seuil_smic_pat_assmal,reduc_pat_assmal*A24,0) -> 15.56177881 | G24: =MAX(tx_exo_fillon_smic*A24*(plafond_exo_fillon*(B24/C24)-1)/(plafond_exo_fillon-1),0) -> 14.11331818 | H24: =IF(0<A24,taux_cs_sal_t1*MIN(A24,plafond_ss),0) +IF(plafond_ss<A24,taux_cs_sal_t2*MIN(A24-plafond_ss,2*plafond_ss),0) +IF(3*plafond_ss<A24,taux_cs_sal_t3*MIN(A24-3*plafond_ss,plafond_ss),0) +IF(4*plafond_ss<A24,taux_cs_sal_t4*MIN(A24-4*plafond_ss,4*plafond_ss),0) +IF(8*plafond_ss<A24,taux_cs_sal_t5*(A24-8*plafond_ss),0) +IF(plafond_ss<A24,MIN(A24,8*plafond_ss)*taux_cet_sal,0) -> 4.940316576 | I24: =IF(0<A24,taux_csg_deduc_t1*MIN(A24,4*plafond_ss),0) +IF(4*plafond_ss<A24,taux_csg_deduc_t2*(A24-4*plafond_ss),0) -> 2.918324938 | J24: =IF(0<A24,taux_csgcrds_nondeduc_t1*MIN(A24,4*plafond_ss),0) +IF(4*plafond_ss<A24,taux_csgcrds_nondeduc_t2*(A24-4*plafond_ss),0) -> 1.244579753 | K24: 34.57773873 | L24: 35.82231849 | M24: 0.02500071488 | N24: 0.02500071488 | O24: 45.12942063 | P24: 34.08403281 | Q24: 30.67562953 | R24: 29.02140921 | S24: 29.02140921 | T24: 0 | U24: =IF(AND($T24>0,$T24=$AL24),Barème!$C$199,0) -> 0 | V24: 33.33333333 | W24: 281 | X24: 0 | Y24: 4059.5 | Z24: 2030.083333 | AA24: 0 | AB24: 3074.166667 | AC24: 2584.583333 | AD24: 0 | AE24: 7.164463697 | AF24: 0 | AG24: =IF(AND($A24=0,AF24=AAH_montant,Base!$W24>0,$H$10=1),AAH_mva,0) -> 0 | AH24: 0 | AI24: 0 | AJ24: =IF(AND($E$4=0,AI24=AAH_montant,Base!$W24>0,$J$10=1),AAH_mva,0) -> 0 | AK24: =AF24+AG24+AI24+AJ24 -> 0 | AL24: =MAX($T24,$AI24) -> 0 | AM24: 107.5077387 | AN24: 500.2422613 | AO24: =((AN24)>0)* IF((Nb_adultes+Nb_enfants)=1,noel_1pers, IF((Nb_adultes+Nb_enfants)=2,noel_2pers, IF((Nb_adultes+Nb_enfants)=3,noel_3pers, IF(AND(Nb_adultes=1,(Nb_adultes+Nb_enfants)=4),noel_isole_4pers, IF(AND(Nb_adultes=2,(Nb_adultes+Nb_enfants)=4),noel_couple_4pers, IF(Nb_adultes=1,noel_isole_4pers+noel_pers_sup*(Nb_adultes+Nb_enfants-4), noel_couple_4pers+noel_pers_sup*(Nb_adultes+Nb_enfants-4))))))) -> 12.70416667 | AP24: 12.70416667 | AQ24: 106.0077387 | AR24: 0 | AS24: 20.98695852 | AT24: 0 | AU24: 32.24008664 | AV24: 32.24008664 | AW24: 0 | AX24: 0 | AY24: 32.24008664 | AZ24: 0 | BA24: 0 | BB24: =BA24-AX24 -> 0 | BC24: 0 | BD24: 72.71373333 | BE24: =MAX(0,BC24-BD24) -> 0 | BF24: 0 | BG24: 34.57773873 | BH24: =X24+AN24+AS24+AA24+W24+AT24+AD24+$AL$16+D24+$E$6+AK24-$AI24+$AL24+$AP24 -> 814.9333865 | BI24: =BG24+BH24-BF24+$E$7 -> 849.5111252 | BJ24: 849.5111252 | BK24: 0.39305 | BL24: 0.5349606038 | BM24: 1 | BN24: 36.52225 | BO24: 16.16666667 | BP24: =BI24+BN24+BO24 -> 902.2000419
A25: 87.36192 | B25: 0.05 | C25: 0.05 | D25: =D24+$E$10 -> 0 | E25: 0 | F25: =IF(0<A25,taux_cs_emp_t1*MIN(A25,plafond_ss),0) +IF(plafond_ss<A25,taux_cs_emp_t2*MIN(A25-plafond_ss,2*plafond_ss),0) +IF(3*plafond_ss<A25,taux_cs_emp_t3*MIN(A25-3*plafond_ss,plafond_ss),0) +IF(4*plafond_ss<A25,taux_cs_emp_t4*MIN(A25-4*plafond_ss,4*plafond_ss),0) +IF(8*plafond_ss<A25,taux_cs_emp_t5*(A25-8*plafond_ss),0) +IF(plafond_ss<A25,MIN(A25,8*plafond_ss)*taux_cet_pat,0) -IF(C25<=part_smic_exo,mod_cotis_fam*A25,0) -IF(C25<=seuil_smic_pat_assmal,reduc_pat_assmal*A25,0) -> 31.12355762 | G25: 28.22663635 | H25: 9.880633152 | I25: 5.836649875 | J25: 2.489159506 | K25: 69.15547747 | L25: 71.64463697 | M25: 0.05000142977 | N25: 0.05000142977 | O25: 90.25884127 | P25: 68.16806563 | Q25: 61.35125906 | R25: 58.04281841 | S25: 58.04281841 | T25: 0 | U25: =IF(AND($T25>0,$T25=$AL25),Barème!$C$199,0) -> 0 | V25: 66.66666667 | W25: 281 | X25: 0 | Y25: 4059.5 | Z25: 2030.083333 | AA25: 0 | AB25: 3074.166667 | AC25: 2584.583333 | AD25: 0 | AE25: 14.32892739 | AF25: 0 | AG25: =IF(AND($A25=0,AF25=AAH_montant,Base!$W25>0,$H$10=1),AAH_mva,0) -> 0 | AH25: 0 | AI25: 0 | AJ25: =IF(AND($E$4=0,AI25=AAH_montant,Base!$W25>0,$J$10=1),AAH_mva,0) -> 0 | AK25: 0 | AL25: 0 | AM25: 142.0854775 | AN25: 465.6645225 | AO25: 12.70416667 | AP25: 12.70416667 | AQ25: 140.5854775 | AR25: 0 | AS25: 41.97391705 | AT25: 0 | AU25: 64.48017328 | AV25: 64.48017328 | AW25: 0 | AX25: 0 | AY25: 64.48017328 | AZ25: 0 | BA25: 0 | BB25: 0 | BC25: 0 | BD25: 72.71373333 | BE25: 0 | BF25: 0 | BG25: 69.15547747 | BH25: 801.3426062 | BI25: 870.4980837 | BJ25: 870.4980837 | BK25: 0.39305 | BL25: 0.5349606038 | BM25: 1 | BN25: 36.52225 | BO25: 16.16666667 | BP25: 923.1870004
A26: 131.04288 | B26: 0.075 | C26: 0.075 | D26: 0 | E26: 0 | F26: 46.68533643 | G26: 42.33995453 | H26: 14.82094973 | I26: 8.754974813 | J26: 3.733739258 | K26: 103.7332162 | L26: 107.4669555 | M26: 0.07500214465 | N26: 0.07500214465 | O26: 135.3882619 | P26: 102.2520984 | Q26: 92.02688859 | R26: 87.06422762 | S26: 87.06422762 | T26: 0 | U26: =IF(AND($T26>0,$T26=$AL26),Barème!$C$199,0) -> 0 | V26: 100 | W26: 281 | X26: 0 | Y26: 4059.5 | Z26: 2030.083333 | AA26: 0 | AB26: 3074.166667 | AC26: 2584.583333 | AD26: 0 | AE26: 21.49339109 | AF26: 0 | AG26: =IF(AND($A26=0,AF26=AAH_montant,Base!$W26>0,$H$10=1),AAH_mva,0) -> 0 | AH26: 0 | AI26: 0 | AJ26: =IF(AND($E$4=0,AI26=AAH_montant,Base!$W26>0,$J$10=1),AAH_mva,0) -> 0 | AK26: 0 | AL26: 0 | AM26: 176.6632162 | AN26: 431.0867838 | AO26: 12.70416667 | AP26: 12.70416667 | AQ26: 175.1632162 | AR26: 0 | AS26: 62.96087557 | AT26: 0 | AU26: 96.72025991 | AV26: 96.72025991 | AW26: 0 | AX26: 0 | AY26: 96.72025991 | AZ26: 0 | BA26: 0 | BB26: 0 | BC26: 0 | BD26: 72.71373333 | BE26: 0 | BF26: 0 | BG26: 103.7332162 | BH26: 787.751826 | BI26: 891.4850422 | BJ26: 891.4850422 | BK26: 0.39305 | BL26: 0.5349606038 | BM26: 1 | BN26: 36.52225 | BO26: 16.16666667 | BP26: 944.1739589
A27: 174.72384 | B27: 0.1 | C27: 0.1 | D27: 0 | E27: 0 | F27: 62.24711524 | G27: 56.4532727 | H27: 19.7612663 | I27: 11.67329975 | J27: 4.978319011 | K27: 138.3109549 | L27: 143.2892739 | M27: 0.1000028595 | N27: 0.1000028595 | O27: 180.5176825 | P27: 136.3361313 | Q27: 122.7025181 | R27: 116.0856368 | S27: 116.0856368 | T27: 0 | U27: =IF(AND($T27>0,$T27=$AL27),Barème!$C$199,0) -> 0 | V27: 133.3333333 | W27: 281 | X27: 0 | Y27: 4059.5 | Z27: 2030.083333 | AA27: 0 | AB27: 3074.166667 | AC27: 2584.583333 | AD27: 0 | AE27: 28.65785479 | AF27: 0 | AG27: =IF(AND($A27=0,AF27=AAH_montant,Base!$W27>0,$H$10=1),AAH_mva,0) -> 0 | AH27: 0 | AI27: 0 | AJ27: =IF(AND($E$4=0,AI27=AAH_montant,Base!$W27>0,$J$10=1),AAH_mva,0) -> 0 | AK27: 0 | AL27: 0 | AM27: 211.2409549 | AN27: 396.5090451 | AO27: 12.70416667 | AP27: 12.70416667 | AQ27: 209.7409549 | AR27: 0 | AS27: 83.9478341 | AT27: 0 | AU27: 128.9603466 | AV27: 128.9603466 | AW27: 0 | AX27: 0 | AY27: 128.9603466 | AZ27: 0 | BA27: 0 | BB27: 0 | BC27: 0 | BD27: 72.71373333 | BE27: 0 | BF27: 0 | BG27: 138.3109549 | BH27: 774.1610458 | BI27: 912.4720008 | BJ27: 912.4720008 | BK27: 0.39305 | BL27: 0.5349606038 | BM27: 1 | BN27: 36.52225 | BO27: 16.16666667 | BP27: 965.1609174
A28: 218.4048 | B28: 0.125 | C28: 0.125 | D28: 0 | E28: 0 | F28: 77.80889405 | G28: 70.56659088 | H28: 24.70158288 | I28: 14.59162469 | J28: 6.222898764 | K28: 172.8886937 | L28: 179.1115924 | M28: 0.1250035744 | N28: 0.1250035744 | O28: 225.6471032 | P28: 170.4201641 | Q28: 153.3781477 | R28: 145.107046 | S28: 145.107046 | T28: 0 | U28: =IF(AND($T28>0,$T28=$AL28),Barème!$C$199,0) -> 0 | V28: 166.6666667 | W28: 281 | X28: 0 | Y28: 4059.5 | Z28: 2030.083333 | AA28: 0 | AB28: 3074.166667 | AC28: 2584.583333 | AD28: 0 | AE28: 35.82231849 | AF28: 0 | AG28: =IF(AND($A28=0,AF28=AAH_montant,Base!$W28>0,$H$10=1),AAH_mva,0) -> 0 | AH28: 0 | AI28: 0 | AJ28: =IF(AND($E$4=0,AI28=AAH_montant,Base!$W28>0,$J$10=1),AAH_mva,0) -> 0 | AK28: 0 | AL28: 0 | AM28: 245.8186937 | AN28: 361.9313063 | AO28: 12.70416667 | AP28: 12.70416667 | AQ28: 244.3186937 | AR28: 0 | AS28: 104.9347926 | AT28: 0 | AU28: 161.2004332 | AV28: 161.2004332 | AW28: 0 | AX28: 0 | AY28: 161.2004332 | AZ28: 0 | BA28: 0 | BB28: 0 | BC28: 0 | BD28: 72.71373333 | BE28: 0 | BF28: 0 | BG28: 172.8886937 | BH28: 760.5702656 | BI28: 933.4589593 | BJ28: 933.4589593 | BK28: 0.39305 | BL28: 0.5349606038 | BM28: 1 | BN28: 36.52225 | BO28: 16.16666667 | BP28: 986.147876
A29: 262.08576 | B29: 0.15 | C29: 0.15 | D29: 0 | E29: 0 | F29: 93.37067286 | G29: 84.67990906 | H29: 29.64189946 | I29: 17.50994963 | J29: 7.467478517 | K29: 207.4664324 | L29: 214.9339109 | M29: 0.1500042893 | N29: 0.1500042893 | O29: 270.7765238 | P29: 204.5041969 | Q29: 184.0537772 | R29: 174.1284552 | S29: 174.1284552 | T29: 0 | U29: =IF(AND($T29>0,$T29=$AL29),Barème!$C$199,0) -> 0 | V29: 200 | W29: 281 | X29: 0 | Y29: 4059.5 | Z29: 2030.083333 | AA29: 0 | AB29: 3074.166667 | AC29: 2584.583333 | AD29: 0 | AE29: 42.98678218 | AF29: 0 | AG29: =IF(AND($A29=0,AF29=AAH_montant,Base!$W29>0,$H$10=1),AAH_mva,0) -> 0 | AH29: 0 | AI29: 0 | AJ29: =IF(AND($E$4=0,AI29=AAH_montant,Base!$W29>0,$J$10=1),AAH_mva,0) -> 0 | AK29: 0 | AL29: 0 | AM29: 280.3964324 | AN29: 327.3535676 | AO29: 12.70416667 | AP29: 12.70416667 | AQ29: 278.8964324 | AR29: 0 | AS29: 125.9217511 | AT29: 0 | AU29: 193.4405198 | AV29: 193.4405198 | AW29: 0 | AX29: 0 | AY29: 193.4405198 | AZ29: 0 | BA29: 0 | BB29: 0 | BC29: 0 | BD29: 72.71373333 | BE29: 0 | BF29: 0 | BG29: 207.4664324 | BH29: 746.9794854 | BI29: 954.4459178 | BJ29: 954.4459178 | BK29: 0.39305 | BL29: 0.5349606038 | BM29: 1 | BN29: 36.52225 | BO29: 16.16666667 | BP29: 1007.134834
A30: 305.76672 | B30: 0.175 | C30: 0.175 | D30: 0 | E30: 0 | F30: 108.9324517 | G30: 98.79322723 | H30: 34.58221603 | I30: 20.42827456 | J30: 8.71205827 | K30: 242.0441711 | L30: 250.7562294 | M30: 0.1750050042 | N30: 0.1750050042 | O30: 315.9059444 | P30: 238.5882297 | Q30: 214.7294067 | R30: 203.1498644 | S30: 203.1498644 | T30: 0 | U30: =IF(AND($T30>0,$T30=$AL30),Barème!$C$199,0) -> 0 | V30: 233.3333333 | W30: 281 | X30: 0 | Y30: 4059.5 | Z30: 2030.083333 | AA30: 0 | AB30: 3074.166667 | AC30: 2584.583333 | AD30: 0 | AE30: 50.15124588 | AF30: 0 | AG30: =IF(AND($A30=0,AF30=AAH_montant,Base!$W30>0,$H$10=1),AAH_mva,0) -> 0 | AH30: 0 | AI30: 0 | AJ30: =IF(AND($E$4=0,AI30=AAH_montant,Base!$W30>0,$J$10=1),AAH_mva,0) -> 0 | AK30: 0 | AL30: 0 | AM30: 314.9741711 | AN30: 292.7758289 | AO30: 12.70416667 | AP30: 12.70416667 | AQ30: 313.4741711 | AR30: 0 | AS30: 146.9087097 | AT30: 0 | AU30: 225.6806065 | AV30: 225.6806065 | AW30: 0 | AX30: 0 | AY30: 225.6806065 | AZ30: 0 | BA30: 0 | BB30: 0 | BC30: 0 | BD30: 72.71373333 | BE30: 0 | BF30: 0 | BG30: 242.0441711 | BH30: 733.3887052 | BI30: 975.4328763 | BJ30: 975.4328763 | BK30: 0.39305 | BL30: 0.5349606038 | BM30: 1 | BN30: 36.52225 | BO30: 16.16666667 | BP30: 1028.121793
A31: 349.44768 | B31: 0.2 | C31: 0.2 | D31: 0 | E31: 0 | F31: 124.4942305 | G31: 112.9065454 | H31: 39.52253261 | I31: 23.3465995 | J31: 9.956638022 | K31: 276.6219099 | L31: 286.5785479 | M31: 0.2000057191 | N31: 0.2000057191 | O31: 361.0353651 | P31: 272.6722625 | Q31: 245.4050363 | R31: 232.1712737 | S31: 232.1712737 | T31: 0 | U31: =IF(AND($T31>0,$T31=$AL31),Barème!$C$199,0) -> 0 | V31: 258.3333333 | W31: 281 | X31: 0 | Y31: 4059.5 | Z31: 2030.083333 | AA31: 0 | AB31: 3074.166667 | AC31: 2584.583333 | AD31: 0 | AE31: 57.31570958 | AF31: 0 | AG31: =IF(AND($A31=0,AF31=AAH_montant,Base!$W31>0,$H$10=1),AAH_mva,0) -> 0 | AH31: 0 | AI31: 0 | AJ31: =IF(AND($E$4=0,AI31=AAH_montant,Base!$W31>0,$J$10=1),AAH_mva,0) -> 0 | AK31: 0 | AL31: 0 | AM31: 349.5519099 | AN31: 258.1980901 | AO31: 12.70416667 | AP31: 12.70416667 | AQ31: 348.0519099 | AR31: 0 | AS31: 167.8956682 | AT31: 0 | AU31: 257.9206931 | AV31: 257.9206931 | AW31: 0 | AX31: 0 | AY31: 257.9206931 | AZ31: 0 | BA31: 0 | BB31: 0 | BC31: 0 | BD31: 72.71373333 | BE31: 0 | BF31: 0 | BG31: 276.6219099 | BH31: 719.797925 | BI31: 996.4198349 | BJ31: 996.4198349 | BK31: 0.39305 | BL31: 0.5349606038 | BM31: 1 | BN31: 36.52225 | BO31: 16.16666667 | BP31: 1049.108752
A32: 393.12864 | B32: 0.225 | C32: 0.225 | D32: 0 | E32: 0 | F32: 140.0560093 | G32: 127.0198636 | H32: 44.46284918 | I32: 26.26492444 | J32: 11.20121778 | K32: 311.1996486 | L32: 322.4008664 | M32: 0.2250064339 | N32: 0.2250064339 | O32: 406.1647857 | P32: 306.7562953 | Q32: 276.0806658 | R32: 261.1926829 | S32: 261.1926829 | T32: 0 | U32: =IF(AND($T32>0,$T32=$AL32),Barème!$C$199,0) -> 0 | V32: 291.6666667 | W32: 281 | X32: 0 | Y32: 4059.5 | Z32: 2030.083333 | AA32: 0 | AB32: 3074.166667 | AC32: 2584.583333 | AD32: 0 | AE32: 64.48017328 | AF32: 0 | AG32: =IF(AND($A32=0,AF32=AAH_montant,Base!$W32>0,$H$10=1),AAH_mva,0) -> 0 | AH32: 0 | AI32: 0 | AJ32: =IF(AND($E$4=0,AI32=AAH_montant,Base!$W32>0,$J$10=1),AAH_mva,0) -> 0 | AK32: 0 | AL32: 0 | AM32: 384.1296486 | AN32: 223.6203514 | AO32: 12.70416667 | AP32: 12.70416667 | AQ32: 382.6296486 | AR32: 0 | AS32: 188.8826267 | AT32: 0 | AU32: 290.1607797 | AV32: 290.1607797 | AW32: 0 | AX32: 0 | AY32: 290.1607797 | AZ32: 0 | BA32: 0 | BB32: 0 | BC32: 0 | BD32: 72.71373333 | BE32: 0 | BF32: 0 | BG32: 311.1996486 | BH32: 706.2071448 | BI32: 1017.406793 | BJ32: 1017.406793 | BK32: 0.39305 | BL32: 0.5349606038 | BM32: 1 | BN32: 36.52225 | BO32: 16.16666667 | BP32: 1070.09571
A33: 436.8096 | B33: 0.25 | C33: 0.25 | D33: 0 | E33: 0 | F33: 155.6177881 | G33: 141.1331818 | H33: 49.40316576 | I33: 29.18324938 | J33: 12.44579753 | K33: 345.7773873 | L33: 358.2231849 | M33: 0.2500071488 | N33: 0.2500071488 | O33: 451.2942063 | P33: 340.8403281 | Q33: 306.7562953 | R33: 290.2140921 | S33: 290.2140921 | T33: 0 | U33: =IF(AND($T33>0,$T33=$AL33),Barème!$C$199,0) -> 0 | V33: 325 | W33: 281 | X33: 0 | Y33: 4059.5 | Z33: 2030.083333 | AA33: 0 | AB33: 3074.166667 | AC33: 2584.583333 | AD33: 0 | AE33: 71.64463697 | AF33: 0 | AG33: =IF(AND($A33=0,AF33=AAH_montant,Base!$W33>0,$H$10=1),AAH_mva,0) -> 0 | AH33: 0 | AI33: 0 | AJ33: =IF(AND($E$4=0,AI33=AAH_montant,Base!$W33>0,$J$10=1),AAH_mva,0) -> 0 | AK33: 0 | AL33: 0 | AM33: 418.7073873 | AN33: 189.0426127 | AO33: 12.70416667 | AP33: 12.70416667 | AQ33: 417.2073873 | AR33: 0 | AS33: 209.8695852 | AT33: 0 | AU33: 322.4008664 | AV33: 322.4008664 | AW33: 0 | AX33: 0 | AY33: 322.4008664 | AZ33: 0 | BA33: 0 | BB33: 0 | BC33: 0 | BD33: 72.71373333 | BE33: 0 | BF33: 0 | BG33: 345.7773873 | BH33: 692.6163646 | BI33: 1038.393752 | BJ33: 1038.393752 | BK33: 0.39305 | BL33: 0.5349606038 | BM33: 1 | BN33: 36.52225 | BO33: 16.16666667 | BP33: 1091.082669
A34: 480.49056 | B34: 0.275 | C34: 0.275 | D34: 0 | E34: 0 | F34: 171.1795669 | G34: 155.2464999 | H34: 54.34348234 | I34: 32.10157431 | J34: 13.69037728 | K34: 380.3551261 | L34: 394.0455034 | M34: 0.2750078637 | N34: 0.2750078637 | O34: 496.423627 | P34: 374.9243609 | Q34: 337.4319248 | R34: 319.2355013 | S34: 319.2355013 | T34: 0 | U34: =IF(AND($T34>0,$T34=$AL34),Barème!$C$199,0) -> 0 | V34: 358.3333333 | W34: 281 | X34: 0 | Y34: 4059.5 | Z34: 2030.083333 | AA34: 0 | AB34: 3074.166667 | AC34: 2584.583333 | AD34: 0 | AE34: 78.80910067 | AF34: 0 | AG34: =IF(AND($A34=0,AF34=AAH_montant,Base!$W34>0,$H$10=1),AAH_mva,0) -> 0 | AH34: 0 | AI34: 0 | AJ34: =IF(AND($E$4=0,AI34=AAH_montant,Base!$W34>0,$J$10=1),AAH_mva,0) -> 0 | AK34: 0 | AL34: 0 | AM34: 453.2851261 | AN34: 154.4648739 | AO34: 12.70416667 | AP34: 12.70416667 | AQ34: 451.7851261 | AR34: 0 | AS34: 230.8565438 | AT34: 0 | AU34: 354.640953 | AV34: 354.640953 | AW34: 0 | AX34: 0 | AY34: 354.640953 | AZ34: 0 | BA34: 0 | BB34: 0 | BC34: 0 | BD34: 72.71373333 | BE34: 0 | BF34: 0 | BG34: 380.3551261 | BH34: 679.0255844 | BI34: 1059.38071 | BJ34: 1059.38071 | BK34: 0.39305 | BL34: 0.5349606038 | BM34: 1 | BN34: 36.52225 | BO34: 16.16666667 | BP34: 1112.069627
A35: 524.17152 | B35: 0.3 | C35: 0.3 | D35: 0 | E35: 0 | F35: 186.7413457 | G35: 169.3598181 | H35: 59.28379891 | I35: 35.01989925 | J35: 14.93495703 | K35: 414.9328648 | L35: 429.8678218 | M35: 0.3000085786 | N35: 0.3000085786 | O35: 541.5530476 | P35: 409.0083938 | Q35: 368.1075544 | R35: 348.2569105 | S35: 348.2569105 | T35: 0 | U35: =IF(AND($T35>0,$T35=$AL35),Barème!$C$199,0) -> 0 | V35: 391.6666667 | W35: 281 | X35: 0 | Y35: 4059.5 | Z35: 2030.083333 | AA35: 0 | AB35: 3074.166667 | AC35: 2584.583333 | AD35: 0 | AE35: 85.97356437 | AF35: 0 | AG35: =IF(AND($A35=0,AF35=AAH_montant,Base!$W35>0,$H$10=1),AAH_mva,0) -> 0 | AH35: 0 | AI35: 0 | AJ35: =IF(AND($E$4=0,AI35=AAH_montant,Base!$W35>0,$J$10=1),AAH_mva,0) -> 0 | AK35: 0 | AL35: 0 | AM35: 487.8628648 | AN35: 119.8871352 | AO35: 12.70416667 | AP35: 12.70416667 | AQ35: 486.3628648 | AR35: 0 | AS35: 251.8435023 | AT35: 0 | AU35: 386.8810397 | AV35: 386.8810397 | AW35: 0 | AX35: 0 | AY35: 386.8810397 | AZ35: 0 | BA35: 0 | BB35: 0 | BC35: 0 | BD35: 72.71373333 | BE35: 0 | BF35: 0 | BG35: 414.9328648 | BH35: 665.4348042 | BI35: 1080.367669 | BJ35: 1080.367669 | BK35: 0.5087313646 | BL35: 0.6235945801 | BM35: 2 | BN35: 36.52225 | BO35: 16.16666667 | BP35: 1133.056586
A36: 567.85248 | B36: 0.325 | C36: 0.325 | D36: 0 | E36: 0 | F36: 202.3031245 | G36: 183.4731363 | H36: 64.22411549 | I36: 37.93822419 | J36: 16.17953679 | K36: 449.5106035 | L36: 465.6901403 | M36: 0.3250092935 | N36: 0.3250092935 | O36: 586.6824682 | P36: 443.0924266 | Q36: 398.7831839 | R36: 377.2783197 | S36: 377.2783197 | T36: 0 | U36: =IF(AND($T36>0,$T36=$AL36),Barème!$C$199,0) -> 0 | V36: 425 | W36: 277 | X36: 0 | Y36: 4059.5 | Z36: 2030.083333 | AA36: 0 | AB36: 3074.166667 | AC36: 2584.583333 | AD36: 0 | AE36: 93.13802806 | AF36: 0 | AG36: =IF(AND($A36=0,AF36=AAH_montant,Base!$W36>0,$H$10=1),AAH_mva,0) -> 0 | AH36: 2.454459624 | AI36: 0 | AJ36: =IF(AND($E$4=0,AI36=AAH_montant,Base!$W36>0,$J$10=1),AAH_mva,0) -> 0 | AK36: 0 | AL36: 0 | AM36: 522.4406035 | AN36: 85.30939646 | AO36: 12.70416667 | AP36: 12.70416667 | AQ36: 520.9406035 | AR36: 0 | AS36: 272.8304608 | AT36: 0 | AU36: 419.1211263 | AV36: 419.1211263 | AW36: 0 | AX36: 0 | AY36: 419.1211263 | AZ36: 0 | BA36: 0 | BB36: 0 | BC36: 0 | BD36: 72.71373333 | BE36: 0 | BF36: 0 | BG36: 449.5106035 | BH36: 647.8440239 | BI36: 1097.354627 | BJ36: 1097.354627 | BK36: 0.7690144348 | BL36: 0.8230210268 | BM36: 2 | BN36: 36.52225 | BO36: 16.16666667 | BP36: 1150.043544
A37: 611.53344 | B37: 0.35 | C37: 0.35 | D37: 0 | E37: 0 | F37: 217.8649033 | G37: 197.5864545 | H37: 69.16443206 | I37: 40.85654913 | J37: 17.42411654 | K37: 484.0883423 | L37: 501.5124588 | M37: 0.3500100084 | N37: 0.3500100084 | O37: 631.8118889 | P37: 477.1764594 | Q37: 429.4588134 | R37: 406.2997289 | S37: 406.2997289 | T37: 0 | U37: =IF(AND($T37>0,$T37=$AL37),Barème!$C$199,0) -> 0 | V37: 458.3333333 | W37: 264 | X37: 0 | Y37: 4059.5 | Z37: 2030.083333 | AA37: 0 | AB37: 3074.166667 | AC37: 2584.583333 | AD37: 0 | AE37: 100.3024918 | AF37: 0 | AG37: =IF(AND($A37=0,AF37=AAH_montant,Base!$W37>0,$H$10=1),AAH_mva,0) -> 0 | AH37: 34.69454626 | AI37: 0 | AJ37: =IF(AND($E$4=0,AI37=AAH_montant,Base!$W37>0,$J$10=1),AAH_mva,0) -> 0 | AK37: 0 | AL37: 0 | AM37: 557.0183423 | AN37: 50.73165773 | AO37: 12.70416667 | AP37: 12.70416667 | AQ37: 555.5183423 | AR37: 0 | AS37: 293.8174193 | AT37: 0 | AU37: 451.3612129 | AV37: 451.3612129 | AW37: 0 | AX37: 0 | AY37: 451.3612129 | AZ37: 0 | BA37: 0 | BB37: 0 | BC37: 0 | BD37: 72.71373333 | BE37: 0 | BF37: 0 | BG37: 484.0883423 | BH37: 621.2532437 | BI37: 1105.341586 | BJ37: 1105.341586 | BK37: 0.7400940937 | BL37: 0.8008625327 | BM37: 2 | BN37: 36.52225 | BO37: 16.16666667 | BP37: 1158.030503
A38: 655.2144 | B38: 0.375 | C38: 0.375 | D38: 0 | E38: 0 | F38: 233.4266821 | G38: 211.6997726 | H38: 74.10474864 | I38: 43.77487406 | J38: 18.66869629 | K38: 518.666081 | L38: 537.3347773 | M38: 0.3750107232 | N38: 0.3750107232 | O38: 676.9413095 | P38: 511.2604922 | Q38: 460.134443 | R38: 435.3211381 | S38: 435.3211381 | T38: 0 | U38: =IF(AND($T38>0,$T38=$AL38),Barème!$C$199,0) -> 0 | V38: 491.6666667 | W38: 252 | X38: 0 | Y38: 4059.5 | Z38: 2030.083333 | AA38: 0 | AB38: 3074.166667 | AC38: 2584.583333 | AD38: 0 | AE38: 112.7322584 | AF38: 0 | AG38: =IF(AND($A38=0,AF38=AAH_montant,Base!$W38>0,$H$10=1),AAH_mva,0) -> 0 | AH38: 66.9346329 | AI38: 0 | AJ38: =IF(AND($E$4=0,AI38=AAH_montant,Base!$W38>0,$J$10=1),AAH_mva,0) -> 0 | AK38: 0 | AL38: 0 | AM38: 591.596081 | AN38: 16.153919 | AO38: 12.70416667 | AP38: 12.70416667 | AQ38: 590.096081 | AR38: 0 | AS38: 314.8043779 | AT38: 0 | AU38: 483.6012996 | AV38: 483.6012996 | AW38: 0 | AX38: 0 | AY38: 483.6012996 | AZ38: 0 | BA38: 0 | BB38: 0 | BC38: 0 | BD38: 72.71373333 | BE38: 0 | BF38: 0 | BG38: 518.666081 | BH38: 595.6624635 | BI38: 1114.328545 | BJ38: 1114.328545 | BK38: 1.363531263 | BL38: 1.278534244 | BM38: 2 | BN38: 36.52225 | BO38: 16.16666667 | BP38: 1167.017461
A39: 698.89536 | B39: 0.4 | C39: 0.4 | D39: 0 | E39: 0 | F39: 248.988461 | G39: 225.8130908 | H39: 79.04506522 | I39: 46.693199 | J39: 19.91327604 | K39: 553.2438197 | L39: 573.1570958 | M39: 0.4000114381 | N39: 0.4000114381 | O39: 722.0707301 | P39: 545.344525 | Q39: 490.8100725 | R39: 464.3425473 | S39: 464.3425473 | T39: 0 | U39: =IF(AND($T39>0,$T39=$AL39),Barème!$C$199,0) -> 0 | V39: 516.6666667 | W39: 242 | X39: 0 | Y39: 4059.5 | Z39: 2030.083333 | AA39: 0 | AB39: 3074.166667 | AC39: 2584.583333 | AD39: 0 | AE39: 134.2256495 | AF39: 0 | AG39: =IF(AND($A39=0,AF39=AAH_montant,Base!$W39>0,$H$10=1),AAH_mva,0) -> 0 | AH39: 99.17471954 | AI39: 0 | AJ39: =IF(AND($E$4=0,AI39=AAH_montant,Base!$W39>0,$J$10=1),AAH_mva,0) -> 0 | AK39: 0 | AL39: 0 | AM39: 626.1738197 | AN39: 0 | AO39: 0 | AP39: 0 | AQ39: 624.6738197 | AR39: 0 | AS39: 306.5146358 | AT39: 0 | AU39: 515.8413862 | AV39: 515.8413862 | AW39: 0 | AX39: 0 | AY39: 515.8413862 | AZ39: 0 | BA39: 0 | BB39: 0 | BC39: 0 | BD39: 72.71373333 | BE39: 0 | BF39: 0 | BG39: 553.2438197 | BH39: 548.5146358 | BI39: 1101.758455 | BJ39: 1101.758455 | BK39: 0.7350940937 | BL39: 0.7970315796 | BM39: 2 | BN39: 36.52225 | BO39: 12.16666667 | BP39: 1150.447372
A40: 742.57632 | B40: 0.425 | C40: 0.425 | D40: 0 | E40: 0 | F40: 264.5502398 | G40: 239.926409 | H40: 83.98538179 | I40: 49.61152394 | J40: 21.1578558 | K40: 587.8215585 | L40: 608.9794143 | M40: 0.425012153 | N40: 0.425012153 | O40: 767.2001508 | P40: 579.4285578 | Q40: 521.485702 | R40: 493.3639565 | S40: 493.3639565 | T40: 0 | U40: =IF(AND($T40>0,$T40=$AL40),Barème!$C$199,0) -> 0 | V40: 550 | W40: 230 | X40: 0 | Y40: 4059.5 | Z40: 2030.083333 | AA40: 0 | AB40: 3074.166667 | AC40: 2584.583333 | AD40: 0 | AE40: 155.7190406 | AF40: 0 | AG40: =IF(AND($A40=0,AF40=AAH_montant,Base!$W40>0,$H$10=1),AAH_mva,0) -> 0 | AH40: 131.4148062 | AI40: 0 | AJ40: =IF(AND($E$4=0,AI40=AAH_montant,Base!$W40>0,$J$10=1),AAH_mva,0) -> 0 | AK40: 0 | AL40: 0 | AM40: 660.7515585 | AN40: 0 | AO40: 0 | AP40: 0 | AQ40: 659.2515585 | AR40: 0 | AS40: 293.0967442 | AT40: 0 | AU40: 548.0814728 | AV40: 548.0814728 | AW40: 0 | AX40: 0 | AY40: 548.0814728 | AZ40: 0 | BA40: 0 | BB40: 0 | BC40: 0 | BD40: 72.71373333 | BE40: 0 | BF40: 0 | BG40: 587.8215585 | BH40: 523.0967442 | BI40: 1110.918303 | BJ40: 1110.918303 | BK40: 0.7640144348 | BL40: 0.8191900737 | BM40: 2 | BN40: 36.52225 | BO40: 12.16666667 | BP40: 1159.607219
A41: 786.25728 | B41: 0.45 | C41: 0.45 | D41: 0 | E41: 0 | F41: 280.1120186 | G41: 254.0397272 | H41: 88.92569837 | I41: 52.52984888 | J41: 22.40243555 | K41: 622.3992972 | L41: 644.8017328 | M41: 0.4500128679 | N41: 0.4500128679 | O41: 812.3295714 | P41: 613.5125906 | Q41: 552.1613316 | R41: 522.3853657 | S41: 522.3853657 | T41: 0 | U41: =IF(AND($T41>0,$T41=$AL41),Barème!$C$199,0) -> 0 | V41: 583.3333333 | W41: 217 | X41: 0 | Y41: 4059.5 | Z41: 2030.083333 | AA41: 0 | AB41: 3074.166667 | AC41: 2584.583333 | AD41: 0 | AE41: 177.2124317 | AF41: 0 | AG41: =IF(AND($A41=0,AF41=AAH_montant,Base!$W41>0,$H$10=1),AAH_mva,0) -> 0 | AH41: 163.6548928 | AI41: 0 | AJ41: =IF(AND($E$4=0,AI41=AAH_montant,Base!$W41>0,$J$10=1),AAH_mva,0) -> 0 | AK41: 0 | AL41: 0 | AM41: 695.3292972 | AN41: 0 | AO41: 0 | AP41: 0 | AQ41: 693.8292972 | AR41: 0 | AS41: 279.6788527 | AT41: 0 | AU41: 580.3215595 | AV41: 580.3215595 | AW41: 0 | AX41: 0 | AY41: 580.3215595 | AZ41: 0 | BA41: 0 | BB41: 0 | BC41: 0 | BD41: 72.71373333 | BE41: 0 | BF41: 0 | BG41: 622.3992972 | BH41: 496.6788527 | BI41: 1119.07815 | BJ41: 1119.07815 | BK41: 0.7350940937 | BL41: 0.7970315796 | BM41: 2 | BN41: 36.52225 | BO41: 12.16666667 | BP41: 1167.767067
A42: 829.93824 | B42: 0.475 | C42: 0.475 | D42: 0 | E42: 0 | F42: 295.6737974 | G42: 268.1530453 | H42: 93.86601494 | I42: 55.44817381 | J42: 23.6470153 | K42: 656.9770359 | L42: 680.6240512 | M42: 0.4750135828 | N42: 0.4750135828 | O42: 857.458992 | P42: 647.5966234 | Q42: 582.8369611 | R42: 551.4067749 | S42: 551.4067749 | T42: 0 | U42: =IF(AND($T42>0,$T42=$AL42),Barème!$C$199,0) -> 0 | V42: 616.6666667 | W42: 205 | X42: 0 | Y42: 4059.5 | Z42: 2030.083333 | AA42: 0 | AB42: 3074.166667 | AC42: 2584.583333 | AD42: 0 | AE42: 198.7058227 | AF42: 0 | AG42: =IF(AND($A42=0,AF42=AAH_montant,Base!$W42>0,$H$10=1),AAH_mva,0) -> 0 | AH42: 195.8949795 | AI42: 0 | AJ42: =IF(AND($E$4=0,AI42=AAH_montant,Base!$W42>0,$J$10=1),AAH_mva,0) -> 0 | AK42: 0 | AL42: 0 | AM42: 729.9070359 | AN42: 0 | AO42: 0 | AP42: 0 | AQ42: 728.4070359 | AR42: 0 | AS42: 266.2609612 | AT42: 0 | AU42: 612.5616461 | AV42: 612.5616461 | AW42: 0 | AX42: 0 | AY42: 612.5616461 | AZ42: 0 | BA42: 0 | BB42: 0 | BC42: 0 | BD42: 72.71373333 | BE42: 0 | BF42: 0 | BG42: 656.9770359 | BH42: 471.2609612 | BI42: 1128.237997 | BJ42: 1128.237997 | BK42: 0.7349515562 | BL42: 0.7969223688 | BM42: 2 | BN42: 36.52225 | BO42: 8.166666667 | BP42: 1172.926914
A43: 873.6192 | B43: 0.5 | C43: 0.5 | D43: 0 | E43: 0 | F43: 311.2355762 | G43: 282.2663635 | H43: 98.80633152 | I43: 58.36649875 | J43: 24.89159506 | K43: 691.5547747 | L43: 716.4463697 | M43: 0.5000142977 | N43: 0.5000142977 | O43: 902.5884127 | P43: 681.6806563 | Q43: 613.5125906 | R43: 580.4281841 | S43: 580.4281841 | T43: 0 | U43: =IF(AND($T43>0,$T43=$AL43),Barème!$C$199,0) -> 0 | V43: 650 | W43: 193 | X43: 0 | Y43: 4059.5 | Z43: 2030.083333 | AA43: 0 | AB43: 3074.166667 | AC43: 2584.583333 | AD43: 0 | AE43: 220.1992138 | AF43: 0 | AG43: =IF(AND($A43=0,AF43=AAH_montant,Base!$W43>0,$H$10=1),AAH_mva,0) -> 0 | AH43: 228.1350661 | AI43: 0 | AJ43: =IF(AND($E$4=0,AI43=AAH_montant,Base!$W43>0,$J$10=1),AAH_mva,0) -> 0 | AK43: 0 | AL43: 0 | AM43: 764.4847747 | AN43: 0 | AO43: 0 | AP43: 0 | AQ43: 762.9847747 | AR43: 0.004953389054 | AS43: 252.8479983 | AT43: 0 | AU43: 644.8017328 | AV43: 644.8017328 | AW43: 0 | AX43: 0 | AY43: 644.8017328 | AZ43: 0 | BA43: 0 | BB43: 0 | BC43: 0 | BD43: 72.71373333 | BE43: 0 | BF43: 0 | BG43: 691.5547747 | BH43: 445.8479983 | BI43: 1137.402773 | BJ43: 1137.402773 | BK43: 0.5147753016 | BL43: 0.6282253879 | BM43: 2 | BN43: 36.52225 | BO43: 8.166666667 | BP43: 1182.09169
A44: 917.30016 | B44: 0.525 | C44: 0.525 | D44: 0 | E44: 0 | F44: 326.797355 | G44: 296.3796817 | H44: 103.7466481 | I44: 61.28482369 | J44: 26.13617481 | K44: 726.1325134 | L44: 752.2686882 | M44: 0.5250150125 | N44: 0.5250150125 | O44: 947.7178333 | P44: 715.7646891 | Q44: 644.1882202 | R44: 609.4495933 | S44: 609.4495933 | T44: 0 | U44: =IF(AND($T44>0,$T44=$AL44),Barème!$C$199,0) -> 0 | V44: 683.3333333 | W44: 180 | X44: 0 | Y44: 4059.5 | Z44: 2030.083333 | AA44: 0 | AB44: 3074.166667 | AC44: 2584.583333 | AD44: 0 | AE44: 241.6926049 | AF44: 0 | AG44: =IF(AND($A44=0,AF44=AAH_montant,Base!$W44>0,$H$10=1),AAH_mva,0) -> 0 | AH44: 260.3751527 | AI44: 0 | AJ44: =IF(AND($E$4=0,AI44=AAH_montant,Base!$W44>0,$J$10=1),AAH_mva,0) -> 0 | AK44: 0 | AL44: 0 | AM44: 799.0625134 | AN44: 0 | AO44: 0 | AP44: 0 | AQ44: 797.5625134 | AR44: 8.666386184 | AS44: 248.0482324 | AT44: 0 | AU44: 677.0418194 | AV44: 677.0418194 | AW44: 0 | AX44: 0 | AY44: 677.0418194 | AZ44: 0 | BA44: 0 | BB44: 0 | BC44: 0 | BD44: 72.71373333 | BE44: 0 | BF44: 0 | BG44: 726.1325134 | BH44: 428.0482324 | BI44: 1154.180746 | BJ44: 1154.180746 | BK44: 0.4858549605 | BL44: 0.6060668939 | BM44: 2 | BN44: 36.52225 | BO44: 8.166666667 | BP44: 1198.869662
A45: 960.98112 | B45: 0.55 | C45: 0.55 | D45: 0 | E45: 0 | F45: 342.3591338 | G45: 310.4929999 | H45: 108.6869647 | I45: 64.20314863 | J45: 27.38075456 | K45: 760.7102521 | L45: 788.0910067 | M45: 0.5500157274 | N45: 0.5500157274 | O45: 992.8472539 | P45: 749.8487219 | Q45: 674.8638497 | R45: 638.4710026 | S45: 638.4710026 | T45: 0 | U45: =IF(AND($T45>0,$T45=$AL45),Barème!$C$199,0) -> 0 | V45: 716.6666667 | W45: 168 | X45: 0 | Y45: 4059.5 | Z45: 2030.083333 | AA45: 0 | AB45: 3074.166667 | AC45: 2584.583333 | AD45: 0 | AE45: 263.185996 | AF45: 0 | AG45: =IF(AND($A45=0,AF45=AAH_montant,Base!$W45>0,$H$10=1),AAH_mva,0) -> 0 | AH45: 292.6152394 | AI45: 0 | AJ45: =IF(AND($E$4=0,AI45=AAH_montant,Base!$W45>0,$J$10=1),AAH_mva,0) -> 0 | AK45: 0 | AL45: 0 | AM45: 833.6402521 | AN45: 0 | AO45: 0 | AP45: 0 | AQ45: 832.1402521 | AR45: 17.32781898 | AS45: 243.2484665 | AT45: 0 | AU45: 709.281906 | AV45: 709.281906 | AW45: 0 | AX45: 0 | AY45: 709.281906 | AZ45: 0 | BA45: 0 | BB45: 0 | BC45: 0 | BD45: 72.71373333 | BE45: 0 | BF45: 0 | BG45: 760.7102521 | BH45: 411.2484665 | BI45: 1171.958719 | BJ45: 1171.958719 | BK45: 0.4280142782 | BL45: 0.5617499057 | BM45: 2 | BN45: 0 | BO45: 4 | BP45: 1175.958719
A46: 1004.66208 | B46: 0.575 | C46: 0.575 | D46: 0 | E46: 0 | F46: 357.9209126 | G46: 324.606318 | H46: 113.6272812 | I46: 67.12147356 | J46: 28.62533431 | K46: 795.2879909 | L46: 823.9133252 | M46: 0.5750164423 | N46: 0.5750164423 | O46: 1037.976675 | P46: 783.9327547 | Q46: 705.5394792 | R46: 667.4924118 | S46: 667.4924118 | T46: 0 | U46: =IF(AND($T46>0,$T46=$AL46),Barème!$C$199,0) -> 0 | V46: 741.6666667 | W46: 158 | X46: 0 | Y46: 4059.5 | Z46: 2030.083333 | AA46: 0 | AB46: 3074.166667 | AC46: 2584.583333 | AD46: 0 | AE46: 284.6793871 | AF46: 0 | AG46: =IF(AND($A46=0,AF46=AAH_montant,Base!$W46>0,$H$10=1),AAH_mva,0) -> 0 | AH46: 324.855326 | AI46: 0 | AJ46: =IF(AND($E$4=0,AI46=AAH_montant,Base!$W46>0,$J$10=1),AAH_mva,0) -> 0 | AK46: 0 | AL46: 0 | AM46: 868.2179909 | AN46: 0 | AO46: 0 | AP46: 0 | AQ46: 866.7179909 | AR46: 25.98925177 | AS46: 238.4487007 | AT46: 0 | AU46: 741.5219927 | AV46: 741.5219927 | AW46: 0 | AX46: 0 | AY46: 741.5219927 | AZ46: 0 | BA46: 0 | BB46: 0 | BC46: 0 | BD46: 72.71373333 | BE46: 0 | BF46: 0 | BG46: 795.2879909 | BH46: 396.4487007 | BI46: 1191.736692 | BJ46: 1191.736692 | BK46: 0.4858549605 | BL46: 0.6060668939 | BM46: 2 | BN46: 0 | BO46: 4 | BP46: 1195.736692
A47: 1048.34304 | B47: 0.6 | C47: 0.6 | D47: 0 | E47: 0 | F47: 373.4826914 | G47: 338.7196362 | H47: 118.5675978 | I47: 70.0397985 | J47: 29.86991407 | K47: 829.8657296 | L47: 859.7356437 | M47: 0.6000171572 | N47: 0.6000171572 | O47: 1083.106095 | P47: 818.0167875 | Q47: 736.2151088 | R47: 696.513821 | S47: 696.513821 | T47: 0 | U47: =IF(AND($T47>0,$T47=$AL47),Barème!$C$199,0) -> 0 | V47: 775 | W47: 146 | X47: 0 | Y47: 4059.5 | Z47: 2030.083333 | AA47: 0 | AB47: 3074.166667 | AC47: 2584.583333 | AD47: 0 | AE47: 306.1727782 | AF47: 0 | AG47: =IF(AND($A47=0,AF47=AAH_montant,Base!$W47>0,$H$10=1),AAH_mva,0) -> 0 | AH47: 357.0954126 | AI47: 0 | AJ47: =IF(AND($E$4=0,AI47=AAH_montant,Base!$W47>0,$J$10=1),AAH_mva,0) -> 0 | AK47: 0 | AL47: 0 | AM47: 902.7957296 | AN47: 0 | AO47: 0 | AP47: 0 | AQ47: 901.2957296 | AR47: 34.65068457 | AS47: 233.6489348 | AT47: 0 | AU47: 773.7620793 | AV47: 773.7620793 | AW47: 0 | AX47: 0 | AY47: 773.7620793 | AZ47: 0 | BA47: 0 | BB47: 0 | BC47: 0 | BD47: 72.71373333 | BE47: 0 | BF47: 0 | BG47: 829.8657296 | BH47: 379.6489348 | BI47: 1209.514664 | BJ47: 1209.514664 | BK47: 0.5147753016 | BL47: 0.6282253879 | BM47: 2 | BN47: 0 | BO47: 4 | BP47: 1213.514664
A48: 1092.024 | B48: 0.625 | C48: 0.625 | D48: 0 | E48: 0 | F48: 389.0444702 | G48: 352.8329544 | H48: 123.5079144 | I48: 72.95812344 | J48: 31.11449382 | K48: 864.4434683 | L48: 895.5579622 | M48: 0.6250178721 | N48: 0.6250178721 | O48: 1128.235516 | P48: 852.1008203 | Q48: 766.8907383 | R48: 725.5352302 | S48: 725.5352302 | T48: 0 | U48: =IF(AND($T48>0,$T48=$AL48),Barème!$C$199,0) -> 0 | V48: 808.3333333 | W48: 133 | X48: 0 | Y48: 4059.5 | Z48: 2030.083333 | AA48: 0 | AB48: 3074.166667 | AC48: 2584.583333 | AD48: 0 | AE48: 327.6661693 | AF48: 0 | AG48: =IF(AND($A48=0,AF48=AAH_montant,Base!$W48>0,$H$10=1),AAH_mva,0) -> 0 | AH48: 389.3354993 | AI48: 0 | AJ48: =IF(AND($E$4=0,AI48=AAH_montant,Base!$W48>0,$J$10=1),AAH_mva,0) -> 0 | AK48: 0 | AL48: 0 | AM48: 937.3734683 | AN48: 0 | AO48: 0 | AP48: 0 | AQ48: 935.8734683 | AR48: 43.31211736 | AS48: 228.8491689 | AT48: 0 | AU48: 806.0021659 | AV48: 806.0021659 | AW48: 0 | AX48: 0 | AY48: 806.0021659 | AZ48: 0 | BA48: 0 | BB48: 0 | BC48: 0 | BD48: 72.71373333 | BE48: 0 | BF48: 0 | BG48: 864.4434683 | BH48: 361.8491689 | BI48: 1226.292637 | BJ48: 1226.292637 | BK48: 0.4858549605 | BL48: 0.6060668939 | BM48: 2 | BN48: 0 | BO48: 4 | BP48: 1230.292637
A49: 1135.70496 | B49: 0.65 | C49: 0.65 | D49: 0 | E49: 0 | F49: 404.606249 | G49: 366.9462726 | H49: 128.448231 | I49: 75.87644838 | J49: 32.35907357 | K49: 899.0212071 | L49: 931.3802806 | M49: 0.650018587 | N49: 0.650018587 | O49: 1173.364936 | P49: 886.1848531 | Q49: 797.5663678 | R49: 754.5566394 | S49: 754.5566394 | T49: 0 | U49: =IF(AND($T49>0,$T49=$AL49),Barème!$C$199,0) -> 0 | V49: 841.6666667 | W49: 121 | X49: 0 | Y49: 4059.5 | Z49: 2030.083333 | AA49: 0 | AB49: 3074.166667 | AC49: 2584.583333 | AD49: 0 | AE49: 349.1595604 | AF49: 0 | AG49: =IF(AND($A49=0,AF49=AAH_montant,Base!$W49>0,$H$10=1),AAH_mva,0) -> 0 | AH49: 421.5755859 | AI49: 0 | AJ49: =IF(AND($E$4=0,AI49=AAH_montant,Base!$W49>0,$J$10=1),AAH_mva,0) -> 0 | AK49: 0 | AL49: 0 | AM49: 971.9512071 | AN49: 0 | AO49: 0 | AP49: 0 | AQ49: 970.4512071 | AR49: 51.97355016 | AS49: 224.049403 | AT49: 0 | AU49: 838.2422526 | AV49: 838.2422526 | AW49: 0 | AX49: 0 | AY49: 838.2422526 | AZ49: 0 | BA49: 0 | BB49: 0 | BC49: 0 | BD49: 72.71373333 | BE49: 0 | BF49: 0 | BG49: 899.0212071 | BH49: 345.049403 | BI49: 1244.07061 | BJ49: 1244.07061 | BK49: 0.5147753016 | BL49: 0.6282253879 | BM49: 2 | BN49: 0 | BO49: 4 | BP49: 1248.07061
A50: 1179.38592 | B50: 0.675 | C50: 0.675 | D50: 0 | E50: 0 | F50: 420.1680279 | G50: 381.0595908 | H50: 133.3885476 | I50: 78.79477332 | J50: 33.60365333 | K50: 933.5989458 | L50: 967.2025991 | M50: 0.6750193018 | N50: 0.6750193018 | O50: 1218.494357 | P50: 920.2688859 | Q50: 828.2419974 | R50: 783.5780486 | S50: 783.5780486 | T50: 0 | U50: =IF(AND($T50>0,$T50=$AL50),Barème!$C$199,0) -> 0 | V50: 875 | W50: 108 | X50: 0 | Y50: 4059.5 | Z50: 2030.083333 | AA50: 0 | AB50: 3074.166667 | AC50: 2584.583333 | AD50: 0 | AE50: 370.6529515 | AF50: 0 | AG50: =IF(AND($A50=0,AF50=AAH_montant,Base!$W50>0,$H$10=1),AAH_mva,0) -> 0 | AH50: 453.8156726 | AI50: 0 | AJ50: =IF(AND($E$4=0,AI50=AAH_montant,Base!$W50>0,$J$10=1),AAH_mva,0) -> 0 | AK50: 0 | AL50: 0 | AM50: 1006.528946 | AN50: 0 | AO50: 0 | AP50: 0 | AQ50: 1005.028946 | AR50: 60.63498295 | AS50: 219.2496371 | AT50: 0 | AU50: 870.4823392 | AV50: 870.4823392 | AW50: 0 | AX50: 0 | AY50: 870.4823392 | AZ50: 0 | BA50: 0 | BB50: 0 | BC50: 0 | BD50: 72.71373333 | BE50: 0 | BF50: 0 | BG50: 933.5989458 | BH50: 327.2496371 | BI50: 1260.848583 | BJ50: 1260.848583 | BK50: 0.4858549605 | BL50: 0.6060668939 | BM50: 2 | BN50: 0 | BO50: 4 | BP50: 1264.848583
A51: 1223.06688 | B51: 0.7 | C51: 0.7 | D51: 0 | E51: 0 | F51: 435.7298067 | G51: 395.1729089 | H51: 138.3288641 | I51: 81.71309825 | J51: 34.84823308 | K51: 968.1766845 | L51: 1003.024918 | M51: 0.7000200167 | N51: 0.7000200167 | O51: 1263.623778 | P51: 954.3529188 | Q51: 858.9176269 | R51: 812.5994578 | S51: 812.5994578 | T51: 0 | U51: =IF(AND($T51>0,$T51=$AL51),Barème!$C$199,0) -> 0 | V51: 908.3333333 | W51: 96 | X51: 0 | Y51: 4059.5 | Z51: 2030.083333 | AA51: 0 | AB51: 3074.166667 | AC51: 2584.583333 | AD51: 0 | AE51: 392.1463426 | AF51: 0 | AG51: =IF(AND($A51=0,AF51=AAH_montant,Base!$W51>0,$H$10=1),AAH_mva,0) -> 0 | AH51: 486.0557592 | AI51: 0 | AJ51: =IF(AND($E$4=0,AI51=AAH_montant,Base!$W51>0,$J$10=1),AAH_mva,0) -> 0 | AK51: 0 | AL51: 0 | AM51: 1041.106685 | AN51: 0 | AO51: 0 | AP51: 0 | AQ51: 1039.606685 | AR51: 69.29641574 | AS51: 214.4498712 | AT51: 0 | AU51: 902.7224259 | AV51: 902.7224259 | AW51: 0 | AX51: 0 | AY51: 902.7224259 | AZ51: 0 | BA51: 0 | BB51: 0 | BC51: 0 | BD51: 72.71373333 | BE51: 0 | BF51: 0 | BG51: 968.1766845 | BH51: 310.4498712 | BI51: 1278.626556 | BJ51: 1278.626556 | BK51: 0.5147753016 | BL51: 0.6282253879 | BM51: 2 | BN51: 0 | BO51: 4 | BP51: 1282.626556
A52: 1266.74784 | B52: 0.725 | C52: 0.725 | D52: 0 | E52: 0 | F52: 451.2915855 | G52: 409.2862271 | H52: 143.2691807 | I52: 84.63142319 | J52: 36.09281283 | K52: 1002.754423 | L52: 1038.847236 | M52: 0.7250207316 | N52: 0.7250207316 | O52: 1308.753198 | P52: 988.4369516 | Q52: 889.5932564 | R52: 841.620867 | S52: 841.620867 | T52: 0 | U52: =IF(AND($T52>0,$T52=$AL52),Barème!$C$199,0) -> 0 | V52: 941.6666667 | W52: 83 | X52: 0 | Y52: 4059.5 | Z52: 2030.083333 | AA52: 0 | AB52: 3074.166667 | AC52: 2584.583333 | AD52: 0 | AE52: 413.6397337 | AF52: 0 | AG52: =IF(AND($A52=0,AF52=AAH_montant,Base!$W52>0,$H$10=1),AAH_mva,0) -> 0 | AH52: 518.2958458 | AI52: 0 | AJ52: =IF(AND($E$4=0,AI52=AAH_montant,Base!$W52>0,$J$10=1),AAH_mva,0) -> 0 | AK52: 0 | AL52: 0 | AM52: 1075.684423 | AN52: 0 | AO52: 0 | AP52: 0 | AQ52: 1074.184423 | AR52: 77.95784854 | AS52: 209.6501053 | AT52: 0 | AU52: 934.9625125 | AV52: 934.9625125 | AW52: 0 | AX52: 0 | AY52: 934.9625125 | AZ52: 0 | BA52: 0 | BB52: 0 | BC52: 0 | BD52: 72.71373333 | BE52: 0 | BF52: 0 | BG52: 1002.754423 | BH52: 292.6501053 | BI52: 1295.404529 | BJ52: 1295.404529 | BK52: 0.4734813925 | BL52: 0.5965863822 | BM52: 2 | BN52: 0 | BO52: 4 | BP52: 1299.404529
A53: 1310.4288 | B53: 0.75 | C53: 0.75 | D53: 0 | E53: 0 | F53: 466.8533643 | G53: 423.3995453 | H53: 148.2094973 | I53: 87.54974813 | J53: 37.33739258 | K53: 1037.332162 | L53: 1074.669555 | M53: 0.7500214465 | N53: 0.7500214465 | O53: 1353.882619 | P53: 1022.520984 | Q53: 920.2688859 | R53: 870.6422762 | S53: 870.6422762 | T53: 0 | U53: =IF(AND($T53>0,$T53=$AL53),Barème!$C$199,0) -> 0 | V53: 975 | W53: 71 | X53: 0 | Y53: 4059.5 | Z53: 2030.083333 | AA53: 0 | AB53: 3074.166667 | AC53: 2584.583333 | AD53: 0 | AE53: 435.1331248 | AF53: 0 | AG53: =IF(AND($A53=0,AF53=AAH_montant,Base!$W53>0,$H$10=1),AAH_mva,0) -> 0 | AH53: 550.5359325 | AI53: 0 | AJ53: =IF(AND($E$4=0,AI53=AAH_montant,Base!$W53>0,$J$10=1),AAH_mva,0) -> 0 | AK53: 0 | AL53: 0 | AM53: 1108.332162 | AN53: 0 | AO53: 0 | AP53: 0 | AQ53: 1108.332162 | AR53: 86.61928133 | AS53: 205.2781895 | AT53: 0 | AU53: 967.2025991 | AV53: 967.2025991 | AW53: 2.861239238 | AX53: 2.861239238 | AY53: 967.2025991 | AZ53: 2.861239238 | BA53: 2.861239238 | BB53: 0 | BC53: 2.861239238 | BD53: 71.41902258 | BE53: 0 | BF53: 0 | BG53: 1037.332162 | BH53: 276.2781895 | BI53: 1313.610351 | BJ53: 1313.610351 | BK53: 0.1402568838 | BL53: 0.3412728896 | BM53: 2 | BN53: 0 | BO53: 0 | BP53: 1313.610351
A54: 1354.10976 | B54: 0.775 | C54: 0.775 | D54: 0 | E54: 0 | F54: 482.4151431 | G54: 437.5128635 | H54: 153.1498139 | I54: 90.46807307 | J54: 38.58197234 | K54: 1071.909901 | L54: 1110.491873 | M54: 0.7750221614 | N54: 0.7750221614 | O54: 1399.01204 | P54: 1056.605017 | Q54: 950.9445155 | R54: 899.6636854 | S54: 899.6636854 | T54: 0 | U54: =IF(AND($T54>0,$T54=$AL54),Barème!$C$199,0) -> 0 | V54: 1000 | W54: 61 | X54: 0 | Y54: 4059.5 | Z54: 2030.083333 | AA54: 0 | AB54: 3074.166667 | AC54: 2584.583333 | AD54: 0 | AE54: 456.6265158 | AF54: 0 | AG54: =IF(AND($A54=0,AF54=AAH_montant,Base!$W54>0,$H$10=1),AAH_mva,0) -> 0 | AH54: 582.7760191 | AI54: 0 | AJ54: =IF(AND($E$4=0,AI54=AAH_montant,Base!$W54>0,$J$10=1),AAH_mva,0) -> 0 | AK54: 0 | AL54: 0 | AM54: 1132.909901 | AN54: 0 | AO54: 0 | AP54: 0 | AQ54: 1132.909901 | AR54: 95.28071413 | AS54: 210.4284236 | AT54: 0 | AU54: 999.4426858 | AV54: 999.4426858 | AW54: 6.407648768 | AX54: 6.407648768 | AY54: 999.4426858 | AZ54: 6.407648768 | BA54: 6.407648768 | BB54: 0 | BC54: 6.407648768 | BD54: 69.81427227 | BE54: 0 | BF54: 0 | BG54: 1071.909901 | BH54: 271.4284236 | BI54: 1343.338324 | BJ54: 1343.338324 | BK54: 0.1405460873 | BL54: 0.3414944745 | BM54: 2 | BN54: 0 | BO54: 0 | BP54: 1343.338324
A55: 1397.79072 | B55: =MIN(100%,A55/smic_b) -> 0.8 | C55: =A55/smic_b -> 0.8 | D55: 0 | E55: 0 | F55: =IF(0<A55,taux_cs_emp_t1*MIN(A55,plafond_ss),0) +IF(plafond_ss<A55,taux_cs_emp_t2*MIN(A55-plafond_ss,2*plafond_ss),0) +IF(3*plafond_ss<A55,taux_cs_emp_t3*MIN(A55-3*plafond_ss,plafond_ss),0) +IF(4*plafond_ss<A55,taux_cs_emp_t4*MIN(A55-4*plafond_ss,4*plafond_ss),0) +IF(8*plafond_ss<A55,taux_cs_emp_t5*(A55-8*plafond_ss),0) +IF(plafond_ss<A55,MIN(A55,8*plafond_ss)*taux_cet_pat,0) -IF(C55<=part_smic_exo,mod_cotis_fam*A55,0) -IF(C55<=seuil_smic_pat_assmal,reduc_pat_assmal*A55,0) -> 497.9769219 | G55: 451.6261816 | H55: =IF(0<A55,taux_cs_sal_t1*MIN(A55,plafond_ss),0) +IF(plafond_ss<A55,taux_cs_sal_t2*MIN(A55-plafond_ss,2*plafond_ss),0) +IF(3*plafond_ss<A55,taux_cs_sal_t3*MIN(A55-3*plafond_ss,plafond_ss),0) +IF(4*plafond_ss<A55,taux_cs_sal_t4*MIN(A55-4*plafond_ss,4*plafond_ss),0) +IF(8*plafond_ss<A55,taux_cs_sal_t5*(A55-8*plafond_ss),0) +IF(plafond_ss<A55,MIN(A55,8*plafond_ss)*taux_cet_sal,0) -> 158.0901304 | I55: =IF(0<A55,taux_csg_deduc_t1*MIN(A55,4*plafond_ss),0) +IF(4*plafond_ss<A55,taux_csg_deduc_t2*(A55-4*plafond_ss),0) -> 93.386398 | J55: =IF(0<A55,taux_csgcrds_nondeduc_t1*MIN(A55,4*plafond_ss),0) +IF(4*plafond_ss<A55,taux_csgcrds_nondeduc_t2*(A55-4*plafond_ss),0) -> 39.82655209 | K55: =A55-H55-I55-J55 -> 1106.487639 | L55: =A55-H55-I55 -> 1146.314192 | M55: =MIN(100%,K55/smic_n) -> 0.8000228763 | N55: =K55/smic_n -> 0.8000228763 | O55: =A55+F55-G55 -> 1444.14146 | P55: =($L55+$E$7+$Z$16+$E55+$AO$16)/(1+deflat) -> 1090.68905 | Q55: =($L55+$E$7+$Z$16+$E55+$AO$16 + IF($AI55=$AL55,0,$T55))/(1+deflat)*abatt_rfr -> 981.620145 | R55: =($L55+$E$7+$Z$16+$E55+$AO$16+IF($AI55=$AL55,0,$T55))/(1+deflat_2)*abatt_rfr -> 928.6850946 | S55: =($L55+$E$7+$Z$16+IF($AI55=$AL55,0,$T55)+(1-abatt_rbg_are)*($E55+$AO$16))/(1+deflat_2)*abatt_rfr -> 928.6850946 | T55: =(Nb_adultes=2)*$H$6*IF($P55<ASS_plaf_couple,ASS_mtt_forf,IF(ASS_diff_plaf_couple-$P55>=seuil_vers_ASS,ASS_diff_plaf_couple-$P55,0)) -> 0 | U55: =IF(AND($T55>0,$T55=$AL55),Barème!$C$199,0) -> 0 | V55: =ROUNDUP(12*((1+deflat_2)*rbg-$T55-IF((Nb_adultes=2)*AND(L55>bmaf,$Z$16>bmaf),APL_abatt_biactifs,0)),-2)/12 -> 1033.333333 | W55: =TRUNC((1-$K$6) * IF(($N$16-($N$17+12*($P$16+al_taux_compl)*MAX(0,V55-$P$17))-Mfo_AL)* (1-tx_crds)>=seuil_versement_AL, $N$16-($N$17+12*($P$16+al_taux_compl)*MAX(0,V55-$P$17))-Mfo_AL,0) * (1-tx_crds)) -> 49 | X55: =IF(rbg<=p1_modulation_af,$I$16, IF(rbg<=p1_modulation_af+$I$16/2,$I$16+p1_modulation_af-rbg, IF(rbg<=p2_modulation_af,$I$16/2, IF(rbg<=p2_modulation_af+$I$16/4,$I$16/2+p2_modulation_af-rbg,$I$16/4)))) -> 0 | Y55: =IF(OR(Nb_adultes=1,AND(L55/(1+deflat_2)>bmaf_n_2,$Z$16/(1+deflat_2)>bmaf_n_2)), plafond_maj_CF+MAX(Nb_enfants-3,0)*pers_sup_CF, plafond_simple_CF+MAX(Nb_enfants-3,0)*pers_sup_CF) -> 4059.5 | Z55: =IF(OR(Nb_adultes=1,AND(L55/(1+deflat_2)>bmaf_n_2,$Z$16/(1+deflat_2)>bmaf_n_2)), plafond_maj_CF_majo+MAX(Nb_enfants-3,0)*pers_sup_CF_majo, plafond_simple_CF_majo+MAX(Nb_enfants-3,0)*pers_sup_CF_majo) -> 2030.083333 | AA55: =IF(OR(($B$7+$B$8+$B$9+$B$10+$B$11+$B$12)<3,$B$6>=1),0, IF(rbg<$Z55,montant_CF_majo, IF(rbg<$Y55,montant_CF, IF(rbg<($Y55+montant_CF),montant_CF+$Y55-rbg,0)))) -> 0 | AB55: =IF(OR(Nb_adultes=1,AND(L55/(1+deflat_2)>bmaf_n_2,$Z$16/(1+deflat_2)>bmaf_n_2)), plafond_majore_paje+MIN(Nb_enfants,2)*plafond_sup_enf_12_paje+MAX(Nb_enfants-3,0)*plafond_sup_enf_3_paje, plaf_simple_paje+MIN(Nb_enfants,2)*plafond_sup_enf_12_paje+MAX(Nb_enfants-3,0)*plafond_sup_enf_3_paje) -> 3074.166667 | AC55: =IF(OR(Nb_adultes=1,AND(L55/(1+deflat_2)>bmaf_n_2,$Z$16/(1+deflat_2)>bmaf_n_2)), plafond_majore_paje_plein+MIN(Nb_enfants,2)*plafond_sup_enf_12_paje_plein+MAX(Nb_enfants-3,0)*plafond_sup_enf_3_paje_plein, plaf_simple_paje_plein+MIN(Nb_enfants,2)*plafond_sup_enf_12_paje_plein+MAX(Nb_enfants-3,0)*plafond_sup_enf_3_paje_plein) -> 2584.583333 | AD55: =IF(rbg<AC55,montant_paje_plein*($B$6>0),IF(rbg<AB55,montant_paje*($B$6>0),0)) -> 0 | AE55: =($K$1="01/07")*MAX($Z$16*abatt_rfr-AAH_abatt_general-AAH_abatt_majo*Nb_enfants,0)+($E$7+$E$6+$D55+IF($BC55=BE55,0,$T55))*abatt_rfr +MIN($L55,AAH_plafond_abatt_salaire)*AAH_abatt_salaire_t1 +MAX($L55-AAH_plafond_abatt_salaire,0)*AAH_abatt_salaire_t2 -> 478.1199069 | AF55: =($H$8=1)*( IF($AR$16-AE55>=AAH_montant, AAH_montant, MAX(0,$AR$16-AE55)) ) -> 0 | AG55: =IF(AND($A55=0,AF55=AAH_montant,Base!$W55>0,$H$10=1),AAH_mva,0) -> 0 | AH55: =($K$1="01/07")*MAX($L55*abatt_rfr-AAH_abatt_general-AAH_abatt_majo*Nb_enfants,0)+($E$7+$E$6+$D55)*abatt_rfr +MIN($Z$16,AAH_plafond_abatt_salaire)*AAH_abatt_salaire_t1 +MAX($Z$16-AAH_plafond_abatt_salaire,0)*AAH_abatt_salaire_t2 -> 615.0161057 | AI55: =($H$9=1)*( IF($AR$16-AH55>=AAH_montant, AAH_montant, MAX(0,$AR$16-AH55)) ) -> 0 | AJ55: =IF(AND($E$4=0,AI55=AAH_montant,Base!$W55>0,$J$10=1),AAH_mva,0) -> 0 | AK55: 0 | AL55: 0 | AM55: =$K55+$Z$17+$AK55+($W55>0)*MIN($W55,$E$17)+($K$6=1)*$E$17+$I$16-$I$17+MIN($AA55,montant_CF)+$AD55+$AL$17+$D55+$E$6+$E$7+IF($AI55=AL55,0,$T55) -> 1155.487639 | AN55: =IF(AM55+seuil_versement_rsa<=$E$16,$E$16-AM55,0) -> 0 | AO55: =((AN55)>0)* IF((Nb_adultes+Nb_enfants)=1,noel_1pers, IF((Nb_adultes+Nb_enfants)=2,noel_2pers, IF((Nb_adultes+Nb_enfants)=3,noel_3pers, IF(AND(Nb_adultes=1,(Nb_adultes+Nb_enfants)=4),noel_isole_4pers, IF(AND(Nb_adultes=2,(Nb_adultes+Nb_enfants)=4),noel_couple_4pers, IF(Nb_adultes=1,noel_isole_4pers+noel_pers_sup*(Nb_adultes+Nb_enfants-4), noel_couple_4pers+noel_pers_sup*(Nb_adultes+Nb_enfants-4))))))) -> 0 | AP55: =MAX($AO55,$U55) -> 0 | AQ55: =$K55+$Z$17+$AK55-$AI55+$AL55+($W55>0)*MIN($W55,$F$17)+($K$6=1)*$F$17+$I$16-$I$17+MIN($AA55,montant_CF)+$AD55+$AL$17+$D55+$E$6+$E$7 -> 1155.487639 | AR55: =PA_bonus*( IF($K55+($K55>=Sal_min_AAH_PA)*$AF55>PA_tranche1_smic*smic_n, (MIN($K55+($K55>=Sal_min_AAH_PA)*$AF55,PA_tranche2_smic*smic_n)-PA_tranche1_smic*smic_n)/((PA_tranche2_smic-PA_tranche1_smic)*smic_n),0) +(IF($Z$17+($Z$17>=Sal_min_AAH_PA)*($AI55>=$T55)*$AI55>PA_tranche1_smic*smic_n, (MIN($Z$17+($Z$17>=Sal_min_AAH_PA)*($AI55>=$T55)*$AI55,PA_tranche2_smic*smic_n)-PA_tranche1_smic*smic_n)/((PA_tranche2_smic-PA_tranche1_smic)*smic_n),0)) ) -> 103.9421469 | AS55: =(OR($H$4,($AN55>0))*($A55+$Z$17>0)* IF(($F$16+(1-PA_pente)*($K55+$Z$17+($K55>=Sal_min_AAH_PA)*$AF55+($Z$17>=Sal_min_AAH_PA)*($AI55>=$T55)*$AI55)+$AR55-MAX($AQ55,$F$16))*(1-tx_crds)>=seuil_versement_PA, $F$16+(1-PA_pente)*($K55+$Z$17+($K55>=Sal_min_AAH_PA)*$AF55+($Z$17>=Sal_min_AAH_PA)*($AI55>=$T55)*$AI55)+$AR55-MAX($AQ55,$F$16), 0))*(1-tx_crds) -> 217.5686577 | AT55: =IF(rbg<plaf_ars+plaf_ars_enf*($B$6+$B$7+$B$8+$B$9+$B$10+$B$11+$B$12), (ars6_10*$B$8+ars11_14*($B$9+$B$10)+ars15_18*$B$11)/12, IF(rbg<plaf_ars+plaf_ars_enf*($B$6+$B$7+$B$8+$B$9+$B$10+$B$11+$B$12)+(ars6_10*$B$8+ars11_14*($B$9+$B$10)+ars15_18*$B$11)/12, plaf_ars+plaf_ars_enf*($B$6+$B$7+$B$8+$B$9+$B$10+$B$11+$B$12)+(ars6_10*$B$8+ars11_14*($B$9+$B$10)+ars15_18*$B$11)/12-rbg, 0)) -> 0 | AU55: =$Q55*(1+deflat) -> 1031.682772 | AV55: =AU55/$AE$17 -> 1031.682772 | AW55: =IF(0<AV55,taux_ir_t1*MIN(AV55,plafond_ir_t1),0) +IF(plafond_ir_t1<AV55,taux_ir_t2*MIN(AV55-plafond_ir_t1,plafond_ir_t2-plafond_ir_t1),0) +IF(plafond_ir_t2<AV55,taux_ir_t3*MIN(AV55-plafond_ir_t2,plafond_ir_t3-plafond_ir_t2),0) +IF(plafond_ir_t3<AV55,taux_ir_t4*MIN(AV55-plafond_ir_t3,plafond_ir_t4-plafond_ir_t3),0) +IF(plafond_ir_t4<AV55,taux_ir_t5*(AV55-plafond_ir_t4),0) -> 9.954058298 | AX55: =AW55*$AE$17 -> 9.954058298 | AY55: =AU55/Nb_adultes -> 1031.682772 | AZ55: =IF(0<AY55,taux_ir_t1*MIN(AY55,plafond_ir_t1),0) +IF(plafond_ir_t1<AY55,taux_ir_t2*MIN(AY55-plafond_ir_t1,plafond_ir_t2-plafond_ir_t1),0) +IF(plafond_ir_t2<AY55,taux_ir_t3*MIN(AY55-plafond_ir_t2,plafond_ir_t3-plafond_ir_t2),0) +IF(plafond_ir_t3<AY55,taux_ir_t4*MIN(AY55-plafond_ir_t3,plafond_ir_t4-plafond_ir_t3),0) +IF(plafond_ir_t4<AY55,taux_ir_t5*(AY55-plafond_ir_t4),0) -> 9.954058298 | BA55: =AZ55*Nb_adultes -> 9.954058298 | BB55: 0 | BC55: =IF(BB55<$AE$16,AX55,BA55-$AE$16) -> 9.954058298 | BD55: =IF(Nb_adultes=1, MAX(Decote_taux*mont_decote_celib-Decote_taux*BC55,0),MAX(Decote_taux*mont_decote_couple-Decote_taux*BC55,0)) -> 68.20952195 | BE55: 0 | BF55: =IF(BE55>seuil_recouvrement_IR,BE55,0) -> 0 | BG55: =$K55+$Z$17 -> 1106.487639 | BH55: =X55+AN55+AS55+AA55+W55+AT55+AD55+$AL$16+D55+$E$6+AK55-$AI55+$AL55+$AP55 -> 266.5686577 | BI55: 1373.056297 | BJ55: =BI55/$AV$17 -> 1373.056297 | BK55: =1-(BI56-BI55)/(BG56-BG55) -> 0.1405460873 | BL55: =1-(BI56-BI55)/(O56-O55) -> 0.3414944745 | BM55: =1+IF(seuil_D1< BJ55*12,1,0)+IF(seuil_D2<BJ55*12,1,0)+IF(seuil_D3<BJ55*12,1,0)+IF(seuil_D4<BJ55*12,1,0)+IF(seuil_D5<BJ55*12,1,0)+IF(seuil_D6<BJ55*12,1,0)+IF(seuil_D7<BJ55*12,1,0)+IF(seuil_D8<BJ55*12,1,0)+IF(seuil_D9<BJ55*12,1,0) -> 3 | BN55: =$H$5*IF(AN55=0, (AM55<$AH$16)*(Nb_adultes*montant_cmuc_16_49+(Nb_enfants-$B$11-$B$12)*montant_cmuc_0_15+($B$11+$B$12)*montant_cmuc_16_49), (Nb_adultes*montant_cmuc_16_49+(Nb_enfants-$B$11-$B$12)*montant_cmuc_0_15+($B$11+$B$12)*montant_cmuc_16_49)) -> 0 | BO55: =((Q55/$AV$16<plaf_cheque_energie_t1) * IF($AV$16=1,montant_t1_1UC,IF($AV$16<2,montant_t1_12UC,montant_t1_2UC_et_plus))+ (AND(Q55/$AV$16>=plaf_cheque_energie_t1,Q55/$AV$16<plaf_cheque_energie_t2)) * IF($AV$16=1,montant_t2_1UC,IF($AV$16<2,montant_t2_12UC,montant_t2_2UC_et_plus))+ (AND(Q55/$AV$16>=plaf_cheque_energie_t2,Q55/$AV$16<plaf_cheque_energie_t3)) * IF($AV$16=1,montant_t3_1UC,IF($AV$16<2,montant_t3_12UC,montant_t3_2UC_et_plus))+ (AND(Q55/$AV$16>=plaf_cheque_energie_t3,Q55/$AV$16<plaf_cheque_energie_t4)) * IF($AV$16=1,montant_t4_1UC,IF($AV$16<2,montant_t4_12UC,montant_t4_2UC_et_plus))+ (AND(Q55/$AV$16>=plaf_cheque_energie_t3,Q55/$AV$16<plaf_cheque_energie_t5)) *bonus_2022 )/12 -> 0 | BP55: 1373.056297
A56: =A55+$E$9 -> 1441.47168 | B56: 0.825 | C56: 0.825 | D56: 0 | E56: 0 | F56: 513.5387007 | G56: =MAX(tx_exo_fillon_smic*A56*(plafond_exo_fillon*(B56/C56)-1)/(plafond_exo_fillon-1),0) -> 465.7394998 | H56: 163.030447 | I56: 96.30472294 | J56: 41.07113184 | K56: 1141.065378 | L56: 1182.13651 | M56: 0.8250235911 | N56: 0.8250235911 | O56: 1489.270881 | P56: 1124.773083 | Q56: 1012.295775 | R56: 957.7065038 | S56: 957.7065038 | T56: 0 | U56: =IF(AND($T56>0,$T56=$AL56),Barème!$C$199,0) -> 0 | V56: 1066.666667 | W56: 37 | X56: 0 | Y56: 4059.5 | Z56: 2030.083333 | AA56: 0 | AB56: 3074.166667 | AC56: 2584.583333 | AD56: 0 | AE56: 499.613298 | AF56: 0 | AG56: =IF(AND($A56=0,AF56=AAH_montant,Base!$W56>0,$H$10=1),AAH_mva,0) -> 0 | AH56: 647.2561924 | AI56: 0 | AJ56: =IF(AND($E$4=0,AI56=AAH_montant,Base!$W56>0,$J$10=1),AAH_mva,0) -> 0 | AK56: 0 | AL56: 0 | AM56: 1178.065378 | AN56: 0 | AO56: 0 | AP56: 0 | AQ56: 1178.065378 | AR56: 112.6035797 | AS56: 224.7088918 | AT56: 0 | AU56: 1063.922859 | AV56: 1063.922859 | AW56: 13.50046783 | AX56: 13.50046783 | AY56: 1063.922859 | AZ56: 13.50046783 | BA56: 13.50046783 | BB56: 0 | BC56: 13.50046783 | BD56: 66.60477164 | BE56: 0 | BF56: 0 | BG56: 1141.065378 | BH56: 261.7088918 | BI56: 1402.77427 | BJ56: 1402.77427 | BK56: 0.140690689 | BL56: 0.341605267 | BM56: 3 | BN56: 0 | BO56: 0 | BP56: 1402.77427
A57: 1485.15264 | B57: 0.85 | C57: 0.85 | D57: 0 | E57: 0 | F57: 529.1004795 | G57: 479.852818 | H57: 167.9707636 | I57: 99.22304788 | J57: 42.3157116 | K57: 1175.643117 | L57: 1217.958829 | M57: 0.850024306 | N57: 0.850024306 | O57: 1534.400302 | P57: 1158.857116 | Q57: 1042.971404 | R57: 986.727913 | S57: 986.727913 | T57: 0 | U57: =IF(AND($T57>0,$T57=$AL57),Barème!$C$199,0) -> 0 | V57: 1100 | W57: 24 | X57: 0 | Y57: 4059.5 | Z57: 2030.083333 | AA57: 0 | AB57: 3074.166667 | AC57: 2584.583333 | AD57: 0 | AE57: 521.1066891 | AF57: 0 | AG57: =IF(AND($A57=0,AF57=AAH_montant,Base!$W57>0,$H$10=1),AAH_mva,0) -> 0 | AH57: 679.496279 | AI57: 0 | AJ57: =IF(AND($E$4=0,AI57=AAH_montant,Base!$W57>0,$J$10=1),AAH_mva,0) -> 0 | AK57: 0 | AL57: 0 | AM57: 1199.643117 | AN57: 0 | AO57: 0 | AP57: 0 | AQ57: 1199.643117 | AR57: 121.2650125 | AS57: 232.8441259 | AT57: 0 | AU57: 1096.162946 | AV57: 1096.162946 | AW57: 17.04687736 | AX57: 17.04687736 | AY57: 1096.162946 | AZ57: 17.04687736 | BA57: 17.04687736 | BB57: 0 | BC57: 17.04687736 | BD57: 65.00002133 | BE57: 0 | BF57: 0 | BG57: 1175.643117 | BH57: 256.8441259 | BI57: 1432.487243 | BJ57: 1432.487243 | BK57: 0.1405460873 | BL57: 0.3414944745 | BM57: 3 | BN57: 0 | BO57: 0 | BP57: 1432.487243
A58: 1528.8336 | B58: 0.875 | C58: 0.875 | D58: 0 | E58: 0 | F58: 544.6622583 | G58: 493.9661362 | H58: 172.9110802 | I58: 102.1413728 | J58: 43.56029135 | K58: 1210.220856 | L58: 1253.781147 | M58: 0.8750250209 | N58: 0.8750250209 | O58: 1579.529722 | P58: 1192.941148 | Q58: 1073.647034 | R58: 1015.749322 | S58: 1015.749322 | T58: 0 | U58: =IF(AND($T58>0,$T58=$AL58),Barème!$C$199,0) -> 0 | V58: 1133.333333 | W58: 12 | X58: 0 | Y58: 4059.5 | Z58: 2030.083333 | AA58: 0 | AB58: 3074.166667 | AC58: 2584.583333 | AD58: 0 | AE58: 542.6000802 | AF58: 0 | AG58: =IF(AND($A58=0,AF58=AAH_montant,Base!$W58>0,$H$10=1),AAH_mva,0) -> 0 | AH58: 711.7363657 | AI58: 0 | AJ58: =IF(AND($E$4=0,AI58=AAH_montant,Base!$W58>0,$J$10=1),AAH_mva,0) -> 0 | AK58: 0 | AL58: 0 | AM58: 1222.220856 | AN58: 0 | AO58: 0 | AP58: 0 | AQ58: 1222.220856 | AR58: 129.9264453 | AS58: 239.98436 | AT58: 0 | AU58: 1128.403032 | AV58: 1128.403032 | AW58: 20.59328689 | AX58: 20.59328689 | AY58: 1128.403032 | AZ58: 20.59328689 | BA58: 20.59328689 | BB58: 0 | BC58: 20.59328689 | BD58: 63.39527102 | BE58: 0 | BF58: 0 | BG58: 1210.220856 | BH58: 251.98436 | BI58: 1462.205216 | BJ58: 1462.205216 | BK58: 0.1405460873 | BL58: 0.3414944745 | BM58: 3 | BN58: 0 | BO58: 0 | BP58: 1462.205216
A59: 1572.51456 | B59: 0.9 | C59: 0.9 | D59: 0 | E59: 0 | F59: 560.2240371 | G59: 508.0794543 | H59: 177.8513967 | I59: 105.0596978 | J59: 44.8048711 | K59: 1244.798594 | L59: 1289.603466 | M59: 0.9000257358 | N59: 0.9000257358 | O59: 1624.659143 | P59: 1227.025181 | Q59: 1104.322663 | R59: 1044.770731 | S59: 1044.770731 | T59: 0 | U59: =IF(AND($T59>0,$T59=$AL59),Barème!$C$199,0) -> 0 | V59: 1166.666667 | W59: 0 | X59: 0 | Y59: 4059.5 | Z59: 2030.083333 | AA59: 0 | AB59: 3074.166667 | AC59: 2584.583333 | AD59: 0 | AE59: 564.0934713 | AF59: 0 | AG59: =IF(AND($A59=0,AF59=AAH_montant,Base!$W59>0,$H$10=1),AAH_mva,0) -> 0 | AH59: 743.9764523 | AI59: 0 | AJ59: =IF(AND($E$4=0,AI59=AAH_montant,Base!$W59>0,$J$10=1),AAH_mva,0) -> 0 | AK59: 0 | AL59: 0 | AM59: 1244.798594 | AN59: 0 | AO59: 0 | AP59: 0 | AQ59: 1244.798594 | AR59: 138.5878781 | AS59: 247.1245941 | AT59: 0 | AU59: 1160.643119 | AV59: 1160.643119 | AW59: 24.13969642 | AX59: 24.13969642 | AY59: 1160.643119 | AZ59: 24.13969642 | BA59: 24.13969642 | BB59: 0 | BC59: 24.13969642 | BD59: 61.7905207 | BE59: 0 | BF59: 0 | BG59: 1244.798594 | BH59: 247.1245941 | BI59: 1491.923189 | BJ59: 1491.923189 | BK59: 0.1388108668 | BL59: 0.3401649649 | BM59: 3 | BN59: 0 | BO59: 0 | BP59: 1491.923189
A60: 1616.19552 | B60: 0.925 | C60: 0.925 | D60: 0 | E60: 0 | F60: 575.785816 | G60: 522.1927725 | H60: 182.7917133 | I60: 107.9780227 | J60: 46.04945085 | K60: 1279.376333 | L60: 1325.425784 | M60: 0.9250264507 | N60: 0.9250264507 | O60: 1669.788563 | P60: 1261.109214 | Q60: 1134.998293 | R60: 1073.792141 | S60: 1073.792141 | T60: 0 | U60: =IF(AND($T60>0,$T60=$AL60),Barème!$C$199,0) -> 0 | V60: 1200 | W60: 0 | X60: 0 | Y60: 4059.5 | Z60: 2030.083333 | AA60: 0 | AB60: 3074.166667 | AC60: 2584.583333 | AD60: 0 | AE60: 585.5868624 | AF60: 0 | AG60: =IF(AND($A60=0,AF60=AAH_montant,Base!$W60>0,$H$10=1),AAH_mva,0) -> 0 | AH60: 776.2165389 | AI60: 0 | AJ60: =IF(AND($E$4=0,AI60=AAH_montant,Base!$W60>0,$J$10=1),AAH_mva,0) -> 0 | AK60: 0 | AL60: 0 | AM60: 1279.376333 | AN60: 0 | AO60: 0 | AP60: 0 | AQ60: 1279.376333 | AR60: 147.2493109 | AS60: 242.3248283 | AT60: 0 | AU60: 1192.883206 | AV60: 1192.883206 | AW60: 27.68610595 | AX60: 27.68610595 | AY60: 1192.883206 | AZ60: 27.68610595 | BA60: 27.68610595 | BB60: 0 | BC60: 27.68610595 | BD60: 60.18577039 | BE60: 0 | BF60: 0 | BG60: 1279.376333 | BH60: 242.3248283 | BI60: 1521.701161 | BJ60: 1521.701161 | BK60: 0.1388108668 | BL60: 0.3401649649 | BM60: 3 | BN60: 0 | BO60: 0 | BP60: 1521.701161
A61: 1659.87648 | B61: 0.95 | C61: 0.95 | D61: 0 | E61: 0 | F61: 591.3475948 | G61: 536.3060907 | H61: 187.7320299 | I61: 110.8963476 | J61: 47.29403061 | K61: 1313.954072 | L61: 1361.248102 | M61: 0.9500271656 | N61: 0.9500271656 | O61: 1714.917984 | P61: 1295.193247 | Q61: 1165.673922 | R61: 1102.81355 | S61: 1102.81355 | T61: 0 | U61: =IF(AND($T61>0,$T61=$AL61),Barème!$C$199,0) -> 0 | V61: 1233.333333 | W61: 0 | X61: 0 | Y61: 4059.5 | Z61: 2030.083333 | AA61: 0 | AB61: 3074.166667 | AC61: 2584.583333 | AD61: 0 | AE61: 607.0802535 | AF61: 0 | AG61: =IF(AND($A61=0,AF61=AAH_montant,Base!$W61>0,$H$10=1),AAH_mva,0) -> 0 | AH61: 808.4566256 | AI61: 0 | AJ61: =IF(AND($E$4=0,AI61=AAH_montant,Base!$W61>0,$J$10=1),AAH_mva,0) -> 0 | AK61: 0 | AL61: 0 | AM61: 1313.954072 | AN61: 0 | AO61: 0 | AP61: 0 | AQ61: 1313.954072 | AR61: 155.9107437 | AS61: 237.5250624 | AT61: 0 | AU61: 1225.123292 | AV61: 1225.123292 | AW61: 31.23251548 | AX61: 31.23251548 | AY61: 1225.123292 | AZ61: 31.23251548 | BA61: 31.23251548 | BB61: 0 | BC61: 31.23251548 | BD61: 58.58102008 | BE61: 0 | BF61: 0 | BG61: 1313.954072 | BH61: 237.5250624 | BI61: 1551.479134 | BJ61: 1551.479134 | BK61: 0.1388108668 | BL61: 0.3401649649 | BM61: 3 | BN61: 0 | BO61: 0 | BP61: 1551.479134
A62: 1703.55744 | B62: 0.975 | C62: 0.975 | D62: 0 | E62: 0 | F62: 606.9093736 | G62: 550.4194089 | H62: 192.6723465 | I62: 113.8146726 | J62: 48.53861036 | K62: 1348.531811 | L62: 1397.070421 | M62: 0.9750278804 | N62: 0.9750278804 | O62: 1760.047405 | P62: 1329.27728 | Q62: 1196.349552 | R62: 1131.834959 | S62: 1131.834959 | T62: 0 | U62: =IF(AND($T62>0,$T62=$AL62),Barème!$C$199,0) -> 0 | V62: 1258.333333 | W62: 0 | X62: 0 | Y62: 4059.5 | Z62: 2030.083333 | AA62: 0 | AB62: 3074.166667 | AC62: 2584.583333 | AD62: 0 | AE62: 628.5736446 | AF62: 0 | AG62: =IF(AND($A62=0,AF62=AAH_montant,Base!$W62>0,$H$10=1),AAH_mva,0) -> 0 | AH62: 840.6967122 | AI62: 0 | AJ62: =IF(AND($E$4=0,AI62=AAH_montant,Base!$W62>0,$J$10=1),AAH_mva,0) -> 0 | AK62: 0 | AL62: 0 | AM62: 1348.531811 | AN62: 0 | AO62: 0 | AP62: 0 | AQ62: 1348.531811 | AR62: 164.5721765 | AS62: 232.7252965 | AT62: 0 | AU62: 1257.363379 | AV62: 1257.363379 | AW62: 34.77892501 | AX62: 34.77892501 | AY62: 1257.363379 | AZ62: 34.77892501 | BA62: 34.77892501 | BB62: 0 | BC62: 34.77892501 | BD62: 56.97626977 | BE62: 0 | BF62: 0 | BG62: 1348.531811 | BH62: 232.7252965 | BI62: 1581.257107 | BJ62: 1581.257107 | BK62: 0.1390959417 | BL62: 0.3403833866 | BM62: 3 | BN62: 0 | BO62: 0 | BP62: 1581.257107
A63: 1747.2384 | B63: 1 | C63: 1 | D63: 0 | E63: 0 | F63: 622.4711524 | G63: 564.532727 | H63: 197.612663 | I63: 116.7329975 | J63: 49.78319011 | K63: 1383.109549 | L63: 1432.892739 | M63: 1 | N63: 1.000028595 | O63: 1805.176825 | P63: 1363.361313 | Q63: 1227.025181 | R63: 1160.856368 | S63: 1160.856368 | T63: 0 | U63: =IF(AND($T63>0,$T63=$AL63),Barème!$C$199,0) -> 0 | V63: 1291.666667 | W63: 0 | X63: 0 | Y63: 4059.5 | Z63: 2030.083333 | AA63: 0 | AB63: 3074.166667 | AC63: 2584.583333 | AD63: 0 | AE63: 650.0670357 | AF63: 0 | AG63: =IF(AND($A63=0,AF63=AAH_montant,Base!$W63>0,$H$10=1),AAH_mva,0) -> 0 | AH63: 872.9367988 | AI63: 0 | AJ63: =IF(AND($E$4=0,AI63=AAH_montant,Base!$W63>0,$J$10=1),AAH_mva,0) -> 0 | AK63: 0 | AL63: 0 | AM63: 1383.109549 | AN63: 0 | AO63: 0 | AP63: 0 | AQ63: 1383.109549 | AR63: 173.2237025 | AS63: 227.9156734 | AT63: 0 | AU63: 1289.603466 | AV63: 1289.603466 | AW63: 38.32533454 | AX63: 38.32533454 | AY63: 1289.603466 | AZ63: 38.32533454 | BA63: 38.32533454 | BB63: 0 | BC63: 38.32533454 | BD63: 55.37151945 | BE63: 0 | BF63: 0 | BG63: 1383.109549 | BH63: 227.9156734 | BI63: 1611.025223 | BJ63: 1611.025223 | BK63: 0.38805 | BL63: 0.7443380216 | BM63: 4 | BN63: 0 | BO63: 0 | BP63: 1611.025223
A64: 1790.91936 | B64: 1 | C64: 1.025 | D64: 0 | E64: 0 | F64: 638.0329312 | G64: 541.0105301 | H64: 202.5529796 | I64: 119.6513224 | J64: 51.02776986 | K64: 1417.687288 | L64: 1468.715058 | M64: 1 | N64: 1.02502931 | O64: 1887.941761 | P64: 1397.445345 | Q64: 1257.700811 | R64: 1189.877777 | S64: 1189.877777 | T64: 0 | U64: =IF(AND($T64>0,$T64=$AL64),Barème!$C$199,0) -> 0 | V64: 1325 | W64: 0 | X64: 0 | Y64: 4059.5 | Z64: 2030.083333 | AA64: 0 | AB64: 3074.166667 | AC64: 2584.583333 | AD64: 0 | AE64: 671.5604268 | AF64: 0 | AG64: =IF(AND($A64=0,AF64=AAH_montant,Base!$W64>0,$H$10=1),AAH_mva,0) -> 0 | AH64: 905.1768855 | AI64: 0 | AJ64: =IF(AND($E$4=0,AI64=AAH_montant,Base!$W64>0,$J$10=1),AAH_mva,0) -> 0 | AK64: 0 | AL64: 0 | AM64: 1417.687288 | AN64: 0 | AO64: 0 | AP64: 0 | AQ64: 1417.687288 | AR64: 173.2237025 | AS64: 214.4977818 | AT64: 0 | AU64: 1321.843552 | AV64: 1321.843552 | AW64: 41.87174407 | AX64: 41.87174407 | AY64: 1321.843552 | AZ64: 41.87174407 | BA64: 41.87174407 | BB64: 0 | BC64: 41.87174407 | BD64: 53.76676914 | BE64: 0 | BF64: 0 | BG64: 1417.687288 | BH64: 214.4977818 | BI64: 1632.18507 | BJ64: 1632.18507 | BK64: 0.38805 | BL64: 0.7443380216 | BM64: 4 | BN64: 0 | BO64: 0 | BP64: 1632.18507
A65: 1834.60032 | B65: 1 | C65: 1.05 | D65: 0 | E65: 0 | F65: 653.59471 | G65: 517.4883331 | H65: 207.4932962 | I65: 122.5696474 | J65: 52.27234962 | K65: 1452.265027 | L65: 1504.537376 | M65: 1 | N65: 1.050030025 | O65: 1970.706697 | P65: 1431.529378 | Q65: 1288.37644 | R65: 1218.899187 | S65: 1218.899187 | T65: 0 | U65: =IF(AND($T65>0,$T65=$AL65),Barème!$C$199,0) -> 0 | V65: 1358.333333 | W65: 0 | X65: 0 | Y65: 4059.5 | Z65: 2030.083333 | AA65: 0 | AB65: 3074.166667 | AC65: 2584.583333 | AD65: 0 | AE65: 693.0538179 | AF65: 0 | AG65: =IF(AND($A65=0,AF65=AAH_montant,Base!$W65>0,$H$10=1),AAH_mva,0) -> 0 | AH65: 937.4169721 | AI65: 0 | AJ65: =IF(AND($E$4=0,AI65=AAH_montant,Base!$W65>0,$J$10=1),AAH_mva,0) -> 0 | AK65: 0 | AL65: 0 | AM65: 1452.265027 | AN65: 0 | AO65: 0 | AP65: 0 | AQ65: 1452.265027 | AR65: 173.2237025 | AS65: 201.0798903 | AT65: 0 | AU65: 1354.083639 | AV65: 1354.083639 | AW65: 45.4181536 | AX65: 45.4181536 | AY65: 1354.083639 | AZ65: 45.4181536 | BA65: 45.4181536 | BB65: 0 | BC65: 45.4181536 | BD65: 52.16201883 | BE65: 0 | BF65: 0 | BG65: 1452.265027 | BH65: 201.0798903 | BI65: 1653.344917 | BJ65: 1653.344917 | BK65: 0.38805 | BL65: 0.7443380216 | BM65: 4 | BN65: 0 | BO65: 0 | BP65: 1653.344917
A66: 1878.28128 | B66: 1 | C66: 1.075 | D66: 0 | E66: 0 | F66: 669.1564888 | G66: 493.9661362 | H66: 212.4336128 | I66: 125.4879723 | J66: 53.51692937 | K66: 1486.842766 | L66: 1540.359695 | M66: 1 | N66: 1.07503074 | O66: 2053.471633 | P66: 1465.613411 | Q66: 1319.05207 | R66: 1247.920596 | S66: 1247.920596 | T66: 0 | U66: =IF(AND($T66>0,$T66=$AL66),Barème!$C$199,0) -> 0 | V66: 1391.666667 | W66: 0 | X66: 0 | Y66: 4059.5 | Z66: 2030.083333 | AA66: 0 | AB66: 3074.166667 | AC66: 2584.583333 | AD66: 0 | AE66: 714.5472089 | AF66: 0 | AG66: =IF(AND($A66=0,AF66=AAH_montant,Base!$W66>0,$H$10=1),AAH_mva,0) -> 0 | AH66: 969.6570588 | AI66: 0 | AJ66: =IF(AND($E$4=0,AI66=AAH_montant,Base!$W66>0,$J$10=1),AAH_mva,0) -> 0 | AK66: 0 | AL66: 0 | AM66: 1486.842766 | AN66: 0 | AO66: 0 | AP66: 0 | AQ66: 1486.842766 | AR66: 173.2237025 | AS66: 187.6619988 | AT66: 0 | AU66: 1386.323725 | AV66: 1386.323725 | AW66: 48.96456313 | AX66: 48.96456313 | AY66: 1386.323725 | AZ66: 48.96456313 | BA66: 48.96456313 | BB66: 0 | BC66: 48.96456313 | BD66: 50.55726852 | BE66: 0 | BF66: 0 | BG66: 1486.842766 | BH66: 187.6619988 | BI66: 1674.504764 | BJ66: 1674.504764 | BK66: 0.38805 | BL66: 0.7443380216 | BM66: 4 | BN66: 0 | BO66: 0 | BP66: 1674.504764
A67: 1921.96224 | B67: 1 | C67: 1.1 | D67: 0 | E67: 0 | F67: 684.7182676 | G67: 470.4439392 | H67: 217.3739293 | I67: 128.4062973 | J67: 54.76150912 | K67: 1521.420504 | L67: 1576.182013 | M67: 1 | N67: 1.100031455 | O67: 2136.236568 | P67: 1499.697444 | Q67: 1349.727699 | R67: 1276.942005 | S67: 1276.942005 | T67: 0 | U67: =IF(AND($T67>0,$T67=$AL67),Barème!$C$199,0) -> 0 | V67: 1425 | W67: 0 | X67: 0 | Y67: 4059.5 | Z67: 2030.083333 | AA67: 0 | AB67: 3074.166667 | AC67: 2584.583333 | AD67: 0 | AE67: 736.0406 | AF67: 0 | AG67: =IF(AND($A67=0,AF67=AAH_montant,Base!$W67>0,$H$10=1),AAH_mva,0) -> 0 | AH67: 1001.897145 | AI67: 0 | AJ67: =IF(AND($E$4=0,AI67=AAH_montant,Base!$W67>0,$J$10=1),AAH_mva,0) -> 0 | AK67: 0 | AL67: 0 | AM67: 1521.420504 | AN67: 0 | AO67: 0 | AP67: 0 | AQ67: 1521.420504 | AR67: 173.2237025 | AS67: 174.2441073 | AT67: 0 | AU67: 1418.563812 | AV67: 1418.563812 | AW67: 52.51097266 | AX67: 52.51097266 | AY67: 1418.563812 | AZ67: 52.51097266 | BA67: 52.51097266 | BB67: 0 | BC67: 52.51097266 | BD67: 48.9525182 | BE67: 3.558454455 | BF67: 0 | BG67: 1521.420504 | BH67: 174.2441073 | BI67: 1695.664612 | BJ67: 1695.664612 | BK67: 0.6399350167 | BL67: 0.8495711644 | BM67: 4 | BN67: 0 | BO67: 0 | BP67: 1695.664612
A68: 1965.6432 | B68: 1 | C68: 1.125 | D68: 0 | E68: 0 | F68: 700.2800464 | G68: 446.9217422 | H68: 222.3142459 | I68: 131.3246222 | J68: 56.00608888 | K68: 1555.998243 | L68: 1612.004332 | M68: 1 | N68: 1.12503217 | O68: 2219.001504 | P68: 1533.781477 | Q68: 1380.403329 | R68: 1305.963414 | S68: 1305.963414 | T68: 0 | U68: =IF(AND($T68>0,$T68=$AL68),Barème!$C$199,0) -> 0 | V68: 1458.333333 | W68: 0 | X68: 0 | Y68: 4059.5 | Z68: 2030.083333 | AA68: 0 | AB68: 3074.166667 | AC68: 2584.583333 | AD68: 0 | AE68: 757.5339911 | AF68: 0 | AG68: =IF(AND($A68=0,AF68=AAH_montant,Base!$W68>0,$H$10=1),AAH_mva,0) -> 0 | AH68: 1034.137232 | AI68: 0 | AJ68: =IF(AND($E$4=0,AI68=AAH_montant,Base!$W68>0,$J$10=1),AAH_mva,0) -> 0 | AK68: 0 | AL68: 0 | AM68: 1555.998243 | AN68: 0 | AO68: 0 | AP68: 0 | AQ68: 1555.998243 | AR68: 173.2237025 | AS68: 160.8262158 | AT68: 0 | AU68: 1450.803899 | AV68: 1450.803899 | AW68: 56.05738219 | AX68: 56.05738219 | AY68: 1450.803899 | AZ68: 56.05738219 | BA68: 56.05738219 | BB68: 0 | BC68: 56.05738219 | BD68: 47.34776789 | BE68: 8.709614298 | BF68: 8.709614298 | BG68: 1555.998243 | BH68: 160.8262158 | BI68: 1708.114845 | BJ68: 1708.114845 | BK68: 0.5370232999 | BL68: 0.8065764538 | BM68: 4 | BN68: 0 | BO68: 0 | BP68: 1708.114845
A69: 2009.32416 | B69: 1 | C69: 1.15 | D69: 0 | E69: 0 | F69: 715.8418252 | G69: 423.3995453 | H69: 227.2545625 | I69: 134.2429471 | J69: 57.25066863 | K69: 1590.575982 | L69: 1647.82665 | M69: 1 | N69: 1.150032885 | O69: 2301.76644 | P69: 1567.865509 | Q69: 1411.078958 | R69: 1334.984824 | S69: 1334.984824 | T69: 0 | U69: =IF(AND($T69>0,$T69=$AL69),Barème!$C$199,0) -> 0 | V69: 1483.333333 | W69: 0 | X69: 0 | Y69: 4059.5 | Z69: 2030.083333 | AA69: 0 | AB69: 3074.166667 | AC69: 2584.583333 | AD69: 0 | AE69: 779.0273822 | AF69: 0 | AG69: =IF(AND($A69=0,AF69=AAH_montant,Base!$W69>0,$H$10=1),AAH_mva,0) -> 0 | AH69: 1066.377319 | AI69: 0 | AJ69: =IF(AND($E$4=0,AI69=AAH_montant,Base!$W69>0,$J$10=1),AAH_mva,0) -> 0 | AK69: 0 | AL69: 0 | AM69: 1590.575982 | AN69: 0 | AO69: 0 | AP69: 0 | AQ69: 1590.575982 | AR69: 173.2237025 | AS69: 147.4083243 | AT69: 0 | AU69: 1483.043985 | AV69: 1483.043985 | AW69: 59.60379172 | AX69: 59.60379172 | AY69: 1483.043985 | AZ69: 59.60379172 | BA69: 59.60379172 | BB69: 0 | BC69: 59.60379172 | BD69: 45.74301758 | BE69: 13.86077414 | BF69: 13.86077414 | BG69: 1590.575982 | BH69: 147.4083243 | BI69: 1724.123532 | BJ69: 1724.123532 | BK69: 0.5370232999 | BL69: 0.8065764538 | BM69: 4 | BN69: 0 | BO69: 0 | BP69: 1724.123532
A70: 2053.00512 | B70: 1 | C70: 1.175 | D70: 0 | E70: 0 | F70: 731.4036041 | G70: 399.8773483 | H70: 232.1948791 | I70: 137.1612721 | J70: 58.49524838 | K70: 1625.15372 | L70: 1683.648969 | M70: 1 | N70: 1.1750336 | O70: 2384.531376 | P70: 1601.949542 | Q70: 1441.754588 | R70: 1364.006233 | S70: 1364.006233 | T70: 0 | U70: =IF(AND($T70>0,$T70=$AL70),Barème!$C$199,0) -> 0 | V70: 1516.666667 | W70: 0 | X70: 0 | Y70: 4059.5 | Z70: 2030.083333 | AA70: 0 | AB70: 3074.166667 | AC70: 2584.583333 | AD70: 0 | AE70: 800.5207733 | AF70: 0 | AG70: =IF(AND($A70=0,AF70=AAH_montant,Base!$W70>0,$H$10=1),AAH_mva,0) -> 0 | AH70: 1098.617405 | AI70: 0 | AJ70: =IF(AND($E$4=0,AI70=AAH_montant,Base!$W70>0,$J$10=1),AAH_mva,0) -> 0 | AK70: 0 | AL70: 0 | AM70: 1625.15372 | AN70: 0 | AO70: 0 | AP70: 0 | AQ70: 1625.15372 | AR70: 173.2237025 | AS70: 133.9904328 | AT70: 0 | AU70: 1515.284072 | AV70: 1515.284072 | AW70: 63.15020125 | AX70: 63.15020125 | AY70: 1515.284072 | AZ70: =IF(0<AY70,taux_ir_t1*MIN(AY70,plafond_ir_t1),0) +IF(plafond_ir_t1<AY70,taux_ir_t2*MIN(AY70-plafond_ir_t1,plafond_ir_t2-plafond_ir_t1),0) +IF(plafond_ir_t2<AY70,taux_ir_t3*MIN(AY70-plafond_ir_t2,plafond_ir_t3-plafond_ir_t2),0) +IF(plafond_ir_t3<AY70,taux_ir_t4*MIN(AY70-plafond_ir_t3,plafond_ir_t4-plafond_ir_t3),0) +IF(plafond_ir_t4<AY70,taux_ir_t5*(AY70-plafond_ir_t4),0) -> 63.15020125 | BA70: 63.15020125 | BB70: 0 | BC70: 63.15020125 | BD70: 44.13826727 | BE70: 19.01193398 | BF70: 19.01193398 | BG70: 1625.15372 | BH70: 133.9904328 | BI70: 1740.132219 | BJ70: 1740.132219 | BK70: 0.5370232999 | BL70: 0.8065764538 | BM70: 4 | BN70: 0 | BO70: 0 | BP70: 1740.132219
A71: 2096.68608 | B71: 1 | C71: 1.2 | D71: 0 | E71: 0 | F71: 746.9653829 | G71: 376.3551514 | H71: 237.1351956 | I71: 140.079597 | J71: 59.73982813 | K71: 1659.731459 | L71: 1719.471287 | M71: 1 | N71: 1.200034314 | O71: 2467.296312 | P71: 1636.033575 | Q71: 1472.430218 | R71: 1393.027642 | S71: 1393.027642 | T71: 0 | U71: =IF(AND($T71>0,$T71=$AL71),Barème!$C$199,0) -> 0 | V71: 1550 | W71: 0 | X71: 0 | Y71: 4059.5 | Z71: 2030.083333 | AA71: 0 | AB71: 3074.166667 | AC71: 2584.583333 | AD71: 0 | AE71: 822.0141644 | AF71: 0 | AG71: =IF(AND($A71=0,AF71=AAH_montant,Base!$W71>0,$H$10=1),AAH_mva,0) -> 0 | AH71: 1130.857492 | AI71: 0 | AJ71: =IF(AND($E$4=0,AI71=AAH_montant,Base!$W71>0,$J$10=1),AAH_mva,0) -> 0 | AK71: 0 | AL71: 0 | AM71: 1659.731459 | AN71: 0 | AO71: 0 | AP71: 0 | AQ71: 1659.731459 | AR71: 173.2237025 | AS71: 120.5725412 | AT71: 0 | AU71: 1547.524159 | AV71: 1547.524159 | AW71: 66.69661078 | AX71: 66.69661078 | AY71: 1547.524159 | AZ71: 66.69661078 | BA71: 66.69661078 | BB71: 0 | BC71: 66.69661078 | BD71: 42.53351696 | BE71: 24.16309383 | BF71: 24.16309383 | BG71: 1659.731459 | BH71: 120.5725412 | BI71: 1756.140907 | BJ71: 1756.140907 | BK71: 0.5370232999 | BL71: 0.8065764538 | BM71: 4 | BN71: 0 | BO71: 0 | BP71: 1756.140907
A72: 2140.36704 | B72: 1 | C72: 1.225 | D72: 0 | E72: 0 | F72: 762.5271617 | G72: 352.8329544 | H72: 242.0755122 | I72: 142.9979219 | J72: 60.98440789 | K72: 1694.309198 | L72: 1755.293606 | M72: 1 | N72: 1.225035029 | O72: 2550.061247 | P72: 1670.117608 | Q72: 1503.105847 | R72: 1422.049051 | S72: 1422.049051 | T72: 0 | U72: =IF(AND($T72>0,$T72=$AL72),Barème!$C$199,0) -> 0 | V72: 1583.333333 | W72: 0 | X72: 0 | Y72: 4059.5 | Z72: 2030.083333 | AA72: 0 | AB72: 3074.166667 | AC72: 2584.583333 | AD72: 0 | AE72: 843.5075555 | AF72: 0 | AG72: =IF(AND($A72=0,AF72=AAH_montant,Base!$W72>0,$H$10=1),AAH_mva,0) -> 0 | AH72: 1163.097579 | AI72: 0 | AJ72: =IF(AND($E$4=0,AI72=AAH_montant,Base!$W72>0,$J$10=1),AAH_mva,0) -> 0 | AK72: 0 | AL72: 0 | AM72: 1694.309198 | AN72: 0 | AO72: 0 | AP72: 0 | AQ72: 1694.309198 | AR72: 173.2237025 | AS72: 107.1546497 | AT72: 0 | AU72: 1579.764245 | AV72: 1579.764245 | AW72: 70.24302031 | AX72: 70.24302031 | AY72: 1579.764245 | AZ72: 70.24302031 | BA72: 70.24302031 | BB72: 0 | BC72: 70.24302031 | BD72: 40.92876664 | BE72: 29.31425367 | BF72: 29.31425367 | BG72: 1694.309198 | BH72: 107.1546497 | BI72: 1772.149594 | BJ72: 1772.149594 | BK72: 0.5370232999 | BL72: 0.8065764538 | BM72: 4 | BN72: 0 | BO72: 0 | BP72: 1772.149594
A73: 2184.048 | B73: 1 | C73: 1.25 | D73: 0 | E73: 0 | F73: 778.0889405 | G73: 329.3107574 | H73: 247.0158288 | I73: 145.9162469 | J73: 62.22898764 | K73: 1728.886937 | L73: 1791.115924 | M73: 1 | N73: 1.250035744 | O73: 2632.826183 | P73: 1704.201641 | Q73: 1533.781477 | R73: 1451.07046 | S73: 1451.07046 | T73: 0 | U73: =IF(AND($T73>0,$T73=$AL73),Barème!$C$199,0) -> 0 | V73: 1616.666667 | W73: 0 | X73: 0 | Y73: 4059.5 | Z73: 2030.083333 | AA73: 0 | AB73: 3074.166667 | AC73: 2584.583333 | AD73: 0 | AE73: 865.0009466 | AF73: 0 | AG73: =IF(AND($A73=0,AF73=AAH_montant,Base!$W73>0,$H$10=1),AAH_mva,0) -> 0 | AH73: 1195.337665 | AI73: 0 | AJ73: =IF(AND($E$4=0,AI73=AAH_montant,Base!$W73>0,$J$10=1),AAH_mva,0) -> 0 | AK73: 0 | AL73: 0 | AM73: 1728.886937 | AN73: 0 | AO73: 0 | AP73: 0 | AQ73: 1728.886937 | AR73: 173.2237025 | AS73: 93.73675821 | AT73: 0 | AU73: 1612.004332 | AV73: 1612.004332 | AW73: 73.78942984 | AX73: 73.78942984 | AY73: 1612.004332 | AZ73: 73.78942984 | BA73: 73.78942984 | BB73: 0 | BC73: 73.78942984 | BD73: 39.32401633 | BE73: 34.46541351 | BF73: 34.46541351 | BG73: 1728.886937 | BH73: 93.73675821 | BI73: 1788.158281 | BJ73: 1788.158281 | BK73: 0.5370232999 | BL73: 0.8065764538 | BM73: 4 | BN73: 0 | BO73: 0 | BP73: 1788.158281
A74: 2227.72896 | B74: 1 | C74: 1.275 | D74: 0 | E74: 0 | F74: 793.6507193 | G74: 305.7885605 | H74: 251.9561454 | I74: 148.8345718 | J74: 63.47356739 | K74: 1763.464675 | L74: 1826.938243 | M74: 1 | N74: 1.275036459 | O74: 2715.591119 | P74: 1738.285673 | Q74: 1564.457106 | R74: 1480.09187 | S74: 1480.09187 | T74: 0 | U74: =IF(AND($T74>0,$T74=$AL74),Barème!$C$199,0) -> 0 | V74: 1650 | W74: 0 | X74: 0 | Y74: 4059.5 | Z74: 2030.083333 | AA74: 0 | AB74: 3074.166667 | AC74: 2584.583333 | AD74: 0 | AE74: 886.4943377 | AF74: 0 | AG74: =IF(AND($A74=0,AF74=AAH_montant,Base!$W74>0,$H$10=1),AAH_mva,0) -> 0 | AH74: 1227.577752 | AI74: 0 | AJ74: =IF(AND($E$4=0,AI74=AAH_montant,Base!$W74>0,$J$10=1),AAH_mva,0) -> 0 | AK74: 0 | AL74: 0 | AM74: 1763.464675 | AN74: 0 | AO74: 0 | AP74: 0 | AQ74: 1763.464675 | AR74: 173.2237025 | AS74: 80.31886669 | AT74: 0 | AU74: 1644.244419 | AV74: 1644.244419 | AW74: 77.33583937 | AX74: 77.33583937 | AY74: 1644.244419 | AZ74: 77.33583937 | BA74: 77.33583937 | BB74: 0 | BC74: 77.33583937 | BD74: 37.71926602 | BE74: 39.61657335 | BF74: 39.61657335 | BG74: 1763.464675 | BH74: 80.31886669 | BI74: 1804.166969 | BJ74: 1804.166969 | BK74: 0.5370232999 | BL74: 0.8065764538 | BM74: 4 | BN74: 0 | BO74: 0 | BP74: 1804.166969
A75: 2271.40992 | B75: 1 | C75: 1.3 | D75: 0 | E75: 0 | F75: 809.2124981 | G75: 282.2663635 | H75: 256.896462 | I75: 151.7528968 | J75: 64.71814715 | K75: 1798.042414 | L75: 1862.760561 | M75: 1 | N75: 1.300037174 | O75: 2798.356055 | P75: 1772.369706 | Q75: 1595.132736 | R75: 1509.113279 | S75: 1509.113279 | T75: 0 | U75: =IF(AND($T75>0,$T75=$AL75),Barème!$C$199,0) -> 0 | V75: 1683.333333 | W75: 0 | X75: 0 | Y75: 4059.5 | Z75: 2030.083333 | AA75: 0 | AB75: 3074.166667 | AC75: 2584.583333 | AD75: 0 | AE75: 907.9877288 | AF75: 0 | AG75: =IF(AND($A75=0,AF75=AAH_montant,Base!$W75>0,$H$10=1),AAH_mva,0) -> 0 | AH75: 1259.817838 | AI75: 0 | AJ75: =IF(AND($E$4=0,AI75=AAH_montant,Base!$W75>0,$J$10=1),AAH_mva,0) -> 0 | AK75: 0 | AL75: 0 | AM75: 1798.042414 | AN75: 0 | AO75: 0 | AP75: 0 | AQ75: 1798.042414 | AR75: 173.2237025 | AS75: 66.90097518 | AT75: 0 | AU75: 1676.484505 | AV75: 1676.484505 | AW75: 80.8822489 | AX75: 80.8822489 | AY75: 1676.484505 | AZ75: 80.8822489 | BA75: 80.8822489 | BB75: 0 | BC75: 80.8822489 | BD75: 36.11451571 | BE75: 44.7677332 | BF75: 44.7677332 | BG75: 1798.042414 | BH75: 66.90097518 | BI75: 1820.175656 | BJ75: 1820.175656 | BK75: 0.5370232999 | BL75: 0.8065764538 | BM75: 4 | BN75: 0 | BO75: 0 | BP75: 1820.175656
A76: 2315.09088 | B76: 1 | C76: 1.325 | D76: 0 | E76: 0 | F76: 824.7742769 | G76: 258.7441666 | H76: 261.8367785 | I76: 154.6712217 | J76: 65.9627269 | K76: 1832.620153 | L76: 1898.58288 | M76: 1 | N76: 1.325037889 | O76: 2881.12099 | P76: 1806.453739 | Q76: 1625.808365 | R76: 1538.134688 | S76: 1538.134688 | T76: 0 | U76: =IF(AND($T76>0,$T76=$AL76),Barème!$C$199,0) -> 0 | V76: 1716.666667 | W76: 0 | X76: 0 | Y76: 4059.5 | Z76: 2030.083333 | AA76: 0 | AB76: 3074.166667 | AC76: 2584.583333 | AD76: 0 | AE76: 929.4811199 | AF76: 0 | AG76: =IF(AND($A76=0,AF76=AAH_montant,Base!$W76>0,$H$10=1),AAH_mva,0) -> 0 | AH76: 1292.057925 | AI76: 0 | AJ76: =IF(AND($E$4=0,AI76=AAH_montant,Base!$W76>0,$J$10=1),AAH_mva,0) -> 0 | AK76: 0 | AL76: 0 | AM76: 1832.620153 | AN76: 0 | AO76: 0 | AP76: 0 | AQ76: 1832.620153 | AR76: 173.2237025 | AS76: 53.48308366 | AT76: 0 | AU76: 1708.724592 | AV76: 1708.724592 | AW76: 84.42865843 | AX76: 84.42865843 | AY76: 1708.724592 | AZ76: 84.42865843 | BA76: 84.42865843 | BB76: 0 | BC76: 84.42865843 | BD76: 34.50976539 | BE76: 49.91889304 | BF76: 49.91889304 | BG76: 1832.620153 | BH76: 53.48308366 | BI76: 1836.184344 | BJ76: 1836.184344 | BK76: 0.5370232999 | BL76: 0.8065764538 | BM76: 5 | BN76: 0 | BO76: 0 | BP76: 1836.184344
A77: 2358.77184 | B77: 1 | C77: 1.35 | D77: 0 | E77: 0 | F77: 840.3360557 | G77: 235.2219696 | H77: 266.7770951 | I77: 157.5895466 | J77: 67.20730665 | K77: 1867.197892 | L77: 1934.405198 | M77: 1 | N77: 1.350038604 | O77: 2963.885926 | P77: 1840.537772 | Q77: 1656.483995 | R77: 1567.156097 | S77: 1567.156097 | T77: 0 | U77: =IF(AND($T77>0,$T77=$AL77),Barème!$C$199,0) -> 0 | V77: 1741.666667 | W77: 0 | X77: 0 | Y77: 4059.5 | Z77: 2030.083333 | AA77: 0 | AB77: 3074.166667 | AC77: 2584.583333 | AD77: 0 | AE77: 950.974511 | AF77: 0 | AG77: =IF(AND($A77=0,AF77=AAH_montant,Base!$W77>0,$H$10=1),AAH_mva,0) -> 0 | AH77: 1324.298012 | AI77: 0 | AJ77: =IF(AND($E$4=0,AI77=AAH_montant,Base!$W77>0,$J$10=1),AAH_mva,0) -> 0 | AK77: 0 | AL77: 0 | AM77: 1867.197892 | AN77: 0 | AO77: 0 | AP77: 0 | AQ77: 1867.197892 | AR77: 173.2237025 | AS77: 40.06519215 | AT77: 0 | AU77: 1740.964678 | AV77: 1740.964678 | AW77: 87.97506796 | AX77: 87.97506796 | AY77: 1740.964678 | AZ77: 87.97506796 | BA77: 87.97506796 | BB77: 0 | BC77: 87.97506796 | BD77: 32.90501508 | BE77: 55.07005288 | BF77: 55.07005288 | BG77: 1867.197892 | BH77: 40.06519215 | BI77: 1852.193031 | BJ77: 1852.193031 | BK77: 0.5370232999 | BL77: 0.8065764538 | BM77: 5 | BN77: 0 | BO77: 0 | BP77: 1852.193031
A78: 2402.4528 | B78: 1 | C78: 1.375 | D78: 0 | E78: 0 | F78: 855.8978345 | G78: 211.6997726 | H78: 271.7174117 | I78: 160.5078716 | J78: 68.4518864 | K78: 1901.77563 | L78: 1970.227517 | M78: 1 | N78: 1.375039319 | O78: 3046.650862 | P78: 1874.621805 | Q78: 1687.159624 | R78: 1596.177506 | S78: 1596.177506 | T78: 0 | U78: =IF(AND($T78>0,$T78=$AL78),Barème!$C$199,0) -> 0 | V78: 1775 | W78: 0 | X78: 0 | Y78: 4059.5 | Z78: 2030.083333 | AA78: 0 | AB78: 3074.166667 | AC78: 2584.583333 | AD78: 0 | AE78: 972.4679021 | AF78: 0 | AG78: =IF(AND($A78=0,AF78=AAH_montant,Base!$W78>0,$H$10=1),AAH_mva,0) -> 0 | AH78: 1356.538098 | AI78: 0 | AJ78: =IF(AND($E$4=0,AI78=AAH_montant,Base!$W78>0,$J$10=1),AAH_mva,0) -> 0 | AK78: 0 | AL78: 0 | AM78: 1901.77563 | AN78: 0 | AO78: 0 | AP78: 0 | AQ78: 1901.77563 | AR78: 173.2237025 | AS78: 26.64730063 | AT78: 0 | AU78: 1773.204765 | AV78: 1773.204765 | AW78: 91.52147749 | AX78: 91.52147749 | AY78: 1773.204765 | AZ78: 91.52147749 | BA78: 91.52147749 | BB78: 0 | BC78: 91.52147749 | BD78: 31.30026477 | BE78: 60.22121272 | BF78: 60.22121272 | BG78: 1901.77563 | BH78: 26.64730063 | BI78: 1868.201718 | BJ78: 1868.201718 | BK78: 0.9196223246 | BL78: 0.9664196168 | BM78: 5 | BN78: 0 | BO78: 0 | BP78: 1868.201718
A79: 2446.13376 | B79: 1 | C79: 1.4 | D79: 0 | E79: 0 | F79: 871.4596133 | G79: 188.1775757 | H79: 276.6577283 | I79: 163.4261965 | J79: 69.69646616 | K79: 1936.353369 | L79: 2006.049835 | M79: 1 | N79: 1.400040033 | O79: 3129.415798 | P79: 1908.705838 | Q79: 1717.835254 | R79: 1625.198916 | S79: 1625.198916 | T79: 0 | U79: =IF(AND($T79>0,$T79=$AL79),Barème!$C$199,0) -> 0 | V79: 1808.333333 | W79: 0 | X79: 0 | Y79: 4059.5 | Z79: 2030.083333 | AA79: 0 | AB79: 3074.166667 | AC79: 2584.583333 | AD79: 0 | AE79: 993.9612931 | AF79: 0 | AG79: =IF(AND($A79=0,AF79=AAH_montant,Base!$W79>0,$H$10=1),AAH_mva,0) -> 0 | AH79: 1388.778185 | AI79: 0 | AJ79: =IF(AND($E$4=0,AI79=AAH_montant,Base!$W79>0,$J$10=1),AAH_mva,0) -> 0 | AK79: 0 | AL79: 0 | AM79: 1936.353369 | AN79: 0 | AO79: 0 | AP79: 0 | AQ79: 1936.353369 | AR79: 173.2237025 | AS79: 0 | AT79: 0 | AU79: 1805.444852 | AV79: 1805.444852 | AW79: 95.06788702 | AX79: 95.06788702 | AY79: 1805.444852 | AZ79: 95.06788702 | BA79: 95.06788702 | BB79: 0 | BC79: 95.06788702 | BD79: 29.69551446 | BE79: 65.37237257 | BF79: 65.37237257 | BG79: 1936.353369 | BH79: 0 | BI79: 1870.980997 | BJ79: 1870.980997 | BK79: 0.1489732999 | BL79: 0.644455969 | BM79: 5 | BN79: 0 | BO79: 0 | BP79: 1870.980997
A80: 2489.81472 | B80: 1 | C80: 1.425 | D80: 0 | E80: 0 | F80: 887.0213921 | G80: 164.6553787 | H80: 281.5980448 | I80: 166.3445214 | J80: 70.94104591 | K80: 1970.931108 | L80: 2041.872154 | M80: 1 | N80: 1.425040748 | O80: 3212.180733 | P80: 1942.78987 | Q80: 1748.510883 | R80: 1654.220325 | S80: 1654.220325 | T80: 0 | U80: =IF(AND($T80>0,$T80=$AL80),Barème!$C$199,0) -> 0 | V80: 1841.666667 | W80: 0 | X80: 0 | Y80: 4059.5 | Z80: 2030.083333 | AA80: 0 | AB80: 3074.166667 | AC80: 2584.583333 | AD80: 0 | AE80: 1015.454684 | AF80: 0 | AG80: =IF(AND($A80=0,AF80=AAH_montant,Base!$W80>0,$H$10=1),AAH_mva,0) -> 0 | AH80: 1421.018272 | AI80: 0 | AJ80: =IF(AND($E$4=0,AI80=AAH_montant,Base!$W80>0,$J$10=1),AAH_mva,0) -> 0 | AK80: 0 | AL80: 0 | AM80: 1970.931108 | AN80: 0 | AO80: 0 | AP80: 0 | AQ80: 1970.931108 | AR80: 173.2237025 | AS80: 0 | AT80: 0 | AU80: 1837.684938 | AV80: 1837.684938 | AW80: 98.61429655 | AX80: 98.61429655 | AY80: 1837.684938 | AZ80: 98.61429655 | BA80: 98.61429655 | BB80: 0 | BC80: 98.61429655 | BD80: 28.09076414 | BE80: 70.52353241 | BF80: 70.52353241 | BG80: 1970.931108 | BH80: 0 | BI80: 1900.407575 | BJ80: 1900.407575 | BK80: 0.1489732999 | BL80: 0.644455969 | BM80: 5 | BN80: 0 | BO80: 0 | BP80: 1900.407575
A81: 2533.49568 | B81: 1 | C81: 1.45 | D81: 0 | E81: 0 | F81: 902.583171 | G81: 141.1331818 | H81: 286.5383614 | I81: 169.2628464 | J81: 72.18562566 | K81: 2005.508847 | L81: 2077.694472 | M81: 1 | N81: 1.450041463 | O81: 3294.945669 | P81: 1976.873903 | Q81: 1779.186513 | R81: 1683.241734 | S81: 1683.241734 | T81: 0 | U81: =IF(AND($T81>0,$T81=$AL81),Barème!$C$199,0) -> 0 | V81: 1875 | W81: 0 | X81: 0 | Y81: 4059.5 | Z81: 2030.083333 | AA81: 0 | AB81: 3074.166667 | AC81: 2584.583333 | AD81: 0 | AE81: 1036.948075 | AF81: 0 | AG81: =IF(AND($A81=0,AF81=AAH_montant,Base!$W81>0,$H$10=1),AAH_mva,0) -> 0 | AH81: 1453.258358 | AI81: 0 | AJ81: =IF(AND($E$4=0,AI81=AAH_montant,Base!$W81>0,$J$10=1),AAH_mva,0) -> 0 | AK81: 0 | AL81: 0 | AM81: 2005.508847 | AN81: 0 | AO81: 0 | AP81: 0 | AQ81: 2005.508847 | AR81: 173.2237025 | AS81: 0 | AT81: 0 | AU81: 1869.925025 | AV81: 1869.925025 | AW81: 102.1607061 | AX81: 102.1607061 | AY81: 1869.925025 | AZ81: 102.1607061 | BA81: 102.1607061 | BB81: 0 | BC81: 102.1607061 | BD81: 26.48601383 | BE81: 75.67469225 | BF81: 75.67469225 | BG81: 2005.508847 | BH81: 0 | BI81: 1929.834154 | BJ81: 1929.834154 | BK81: 0.1489732999 | BL81: 0.644455969 | BM81: 5 | BN81: 0 | BO81: 0 | BP81: 1929.834154
A82: 2577.17664 | B82: 1 | C82: 1.475 | D82: 0 | E82: 0 | F82: 918.1449498 | G82: 117.6109848 | H82: 291.478678 | I82: 172.1811713 | J82: 73.43020542 | K82: 2040.086585 | L82: 2113.516791 | M82: 1 | N82: 1.475042178 | O82: 3377.710605 | P82: 2010.957936 | Q82: 1809.862142 | R82: 1712.263143 | S82: 1712.263143 | T82: 0 | U82: =IF(AND($T82>0,$T82=$AL82),Barème!$C$199,0) -> 0 | V82: 1908.333333 | W82: 0 | X82: 0 | Y82: 4059.5 | Z82: 2030.083333 | AA82: 0 | AB82: 3074.166667 | AC82: 2584.583333 | AD82: 0 | AE82: 1058.441466 | AF82: 0 | AG82: =IF(AND($A82=0,AF82=AAH_montant,Base!$W82>0,$H$10=1),AAH_mva,0) -> 0 | AH82: 1485.498445 | AI82: 0 | AJ82: =IF(AND($E$4=0,AI82=AAH_montant,Base!$W82>0,$J$10=1),AAH_mva,0) -> 0 | AK82: 0 | AL82: 0 | AM82: 2040.086585 | AN82: 0 | AO82: 0 | AP82: 0 | AQ82: 2040.086585 | AR82: 173.2237025 | AS82: 0 | AT82: 0 | AU82: 1902.165112 | AV82: 1902.165112 | AW82: 105.7071156 | AX82: 105.7071156 | AY82: 1902.165112 | AZ82: 105.7071156 | BA82: 105.7071156 | BB82: 0 | BC82: 105.7071156 | BD82: 24.88126352 | BE82: 80.82585209 | BF82: 80.82585209 | BG82: 2040.086585 | BH82: 0 | BI82: 1959.260733 | BJ82: 1959.260733 | BK82: 0.1489732999 | BL82: 0.644455969 | BM82: 5 | BN82: 0 | BO82: 0 | BP82: 1959.260733
A83: 2620.8576 | B83: 1 | C83: 1.5 | D83: 0 | E83: 0 | F83: 933.7067286 | G83: 94.08878784 | H83: 296.4189946 | I83: 175.0994963 | J83: 74.67478517 | K83: 2074.664324 | L83: 2149.339109 | M83: 1 | N83: 1.500042893 | O83: 3460.475541 | P83: 2045.041969 | Q83: 1840.537772 | R83: 1741.284552 | S83: 1741.284552 | T83: 0 | U83: =IF(AND($T83>0,$T83=$AL83),Barème!$C$199,0) -> 0 | V83: 1941.666667 | W83: 0 | X83: 0 | Y83: 4059.5 | Z83: 2030.083333 | AA83: 0 | AB83: 3074.166667 | AC83: 2584.583333 | AD83: 0 | AE83: 1079.934858 | AF83: 0 | AG83: =IF(AND($A83=0,AF83=AAH_montant,Base!$W83>0,$H$10=1),AAH_mva,0) -> 0 | AH83: 1517.738532 | AI83: 0 | AJ83: =IF(AND($E$4=0,AI83=AAH_montant,Base!$W83>0,$J$10=1),AAH_mva,0) -> 0 | AK83: 0 | AL83: 0 | AM83: 2074.664324 | AN83: 0 | AO83: 0 | AP83: 0 | AQ83: 2074.664324 | AR83: 173.2237025 | AS83: 0 | AT83: 0 | AU83: 1934.405198 | AV83: 1934.405198 | AW83: 109.2535251 | AX83: 109.2535251 | AY83: 1934.405198 | AZ83: 109.2535251 | BA83: 109.2535251 | BB83: 0 | BC83: 109.2535251 | BD83: 23.27651321 | BE83: 85.97701194 | BF83: 85.97701194 | BG83: 2074.664324 | BH83: 0 | BI83: 1988.687312 | BJ83: 1988.687312 | BK83: 0.1489732999 | BL83: 0.644455969 | BM83: 5 | BN83: 0 | BO83: 0 | BP83: 1988.687312
A84: 2664.53856 | B84: 1 | C84: 1.525 | D84: 0 | E84: 0 | F84: 949.2685074 | G84: 70.56659088 | H84: 301.3593111 | I84: 178.0178212 | J84: 75.91936492 | K84: 2109.242063 | L84: 2185.161428 | M84: 1 | N84: 1.525043608 | O84: 3543.240477 | P84: 2079.126002 | Q84: 1871.213401 | R84: 1770.305962 | S84: 1770.305962 | T84: 0 | U84: =IF(AND($T84>0,$T84=$AL84),Barème!$C$199,0) -> 0 | V84: 1966.666667 | W84: 0 | X84: 0 | Y84: 4059.5 | Z84: 2030.083333 | AA84: 0 | AB84: 3074.166667 | AC84: 2584.583333 | AD84: 0 | AE84: 1101.428249 | AF84: 0 | AG84: =IF(AND($A84=0,AF84=AAH_montant,Base!$W84>0,$H$10=1),AAH_mva,0) -> 0 | AH84: 1549.978618 | AI84: 0 | AJ84: =IF(AND($E$4=0,AI84=AAH_montant,Base!$W84>0,$J$10=1),AAH_mva,0) -> 0 | AK84: 0 | AL84: 0 | AM84: 2109.242063 | AN84: 0 | AO84: 0 | AP84: 0 | AQ84: 2109.242063 | AR84: 173.2237025 | AS84: 0 | AT84: 0 | AU84: 1966.645285 | AV84: 1966.645285 | AW84: 112.7999347 | AX84: 112.7999347 | AY84: 1966.645285 | AZ84: 112.7999347 | BA84: 112.7999347 | BB84: 0 | BC84: 112.7999347 | BD84: 21.67176289 | BE84: 91.12817178 | BF84: 91.12817178 | BG84: 2109.242063 | BH84: 0 | BI84: 2018.113891 | BJ84: 2018.113891 | BK84: 0.1489732999 | BL84: 0.644455969 | BM84: 5 | BN84: 0 | BO84: 0 | BP84: 2018.113891
A85: 2708.21952 | B85: 1 | C85: 1.55 | D85: 0 | E85: 0 | F85: 964.8302862 | G85: 47.04439392 | H85: 306.2996277 | I85: 180.9361461 | J85: 77.16394467 | K85: 2143.819801 | L85: 2220.983746 | M85: 1 | N85: 1.550044323 | O85: 3626.005412 | P85: 2113.210034 | Q85: 1901.889031 | R85: 1799.327371 | S85: 1799.327371 | T85: 0 | U85: =IF(AND($T85>0,$T85=$AL85),Barème!$C$199,0) -> 0 | V85: 2000 | W85: 0 | X85: 0 | Y85: 4059.5 | Z85: 2030.083333 | AA85: 0 | AB85: 3074.166667 | AC85: 2584.583333 | AD85: 0 | AE85: 1122.92164 | AF85: 0 | AG85: =IF(AND($A85=0,AF85=AAH_montant,Base!$W85>0,$H$10=1),AAH_mva,0) -> 0 | AH85: 1582.218705 | AI85: 0 | AJ85: =IF(AND($E$4=0,AI85=AAH_montant,Base!$W85>0,$J$10=1),AAH_mva,0) -> 0 | AK85: 0 | AL85: 0 | AM85: 2143.819801 | AN85: 0 | AO85: 0 | AP85: 0 | AQ85: 2143.819801 | AR85: 173.2237025 | AS85: 0 | AT85: 0 | AU85: 1998.885372 | AV85: 1998.885372 | AW85: 116.3463442 | AX85: 116.3463442 | AY85: 1998.885372 | AZ85: 116.3463442 | BA85: 116.3463442 | BB85: 0 | BC85: 116.3463442 | BD85: 20.06701258 | BE85: 96.27933162 | BF85: 96.27933162 | BG85: 2143.819801 | BH85: 0 | BI85: 2047.54047 | BJ85: 2047.54047 | BK85: 0.1489732999 | BL85: 0.644455969 | BM85: 6 | BN85: 0 | BO85: 0 | BP85: 2047.54047
A86: 2751.90048 | B86: 1 | C86: 1.575 | D86: 0 | E86: 0 | F86: 980.392065 | G86: 23.52219696 | H86: 311.2399443 | I86: 183.8544711 | J86: 78.40852443 | K86: 2178.39754 | L86: 2256.806065 | M86: 1 | N86: 1.575045038 | O86: 3708.770348 | P86: 2147.294067 | Q86: 1932.56466 | R86: 1828.34878 | S86: 1828.34878 | T86: 0 | U86: =IF(AND($T86>0,$T86=$AL86),Barème!$C$199,0) -> 0 | V86: 2033.333333 | W86: 0 | X86: 0 | Y86: 4059.5 | Z86: 2030.083333 | AA86: 0 | AB86: 3074.166667 | AC86: 2584.583333 | AD86: 0 | AE86: 1144.415031 | AF86: 0 | AG86: =IF(AND($A86=0,AF86=AAH_montant,Base!$W86>0,$H$10=1),AAH_mva,0) -> 0 | AH86: 1614.458792 | AI86: 0 | AJ86: =IF(AND($E$4=0,AI86=AAH_montant,Base!$W86>0,$J$10=1),AAH_mva,0) -> 0 | AK86: 0 | AL86: 0 | AM86: 2178.39754 | AN86: 0 | AO86: 0 | AP86: 0 | AQ86: 2178.39754 | AR86: 173.2237025 | AS86: 0 | AT86: 0 | AU86: 2031.125458 | AV86: 2031.125458 | AW86: 119.8927537 | AX86: 119.8927537 | AY86: 2031.125458 | AZ86: 119.8927537 | BA86: 119.8927537 | BB86: 0 | BC86: 119.8927537 | BD86: 18.46226227 | BE86: 101.4304915 | BF86: 101.4304915 | BG86: 2178.39754 | BH86: 0 | BI86: 2076.967049 | BJ86: 2076.967049 | BK86: 0.1489732999 | BL86: 0.644455969 | BM86: 6 | BN86: 0 | BO86: 0 | BP86: 2076.967049
A87: 2795.58144 | B87: =MIN(100%,A87/smic_b) -> 1 | C87: =A87/smic_b -> 1.6 | D87: 0 | E87: =D87/rap_salnet_are -> 0 | F87: =IF(0<A87,taux_cs_emp_t1*MIN(A87,plafond_ss),0) +IF(plafond_ss<A87,taux_cs_emp_t2*MIN(A87-plafond_ss,2*plafond_ss),0) +IF(3*plafond_ss<A87,taux_cs_emp_t3*MIN(A87-3*plafond_ss,plafond_ss),0) +IF(4*plafond_ss<A87,taux_cs_emp_t4*MIN(A87-4*plafond_ss,4*plafond_ss),0) +IF(8*plafond_ss<A87,taux_cs_emp_t5*(A87-8*plafond_ss),0) +IF(plafond_ss<A87,MIN(A87,8*plafond_ss)*taux_cet_pat,0) -IF(C87<=part_smic_exo,mod_cotis_fam*A87,0) -IF(C87<=seuil_smic_pat_assmal,reduc_pat_assmal*A87,0) -> 995.9538438 | G87: 0 | H87: =IF(0<A87,taux_cs_sal_t1*MIN(A87,plafond_ss),0) +IF(plafond_ss<A87,taux_cs_sal_t2*MIN(A87-plafond_ss,2*plafond_ss),0) +IF(3*plafond_ss<A87,taux_cs_sal_t3*MIN(A87-3*plafond_ss,plafond_ss),0) +IF(4*plafond_ss<A87,taux_cs_sal_t4*MIN(A87-4*plafond_ss,4*plafond_ss),0) +IF(8*plafond_ss<A87,taux_cs_sal_t5*(A87-8*plafond_ss),0) +IF(plafond_ss<A87,MIN(A87,8*plafond_ss)*taux_cet_sal,0) -> 316.1802609 | I87: =IF(0<A87,taux_csg_deduc_t1*MIN(A87,4*plafond_ss),0) +IF(4*plafond_ss<A87,taux_csg_deduc_t2*(A87-4*plafond_ss),0) -> 186.772796 | J87: =IF(0<A87,taux_csgcrds_nondeduc_t1*MIN(A87,4*plafond_ss),0) +IF(4*plafond_ss<A87,taux_csgcrds_nondeduc_t2*(A87-4*plafond_ss),0) -> 79.65310418 | K87: =A87-H87-I87-J87 -> 2212.975279 | L87: =A87-H87-I87 -> 2292.628383 | M87: =MIN(100%,K87/smic_n) -> 1 | N87: =K87/smic_n -> 1.600045753 | O87: =A87+F87-G87 -> 3791.535284 | P87: =($L87+$E$7+$Z$16+$E87+$AO$16)/(1+deflat) -> 2181.3781 | Q87: =($L87+$E$7+$Z$16+$E87+$AO$16 + IF($AI87=$AL87,0,$T87))/(1+deflat)*abatt_rfr -> 1963.24029 | R87: =($L87+$E$7+$Z$16+$E87+$AO$16+IF($AI87=$AL87,0,$T87))/(1+deflat_2)*abatt_rfr -> 1857.370189 | S87: =($L87+$E$7+$Z$16+IF($AI87=$AL87,0,$T87)+(1-abatt_rbg_are)*($E87+$AO$16))/(1+deflat_2)*abatt_rfr -> 1857.370189 | T87: =(Nb_adultes=2)*$H$6*IF($P87<ASS_plaf_couple,ASS_mtt_forf,IF(ASS_diff_plaf_couple-$P87>=seuil_vers_ASS,ASS_diff_plaf_couple-$P87,0)) -> 0 | U87: =IF(AND($T87>0,$T87=$AL87),Barème!$C$199,0) -> 0 | V87: =ROUNDUP(12*((1+deflat_2)*rbg-$T87-IF((Nb_adultes=2)*AND(L87>bmaf,$Z$16>bmaf),APL_abatt_biactifs,0)),-2)/12 -> 2066.666667 | W87: =TRUNC((1-$K$6) * IF(($N$16-($N$17+12*($P$16+al_taux_compl)*MAX(0,V87-$P$17))-Mfo_AL)* (1-tx_crds)>=seuil_versement_AL, $N$16-($N$17+12*($P$16+al_taux_compl)*MAX(0,V87-$P$17))-Mfo_AL,0) * (1-tx_crds)) -> 0 | X87: =IF(rbg<=p1_modulation_af,$I$16, IF(rbg<=p1_modulation_af+$I$16/2,$I$16+p1_modulation_af-rbg, IF(rbg<=p2_modulation_af,$I$16/2, IF(rbg<=p2_modulation_af+$I$16/4,$I$16/2+p2_modulation_af-rbg,$I$16/4)))) -> 0 | Y87: =IF(OR(Nb_adultes=1,AND(L87/(1+deflat_2)>bmaf_n_2,$Z$16/(1+deflat_2)>bmaf_n_2)), plafond_maj_CF+MAX(Nb_enfants-3,0)*pers_sup_CF, plafond_simple_CF+MAX(Nb_enfants-3,0)*pers_sup_CF) -> 4059.5 | Z87: =IF(OR(Nb_adultes=1,AND(L87/(1+deflat_2)>bmaf_n_2,$Z$16/(1+deflat_2)>bmaf_n_2)), plafond_maj_CF_majo+MAX(Nb_enfants-3,0)*pers_sup_CF_majo, plafond_simple_CF_majo+MAX(Nb_enfants-3,0)*pers_sup_CF_majo) -> 2030.083333 | AA87: =IF(OR(($B$7+$B$8+$B$9+$B$10+$B$11+$B$12)<3,$B$6>=1),0, IF(rbg<$Z87,montant_CF_majo, IF(rbg<$Y87,montant_CF, IF(rbg<($Y87+montant_CF),montant_CF+$Y87-rbg,0)))) -> 0 | AB87: =IF(OR(Nb_adultes=1,AND(L87/(1+deflat_2)>bmaf_n_2,$Z$16/(1+deflat_2)>bmaf_n_2)), plafond_majore_paje+MIN(Nb_enfants,2)*plafond_sup_enf_12_paje+MAX(Nb_enfants-3,0)*plafond_sup_enf_3_paje, plaf_simple_paje+MIN(Nb_enfants,2)*plafond_sup_enf_12_paje+MAX(Nb_enfants-3,0)*plafond_sup_enf_3_paje) -> 3074.166667 | AC87: =IF(OR(Nb_adultes=1,AND(L87/(1+deflat_2)>bmaf_n_2,$Z$16/(1+deflat_2)>bmaf_n_2)), plafond_majore_paje_plein+MIN(Nb_enfants,2)*plafond_sup_enf_12_paje_plein+MAX(Nb_enfants-3,0)*plafond_sup_enf_3_paje_plein, plaf_simple_paje_plein+MIN(Nb_enfants,2)*plafond_sup_enf_12_paje_plein+MAX(Nb_enfants-3,0)*plafond_sup_enf_3_paje_plein) -> 2584.583333 | AD87: =IF(rbg<AC87,montant_paje_plein*($B$6>0),IF(rbg<AB87,montant_paje*($B$6>0),0)) -> 0 | AE87: =($K$1="01/07")*MAX($Z$16*abatt_rfr-AAH_abatt_general-AAH_abatt_majo*Nb_enfants,0)+($E$7+$E$6+$D87+IF($BC87=BE87,0,$T87))*abatt_rfr +MIN($L87,AAH_plafond_abatt_salaire)*AAH_abatt_salaire_t1 +MAX($L87-AAH_plafond_abatt_salaire,0)*AAH_abatt_salaire_t2 -> 1165.908422 | AF87: =($H$8=1)*( IF($AR$16-AE87>=AAH_montant, AAH_montant, MAX(0,$AR$16-AE87)) ) -> 0 | AG87: =IF(AND($A87=0,AF87=AAH_montant,Base!$W87>0,$H$10=1),AAH_mva,0) -> 0 | AH87: =($K$1="01/07")*MAX($L87*abatt_rfr-AAH_abatt_general-AAH_abatt_majo*Nb_enfants,0)+($E$7+$E$6+$D87)*abatt_rfr +MIN($Z$16,AAH_plafond_abatt_salaire)*AAH_abatt_salaire_t1 +MAX($Z$16-AAH_plafond_abatt_salaire,0)*AAH_abatt_salaire_t2 -> 1646.698878 | AI87: =($H$9=1)*( IF($AR$16-AH87>=AAH_montant, AAH_montant, MAX(0,$AR$16-AH87)) ) -> 0 | AJ87: =IF(AND($E$4=0,AI87=AAH_montant,Base!$W87>0,$J$10=1),AAH_mva,0) -> 0 | AK87: 0 | AL87: 0 | AM87: =$K87+$Z$17+$AK87+($W87>0)*MIN($W87,$E$17)+($K$6=1)*$E$17+$I$16-$I$17+MIN($AA87,montant_CF)+$AD87+$AL$17+$D87+$E$6+$E$7+IF($AI87=AL87,0,$T87) -> 2212.975279 | AN87: =IF(AM87+seuil_versement_rsa<=$E$16,$E$16-AM87,0) -> 0 | AO87: =((AN87)>0)* IF((Nb_adultes+Nb_enfants)=1,noel_1pers, IF((Nb_adultes+Nb_enfants)=2,noel_2pers, IF((Nb_adultes+Nb_enfants)=3,noel_3pers, IF(AND(Nb_adultes=1,(Nb_adultes+Nb_enfants)=4),noel_isole_4pers, IF(AND(Nb_adultes=2,(Nb_adultes+Nb_enfants)=4),noel_couple_4pers, IF(Nb_adultes=1,noel_isole_4pers+noel_pers_sup*(Nb_adultes+Nb_enfants-4), noel_couple_4pers+noel_pers_sup*(Nb_adultes+Nb_enfants-4))))))) -> 0 | AP87: =MAX($AO87,$U87) -> 0 | AQ87: =$K87+$Z$17+$AK87-$AI87+$AL87+($W87>0)*MIN($W87,$F$17)+($K$6=1)*$F$17+$I$16-$I$17+MIN($AA87,montant_CF)+$AD87+$AL$17+$D87+$E$6+$E$7 -> 2212.975279 | AR87: =PA_bonus*( IF($K87+($K87>=Sal_min_AAH_PA)*$AF87>PA_tranche1_smic*smic_n, (MIN($K87+($K87>=Sal_min_AAH_PA)*$AF87,PA_tranche2_smic*smic_n)-PA_tranche1_smic*smic_n)/((PA_tranche2_smic-PA_tranche1_smic)*smic_n),0) +(IF($Z$17+($Z$17>=Sal_min_AAH_PA)*($AI87>=$T87)*$AI87>PA_tranche1_smic*smic_n, (MIN($Z$17+($Z$17>=Sal_min_AAH_PA)*($AI87>=$T87)*$AI87,PA_tranche2_smic*smic_n)-PA_tranche1_smic*smic_n)/((PA_tranche2_smic-PA_tranche1_smic)*smic_n),0)) ) -> 173.2237025 | AS87: =(OR($H$4,($AN87>0))*($A87+$Z$17>0)* IF(($F$16+(1-PA_pente)*($K87+$Z$17+($K87>=Sal_min_AAH_PA)*$AF87+($Z$17>=Sal_min_AAH_PA)*($AI87>=$T87)*$AI87)+$AR87-MAX($AQ87,$F$16))*(1-tx_crds)>=seuil_versement_PA, $F$16+(1-PA_pente)*($K87+$Z$17+($K87>=Sal_min_AAH_PA)*$AF87+($Z$17>=Sal_min_AAH_PA)*($AI87>=$T87)*$AI87)+$AR87-MAX($AQ87,$F$16), 0))*(1-tx_crds) -> 0 | AT87: =IF(rbg<plaf_ars+plaf_ars_enf*($B$6+$B$7+$B$8+$B$9+$B$10+$B$11+$B$12), (ars6_10*$B$8+ars11_14*($B$9+$B$10)+ars15_18*$B$11)/12, IF(rbg<plaf_ars+plaf_ars_enf*($B$6+$B$7+$B$8+$B$9+$B$10+$B$11+$B$12)+(ars6_10*$B$8+ars11_14*($B$9+$B$10)+ars15_18*$B$11)/12, plaf_ars+plaf_ars_enf*($B$6+$B$7+$B$8+$B$9+$B$10+$B$11+$B$12)+(ars6_10*$B$8+ars11_14*($B$9+$B$10)+ars15_18*$B$11)/12-rbg, 0)) -> 0 | AU87: =$Q87*(1+deflat) -> 2063.365545 | AV87: =AU87/$AE$17 -> 2063.365545 | AW87: =IF(0<AV87,taux_ir_t1*MIN(AV87,plafond_ir_t1),0) +IF(plafond_ir_t1<AV87,taux_ir_t2*MIN(AV87-plafond_ir_t1,plafond_ir_t2-plafond_ir_t1),0) +IF(plafond_ir_t2<AV87,taux_ir_t3*MIN(AV87-plafond_ir_t2,plafond_ir_t3-plafond_ir_t2),0) +IF(plafond_ir_t3<AV87,taux_ir_t4*MIN(AV87-plafond_ir_t3,plafond_ir_t4-plafond_ir_t3),0) +IF(plafond_ir_t4<AV87,taux_ir_t5*(AV87-plafond_ir_t4),0) -> 123.4391633 | AX87: =AW87*$AE$17 -> 123.4391633 | AY87: =AU87/Nb_adultes -> 2063.365545 | AZ87: =IF(0<AY87,taux_ir_t1*MIN(AY87,plafond_ir_t1),0) +IF(plafond_ir_t1<AY87,taux_ir_t2*MIN(AY87-plafond_ir_t1,plafond_ir_t2-plafond_ir_t1),0) +IF(plafond_ir_t2<AY87,taux_ir_t3*MIN(AY87-plafond_ir_t2,plafond_ir_t3-plafond_ir_t2),0) +IF(plafond_ir_t3<AY87,taux_ir_t4*MIN(AY87-plafond_ir_t3,plafond_ir_t4-plafond_ir_t3),0) +IF(plafond_ir_t4<AY87,taux_ir_t5*(AY87-plafond_ir_t4),0) -> 123.4391633 | BA87: =AZ87*Nb_adultes -> 123.4391633 | BB87: 0 | BC87: =IF(BB87<$AE$16,AX87,BA87-$AE$16) -> 123.4391633 | BD87: =IF(Nb_adultes=1, MAX(Decote_taux*mont_decote_celib-Decote_taux*BC87,0),MAX(Decote_taux*mont_decote_couple-Decote_taux*BC87,0)) -> 16.85751196 | BE87: 106.5816513 | BF87: =IF(BE87>seuil_recouvrement_IR,BE87,0) -> 106.5816513 | BG87: =$K87+$Z$17 -> 2212.975279 | BH87: =X87+AN87+AS87+AA87+W87+AT87+AD87+$AL$16+D87+$E$6+AK87-$AI87+$AL87+$AP87 -> 0 | BI87: 2106.393628 | BJ87: =BI87/$AV$17 -> 2106.393628 | BK87: =1-(BI88-BI87)/(BG88-BG87) -> 0.1489732999 | BL87: =1-(BI88-BI87)/(O88-O87) -> 0.5032880066 | BM87: =1+IF(seuil_D1< BJ87*12,1,0)+IF(seuil_D2<BJ87*12,1,0)+IF(seuil_D3<BJ87*12,1,0)+IF(seuil_D4<BJ87*12,1,0)+IF(seuil_D5<BJ87*12,1,0)+IF(seuil_D6<BJ87*12,1,0)+IF(seuil_D7<BJ87*12,1,0)+IF(seuil_D8<BJ87*12,1,0)+IF(seuil_D9<BJ87*12,1,0) -> 6 | BN87: =$H$5*IF(AN87=0, (AM87<$AH$16)*(Nb_adultes*montant_cmuc_16_49+(Nb_enfants-$B$11-$B$12)*montant_cmuc_0_15+($B$11+$B$12)*montant_cmuc_16_49), (Nb_adultes*montant_cmuc_16_49+(Nb_enfants-$B$11-$B$12)*montant_cmuc_0_15+($B$11+$B$12)*montant_cmuc_16_49)) -> 0 | BO87: =((Q87/$AV$16<plaf_cheque_energie_t1) * IF($AV$16=1,montant_t1_1UC,IF($AV$16<2,montant_t1_12UC,montant_t1_2UC_et_plus))+ (AND(Q87/$AV$16>=plaf_cheque_energie_t1,Q87/$AV$16<plaf_cheque_energie_t2)) * IF($AV$16=1,montant_t2_1UC,IF($AV$16<2,montant_t2_12UC,montant_t2_2UC_et_plus))+ (AND(Q87/$AV$16>=plaf_cheque_energie_t2,Q87/$AV$16<plaf_cheque_energie_t3)) * IF($AV$16=1,montant_t3_1UC,IF($AV$16<2,montant_t3_12UC,montant_t3_2UC_et_plus))+ (AND(Q87/$AV$16>=plaf_cheque_energie_t3,Q87/$AV$16<plaf_cheque_energie_t4)) * IF($AV$16=1,montant_t4_1UC,IF($AV$16<2,montant_t4_12UC,montant_t4_2UC_et_plus))+ (AND(Q87/$AV$16>=plaf_cheque_energie_t3,Q87/$AV$16<plaf_cheque_energie_t5)) *bonus_2022 )/12 -> 0 | BP87: 2106.393628
A88: =A87+$E$9 -> 2839.2624 | B88: 1 | C88: 1.625 | D88: 0 | E88: 0 | F88: 1011.515623 | G88: =MAX(tx_exo_fillon_smic*A88*(plafond_exo_fillon*(B88/C88)-1)/(plafond_exo_fillon-1),0) -> 0 | H88: 321.1205774 | I88: 189.6911209 | J88: 80.89768393 | K88: 2247.553018 | L88: 2328.450702 | M88: 1 | N88: 1.625046467 | O88: 3850.778023 | P88: 2215.462133 | Q88: 1993.91592 | R88: 1886.391598 | S88: 1886.391598 | T88: 0 | U88: =IF(AND($T88>0,$T88=$AL88),Barème!$C$199,0) -> 0 | V88: 2100 | W88: 0 | X88: 0 | Y88: 4059.5 | Z88: 2030.083333 | AA88: 0 | AB88: 3074.166667 | AC88: 2584.583333 | AD88: 0 | AE88: 1187.401813 | AF88: 0 | AG88: =IF(AND($A88=0,AF88=AAH_montant,Base!$W88>0,$H$10=1),AAH_mva,0) -> 0 | AH88: 1678.938965 | AI88: 0 | AJ88: =IF(AND($E$4=0,AI88=AAH_montant,Base!$W88>0,$J$10=1),AAH_mva,0) -> 0 | AK88: =AF88+AG88+AI88+AJ88 -> 0 | AL88: =MAX($T88,$AI88) -> 0 | AM88: 2247.553018 | AN88: 0 | AO88: 0 | AP88: 0 | AQ88: 2247.553018 | AR88: 173.2237025 | AS88: 0 | AT88: 0 | AU88: 2095.605631 | AV88: 2095.605631 | AW88: 126.9855728 | AX88: 126.9855728 | AY88: 2095.605631 | AZ88: 126.9855728 | BA88: 126.9855728 | BB88: =BA88-AX88 -> 0 | BC88: 126.9855728 | BD88: 15.25276164 | BE88: =MAX(0,BC88-BD88) -> 111.7328111 | BF88: 111.7328111 | BG88: 2247.553018 | BH88: 0 | BI88: =BG88+BH88-BF88+$E$7 -> 2135.820207 | BJ88: 2135.820207 | BK88: 0.1489732999 | BL88: 0.5032880066 | BM88: 6 | BN88: 0 | BO88: 0 | BP88: =BI88+BN88+BO88 -> 2135.820207
A89: 2882.94336 | B89: 1 | C89: 1.65 | D89: =D88+$E$10 -> 0 | E89: 0 | F89: 1027.077401 | G89: 0 | H89: 326.060894 | I89: 192.6094459 | J89: 82.14226368 | K89: 2282.130756 | L89: 2364.27302 | M89: 1 | N89: 1.650047182 | O89: 3910.020761 | P89: 2249.546166 | Q89: 2024.591549 | R89: 1915.413008 | S89: 1915.413008 | T89: 0 | U89: =IF(AND($T89>0,$T89=$AL89),Barème!$C$199,0) -> 0 | V89: 2133.333333 | W89: 0 | X89: 0 | Y89: 4059.5 | Z89: 2030.083333 | AA89: 0 | AB89: 3074.166667 | AC89: 2584.583333 | AD89: 0 | AE89: 1208.895204 | AF89: 0 | AG89: =IF(AND($A89=0,AF89=AAH_montant,Base!$W89>0,$H$10=1),AAH_mva,0) -> 0 | AH89: 1711.179051 | AI89: 0 | AJ89: =IF(AND($E$4=0,AI89=AAH_montant,Base!$W89>0,$J$10=1),AAH_mva,0) -> 0 | AK89: 0 | AL89: 0 | AM89: 2282.130756 | AN89: 0 | AO89: 0 | AP89: 0 | AQ89: 2282.130756 | AR89: 173.2237025 | AS89: 0 | AT89: 0 | AU89: 2127.845718 | AV89: 2127.845718 | AW89: 130.5319823 | AX89: 130.5319823 | AY89: 2127.845718 | AZ89: 130.5319823 | BA89: 130.5319823 | BB89: 0 | BC89: 130.5319823 | BD89: 13.64801133 | BE89: 116.883971 | BF89: 116.883971 | BG89: 2282.130756 | BH89: 0 | BI89: 2165.246785 | BJ89: 2165.246785 | BK89: 0.1489732999 | BL89: 0.5032880066 | BM89: 6 | BN89: 0 | BO89: 0 | BP89: 2165.246785
A90: 2926.62432 | B90: 1 | C90: 1.675 | D90: 0 | E90: 0 | F90: 1042.63918 | G90: 0 | H90: 331.0012106 | I90: 195.5277708 | J90: 83.38684344 | K90: 2316.708495 | L90: 2400.095339 | M90: 1 | N90: 1.675047897 | O90: 3969.2635 | P90: 2283.630198 | Q90: 2055.267179 | R90: 1944.434417 | S90: 1944.434417 | T90: 0 | U90: =IF(AND($T90>0,$T90=$AL90),Barème!$C$199,0) -> 0 | V90: 2166.666667 | W90: 0 | X90: 0 | Y90: 4059.5 | Z90: 2030.083333 | AA90: 0 | AB90: 3074.166667 | AC90: 2584.583333 | AD90: 0 | AE90: 1230.388595 | AF90: 0 | AG90: =IF(AND($A90=0,AF90=AAH_montant,Base!$W90>0,$H$10=1),AAH_mva,0) -> 0 | AH90: 1743.419138 | AI90: 0 | AJ90: =IF(AND($E$4=0,AI90=AAH_montant,Base!$W90>0,$J$10=1),AAH_mva,0) -> 0 | AK90: 0 | AL90: 0 | AM90: 2316.708495 | AN90: 0 | AO90: 0 | AP90: 0 | AQ90: 2316.708495 | AR90: 173.2237025 | AS90: 0 | AT90: 0 | AU90: 2160.085805 | AV90: 2160.085805 | AW90: 134.0783919 | AX90: 134.0783919 | AY90: 2160.085805 | AZ90: 134.0783919 | BA90: 134.0783919 | BB90: 0 | BC90: 134.0783919 | BD90: 12.04326102 | BE90: 122.0351308 | BF90: 122.0351308 | BG90: 2316.708495 | BH90: 0 | BI90: 2194.673364 | BJ90: 2194.673364 | BK90: 0.1489732999 | BL90: 0.5032880066 | BM90: 6 | BN90: 0 | BO90: 0 | BP90: 2194.673364
A91: 2970.30528 | B91: 1 | C91: 1.7 | D91: 0 | E91: 0 | F91: 1058.200959 | G91: 0 | H91: 335.9415272 | I91: 198.4460958 | J91: 84.63142319 | K91: 2351.286234 | L91: 2435.917657 | M91: 1 | N91: 1.700048612 | O91: 4028.506239 | P91: 2317.714231 | Q91: 2085.942808 | R91: 1973.455826 | S91: 1973.455826 | T91: 0 | U91: =IF(AND($T91>0,$T91=$AL91),Barème!$C$199,0) -> 0 | V91: 2200 | W91: 0 | X91: 0 | Y91: 4059.5 | Z91: 2030.083333 | AA91: 0 | AB91: 3074.166667 | AC91: 2584.583333 | AD91: 0 | AE91: 1251.881986 | AF91: 0 | AG91: =IF(AND($A91=0,AF91=AAH_montant,Base!$W91>0,$H$10=1),AAH_mva,0) -> 0 | AH91: 1775.659225 | AI91: 0 | AJ91: =IF(AND($E$4=0,AI91=AAH_montant,Base!$W91>0,$J$10=1),AAH_mva,0) -> 0 | AK91: 0 | AL91: 0 | AM91: 2351.286234 | AN91: 0 | AO91: 0 | AP91: 0 | AQ91: 2351.286234 | AR91: 173.2237025 | AS91: 0 | AT91: 0 | AU91: 2192.325891 | AV91: 2192.325891 | AW91: 137.6248014 | AX91: 137.6248014 | AY91: 2192.325891 | AZ91: 137.6248014 | BA91: 137.6248014 | BB91: 0 | BC91: 137.6248014 | BD91: 10.43851071 | BE91: 127.1862907 | BF91: 127.1862907 | BG91: 2351.286234 | BH91: 0 | BI91: 2224.099943 | BJ91: 2224.099943 | BK91: 0.1489732999 | BL91: 0.5032880066 | BM91: 6 | BN91: 0 | BO91: 0 | BP91: 2224.099943
A92: 3013.98624 | B92: 1 | C92: 1.725 | D92: 0 | E92: 0 | F92: 1073.762738 | G92: 0 | H92: 340.8818437 | I92: 201.3644207 | J92: 85.87600294 | K92: 2385.863973 | L92: 2471.739976 | M92: 1 | N92: 1.725049327 | O92: 4087.748978 | P92: 2351.798264 | Q92: 2116.618438 | R92: 2002.477235 | S92: 2002.477235 | T92: 0 | U92: =IF(AND($T92>0,$T92=$AL92),Barème!$C$199,0) -> 0 | V92: 2225 | W92: 0 | X92: 0 | Y92: 4059.5 | Z92: 2030.083333 | AA92: 0 | AB92: 3074.166667 | AC92: 2584.583333 | AD92: 0 | AE92: 1273.375377 | AF92: 0 | AG92: =IF(AND($A92=0,AF92=AAH_montant,Base!$W92>0,$H$10=1),AAH_mva,0) -> 0 | AH92: 1807.899311 | AI92: 0 | AJ92: =IF(AND($E$4=0,AI92=AAH_montant,Base!$W92>0,$J$10=1),AAH_mva,0) -> 0 | AK92: 0 | AL92: 0 | AM92: 2385.863973 | AN92: 0 | AO92: 0 | AP92: 0 | AQ92: 2385.863973 | AR92: 173.2237025 | AS92: 0 | AT92: 0 | AU92: 2224.565978 | AV92: 2224.565978 | AW92: 141.1712109 | AX92: 141.1712109 | AY92: 2224.565978 | AZ92: 141.1712109 | BA92: 141.1712109 | BB92: 0 | BC92: 141.1712109 | BD92: 8.833760395 | BE92: 132.3374505 | BF92: 132.3374505 | BG92: 2385.863973 | BH92: 0 | BI92: 2253.526522 | BJ92: 2253.526522 | BK92: 0.1489732999 | BL92: 0.5032880066 | BM92: 6 | BN92: 0 | BO92: 0 | BP92: 2253.526522
A93: 3057.6672 | B93: 1 | C93: 1.75 | D93: 0 | E93: 0 | F93: 1089.324517 | G93: 0 | H93: 345.8221603 | I93: 204.2827456 | J93: 87.1205827 | K93: 2420.441711 | L93: 2507.562294 | M93: 1 | N93: 1.750050042 | O93: 4146.991717 | P93: 2385.882297 | Q93: 2147.294067 | R93: 2031.498644 | S93: 2031.498644 | T93: 0 | U93: =IF(AND($T93>0,$T93=$AL93),Barème!$C$199,0) -> 0 | V93: 2258.333333 | W93: 0 | X93: 0 | Y93: 4059.5 | Z93: 2030.083333 | AA93: 0 | AB93: 3074.166667 | AC93: 2584.583333 | AD93: 0 | AE93: 1294.868768 | AF93: 0 | AG93: =IF(AND($A93=0,AF93=AAH_montant,Base!$W93>0,$H$10=1),AAH_mva,0) -> 0 | AH93: 1840.139398 | AI93: 0 | AJ93: =IF(AND($E$4=0,AI93=AAH_montant,Base!$W93>0,$J$10=1),AAH_mva,0) -> 0 | AK93: 0 | AL93: 0 | AM93: 2420.441711 | AN93: 0 | AO93: 0 | AP93: 0 | AQ93: 2420.441711 | AR93: 173.2237025 | AS93: 0 | AT93: 0 | AU93: 2256.806065 | AV93: 2256.806065 | AW93: 144.7176204 | AX93: 144.7176204 | AY93: 2256.806065 | AZ93: 144.7176204 | BA93: 144.7176204 | BB93: 0 | BC93: 144.7176204 | BD93: 7.229010082 | BE93: 137.4886104 | BF93: 137.4886104 | BG93: 2420.441711 | BH93: 0 | BI93: 2282.953101 | BJ93: 2282.953101 | BK93: 0.1489732999 | BL93: 0.5032880066 | BM93: 7 | BN93: 0 | BO93: 0 | BP93: 2282.953101
A94: 3101.34816 | B94: 1 | C94: 1.775 | D94: 0 | E94: 0 | F94: 1104.886295 | G94: 0 | H94: 350.7624769 | I94: 207.2010706 | J94: 88.36516245 | K94: 2455.01945 | L94: 2543.384613 | M94: 1 | N94: 1.775050757 | O94: 4206.234455 | P94: 2419.96633 | Q94: 2177.969697 | R94: 2060.520054 | S94: 2060.520054 | T94: 0 | U94: =IF(AND($T94>0,$T94=$AL94),Barème!$C$199,0) -> 0 | V94: 2291.666667 | W94: 0 | X94: 0 | Y94: 4059.5 | Z94: 2030.083333 | AA94: 0 | AB94: 3074.166667 | AC94: 2584.583333 | AD94: 0 | AE94: 1316.36216 | AF94: 0 | AG94: =IF(AND($A94=0,AF94=AAH_montant,Base!$W94>0,$H$10=1),AAH_mva,0) -> 0 | AH94: 1872.379485 | AI94: 0 | AJ94: =IF(AND($E$4=0,AI94=AAH_montant,Base!$W94>0,$J$10=1),AAH_mva,0) -> 0 | AK94: 0 | AL94: 0 | AM94: 2455.01945 | AN94: 0 | AO94: 0 | AP94: 0 | AQ94: 2455.01945 | AR94: 173.2237025 | AS94: 0 | AT94: 0 | AU94: 2289.046151 | AV94: 2289.046151 | AW94: 148.26403 | AX94: 148.26403 | AY94: 2289.046151 | AZ94: 148.26403 | BA94: 148.26403 | BB94: 0 | BC94: 148.26403 | BD94: 5.62425977 | BE94: 142.6397702 | BF94: 142.6397702 | BG94: 2455.01945 | BH94: 0 | BI94: 2312.37968 | BJ94: 2312.37968 | BK94: 0.1489732999 | BL94: 0.5032880066 | BM94: 7 | BN94: 0 | BO94: 0 | BP94: 2312.37968
A95: 3145.02912 | B95: 1 | C95: 1.8 | D95: 0 | E95: 0 | F95: 1120.448074 | G95: 0 | H95: 355.7027935 | I95: 210.1193955 | J95: 89.6097422 | K95: 2489.597189 | L95: 2579.206931 | M95: 1 | N95: 1.800051472 | O95: 4265.477194 | P95: 2454.050363 | Q95: 2208.645326 | R95: 2089.541463 | S95: 2089.541463 | T95: 0 | U95: =IF(AND($T95>0,$T95=$AL95),Barème!$C$199,0) -> 0 | V95: 2325 | W95: 0 | X95: 0 | Y95: 4059.5 | Z95: 2030.083333 | AA95: 0 | AB95: 3074.166667 | AC95: 2584.583333 | AD95: 0 | AE95: 1337.855551 | AF95: 0 | AG95: =IF(AND($A95=0,AF95=AAH_montant,Base!$W95>0,$H$10=1),AAH_mva,0) -> 0 | AH95: 1904.619571 | AI95: 0 | AJ95: =IF(AND($E$4=0,AI95=AAH_montant,Base!$W95>0,$J$10=1),AAH_mva,0) -> 0 | AK95: 0 | AL95: 0 | AM95: 2489.597189 | AN95: 0 | AO95: 0 | AP95: 0 | AQ95: 2489.597189 | AR95: 173.2237025 | AS95: 0 | AT95: 0 | AU95: 2321.286238 | AV95: 2321.286238 | AW95: 151.8104395 | AX95: 151.8104395 | AY95: 2321.286238 | AZ95: 151.8104395 | BA95: 151.8104395 | BB95: 0 | BC95: 151.8104395 | BD95: 4.019509458 | BE95: 147.79093 | BF95: 147.79093 | BG95: 2489.597189 | BH95: 0 | BI95: 2341.806259 | BJ95: 2341.806259 | BK95: 0.1489732999 | BL95: 0.5032880066 | BM95: 7 | BN95: 0 | BO95: 0 | BP95: 2341.806259
A96: 3188.71008 | B96: 1 | C96: 1.825 | D96: 0 | E96: 0 | F96: 1136.009853 | G96: 0 | H96: 360.64311 | I96: 213.0377204 | J96: 90.85432195 | K96: 2524.174928 | L96: 2615.02925 | M96: 1 | N96: 1.825052186 | O96: 4324.719933 | P96: 2488.134395 | Q96: 2239.320956 | R96: 2118.562872 | S96: 2118.562872 | T96: 0 | U96: =IF(AND($T96>0,$T96=$AL96),Barème!$C$199,0) -> 0 | V96: 2358.333333 | W96: 0 | X96: 0 | Y96: 4059.5 | Z96: 2030.083333 | AA96: 0 | AB96: 3074.166667 | AC96: 2584.583333 | AD96: 0 | AE96: 1359.348942 | AF96: 0 | AG96: =IF(AND($A96=0,AF96=AAH_montant,Base!$W96>0,$H$10=1),AAH_mva,0) -> 0 | AH96: 1936.859658 | AI96: 0 | AJ96: =IF(AND($E$4=0,AI96=AAH_montant,Base!$W96>0,$J$10=1),AAH_mva,0) -> 0 | AK96: 0 | AL96: 0 | AM96: 2524.174928 | AN96: 0 | AO96: 0 | AP96: 0 | AQ96: 2524.174928 | AR96: 173.2237025 | AS96: 0 | AT96: 0 | AU96: 2353.526325 | AV96: 2353.526325 | AW96: 155.356849 | AX96: 155.356849 | AY96: 2353.526325 | AZ96: 155.356849 | BA96: 155.356849 | BB96: 0 | BC96: 155.356849 | BD96: 2.414759145 | BE96: 152.9420899 | BF96: 152.9420899 | BG96: 2524.174928 | BH96: 0 | BI96: 2371.232838 | BJ96: 2371.232838 | BK96: 0.1489732999 | BL96: 0.5032880066 | BM96: 7 | BN96: 0 | BO96: 0 | BP96: 2371.232838
A97: 3232.39104 | B97: 1 | C97: 1.85 | D97: 0 | E97: 0 | F97: 1151.571632 | G97: 0 | H97: 365.5834266 | I97: 215.9560454 | J97: 92.09890171 | K97: 2558.752666 | L97: 2650.851568 | M97: 1 | N97: 1.850052901 | O97: 4383.962672 | P97: 2522.218428 | Q97: 2269.996585 | R97: 2147.584281 | S97: 2147.584281 | T97: 0 | U97: =IF(AND($T97>0,$T97=$AL97),Barème!$C$199,0) -> 0 | V97: 2391.666667 | W97: 0 | X97: 0 | Y97: 4059.5 | Z97: 2030.083333 | AA97: 0 | AB97: 3074.166667 | AC97: 2584.583333 | AD97: 0 | AE97: 1380.842333 | AF97: 0 | AG97: =IF(AND($A97=0,AF97=AAH_montant,Base!$W97>0,$H$10=1),AAH_mva,0) -> 0 | AH97: 1969.099745 | AI97: 0 | AJ97: =IF(AND($E$4=0,AI97=AAH_montant,Base!$W97>0,$J$10=1),AAH_mva,0) -> 0 | AK97: 0 | AL97: 0 | AM97: 2558.752666 | AN97: 0 | AO97: 0 | AP97: 0 | AQ97: 2558.752666 | AR97: 173.2237025 | AS97: 0 | AT97: 0 | AU97: 2385.766411 | AV97: 2385.766411 | AW97: 158.9032586 | AX97: 158.9032586 | AY97: 2385.766411 | AZ97: 158.9032586 | BA97: 158.9032586 | BB97: 0 | BC97: 158.9032586 | BD97: 0.8100088328 | BE97: 158.0932497 | BF97: 158.0932497 | BG97: 2558.752666 | BH97: 0 | BI97: 2400.659417 | BJ97: 2400.659417 | BK97: 0.2263317355 | BL97: 0.5484391901 | BM97: 7 | BN97: 0 | BO97: 0 | BP97: 2400.659417
A98: 3276.072 | B98: 1 | C98: 1.875 | D98: 0 | E98: 0 | F98: 1167.133411 | G98: 0 | H98: 370.5237432 | I98: 218.8743703 | J98: 93.34348146 | K98: 2593.330405 | L98: 2686.673886 | M98: 1 | N98: 1.875053616 | O98: 4443.205411 | P98: 2556.302461 | Q98: 2300.672215 | R98: 2176.605691 | S98: 2176.605691 | T98: 0 | U98: =IF(AND($T98>0,$T98=$AL98),Barème!$C$199,0) -> 0 | V98: 2425 | W98: 0 | X98: 0 | Y98: 4059.5 | Z98: 2030.083333 | AA98: 0 | AB98: 3074.166667 | AC98: 2584.583333 | AD98: 0 | AE98: 1402.335724 | AF98: 0 | AG98: =IF(AND($A98=0,AF98=AAH_montant,Base!$W98>0,$H$10=1),AAH_mva,0) -> 0 | AH98: 2001.339831 | AI98: 0 | AJ98: =IF(AND($E$4=0,AI98=AAH_montant,Base!$W98>0,$J$10=1),AAH_mva,0) -> 0 | AK98: 0 | AL98: 0 | AM98: 2593.330405 | AN98: 0 | AO98: 0 | AP98: 0 | AQ98: 2593.330405 | AR98: 173.2237025 | AS98: 0 | AT98: 0 | AU98: 2418.006498 | AV98: 2418.006498 | AW98: 165.9192893 | AX98: 165.9192893 | AY98: 2418.006498 | AZ98: 165.9192893 | BA98: 165.9192893 | BB98: 0 | BC98: 165.9192893 | BD98: 0 | BE98: 165.9192893 | BF98: 165.9192893 | BG98: 2593.330405 | BH98: 0 | BI98: 2427.411116 | BJ98: 2427.411116 | BK98: 0.2797182912 | BL98: 0.579598897 | BM98: 7 | BN98: 0 | BO98: 0 | BP98: 2427.411116
A99: 3319.75296 | B99: 1 | C99: 1.9 | D99: 0 | E99: 0 | F99: 1182.69519 | G99: 0 | H99: 375.4640598 | I99: 221.7926953 | J99: 94.58806121 | K99: 2627.908144 | L99: 2722.496205 | M99: 1 | N99: 1.900054331 | O99: 4502.44815 | P99: 2590.386494 | Q99: 2331.347844 | R99: 2205.6271 | S99: 2205.6271 | T99: 0 | U99: =IF(AND($T99>0,$T99=$AL99),Barème!$C$199,0) -> 0 | V99: 2458.333333 | W99: 0 | X99: 0 | Y99: 4059.5 | Z99: 2030.083333 | AA99: 0 | AB99: 3074.166667 | AC99: 2584.583333 | AD99: 0 | AE99: 1423.829115 | AF99: 0 | AG99: =IF(AND($A99=0,AF99=AAH_montant,Base!$W99>0,$H$10=1),AAH_mva,0) -> 0 | AH99: 2033.579918 | AI99: 0 | AJ99: =IF(AND($E$4=0,AI99=AAH_montant,Base!$W99>0,$J$10=1),AAH_mva,0) -> 0 | AK99: 0 | AL99: 0 | AM99: 2627.908144 | AN99: 0 | AO99: 0 | AP99: 0 | AQ99: 2627.908144 | AR99: 173.2237025 | AS99: 0 | AT99: 0 | AU99: 2450.246584 | AV99: 2450.246584 | AW99: 175.5913153 | AX99: 175.5913153 | AY99: 2450.246584 | AZ99: 175.5913153 | BA99: 175.5913153 | BB99: 0 | BC99: 175.5913153 | BD99: 0 | BE99: 175.5913153 | BF99: 175.5913153 | BG99: 2627.908144 | BH99: 0 | BI99: 2452.316828 | BJ99: 2452.316828 | BK99: 0.2797182912 | BL99: 0.579598897 | BM99: 7 | BN99: 0 | BO99: 0 | BP99: 2452.316828
A100: 3363.43392 | B100: 1 | C100: 1.925 | D100: 0 | E100: 0 | F100: 1198.256968 | G100: 0 | H100: 380.4043764 | I100: 224.7110202 | J100: 95.83264097 | K100: 2662.485882 | L100: 2758.318523 | M100: 1 | N100: 1.925055046 | O100: 4561.690888 | P100: 2624.470527 | Q100: 2362.023474 | R100: 2234.648509 | S100: 2234.648509 | T100: 0 | U100: =IF(AND($T100>0,$T100=$AL100),Barème!$C$199,0) -> 0 | V100: 2483.333333 | W100: 0 | X100: 0 | Y100: 4059.5 | Z100: 2030.083333 | AA100: 0 | AB100: 3074.166667 | AC100: 2584.583333 | AD100: 0 | AE100: 1445.322506 | AF100: 0 | AG100: =IF(AND($A100=0,AF100=AAH_montant,Base!$W100>0,$H$10=1),AAH_mva,0) -> 0 | AH100: 2065.820004 | AI100: 0 | AJ100: =IF(AND($E$4=0,AI100=AAH_montant,Base!$W100>0,$J$10=1),AAH_mva,0) -> 0 | AK100: 0 | AL100: 0 | AM100: 2662.485882 | AN100: 0 | AO100: 0 | AP100: 0 | AQ100: 2662.485882 | AR100: 173.2237025 | AS100: 0 | AT100: 0 | AU100: 2482.486671 | AV100: 2482.486671 | AW100: 185.2633413 | AX100: 185.2633413 | AY100: 2482.486671 | AZ100: 185.2633413 | BA100: 185.2633413 | BB100: 0 | BC100: 185.2633413 | BD100: 0 | BE100: 185.2633413 | BF100: 185.2633413 | BG100: 2662.485882 | BH100: 0 | BI100: 2477.222541 | BJ100: 2477.222541 | BK100: 0.2797182912 | BL100: 0.579598897 | BM100: 7 | BN100: 0 | BO100: 0 | BP100: 2477.222541
A101: 3407.11488 | B101: 1 | C101: 1.95 | D101: 0 | E101: 0 | F101: 1213.818747 | G101: 0 | H101: 385.3446929 | I101: 227.6293451 | J101: 97.07722072 | K101: 2697.063621 | L101: 2794.140842 | M101: 1 | N101: 1.950055761 | O101: 4620.933627 | P101: 2658.554559 | Q101: 2392.699103 | R101: 2263.669918 | S101: 2263.669918 | T101: 0 | U101: =IF(AND($T101>0,$T101=$AL101),Barème!$C$199,0) -> 0 | V101: 2516.666667 | W101: 0 | X101: 0 | Y101: 4059.5 | Z101: 2030.083333 | AA101: 0 | AB101: 3074.166667 | AC101: 2584.583333 | AD101: 0 | AE101: 1466.815897 | AF101: 0 | AG101: =IF(AND($A101=0,AF101=AAH_montant,Base!$W101>0,$H$10=1),AAH_mva,0) -> 0 | AH101: 2098.060091 | AI101: 0 | AJ101: =IF(AND($E$4=0,AI101=AAH_montant,Base!$W101>0,$J$10=1),AAH_mva,0) -> 0 | AK101: 0 | AL101: 0 | AM101: 2697.063621 | AN101: 0 | AO101: 0 | AP101: 0 | AQ101: 2697.063621 | AR101: 173.2237025 | AS101: 0 | AT101: 0 | AU101: 2514.726758 | AV101: 2514.726758 | AW101: 194.9353673 | AX101: 194.9353673 | AY101: 2514.726758 | AZ101: 194.9353673 | BA101: 194.9353673 | BB101: 0 | BC101: 194.9353673 | BD101: 0 | BE101: 194.9353673 | BF101: 194.9353673 | BG101: 2697.063621 | BH101: 0 | BI101: 2502.128254 | BJ101: 2502.128254 | BK101: 0.2797182912 | BL101: 0.579598897 | BM101: 7 | BN101: 0 | BO101: 0 | BP101: 2502.128254
A102: 3450.79584 | B102: 1 | C102: 1.975 | D102: 0 | E102: 0 | F102: 1229.380526 | G102: 0 | H102: 390.2850095 | I102: 230.5476701 | J102: 98.32180047 | K102: 2731.64136 | L102: 2829.96316 | M102: 1 | N102: 1.975056476 | O102: 4680.176366 | P102: 2692.638592 | Q102: 2423.374733 | R102: 2292.691327 | S102: 2292.691327 | T102: 0 | U102: =IF(AND($T102>0,$T102=$AL102),Barème!$C$199,0) -> 0 | V102: 2550 | W102: 0 | X102: 0 | Y102: 4059.5 | Z102: 2030.083333 | AA102: 0 | AB102: 3074.166667 | AC102: 2584.583333 | AD102: 0 | AE102: 1488.309288 | AF102: 0 | AG102: =IF(AND($A102=0,AF102=AAH_montant,Base!$W102>0,$H$10=1),AAH_mva,0) -> 0 | AH102: 2130.300178 | AI102: 0 | AJ102: =IF(AND($E$4=0,AI102=AAH_montant,Base!$W102>0,$J$10=1),AAH_mva,0) -> 0 | AK102: 0 | AL102: 0 | AM102: 2731.64136 | AN102: 0 | AO102: 0 | AP102: 0 | AQ102: 2731.64136 | AR102: 173.2237025 | AS102: 0 | AT102: 0 | AU102: 2546.966844 | AV102: 2546.966844 | AW102: 204.6073933 | AX102: 204.6073933 | AY102: 2546.966844 | AZ102: 204.6073933 | BA102: 204.6073933 | BB102: 0 | BC102: 204.6073933 | BD102: 0 | BE102: 204.6073933 | BF102: 204.6073933 | BG102: 2731.64136 | BH102: 0 | BI102: 2527.033967 | BJ102: 2527.033967 | BK102: 0.2797182912 | BL102: 0.579598897 | BM102: 7 | BN102: 0 | BO102: 0 | BP102: 2527.033967
A103: 3494.4768 | B103: 1 | C103: 2 | D103: 0 | E103: 0 | F103: 1244.942305 | G103: 0 | H103: 395.2253261 | I103: 233.465995 | J103: 99.56638022 | K103: 2766.219099 | L103: 2865.785479 | M103: 1 | N103: 2.000057191 | O103: 4739.419105 | P103: 2726.722625 | Q103: 2454.050363 | R103: 2321.712737 | S103: 2321.712737 | T103: 0 | U103: =IF(AND($T103>0,$T103=$AL103),Barème!$C$199,0) -> 0 | V103: 2583.333333 | W103: 0 | X103: 0 | Y103: 4059.5 | Z103: 2030.083333 | AA103: 0 | AB103: 3074.166667 | AC103: 2584.583333 | AD103: 0 | AE103: 1509.802679 | AF103: 0 | AG103: =IF(AND($A103=0,AF103=AAH_montant,Base!$W103>0,$H$10=1),AAH_mva,0) -> 0 | AH103: 2162.540264 | AI103: 0 | AJ103: =IF(AND($E$4=0,AI103=AAH_montant,Base!$W103>0,$J$10=1),AAH_mva,0) -> 0 | AK103: 0 | AL103: 0 | AM103: 2766.219099 | AN103: 0 | AO103: 0 | AP103: 0 | AQ103: 2766.219099 | AR103: 173.2237025 | AS103: 0 | AT103: 0 | AU103: 2579.206931 | AV103: 2579.206931 | AW103: 214.2794193 | AX103: 214.2794193 | AY103: 2579.206931 | AZ103: 214.2794193 | BA103: 214.2794193 | BB103: 0 | BC103: 214.2794193 | BD103: 0 | BE103: 214.2794193 | BF103: 214.2794193 | BG103: 2766.219099 | BH103: 0 | BI103: 2551.939679 | BJ103: 2551.939679 | BK103: 0.2797182912 | BL103: 0.579598897 | BM103: 8 | BN103: 0 | BO103: 0 | BP103: 2551.939679
A104: 3538.15776 | B104: 1 | C104: 2.025 | D104: 0 | E104: 0 | F104: 1260.504084 | G104: 0 | H104: 400.1656427 | I104: 236.3843199 | J104: 100.81096 | K104: 2800.796837 | L104: 2901.607797 | M104: 1 | N104: 2.025057906 | O104: 4798.661844 | P104: 2760.806658 | Q104: 2484.725992 | R104: 2350.734146 | S104: 2350.734146 | T104: 0 | U104: =IF(AND($T104>0,$T104=$AL104),Barème!$C$199,0) -> 0 | V104: 2616.666667 | W104: 0 | X104: 0 | Y104: 4059.5 | Z104: 2030.083333 | AA104: 0 | AB104: 3074.166667 | AC104: 2584.583333 | AD104: 0 | AE104: 1531.29607 | AF104: 0 | AG104: =IF(AND($A104=0,AF104=AAH_montant,Base!$W104>0,$H$10=1),AAH_mva,0) -> 0 | AH104: 2194.780351 | AI104: 0 | AJ104: =IF(AND($E$4=0,AI104=AAH_montant,Base!$W104>0,$J$10=1),AAH_mva,0) -> 0 | AK104: 0 | AL104: 0 | AM104: 2800.796837 | AN104: 0 | AO104: 0 | AP104: 0 | AQ104: 2800.796837 | AR104: 173.2237025 | AS104: 0 | AT104: 0 | AU104: 2611.447018 | AV104: 2611.447018 | AW104: 223.9514453 | AX104: 223.9514453 | AY104: 2611.447018 | AZ104: 223.9514453 | BA104: 223.9514453 | BB104: 0 | BC104: 223.9514453 | BD104: 0 | BE104: 223.9514453 | BF104: 223.9514453 | BG104: 2800.796837 | BH104: 0 | BI104: 2576.845392 | BJ104: 2576.845392 | BK104: 0.2797182912 | BL104: 0.579598897 | BM104: 8 | BN104: 0 | BO104: 0 | BP104: 2576.845392
A105: 3581.83872 | B105: 1 | C105: 2.05 | D105: 0 | E105: 0 | F105: 1276.065862 | G105: 0 | H105: 405.1059592 | I105: 239.3026449 | J105: 102.0555397 | K105: 2835.374576 | L105: 2937.430116 | M105: 1 | N105: 2.05005862 | O105: 4857.904582 | P105: 2794.890691 | Q105: 2515.401622 | R105: 2379.755555 | S105: 2379.755555 | T105: 0 | U105: =IF(AND($T105>0,$T105=$AL105),Barème!$C$199,0) -> 0 | V105: 2650 | W105: 0 | X105: 0 | Y105: 4059.5 | Z105: 2030.083333 | AA105: 0 | AB105: 3074.166667 | AC105: 2584.583333 | AD105: 0 | AE105: 1552.789462 | AF105: 0 | AG105: =IF(AND($A105=0,AF105=AAH_montant,Base!$W105>0,$H$10=1),AAH_mva,0) -> 0 | AH105: 2227.020438 | AI105: 0 | AJ105: =IF(AND($E$4=0,AI105=AAH_montant,Base!$W105>0,$J$10=1),AAH_mva,0) -> 0 | AK105: 0 | AL105: 0 | AM105: 2835.374576 | AN105: 0 | AO105: 0 | AP105: 0 | AQ105: 2835.374576 | AR105: 173.2237025 | AS105: 0 | AT105: 0 | AU105: 2643.687104 | AV105: 2643.687104 | AW105: 233.6234713 | AX105: 233.6234713 | AY105: 2643.687104 | AZ105: 233.6234713 | BA105: 233.6234713 | BB105: 0 | BC105: 233.6234713 | BD105: 0 | BE105: 233.6234713 | BF105: 233.6234713 | BG105: 2835.374576 | BH105: 0 | BI105: 2601.751105 | BJ105: 2601.751105 | BK105: 0.2797182912 | BL105: 0.579598897 | BM105: 8 | BN105: 0 | BO105: 0 | BP105: 2601.751105
A106: 3625.51968 | B106: 1 | C106: 2.075 | D106: 0 | E106: 0 | F106: 1291.627641 | G106: 0 | H106: 410.0462758 | I106: 242.2209698 | J106: 103.3001195 | K106: 2869.952315 | L106: 2973.252434 | M106: 1 | N106: 2.075059335 | O106: 4917.147321 | P106: 2828.974723 | Q106: 2546.077251 | R106: 2408.776964 | S106: 2408.776964 | T106: 0 | U106: =IF(AND($T106>0,$T106=$AL106),Barème!$C$199,0) -> 0 | V106: 2683.333333 | W106: 0 | X106: 0 | Y106: 4059.5 | Z106: 2030.083333 | AA106: 0 | AB106: 3074.166667 | AC106: 2584.583333 | AD106: 0 | AE106: 1574.282853 | AF106: 0 | AG106: =IF(AND($A106=0,AF106=AAH_montant,Base!$W106>0,$H$10=1),AAH_mva,0) -> 0 | AH106: 2259.260524 | AI106: 0 | AJ106: =IF(AND($E$4=0,AI106=AAH_montant,Base!$W106>0,$J$10=1),AAH_mva,0) -> 0 | AK106: 0 | AL106: 0 | AM106: 2869.952315 | AN106: 0 | AO106: 0 | AP106: 0 | AQ106: 2869.952315 | AR106: 173.2237025 | AS106: 0 | AT106: 0 | AU106: 2675.927191 | AV106: 2675.927191 | AW106: 243.2954973 | AX106: 243.2954973 | AY106: 2675.927191 | AZ106: 243.2954973 | BA106: 243.2954973 | BB106: 0 | BC106: 243.2954973 | BD106: 0 | BE106: 243.2954973 | BF106: 243.2954973 | BG106: 2869.952315 | BH106: 0 | BI106: 2626.656818 | BJ106: 2626.656818 | BK106: 0.2813992047 | BL106: 0.6836149426 | BM106: 8 | BN106: 0 | BO106: 0 | BP106: 2626.656818
A107: 3669.20064 | B107: 1 | C107: 2.1 | D107: 0 | E107: 0 | F107: 1314.901783 | G107: 0 | H107: 420.0853857 | I107: 245.1392948 | J107: 104.5446992 | K107: 2899.43126 | L107: 3003.97596 | M107: 1 | N107: 2.096373474 | O107: 4984.102423 | P107: 2858.207383 | Q107: 2572.386645 | R107: 2433.667592 | S107: 2433.667592 | T107: 0 | U107: =IF(AND($T107>0,$T107=$AL107),Barème!$C$199,0) -> 0 | V107: 2708.333333 | W107: 0 | X107: 0 | Y107: 4059.5 | Z107: 2030.083333 | AA107: 0 | AB107: 3074.166667 | AC107: 2584.583333 | AD107: 0 | AE107: 1592.716968 | AF107: 0 | AG107: =IF(AND($A107=0,AF107=AAH_montant,Base!$W107>0,$H$10=1),AAH_mva,0) -> 0 | AH107: 2286.911697 | AI107: 0 | AJ107: =IF(AND($E$4=0,AI107=AAH_montant,Base!$W107>0,$J$10=1),AAH_mva,0) -> 0 | AK107: 0 | AL107: 0 | AM107: 2899.43126 | AN107: 0 | AO107: 0 | AP107: 0 | AQ107: 2899.43126 | AR107: 173.2237025 | AS107: 0 | AT107: 0 | AU107: 2703.578364 | AV107: 2703.578364 | AW107: 251.5908491 | AX107: 251.5908491 | AY107: 2703.578364 | AZ107: 251.5908491 | BA107: 251.5908491 | BB107: 0 | BC107: 251.5908491 | BD107: 0 | BE107: 251.5908491 | BF107: 251.5908491 | BG107: 2899.43126 | BH107: 0 | BI107: 2647.840411 | BJ107: 2647.840411 | BK107: 0.2795910722 | BL107: 0.5752938496 | BM107: 8 | BN107: 0 | BO107: 0 | BP107: 2647.840411
A108: 3712.8816 | B108: 1 | C108: 2.125 | D108: 0 | E108: 0 | F108: 1330.65139 | G108: 0 | H108: 424.5670522 | I108: 248.0576197 | J108: 105.789279 | K108: 2934.467649 | L108: 3040.256928 | M108: 1 | N108: 2.121705806 | O108: 5043.53299 | P108: 2892.72781 | Q108: 2603.455029 | R108: 2463.060576 | S108: 2463.060576 | T108: 0 | U108: =IF(AND($T108>0,$T108=$AL108),Barème!$C$199,0) -> 0 | V108: 2741.666667 | W108: 0 | X108: 0 | Y108: 4059.5 | Z108: 2030.083333 | AA108: 0 | AB108: 3074.166667 | AC108: 2584.583333 | AD108: 0 | AE108: 1614.485549 | AF108: 0 | AG108: =IF(AND($A108=0,AF108=AAH_montant,Base!$W108>0,$H$10=1),AAH_mva,0) -> 0 | AH108: 2319.564569 | AI108: 0 | AJ108: =IF(AND($E$4=0,AI108=AAH_montant,Base!$W108>0,$J$10=1),AAH_mva,0) -> 0 | AK108: 0 | AL108: 0 | AM108: 2934.467649 | AN108: 0 | AO108: 0 | AP108: 0 | AQ108: 2934.467649 | AR108: 173.2237025 | AS108: 0 | AT108: 0 | AU108: 2736.231235 | AV108: 2736.231235 | AW108: 261.3867106 | AX108: 261.3867106 | AY108: 2736.231235 | AZ108: 261.3867106 | BA108: 261.3867106 | BB108: 0 | BC108: 261.3867106 | BD108: 0 | BE108: 261.3867106 | BF108: 261.3867106 | BG108: 2934.467649 | BH108: 0 | BI108: 2673.080939 | BJ108: 2673.080939 | BK108: 0.2795910722 | BL108: 0.5752938496 | BM108: 8 | BN108: 0 | BO108: 0 | BP108: 2673.080939
A109: 3756.56256 | B109: 1 | C109: 2.15 | D109: 0 | E109: 0 | F109: 1346.400997 | G109: 0 | H109: 429.0487187 | I109: 250.9759446 | J109: 107.0338587 | K109: 2969.504038 | L109: 3076.537897 | M109: 1 | N109: 2.147038138 | O109: 5102.963557 | P109: 2927.248237 | Q109: 2634.523413 | R109: 2492.45356 | S109: 2492.45356 | T109: 0 | U109: =IF(AND($T109>0,$T109=$AL109),Barème!$C$199,0) -> 0 | V109: 2775 | W109: 0 | X109: 0 | Y109: 4059.5 | Z109: 2030.083333 | AA109: 0 | AB109: 3074.166667 | AC109: 2584.583333 | AD109: 0 | AE109: 1636.25413 | AF109: 0 | AG109: =IF(AND($A109=0,AF109=AAH_montant,Base!$W109>0,$H$10=1),AAH_mva,0) -> 0 | AH109: 2352.21744 | AI109: 0 | AJ109: =IF(AND($E$4=0,AI109=AAH_montant,Base!$W109>0,$J$10=1),AAH_mva,0) -> 0 | AK109: 0 | AL109: 0 | AM109: 2969.504038 | AN109: 0 | AO109: 0 | AP109: 0 | AQ109: 2969.504038 | AR109: 173.2237025 | AS109: 0 | AT109: 0 | AU109: 2768.884107 | AV109: 2768.884107 | AW109: 271.1825721 | AX109: 271.1825721 | AY109: 2768.884107 | AZ109: 271.1825721 | BA109: 271.1825721 | BB109: 0 | BC109: 271.1825721 | BD109: 0 | BE109: 271.1825721 | BF109: 271.1825721 | BG109: 2969.504038 | BH109: 0 | BI109: 2698.321466 | BJ109: 2698.321466 | BK109: 0.2795910722 | BL109: 0.5752938496 | BM109: 8 | BN109: 0 | BO109: 0 | BP109: 2698.321466
A110: 3800.24352 | B110: 1 | C110: 2.175 | D110: 0 | E110: 0 | F110: 1362.150604 | G110: 0 | H110: 433.5303852 | I110: 253.8942696 | J110: 108.2784385 | K110: 3004.540427 | L110: 3112.818865 | M110: 1 | N110: 2.172370471 | O110: 5162.394124 | P110: 2961.768663 | Q110: 2665.591797 | R110: 2521.846544 | S110: 2521.846544 | T110: 0 | U110: =IF(AND($T110>0,$T110=$AL110),Barème!$C$199,0) -> 0 | V110: 2808.333333 | W110: 0 | X110: 0 | Y110: 4059.5 | Z110: 2030.083333 | AA110: 0 | AB110: 3074.166667 | AC110: 2584.583333 | AD110: 0 | AE110: 1658.022711 | AF110: 0 | AG110: =IF(AND($A110=0,AF110=AAH_montant,Base!$W110>0,$H$10=1),AAH_mva,0) -> 0 | AH110: 2384.870312 | AI110: 0 | AJ110: =IF(AND($E$4=0,AI110=AAH_montant,Base!$W110>0,$J$10=1),AAH_mva,0) -> 0 | AK110: 0 | AL110: 0 | AM110: 3004.540427 | AN110: 0 | AO110: 0 | AP110: 0 | AQ110: 3004.540427 | AR110: 173.2237025 | AS110: 0 | AT110: 0 | AU110: 2801.536979 | AV110: 2801.536979 | AW110: 280.9784336 | AX110: 280.9784336 | AY110: 2801.536979 | AZ110: 280.9784336 | BA110: 280.9784336 | BB110: 0 | BC110: 280.9784336 | BD110: 0 | BE110: 280.9784336 | BF110: 280.9784336 | BG110: 3004.540427 | BH110: 0 | BI110: 2723.561993 | BJ110: 2723.561993 | BK110: 0.2795910722 | BL110: 0.5752938496 | BM110: 8 | BN110: 0 | BO110: 0 | BP110: 2723.561993
A111: 3843.92448 | B111: 1 | C111: 2.2 | D111: 0 | E111: 0 | F111: 1377.900211 | G111: 0 | H111: 438.0120516 | I111: 256.8125945 | J111: 109.5230182 | K111: 3039.576816 | L111: 3149.099834 | M111: 1 | N111: 2.197702803 | O111: 5221.824691 | P111: 2996.28909 | Q111: 2696.660181 | R111: 2551.239528 | S111: 2551.239528 | T111: 0 | U111: =IF(AND($T111>0,$T111=$AL111),Barème!$C$199,0) -> 0 | V111: 2841.666667 | W111: 0 | X111: 0 | Y111: 4059.5 | Z111: 2030.083333 | AA111: 0 | AB111: 3074.166667 | AC111: 2584.583333 | AD111: 0 | AE111: 1679.791292 | AF111: 0 | AG111: =IF(AND($A111=0,AF111=AAH_montant,Base!$W111>0,$H$10=1),AAH_mva,0) -> 0 | AH111: 2417.523184 | AI111: 0 | AJ111: =IF(AND($E$4=0,AI111=AAH_montant,Base!$W111>0,$J$10=1),AAH_mva,0) -> 0 | AK111: 0 | AL111: 0 | AM111: 3039.576816 | AN111: 0 | AO111: 0 | AP111: 0 | AQ111: 3039.576816 | AR111: 173.2237025 | AS111: 0 | AT111: 0 | AU111: 2834.18985 | AV111: 2834.18985 | AW111: 290.7742951 | AX111: 290.7742951 | AY111: 2834.18985 | AZ111: 290.7742951 | BA111: 290.7742951 | BB111: 0 | BC111: 290.7742951 | BD111: 0 | BE111: 290.7742951 | BF111: 290.7742951 | BG111: 3039.576816 | BH111: 0 | BI111: 2748.80252 | BJ111: 2748.80252 | BK111: 0.2795910722 | BL111: 0.5752938496 | BM111: 8 | BN111: 0 | BO111: 0 | BP111: 2748.80252
A112: 3887.60544 | B112: 1 | C112: 2.225 | D112: 0 | E112: 0 | F112: 1393.649817 | G112: 0 | H112: 442.4937181 | I112: 259.7309194 | J112: 110.767598 | K112: 3074.613204 | L112: 3185.380802 | M112: 1 | N112: 2.223035135 | O112: 5281.255257 | P112: 3030.809517 | Q112: 2727.728565 | R112: 2580.632512 | S112: 2580.632512 | T112: 0 | U112: =IF(AND($T112>0,$T112=$AL112),Barème!$C$199,0) -> 0 | V112: 2875 | W112: 0 | X112: 0 | Y112: 4059.5 | Z112: 2030.083333 | AA112: 0 | AB112: 3074.166667 | AC112: 2584.583333 | AD112: 0 | AE112: 1701.559873 | AF112: 0 | AG112: =IF(AND($A112=0,AF112=AAH_montant,Base!$W112>0,$H$10=1),AAH_mva,0) -> 0 | AH112: 2450.176056 | AI112: 0 | AJ112: =IF(AND($E$4=0,AI112=AAH_montant,Base!$W112>0,$J$10=1),AAH_mva,0) -> 0 | AK112: 0 | AL112: 0 | AM112: 3074.613204 | AN112: 0 | AO112: 0 | AP112: 0 | AQ112: 3074.613204 | AR112: 173.2237025 | AS112: 0 | AT112: 0 | AU112: 2866.842722 | AV112: 2866.842722 | AW112: 300.5701567 | AX112: 300.5701567 | AY112: 2866.842722 | AZ112: 300.5701567 | BA112: 300.5701567 | BB112: 0 | BC112: 300.5701567 | BD112: 0 | BE112: 300.5701567 | BF112: 300.5701567 | BG112: 3074.613204 | BH112: 0 | BI112: 2774.043048 | BJ112: 2774.043048 | BK112: 0.2795910722 | BL112: 0.5752938496 | BM112: 8 | BN112: 0 | BO112: 0 | BP112: 2774.043048
A113: 3931.2864 | B113: 1 | C113: 2.25 | D113: 0 | E113: 0 | F113: 1409.399424 | G113: 0 | H113: 446.9753846 | I113: 262.6492444 | J113: 112.0121778 | K113: 3109.649593 | L113: 3221.661771 | M113: 1 | N113: 2.248367467 | O113: 5340.685824 | P113: 3065.329944 | Q113: 2758.796949 | R113: 2610.025496 | S113: 2610.025496 | T113: 0 | U113: =IF(AND($T113>0,$T113=$AL113),Barème!$C$199,0) -> 0 | V113: 2900 | W113: 0 | X113: 0 | Y113: 4059.5 | Z113: 2030.083333 | AA113: 0 | AB113: 3074.166667 | AC113: 2584.583333 | AD113: 0 | AE113: 1723.328455 | AF113: 0 | AG113: =IF(AND($A113=0,AF113=AAH_montant,Base!$W113>0,$H$10=1),AAH_mva,0) -> 0 | AH113: 2482.828927 | AI113: 0 | AJ113: =IF(AND($E$4=0,AI113=AAH_montant,Base!$W113>0,$J$10=1),AAH_mva,0) -> 0 | AK113: 0 | AL113: 0 | AM113: 3109.649593 | AN113: 0 | AO113: 0 | AP113: 0 | AQ113: 3109.649593 | AR113: 173.2237025 | AS113: 0 | AT113: 0 | AU113: 2899.495594 | AV113: 2899.495594 | AW113: 310.3660182 | AX113: 310.3660182 | AY113: 2899.495594 | AZ113: 310.3660182 | BA113: 310.3660182 | BB113: 0 | BC113: 310.3660182 | BD113: 0 | BE113: 310.3660182 | BF113: 310.3660182 | BG113: 3109.649593 | BH113: 0 | BI113: 2799.283575 | BJ113: 2799.283575 | BK113: 0.2795910722 | BL113: 0.5752938496 | BM113: 8 | BN113: 0 | BO113: 0 | BP113: 2799.283575
A114: 3974.96736 | B114: 1 | C114: 2.275 | D114: 0 | E114: 0 | F114: 1425.149031 | G114: 0 | H114: 451.4570511 | I114: 265.5675693 | J114: 113.2567575 | K114: 3144.685982 | L114: 3257.94274 | M114: 1 | N114: 2.2736998 | O114: 5400.116391 | P114: 3099.850371 | Q114: 2789.865334 | R114: 2639.41848 | S114: 2639.41848 | T114: 0 | U114: =IF(AND($T114>0,$T114=$AL114),Barème!$C$199,0) -> 0 | V114: 2933.333333 | W114: 0 | X114: 0 | Y114: 4059.5 | Z114: 2030.083333 | AA114: 0 | AB114: 3074.166667 | AC114: 2584.583333 | AD114: 0 | AE114: 1745.097036 | AF114: 0 | AG114: =IF(AND($A114=0,AF114=AAH_montant,Base!$W114>0,$H$10=1),AAH_mva,0) -> 0 | AH114: 2515.481799 | AI114: 0 | AJ114: =IF(AND($E$4=0,AI114=AAH_montant,Base!$W114>0,$J$10=1),AAH_mva,0) -> 0 | AK114: 0 | AL114: 0 | AM114: 3144.685982 | AN114: 0 | AO114: 0 | AP114: 0 | AQ114: 3144.685982 | AR114: 173.2237025 | AS114: 0 | AT114: 0 | AU114: 2932.148466 | AV114: 2932.148466 | AW114: 320.1618797 | AX114: 320.1618797 | AY114: 2932.148466 | AZ114: 320.1618797 | BA114: 320.1618797 | BB114: 0 | BC114: 320.1618797 | BD114: 0 | BE114: 320.1618797 | BF114: 320.1618797 | BG114: 3144.685982 | BH114: 0 | BI114: 2824.524102 | BJ114: 2824.524102 | BK114: 0.2795910722 | BL114: 0.5752938496 | BM114: 8 | BN114: 0 | BO114: 0 | BP114: 2824.524102
A115: 4018.64832 | B115: 1 | C115: 2.3 | D115: 0 | E115: 0 | F115: 1440.898638 | G115: 0 | H115: 455.9387176 | I115: 268.4858943 | J115: 114.5013373 | K115: 3179.722371 | L115: 3294.223708 | M115: 1 | N115: 2.299032132 | O115: 5459.546958 | P115: 3134.370797 | Q115: 2820.933718 | R115: 2668.811464 | S115: 2668.811464 | T115: 0 | U115: =IF(AND($T115>0,$T115=$AL115),Barème!$C$199,0) -> 0 | V115: 2966.666667 | W115: 0 | X115: 0 | Y115: 4059.5 | Z115: 2030.083333 | AA115: 0 | AB115: 3074.166667 | AC115: 2584.583333 | AD115: 0 | AE115: 1766.865617 | AF115: 0 | AG115: =IF(AND($A115=0,AF115=AAH_montant,Base!$W115>0,$H$10=1),AAH_mva,0) -> 0 | AH115: 2548.134671 | AI115: 0 | AJ115: =IF(AND($E$4=0,AI115=AAH_montant,Base!$W115>0,$J$10=1),AAH_mva,0) -> 0 | AK115: 0 | AL115: 0 | AM115: 3179.722371 | AN115: 0 | AO115: 0 | AP115: 0 | AQ115: 3179.722371 | AR115: 173.2237025 | AS115: 0 | AT115: 0 | AU115: 2964.801337 | AV115: 2964.801337 | AW115: 329.9577412 | AX115: 329.9577412 | AY115: 2964.801337 | AZ115: 329.9577412 | BA115: 329.9577412 | BB115: 0 | BC115: 329.9577412 | BD115: 0 | BE115: 329.9577412 | BF115: 329.9577412 | BG115: 3179.722371 | BH115: 0 | BI115: 2849.76463 | BJ115: 2849.76463 | BK115: 0.2795910722 | BL115: 0.5752938496 | BM115: 8 | BN115: 0 | BO115: 0 | BP115: 2849.76463
A116: 4062.32928 | B116: 1 | C116: 2.325 | D116: 0 | E116: 0 | F116: 1456.648245 | G116: 0 | H116: 460.4203841 | I116: 271.4042192 | J116: 115.745917 | K116: 3214.75876 | L116: 3330.504677 | M116: 1 | N116: 2.324364464 | O116: 5518.977525 | P116: 3168.891224 | Q116: 2852.002102 | R116: 2698.204448 | S116: 2698.204448 | T116: 0 | U116: =IF(AND($T116>0,$T116=$AL116),Barème!$C$199,0) -> 0 | V116: 3000 | W116: 0 | X116: 0 | Y116: 4059.5 | Z116: 2030.083333 | AA116: 0 | AB116: 3074.166667 | AC116: 2584.583333 | AD116: 0 | AE116: 1788.634198 | AF116: 0 | AG116: =IF(AND($A116=0,AF116=AAH_montant,Base!$W116>0,$H$10=1),AAH_mva,0) -> 0 | AH116: 2580.787542 | AI116: 0 | AJ116: =IF(AND($E$4=0,AI116=AAH_montant,Base!$W116>0,$J$10=1),AAH_mva,0) -> 0 | AK116: 0 | AL116: 0 | AM116: 3214.75876 | AN116: 0 | AO116: 0 | AP116: 0 | AQ116: 3214.75876 | AR116: 173.2237025 | AS116: 0 | AT116: 0 | AU116: 2997.454209 | AV116: 2997.454209 | AW116: 339.7536027 | AX116: 339.7536027 | AY116: 2997.454209 | AZ116: 339.7536027 | BA116: 339.7536027 | BB116: 0 | BC116: 339.7536027 | BD116: 0 | BE116: 339.7536027 | BF116: 339.7536027 | BG116: 3214.75876 | BH116: 0 | BI116: 2875.005157 | BJ116: 2875.005157 | BK116: 0.2795910722 | BL116: 0.5752938496 | BM116: 8 | BN116: 0 | BO116: 0 | BP116: 2875.005157
A117: 4106.01024 | B117: 1 | C117: 2.35 | D117: 0 | E117: 0 | F117: 1472.397852 | G117: 0 | H117: 464.9020506 | I117: 274.3225441 | J117: 116.9904968 | K117: 3249.795148 | L117: 3366.785645 | M117: 1 | N117: 2.349696797 | O117: 5578.408092 | P117: 3203.411651 | Q117: 2883.070486 | R117: 2727.597432 | S117: 2727.597432 | T117: 0 | U117: =IF(AND($T117>0,$T117=$AL117),Barème!$C$199,0) -> 0 | V117: 3033.333333 | W117: 0 | X117: 0 | Y117: 4059.5 | Z117: 2030.083333 | AA117: 0 | AB117: 3074.166667 | AC117: 2584.583333 | AD117: 0 | AE117: 1810.402779 | AF117: 0 | AG117: =IF(AND($A117=0,AF117=AAH_montant,Base!$W117>0,$H$10=1),AAH_mva,0) -> 0 | AH117: 2613.440414 | AI117: 0 | AJ117: =IF(AND($E$4=0,AI117=AAH_montant,Base!$W117>0,$J$10=1),AAH_mva,0) -> 0 | AK117: 0 | AL117: 0 | AM117: 3249.795148 | AN117: 0 | AO117: 0 | AP117: 0 | AQ117: 3249.795148 | AR117: 173.2237025 | AS117: 0 | AT117: 0 | AU117: 3030.107081 | AV117: 3030.107081 | AW117: 349.5494642 | AX117: 349.5494642 | AY117: 3030.107081 | AZ117: 349.5494642 | BA117: 349.5494642 | BB117: 0 | BC117: 349.5494642 | BD117: 0 | BE117: 349.5494642 | BF117: 349.5494642 | BG117: 3249.795148 | BH117: 0 | BI117: 2900.245684 | BJ117: 2900.245684 | BK117: 0.2795910722 | BL117: 0.5752938496 | BM117: 8 | BN117: 0 | BO117: 0 | BP117: 2900.245684
A118: 4149.6912 | B118: 1 | C118: 2.375 | D118: 0 | E118: 0 | F118: 1488.147459 | G118: 0 | H118: 469.3837171 | I118: 277.2408691 | J118: 118.2350765 | K118: 3284.831537 | L118: 3403.066614 | M118: 1 | N118: 2.375029129 | O118: 5637.838659 | P118: 3237.932078 | Q118: 2914.13887 | R118: 2756.990416 | S118: 2756.990416 | T118: 0 | U118: =IF(AND($T118>0,$T118=$AL118),Barème!$C$199,0) -> 0 | V118: 3066.666667 | W118: 0 | X118: 0 | Y118: 4059.5 | Z118: 2030.083333 | AA118: 0 | AB118: 3074.166667 | AC118: 2584.583333 | AD118: 0 | AE118: 1832.17136 | AF118: 0 | AG118: =IF(AND($A118=0,AF118=AAH_montant,Base!$W118>0,$H$10=1),AAH_mva,0) -> 0 | AH118: 2646.093286 | AI118: 0 | AJ118: =IF(AND($E$4=0,AI118=AAH_montant,Base!$W118>0,$J$10=1),AAH_mva,0) -> 0 | AK118: 0 | AL118: 0 | AM118: 3284.831537 | AN118: 0 | AO118: 0 | AP118: 0 | AQ118: 3284.831537 | AR118: 173.2237025 | AS118: 0 | AT118: 0 | AU118: 3062.759952 | AV118: 3062.759952 | AW118: 359.3453257 | AX118: 359.3453257 | AY118: 3062.759952 | AZ118: 359.3453257 | BA118: 359.3453257 | BB118: 0 | BC118: 359.3453257 | BD118: 0 | BE118: 359.3453257 | BF118: 359.3453257 | BG118: 3284.831537 | BH118: 0 | BI118: 2925.486212 | BJ118: 2925.486212 | BK118: 0.2795910722 | BL118: 0.5752938496 | BM118: 8 | BN118: 0 | BO118: 0 | BP118: 2925.486212
A119: 4193.37216 | B119: =MIN(100%,A119/smic_b) -> 1 | C119: =A119/smic_b -> 2.4 | D119: 0 | E119: 0 | F119: =IF(0<A119,taux_cs_emp_t1*MIN(A119,plafond_ss),0) +IF(plafond_ss<A119,taux_cs_emp_t2*MIN(A119-plafond_ss,2*plafond_ss),0) +IF(3*plafond_ss<A119,taux_cs_emp_t3*MIN(A119-3*plafond_ss,plafond_ss),0) +IF(4*plafond_ss<A119,taux_cs_emp_t4*MIN(A119-4*plafond_ss,4*plafond_ss),0) +IF(8*plafond_ss<A119,taux_cs_emp_t5*(A119-8*plafond_ss),0) +IF(plafond_ss<A119,MIN(A119,8*plafond_ss)*taux_cet_pat,0) -IF(C119<=part_smic_exo,mod_cotis_fam*A119,0) -IF(C119<=seuil_smic_pat_assmal,reduc_pat_assmal*A119,0) -> 1503.897066 | G119: 0 | H119: =IF(0<A119,taux_cs_sal_t1*MIN(A119,plafond_ss),0) +IF(plafond_ss<A119,taux_cs_sal_t2*MIN(A119-plafond_ss,2*plafond_ss),0) +IF(3*plafond_ss<A119,taux_cs_sal_t3*MIN(A119-3*plafond_ss,plafond_ss),0) +IF(4*plafond_ss<A119,taux_cs_sal_t4*MIN(A119-4*plafond_ss,4*plafond_ss),0) +IF(8*plafond_ss<A119,taux_cs_sal_t5*(A119-8*plafond_ss),0) +IF(plafond_ss<A119,MIN(A119,8*plafond_ss)*taux_cet_sal,0) -> 473.8653836 | I119: =IF(0<A119,taux_csg_deduc_t1*MIN(A119,4*plafond_ss),0) +IF(4*plafond_ss<A119,taux_csg_deduc_t2*(A119-4*plafond_ss),0) -> 280.159194 | J119: =IF(0<A119,taux_csgcrds_nondeduc_t1*MIN(A119,4*plafond_ss),0) +IF(4*plafond_ss<A119,taux_csgcrds_nondeduc_t2*(A119-4*plafond_ss),0) -> 119.4796563 | K119: =A119-H119-I119-J119 -> 3319.867926 | L119: =A119-H119-I119 -> 3439.347582 | M119: =MIN(100%,K119/smic_n) -> 1 | N119: =K119/smic_n -> 2.400361461 | O119: =A119+F119-G119 -> 5697.269226 | P119: =($L119+$E$7+$Z$16+$E119+$AO$16)/(1+deflat) -> 3272.452505 | Q119: =($L119+$E$7+$Z$16+$E119+$AO$16 + IF($AI119=$AL119,0,$T119))/(1+deflat)*abatt_rfr -> 2945.207254 | R119: =($L119+$E$7+$Z$16+$E119+$AO$16+IF($AI119=$AL119,0,$T119))/(1+deflat_2)*abatt_rfr -> 2786.3834 | S119: =($L119+$E$7+$Z$16+IF($AI119=$AL119,0,$T119)+(1-abatt_rbg_are)*($E119+$AO$16))/(1+deflat_2)*abatt_rfr -> 2786.3834 | T119: =(Nb_adultes=2)*$H$6*IF($P119<ASS_plaf_couple,ASS_mtt_forf,IF(ASS_diff_plaf_couple-$P119>=seuil_vers_ASS,ASS_diff_plaf_couple-$P119,0)) -> 0 | U119: =IF(AND($T119>0,$T119=$AL119),Barème!$C$199,0) -> 0 | V119: =ROUNDUP(12*((1+deflat_2)*rbg-$T119-IF((Nb_adultes=2)*AND(L119>bmaf,$Z$16>bmaf),APL_abatt_biactifs,0)),-2)/12 -> 3100 | W119: =TRUNC((1-$K$6) * IF(($N$16-($N$17+12*($P$16+al_taux_compl)*MAX(0,V119-$P$17))-Mfo_AL)* (1-tx_crds)>=seuil_versement_AL, $N$16-($N$17+12*($P$16+al_taux_compl)*MAX(0,V119-$P$17))-Mfo_AL,0) * (1-tx_crds)) -> 0 | X119: =IF(rbg<=p1_modulation_af,$I$16, IF(rbg<=p1_modulation_af+$I$16/2,$I$16+p1_modulation_af-rbg, IF(rbg<=p2_modulation_af,$I$16/2, IF(rbg<=p2_modulation_af+$I$16/4,$I$16/2+p2_modulation_af-rbg,$I$16/4)))) -> 0 | Y119: =IF(OR(Nb_adultes=1,AND(L119/(1+deflat_2)>bmaf_n_2,$Z$16/(1+deflat_2)>bmaf_n_2)), plafond_maj_CF+MAX(Nb_enfants-3,0)*pers_sup_CF, plafond_simple_CF+MAX(Nb_enfants-3,0)*pers_sup_CF) -> 4059.5 | Z119: =IF(OR(Nb_adultes=1,AND(L119/(1+deflat_2)>bmaf_n_2,$Z$16/(1+deflat_2)>bmaf_n_2)), plafond_maj_CF_majo+MAX(Nb_enfants-3,0)*pers_sup_CF_majo, plafond_simple_CF_majo+MAX(Nb_enfants-3,0)*pers_sup_CF_majo) -> 2030.083333 | AA119: =IF(OR(($B$7+$B$8+$B$9+$B$10+$B$11+$B$12)<3,$B$6>=1),0, IF(rbg<$Z119,montant_CF_majo, IF(rbg<$Y119,montant_CF, IF(rbg<($Y119+montant_CF),montant_CF+$Y119-rbg,0)))) -> 0 | AB119: =IF(OR(Nb_adultes=1,AND(L119/(1+deflat_2)>bmaf_n_2,$Z$16/(1+deflat_2)>bmaf_n_2)), plafond_majore_paje+MIN(Nb_enfants,2)*plafond_sup_enf_12_paje+MAX(Nb_enfants-3,0)*plafond_sup_enf_3_paje, plaf_simple_paje+MIN(Nb_enfants,2)*plafond_sup_enf_12_paje+MAX(Nb_enfants-3,0)*plafond_sup_enf_3_paje) -> 3074.166667 | AC119: =IF(OR(Nb_adultes=1,AND(L119/(1+deflat_2)>bmaf_n_2,$Z$16/(1+deflat_2)>bmaf_n_2)), plafond_majore_paje_plein+MIN(Nb_enfants,2)*plafond_sup_enf_12_paje_plein+MAX(Nb_enfants-3,0)*plafond_sup_enf_3_paje_plein, plaf_simple_paje_plein+MIN(Nb_enfants,2)*plafond_sup_enf_12_paje_plein+MAX(Nb_enfants-3,0)*plafond_sup_enf_3_paje_plein) -> 2584.583333 | AD119: =IF(rbg<AC119,montant_paje_plein*($B$6>0),IF(rbg<AB119,montant_paje*($B$6>0),0)) -> 0 | AE119: =($K$1="01/07")*MAX($Z$16*abatt_rfr-AAH_abatt_general-AAH_abatt_majo*Nb_enfants,0)+($E$7+$E$6+$D119+IF($BC119=BE119,0,$T119))*abatt_rfr +MIN($L119,AAH_plafond_abatt_salaire)*AAH_abatt_salaire_t1 +MAX($L119-AAH_plafond_abatt_salaire,0)*AAH_abatt_salaire_t2 -> 1853.939941 | AF119: =($H$8=1)*( IF($AR$16-AE119>=AAH_montant, AAH_montant, MAX(0,$AR$16-AE119)) ) -> 0 | AG119: =IF(AND($A119=0,AF119=AAH_montant,Base!$W119>0,$H$10=1),AAH_mva,0) -> 0 | AH119: =($K$1="01/07")*MAX($L119*abatt_rfr-AAH_abatt_general-AAH_abatt_majo*Nb_enfants,0)+($E$7+$E$6+$D119)*abatt_rfr +MIN($Z$16,AAH_plafond_abatt_salaire)*AAH_abatt_salaire_t1 +MAX($Z$16-AAH_plafond_abatt_salaire,0)*AAH_abatt_salaire_t2 -> 2678.746157 | AI119: =($H$9=1)*( IF($AR$16-AH119>=AAH_montant, AAH_montant, MAX(0,$AR$16-AH119)) ) -> 0 | AJ119: =IF(AND($E$4=0,AI119=AAH_montant,Base!$W119>0,$J$10=1),AAH_mva,0) -> 0 | AK119: 0 | AL119: 0 | AM119: =$K119+$Z$17+$AK119+($W119>0)*MIN($W119,$E$17)+($K$6=1)*$E$17+$I$16-$I$17+MIN($AA119,montant_CF)+$AD119+$AL$17+$D119+$E$6+$E$7+IF($AI119=AL119,0,$T119) -> 3319.867926 | AN119: =IF(AM119+seuil_versement_rsa<=$E$16,$E$16-AM119,0) -> 0 | AO119: =((AN119)>0)* IF((Nb_adultes+Nb_enfants)=1,noel_1pers, IF((Nb_adultes+Nb_enfants)=2,noel_2pers, IF((Nb_adultes+Nb_enfants)=3,noel_3pers, IF(AND(Nb_adultes=1,(Nb_adultes+Nb_enfants)=4),noel_isole_4pers, IF(AND(Nb_adultes=2,(Nb_adultes+Nb_enfants)=4),noel_couple_4pers, IF(Nb_adultes=1,noel_isole_4pers+noel_pers_sup*(Nb_adultes+Nb_enfants-4), noel_couple_4pers+noel_pers_sup*(Nb_adultes+Nb_enfants-4))))))) -> 0 | AP119: =MAX($AO119,$U119) -> 0 | AQ119: =$K119+$Z$17+$AK119-$AI119+$AL119+($W119>0)*MIN($W119,$F$17)+($K$6=1)*$F$17+$I$16-$I$17+MIN($AA119,montant_CF)+$AD119+$AL$17+$D119+$E$6+$E$7 -> 3319.867926 | AR119: =PA_bonus*( IF($K119+($K119>=Sal_min_AAH_PA)*$AF119>PA_tranche1_smic*smic_n, (MIN($K119+($K119>=Sal_min_AAH_PA)*$AF119,PA_tranche2_smic*smic_n)-PA_tranche1_smic*smic_n)/((PA_tranche2_smic-PA_tranche1_smic)*smic_n),0) +(IF($Z$17+($Z$17>=Sal_min_AAH_PA)*($AI119>=$T119)*$AI119>PA_tranche1_smic*smic_n, (MIN($Z$17+($Z$17>=Sal_min_AAH_PA)*($AI119>=$T119)*$AI119,PA_tranche2_smic*smic_n)-PA_tranche1_smic*smic_n)/((PA_tranche2_smic-PA_tranche1_smic)*smic_n),0)) ) -> 173.2237025 | AS119: =(OR($H$4,($AN119>0))*($A119+$Z$17>0)* IF(($F$16+(1-PA_pente)*($K119+$Z$17+($K119>=Sal_min_AAH_PA)*$AF119+($Z$17>=Sal_min_AAH_PA)*($AI119>=$T119)*$AI119)+$AR119-MAX($AQ119,$F$16))*(1-tx_crds)>=seuil_versement_PA, $F$16+(1-PA_pente)*($K119+$Z$17+($K119>=Sal_min_AAH_PA)*$AF119+($Z$17>=Sal_min_AAH_PA)*($AI119>=$T119)*$AI119)+$AR119-MAX($AQ119,$F$16), 0))*(1-tx_crds) -> 0 | AT119: =IF(rbg<plaf_ars+plaf_ars_enf*($B$6+$B$7+$B$8+$B$9+$B$10+$B$11+$B$12), (ars6_10*$B$8+ars11_14*($B$9+$B$10)+ars15_18*$B$11)/12, IF(rbg<plaf_ars+plaf_ars_enf*($B$6+$B$7+$B$8+$B$9+$B$10+$B$11+$B$12)+(ars6_10*$B$8+ars11_14*($B$9+$B$10)+ars15_18*$B$11)/12, plaf_ars+plaf_ars_enf*($B$6+$B$7+$B$8+$B$9+$B$10+$B$11+$B$12)+(ars6_10*$B$8+ars11_14*($B$9+$B$10)+ars15_18*$B$11)/12-rbg, 0)) -> 0 | AU119: =$Q119*(1+deflat) -> 3095.412824 | AV119: =AU119/$AE$17 -> 3095.412824 | AW119: =IF(0<AV119,taux_ir_t1*MIN(AV119,plafond_ir_t1),0) +IF(plafond_ir_t1<AV119,taux_ir_t2*MIN(AV119-plafond_ir_t1,plafond_ir_t2-plafond_ir_t1),0) +IF(plafond_ir_t2<AV119,taux_ir_t3*MIN(AV119-plafond_ir_t2,plafond_ir_t3-plafond_ir_t2),0) +IF(plafond_ir_t3<AV119,taux_ir_t4*MIN(AV119-plafond_ir_t3,plafond_ir_t4-plafond_ir_t3),0) +IF(plafond_ir_t4<AV119,taux_ir_t5*(AV119-plafond_ir_t4),0) -> 369.1411872 | AX119: =AW119*$AE$17 -> 369.1411872 | AY119: =AU119/Nb_adultes -> 3095.412824 | AZ119: =IF(0<AY119,taux_ir_t1*MIN(AY119,plafond_ir_t1),0) +IF(plafond_ir_t1<AY119,taux_ir_t2*MIN(AY119-plafond_ir_t1,plafond_ir_t2-plafond_ir_t1),0) +IF(plafond_ir_t2<AY119,taux_ir_t3*MIN(AY119-plafond_ir_t2,plafond_ir_t3-plafond_ir_t2),0) +IF(plafond_ir_t3<AY119,taux_ir_t4*MIN(AY119-plafond_ir_t3,plafond_ir_t4-plafond_ir_t3),0) +IF(plafond_ir_t4<AY119,taux_ir_t5*(AY119-plafond_ir_t4),0) -> 369.1411872 | BA119: =AZ119*Nb_adultes -> 369.1411872 | BB119: 0 | BC119: =IF(BB119<$AE$16,AX119,BA119-$AE$16) -> 369.1411872 | BD119: =IF(Nb_adultes=1, MAX(Decote_taux*mont_decote_celib-Decote_taux*BC119,0),MAX(Decote_taux*mont_decote_couple-Decote_taux*BC119,0)) -> 0 | BE119: 369.1411872 | BF119: =IF(BE119>seuil_recouvrement_IR,BE119,0) -> 369.1411872 | BG119: =$K119+$Z$17 -> 3319.867926 | BH119: =X119+AN119+AS119+AA119+W119+AT119+AD119+$AL$16+D119+$E$6+AK119-$AI119+$AL119+$AP119 -> 0 | BI119: 2950.726739 | BJ119: =BI119/$AV$17 -> 2950.726739 | BK119: =1-(BI120-BI119)/(BG120-BG119) -> 0.2795910722 | BL119: =1-(BI120-BI119)/(O120-O119) -> 0.5752938496 | BM119: =1+IF(seuil_D1< BJ119*12,1,0)+IF(seuil_D2<BJ119*12,1,0)+IF(seuil_D3<BJ119*12,1,0)+IF(seuil_D4<BJ119*12,1,0)+IF(seuil_D5<BJ119*12,1,0)+IF(seuil_D6<BJ119*12,1,0)+IF(seuil_D7<BJ119*12,1,0)+IF(seuil_D8<BJ119*12,1,0)+IF(seuil_D9<BJ119*12,1,0) -> 9 | BN119: =$H$5*IF(AN119=0, (AM119<$AH$16)*(Nb_adultes*montant_cmuc_16_49+(Nb_enfants-$B$11-$B$12)*montant_cmuc_0_15+($B$11+$B$12)*montant_cmuc_16_49), (Nb_adultes*montant_cmuc_16_49+(Nb_enfants-$B$11-$B$12)*montant_cmuc_0_15+($B$11+$B$12)*montant_cmuc_16_49)) -> 0 | BO119: =((Q119/$AV$16<plaf_cheque_energie_t1) * IF($AV$16=1,montant_t1_1UC,IF($AV$16<2,montant_t1_12UC,montant_t1_2UC_et_plus))+ (AND(Q119/$AV$16>=plaf_cheque_energie_t1,Q119/$AV$16<plaf_cheque_energie_t2)) * IF($AV$16=1,montant_t2_1UC,IF($AV$16<2,montant_t2_12UC,montant_t2_2UC_et_plus))+ (AND(Q119/$AV$16>=plaf_cheque_energie_t2,Q119/$AV$16<plaf_cheque_energie_t3)) * IF($AV$16=1,montant_t3_1UC,IF($AV$16<2,montant_t3_12UC,montant_t3_2UC_et_plus))+ (AND(Q119/$AV$16>=plaf_cheque_energie_t3,Q119/$AV$16<plaf_cheque_energie_t4)) * IF($AV$16=1,montant_t4_1UC,IF($AV$16<2,montant_t4_12UC,montant_t4_2UC_et_plus))+ (AND(Q119/$AV$16>=plaf_cheque_energie_t3,Q119/$AV$16<plaf_cheque_energie_t5)) *bonus_2022 )/12 -> 0 | BP119: 2950.726739
A120: =A119+$E$9 -> 4237.05312 | B120: 1 | C120: 2.425 | D120: 0 | E120: 0 | F120: 1519.646673 | G120: =MAX(tx_exo_fillon_smic*A120*(plafond_exo_fillon*(B120/C120)-1)/(plafond_exo_fillon-1),0) -> 0 | H120: 478.3470501 | I120: 283.0775189 | J120: 120.724236 | K120: 3354.904315 | L120: 3475.628551 | M120: 1 | N120: 2.425693793 | O120: 5756.699793 | P120: 3306.972931 | Q120: 2976.275638 | R120: 2815.776384 | S120: 2815.776384 | T120: 0 | U120: =IF(AND($T120>0,$T120=$AL120),Barème!$C$199,0) -> 0 | V120: 3133.333333 | W120: 0 | X120: 0 | Y120: 4059.5 | Z120: 2030.083333 | AA120: 0 | AB120: 3074.166667 | AC120: 2584.583333 | AD120: 0 | AE120: 1875.708523 | AF120: 0 | AG120: =IF(AND($A120=0,AF120=AAH_montant,Base!$W120>0,$H$10=1),AAH_mva,0) -> 0 | AH120: 2711.399029 | AI120: 0 | AJ120: =IF(AND($E$4=0,AI120=AAH_montant,Base!$W120>0,$J$10=1),AAH_mva,0) -> 0 | AK120: 0 | AL120: 0 | AM120: 3354.904315 | AN120: 0 | AO120: 0 | AP120: 0 | AQ120: 3354.904315 | AR120: 173.2237025 | AS120: 0 | AT120: 0 | AU120: 3128.065696 | AV120: 3128.065696 | AW120: 378.9370488 | AX120: 378.9370488 | AY120: 3128.065696 | AZ120: 378.9370488 | BA120: 378.9370488 | BB120: 0 | BC120: 378.9370488 | BD120: 0 | BE120: 378.9370488 | BF120: 378.9370488 | BG120: 3354.904315 | BH120: 0 | BI120: 2975.967266 | BJ120: 2975.967266 | BK120: 0.2795910722 | BL120: 0.5752938496 | BM120: 9 | BN120: 0 | BO120: 0 | BP120: 2975.967266
A121: 4280.73408 | B121: 1 | C121: 2.45 | D121: 0 | E121: 0 | F121: 1535.39628 | G121: 0 | H121: 482.8287166 | I121: 285.9958439 | J121: 121.9688158 | K121: 3389.940704 | L121: 3511.90952 | M121: 1 | N121: 2.451026126 | O121: 5816.13036 | P121: 3341.493358 | Q121: 3007.344022 | R121: 2845.169368 | S121: 2845.169368 | T121: 0 | U121: =IF(AND($T121>0,$T121=$AL121),Barème!$C$199,0) -> 0 | V121: 3166.666667 | W121: 0 | X121: 0 | Y121: 4059.5 | Z121: 2030.083333 | AA121: 0 | AB121: 3074.166667 | AC121: 2584.583333 | AD121: 0 | AE121: 1897.477104 | AF121: 0 | AG121: =IF(AND($A121=0,AF121=AAH_montant,Base!$W121>0,$H$10=1),AAH_mva,0) -> 0 | AH121: 2744.051901 | AI121: 0 | AJ121: =IF(AND($E$4=0,AI121=AAH_montant,Base!$W121>0,$J$10=1),AAH_mva,0) -> 0 | AK121: 0 | AL121: 0 | AM121: 3389.940704 | AN121: 0 | AO121: 0 | AP121: 0 | AQ121: 3389.940704 | AR121: 173.2237025 | AS121: 0 | AT121: 0 | AU121: 3160.718568 | AV121: 3160.718568 | AW121: 388.7329103 | AX121: 388.7329103 | AY121: 3160.718568 | AZ121: 388.7329103 | BA121: 388.7329103 | BB121: 0 | BC121: 388.7329103 | BD121: 0 | BE121: 388.7329103 | BF121: 388.7329103 | BG121: 3389.940704 | BH121: 0 | BI121: 3001.207793 | BJ121: 3001.207793 | BK121: 0.2795910722 | BL121: 0.5752938496 | BM121: 9 | BN121: 0 | BO121: 0 | BP121: 3001.207793
A122: 4324.41504 | B122: 1 | C122: 2.475 | D122: 0 | E122: 0 | F122: 1551.145887 | G122: 0 | H122: 487.3103831 | I122: 288.9141688 | J122: 123.2133955 | K122: 3424.977093 | L122: 3548.190488 | M122: 1 | N122: 2.476358458 | O122: 5875.560927 | P122: 3376.013785 | Q122: 3038.412407 | R122: 2874.562352 | S122: 2874.562352 | T122: 0 | U122: =IF(AND($T122>0,$T122=$AL122),Barème!$C$199,0) -> 0 | V122: 3200 | W122: 0 | X122: 0 | Y122: 4059.5 | Z122: 2030.083333 | AA122: 0 | AB122: 3074.166667 | AC122: 2584.583333 | AD122: 0 | AE122: 1919.245685 | AF122: 0 | AG122: =IF(AND($A122=0,AF122=AAH_montant,Base!$W122>0,$H$10=1),AAH_mva,0) -> 0 | AH122: 2776.704773 | AI122: 0 | AJ122: =IF(AND($E$4=0,AI122=AAH_montant,Base!$W122>0,$J$10=1),AAH_mva,0) -> 0 | AK122: 0 | AL122: 0 | AM122: 3424.977093 | AN122: 0 | AO122: 0 | AP122: 0 | AQ122: 3424.977093 | AR122: 173.2237025 | AS122: 0 | AT122: 0 | AU122: 3193.371439 | AV122: 3193.371439 | AW122: 398.5287718 | AX122: 398.5287718 | AY122: 3193.371439 | AZ122: 398.5287718 | BA122: 398.5287718 | BB122: 0 | BC122: 398.5287718 | BD122: 0 | BE122: 398.5287718 | BF122: 398.5287718 | BG122: 3424.977093 | BH122: 0 | BI122: 3026.448321 | BJ122: 3026.448321 | BK122: 0.2795910722 | BL122: 0.5752938496 | BM122: 9 | BN122: 0 | BO122: 0 | BP122: 3026.448321
A123: 4368.096 | B123: 1 | C123: 2.5 | D123: 0 | E123: 0 | F123: 1566.895494 | G123: 0 | H123: 491.7920496 | I123: 291.8324938 | J123: 124.4579753 | K123: 3460.013481 | L123: 3584.471457 | M123: 1 | N123: 2.50169079 | O123: 5934.991494 | P123: 3410.534212 | Q123: 3069.480791 | R123: 2903.955336 | S123: 2903.955336 | T123: 0 | U123: =IF(AND($T123>0,$T123=$AL123),Barème!$C$199,0) -> 0 | V123: 3233.333333 | W123: 0 | X123: 0 | Y123: 4059.5 | Z123: 2030.083333 | AA123: 0 | AB123: 3074.166667 | AC123: 2584.583333 | AD123: 0 | AE123: 1941.014266 | AF123: 0 | AG123: =IF(AND($A123=0,AF123=AAH_montant,Base!$W123>0,$H$10=1),AAH_mva,0) -> 0 | AH123: 2809.357644 | AI123: 0 | AJ123: =IF(AND($E$4=0,AI123=AAH_montant,Base!$W123>0,$J$10=1),AAH_mva,0) -> 0 | AK123: 0 | AL123: 0 | AM123: 3460.013481 | AN123: 0 | AO123: 0 | AP123: 0 | AQ123: 3460.013481 | AR123: 173.2237025 | AS123: 0 | AT123: 0 | AU123: 3226.024311 | AV123: 3226.024311 | AW123: 408.3246333 | AX123: 408.3246333 | AY123: 3226.024311 | AZ123: 408.3246333 | BA123: 408.3246333 | BB123: 0 | BC123: 408.3246333 | BD123: 0 | BE123: 408.3246333 | BF123: 408.3246333 | BG123: 3460.013481 | BH123: 0 | BI123: 3051.688848 | BJ123: 3051.688848 | BK123: 0.2795910722 | BL123: 0.9221301088 | BM123: 9 | BN123: 0 | BO123: 0 | BP123: 3051.688848
A124: 4411.77696 | B124: 1 | C124: 2.525 | D124: 0 | E124: 0 | F124: 1847.351718 | G124: 0 | H124: 496.2737161 | I124: 294.7508187 | J124: 125.702555 | K124: 3495.04987 | L124: 3620.752425 | M124: 1 | N124: 2.527023123 | O124: 6259.128678 | P124: 3445.054639 | Q124: 3100.549175 | R124: 2933.348321 | S124: 2933.348321 | T124: 0 | U124: =IF(AND($T124>0,$T124=$AL124),Barème!$C$199,0) -> 0 | V124: 3266.666667 | W124: 0 | X124: 0 | Y124: 4059.5 | Z124: 2030.083333 | AA124: 0 | AB124: 3074.166667 | AC124: 2584.583333 | AD124: 0 | AE124: 1962.782847 | AF124: 0 | AG124: =IF(AND($A124=0,AF124=AAH_montant,Base!$W124>0,$H$10=1),AAH_mva,0) -> 0 | AH124: 2842.010516 | AI124: 0 | AJ124: =IF(AND($E$4=0,AI124=AAH_montant,Base!$W124>0,$J$10=1),AAH_mva,0) -> 0 | AK124: 0 | AL124: 0 | AM124: 3495.04987 | AN124: 0 | AO124: 0 | AP124: 0 | AQ124: 3495.04987 | AR124: 173.2237025 | AS124: 0 | AT124: 0 | AU124: 3258.677183 | AV124: 3258.677183 | AW124: 418.1204948 | AX124: 418.1204948 | AY124: 3258.677183 | AZ124: 418.1204948 | BA124: 418.1204948 | BB124: 0 | BC124: 418.1204948 | BD124: 0 | BE124: 418.1204948 | BF124: 418.1204948 | BG124: 3495.04987 | BH124: 0 | BI124: 3076.929375 | BJ124: 3076.929375 | BK124: 0.2795910722 | BL124: 0.5932321056 | BM124: 9 | BN124: 0 | BO124: 0 | BP124: 3076.929375
A125: 4455.45792 | B125: 1 | C125: 2.55 | D125: 0 | E125: 0 | F125: 1865.722183 | G125: 0 | H125: 500.7553826 | I125: 297.6691436 | J125: 126.9471348 | K125: 3530.086259 | L125: 3657.033394 | M125: 1 | N125: 2.552355455 | O125: 6321.180103 | P125: 3479.575065 | Q125: 3131.617559 | R125: 2962.741305 | S125: 2962.741305 | T125: 0 | U125: =IF(AND($T125>0,$T125=$AL125),Barème!$C$199,0) -> 0 | V125: 3291.666667 | W125: 0 | X125: 0 | Y125: 4059.5 | Z125: 2030.083333 | AA125: 0 | AB125: 3074.166667 | AC125: 2584.583333 | AD125: 0 | AE125: 1984.551428 | AF125: 0 | AG125: =IF(AND($A125=0,AF125=AAH_montant,Base!$W125>0,$H$10=1),AAH_mva,0) -> 0 | AH125: 2874.663388 | AI125: 0 | AJ125: =IF(AND($E$4=0,AI125=AAH_montant,Base!$W125>0,$J$10=1),AAH_mva,0) -> 0 | AK125: 0 | AL125: 0 | AM125: 3530.086259 | AN125: 0 | AO125: 0 | AP125: 0 | AQ125: 3530.086259 | AR125: 173.2237025 | AS125: 0 | AT125: 0 | AU125: 3291.330054 | AV125: 3291.330054 | AW125: 427.9163563 | AX125: 427.9163563 | AY125: 3291.330054 | AZ125: 427.9163563 | BA125: 427.9163563 | BB125: 0 | BC125: 427.9163563 | BD125: 0 | BE125: 427.9163563 | BF125: 427.9163563 | BG125: 3530.086259 | BH125: 0 | BI125: 3102.169903 | BJ125: 3102.169903 | BK125: 0.2795910722 | BL125: 0.5932321056 | BM125: 9 | BN125: 0 | BO125: 0 | BP125: 3102.169903
A126: 4499.13888 | B126: 1 | C126: 2.575 | D126: 0 | E126: 0 | F126: 1884.092647 | G126: 0 | H126: 505.2370491 | I126: 300.5874686 | J126: 128.1917145 | K126: 3565.122648 | L126: 3693.314362 | M126: 1 | N126: 2.577687787 | O126: 6383.231527 | P126: 3514.095492 | Q126: 3162.685943 | R126: 2992.134289 | S126: 2992.134289 | T126: 0 | U126: =IF(AND($T126>0,$T126=$AL126),Barème!$C$199,0) -> 0 | V126: 3325 | W126: 0 | X126: 0 | Y126: 4059.5 | Z126: 2030.083333 | AA126: 0 | AB126: 3074.166667 | AC126: 2584.583333 | AD126: 0 | AE126: 2006.320009 | AF126: 0 | AG126: =IF(AND($A126=0,AF126=AAH_montant,Base!$W126>0,$H$10=1),AAH_mva,0) -> 0 | AH126: 2907.316259 | AI126: 0 | AJ126: =IF(AND($E$4=0,AI126=AAH_montant,Base!$W126>0,$J$10=1),AAH_mva,0) -> 0 | AK126: 0 | AL126: 0 | AM126: 3565.122648 | AN126: 0 | AO126: 0 | AP126: 0 | AQ126: 3565.122648 | AR126: 173.2237025 | AS126: 0 | AT126: 0 | AU126: 3323.982926 | AV126: 3323.982926 | AW126: 437.7122178 | AX126: 437.7122178 | AY126: 3323.982926 | AZ126: 437.7122178 | BA126: 437.7122178 | BB126: 0 | BC126: 437.7122178 | BD126: 0 | BE126: 437.7122178 | BF126: 437.7122178 | BG126: 3565.122648 | BH126: 0 | BI126: 3127.41043 | BJ126: 3127.41043 | BK126: 0.2795910722 | BL126: 0.5932321056 | BM126: 9 | BN126: 0 | BO126: 0 | BP126: 3127.41043
A127: 4542.81984 | B127: 1 | C127: 2.6 | D127: 0 | E127: 0 | F127: 1902.463112 | G127: 0 | H127: 509.7187156 | I127: 303.5057935 | J127: 129.4362943 | K127: 3600.159037 | L127: 3729.595331 | M127: 1 | N127: 2.603020119 | O127: 6445.282952 | P127: 3548.615919 | Q127: 3193.754327 | R127: 3021.527273 | S127: 3021.527273 | T127: 0 | U127: =IF(AND($T127>0,$T127=$AL127),Barème!$C$199,0) -> 0 | V127: 3358.333333 | W127: 0 | X127: 0 | Y127: 4059.5 | Z127: 2030.083333 | AA127: 0 | AB127: 3074.166667 | AC127: 2584.583333 | AD127: 0 | AE127: 2028.088591 | AF127: 0 | AG127: =IF(AND($A127=0,AF127=AAH_montant,Base!$W127>0,$H$10=1),AAH_mva,0) -> 0 | AH127: 2939.969131 | AI127: 0 | AJ127: =IF(AND($E$4=0,AI127=AAH_montant,Base!$W127>0,$J$10=1),AAH_mva,0) -> 0 | AK127: 0 | AL127: 0 | AM127: 3600.159037 | AN127: 0 | AO127: 0 | AP127: 0 | AQ127: 3600.159037 | AR127: 173.2237025 | AS127: 0 | AT127: 0 | AU127: 3356.635798 | AV127: 3356.635798 | AW127: 447.5080793 | AX127: 447.5080793 | AY127: 3356.635798 | AZ127: 447.5080793 | BA127: 447.5080793 | BB127: 0 | BC127: 447.5080793 | BD127: 0 | BE127: 447.5080793 | BF127: 447.5080793 | BG127: 3600.159037 | BH127: 0 | BI127: 3152.650957 | BJ127: 3152.650957 | BK127: 0.2795910722 | BL127: 0.5932321056 | BM127: 9 | BN127: 0 | BO127: 0 | BP127: 3152.650957
A128: 4586.5008 | B128: 1 | C128: 2.625 | D128: 0 | E128: 0 | F128: 1920.833576 | G128: 0 | H128: 514.2003821 | I128: 306.4241184 | J128: 130.680874 | K128: 3635.195425 | L128: 3765.876299 | M128: 1 | N128: 2.628352452 | O128: 6507.334376 | P128: 3583.136346 | Q128: 3224.822711 | R128: 3050.920257 | S128: 3050.920257 | T128: 0 | U128: =IF(AND($T128>0,$T128=$AL128),Barème!$C$199,0) -> 0 | V128: 3391.666667 | W128: 0 | X128: 0 | Y128: 4059.5 | Z128: 2030.083333 | AA128: 0 | AB128: 3074.166667 | AC128: 2584.583333 | AD128: 0 | AE128: 2049.857172 | AF128: 0 | AG128: =IF(AND($A128=0,AF128=AAH_montant,Base!$W128>0,$H$10=1),AAH_mva,0) -> 0 | AH128: 2972.622003 | AI128: 0 | AJ128: =IF(AND($E$4=0,AI128=AAH_montant,Base!$W128>0,$J$10=1),AAH_mva,0) -> 0 | AK128: 0 | AL128: 0 | AM128: 3635.195425 | AN128: 0 | AO128: 0 | AP128: 0 | AQ128: 3635.195425 | AR128: 173.2237025 | AS128: 0 | AT128: 0 | AU128: 3389.28867 | AV128: 3389.28867 | AW128: 457.3039409 | AX128: 457.3039409 | AY128: 3389.28867 | AZ128: 457.3039409 | BA128: 457.3039409 | BB128: 0 | BC128: 457.3039409 | BD128: 0 | BE128: 457.3039409 | BF128: 457.3039409 | BG128: 3635.195425 | BH128: 0 | BI128: 3177.891485 | BJ128: 3177.891485 | BK128: 0.2795910722 | BL128: 0.5932321056 | BM128: 9 | BN128: 0 | BO128: 0 | BP128: 3177.891485
A129: 4630.18176 | B129: 1 | C129: 2.65 | D129: 0 | E129: 0 | F129: 1939.204041 | G129: 0 | H129: 518.6820486 | I129: 309.3424434 | J129: 131.9254538 | K129: 3670.231814 | L129: 3802.157268 | M129: 1 | N129: 2.653684784 | O129: 6569.385801 | P129: 3617.656773 | Q129: 3255.891095 | R129: 3080.313241 | S129: 3080.313241 | T129: 0 | U129: =IF(AND($T129>0,$T129=$AL129),Barème!$C$199,0) -> 0 | V129: 3425 | W129: 0 | X129: 0 | Y129: 4059.5 | Z129: 2030.083333 | AA129: 0 | AB129: 3074.166667 | AC129: 2584.583333 | AD129: 0 | AE129: 2071.625753 | AF129: 0 | AG129: =IF(AND($A129=0,AF129=AAH_montant,Base!$W129>0,$H$10=1),AAH_mva,0) -> 0 | AH129: 3005.274875 | AI129: 0 | AJ129: =IF(AND($E$4=0,AI129=AAH_montant,Base!$W129>0,$J$10=1),AAH_mva,0) -> 0 | AK129: 0 | AL129: 0 | AM129: 3670.231814 | AN129: 0 | AO129: 0 | AP129: 0 | AQ129: 3670.231814 | AR129: 173.2237025 | AS129: 0 | AT129: 0 | AU129: 3421.941541 | AV129: 3421.941541 | AW129: 467.0998024 | AX129: 467.0998024 | AY129: 3421.941541 | AZ129: 467.0998024 | BA129: 467.0998024 | BB129: 0 | BC129: 467.0998024 | BD129: 0 | BE129: 467.0998024 | BF129: 467.0998024 | BG129: 3670.231814 | BH129: 0 | BI129: 3203.132012 | BJ129: 3203.132012 | BK129: 0.2795910722 | BL129: 0.5932321056 | BM129: 9 | BN129: 0 | BO129: 0 | BP129: 3203.132012
A130: 4673.86272 | B130: 1 | C130: 2.675 | D130: 0 | E130: 0 | F130: 1957.574506 | G130: 0 | H130: 523.1637151 | I130: 312.2607683 | J130: 133.1700335 | K130: 3705.268203 | L130: 3838.438237 | M130: 1 | N130: 2.679017116 | O130: 6631.437226 | P130: 3652.177199 | Q130: 3286.959479 | R130: 3109.706225 | S130: 3109.706225 | T130: 0 | U130: =IF(AND($T130>0,$T130=$AL130),Barème!$C$199,0) -> 0 | V130: 3458.333333 | W130: 0 | X130: 0 | Y130: 4059.5 | Z130: 2030.083333 | AA130: 0 | AB130: 3074.166667 | AC130: 2584.583333 | AD130: 0 | AE130: 2093.394334 | AF130: 0 | AG130: =IF(AND($A130=0,AF130=AAH_montant,Base!$W130>0,$H$10=1),AAH_mva,0) -> 0 | AH130: 3037.927746 | AI130: 0 | AJ130: =IF(AND($E$4=0,AI130=AAH_montant,Base!$W130>0,$J$10=1),AAH_mva,0) -> 0 | AK130: 0 | AL130: 0 | AM130: 3705.268203 | AN130: 0 | AO130: 0 | AP130: 0 | AQ130: 3705.268203 | AR130: 173.2237025 | AS130: 0 | AT130: 0 | AU130: 3454.594413 | AV130: 3454.594413 | AW130: 476.8956639 | AX130: 476.8956639 | AY130: 3454.594413 | AZ130: 476.8956639 | BA130: 476.8956639 | BB130: 0 | BC130: 476.8956639 | BD130: 0 | BE130: 476.8956639 | BF130: 476.8956639 | BG130: 3705.268203 | BH130: 0 | BI130: 3228.372539 | BJ130: 3228.372539 | BK130: 0.2795910722 | BL130: 0.5932321056 | BM130: 9 | BN130: 0 | BO130: 0 | BP130: 3228.372539
A131: 4717.54368 | B131: 1 | C131: 2.7 | D131: 0 | E131: 0 | F131: 1975.94497 | G131: 0 | H131: 527.6453816 | I131: 315.1790933 | J131: 134.4146133 | K131: 3740.304592 | L131: 3874.719205 | M131: 1 | N131: 2.704349449 | O131: 6693.48865 | P131: 3686.697626 | Q131: 3318.027864 | R131: 3139.099209 | S131: 3139.099209 | T131: 0 | U131: =IF(AND($T131>0,$T131=$AL131),Barème!$C$199,0) -> 0 | V131: 3491.666667 | W131: 0 | X131: 0 | Y131: 4059.5 | Z131: 2030.083333 | AA131: 0 | AB131: 3074.166667 | AC131: 2584.583333 | AD131: 0 | AE131: 2115.162915 | AF131: 0 | AG131: =IF(AND($A131=0,AF131=AAH_montant,Base!$W131>0,$H$10=1),AAH_mva,0) -> 0 | AH131: 3070.580618 | AI131: 0 | AJ131: =IF(AND($E$4=0,AI131=AAH_montant,Base!$W131>0,$J$10=1),AAH_mva,0) -> 0 | AK131: 0 | AL131: 0 | AM131: 3740.304592 | AN131: 0 | AO131: 0 | AP131: 0 | AQ131: 3740.304592 | AR131: 173.2237025 | AS131: 0 | AT131: 0 | AU131: 3487.247285 | AV131: 3487.247285 | AW131: 486.6915254 | AX131: 486.6915254 | AY131: 3487.247285 | AZ131: 486.6915254 | BA131: 486.6915254 | BB131: 0 | BC131: 486.6915254 | BD131: 0 | BE131: 486.6915254 | BF131: 486.6915254 | BG131: 3740.304592 | BH131: 0 | BI131: 3253.613066 | BJ131: 3253.613066 | BK131: 0.2795910722 | BL131: 0.5932321056 | BM131: 9 | BN131: 0 | BO131: 0 | BP131: 3253.613066
A132: 4761.22464 | B132: 1 | C132: 2.725 | D132: 0 | E132: 0 | F132: 1994.315435 | G132: 0 | H132: 532.1270481 | I132: 318.0974182 | J132: 135.6591931 | K132: 3775.340981 | L132: 3911.000174 | M132: 1 | N132: 2.729681781 | O132: 6755.540075 | P132: 3721.218053 | Q132: 3349.096248 | R132: 3168.492193 | S132: 3168.492193 | T132: 0 | U132: =IF(AND($T132>0,$T132=$AL132),Barème!$C$199,0) -> 0 | V132: 3525 | W132: 0 | X132: 0 | Y132: 4059.5 | Z132: 2030.083333 | AA132: 0 | AB132: 3074.166667 | AC132: 2584.583333 | AD132: 0 | AE132: 2136.931496 | AF132: 0 | AG132: =IF(AND($A132=0,AF132=AAH_montant,Base!$W132>0,$H$10=1),AAH_mva,0) -> 0 | AH132: 3103.23349 | AI132: 0 | AJ132: =IF(AND($E$4=0,AI132=AAH_montant,Base!$W132>0,$J$10=1),AAH_mva,0) -> 0 | AK132: 0 | AL132: 0 | AM132: 3775.340981 | AN132: 0 | AO132: 0 | AP132: 0 | AQ132: 3775.340981 | AR132: 173.2237025 | AS132: 0 | AT132: 0 | AU132: 3519.900156 | AV132: 3519.900156 | AW132: 496.4873869 | AX132: 496.4873869 | AY132: 3519.900156 | AZ132: 496.4873869 | BA132: 496.4873869 | BB132: 0 | BC132: 496.4873869 | BD132: 0 | BE132: 496.4873869 | BF132: 496.4873869 | BG132: 3775.340981 | BH132: 0 | BI132: 3278.853594 | BJ132: 3278.853594 | BK132: 0.2795910722 | BL132: 0.5932321056 | BM132: 9 | BN132: 0 | BO132: 0 | BP132: 3278.853594
A133: 4804.9056 | B133: 1 | C133: 2.75 | D133: 0 | E133: 0 | F133: 2012.685899 | G133: 0 | H133: 536.6087146 | I133: 321.0157431 | J133: 136.9037728 | K133: 3810.377369 | L133: 3947.281142 | M133: 1 | N133: 2.755014113 | O133: 6817.591499 | P133: 3755.73848 | Q133: 3380.164632 | R133: 3197.885177 | S133: 3197.885177 | T133: 0 | U133: =IF(AND($T133>0,$T133=$AL133),Barème!$C$199,0) -> 0 | V133: 3558.333333 | W133: 0 | X133: 0 | Y133: 4059.5 | Z133: 2030.083333 | AA133: 0 | AB133: 3074.166667 | AC133: 2584.583333 | AD133: 0 | AE133: 2158.700077 | AF133: 0 | AG133: =IF(AND($A133=0,AF133=AAH_montant,Base!$W133>0,$H$10=1),AAH_mva,0) -> 0 | AH133: 3135.886361 | AI133: 0 | AJ133: =IF(AND($E$4=0,AI133=AAH_montant,Base!$W133>0,$J$10=1),AAH_mva,0) -> 0 | AK133: 0 | AL133: 0 | AM133: 3810.377369 | AN133: 0 | AO133: 0 | AP133: 0 | AQ133: 3810.377369 | AR133: 173.2237025 | AS133: 0 | AT133: 0 | AU133: 3552.553028 | AV133: 3552.553028 | AW133: 506.2832484 | AX133: 506.2832484 | AY133: 3552.553028 | AZ133: 506.2832484 | BA133: 506.2832484 | BB133: 0 | BC133: 506.2832484 | BD133: 0 | BE133: 506.2832484 | BF133: 506.2832484 | BG133: 3810.377369 | BH133: 0 | BI133: 3304.094121 | BJ133: 3304.094121 | BK133: 0.2795910722 | BL133: 0.5932321056 | BM133: 9 | BN133: 0 | BO133: 0 | BP133: 3304.094121
A134: 4848.58656 | B134: 1 | C134: 2.775 | D134: 0 | E134: 0 | F134: 2031.056364 | G134: 0 | H134: 541.0903811 | I134: 323.9340681 | J134: 138.1483526 | K134: 3845.413758 | L134: 3983.562111 | M134: 1 | N134: 2.780346445 | O134: 6879.642924 | P134: 3790.258907 | Q134: 3411.233016 | R134: 3227.278161 | S134: 3227.278161 | T134: 0 | U134: =IF(AND($T134>0,$T134=$AL134),Barème!$C$199,0) -> 0 | V134: 3591.666667 | W134: 0 | X134: 0 | Y134: 4059.5 | Z134: 2030.083333 | AA134: 0 | AB134: 3074.166667 | AC134: 2584.583333 | AD134: 0 | AE134: 2180.468659 | AF134: 0 | AG134: =IF(AND($A134=0,AF134=AAH_montant,Base!$W134>0,$H$10=1),AAH_mva,0) -> 0 | AH134: 3168.539233 | AI134: 0 | AJ134: =IF(AND($E$4=0,AI134=AAH_montant,Base!$W134>0,$J$10=1),AAH_mva,0) -> 0 | AK134: 0 | AL134: 0 | AM134: 3845.413758 | AN134: 0 | AO134: 0 | AP134: 0 | AQ134: 3845.413758 | AR134: 173.2237025 | AS134: 0 | AT134: 0 | AU134: 3585.2059 | AV134: 3585.2059 | AW134: 516.0791099 | AX134: 516.0791099 | AY134: 3585.2059 | AZ134: 516.0791099 | BA134: 516.0791099 | BB134: 0 | BC134: 516.0791099 | BD134: 0 | BE134: 516.0791099 | BF134: 516.0791099 | BG134: 3845.413758 | BH134: 0 | BI134: 3329.334648 | BJ134: 3329.334648 | BK134: 0.2795910722 | BL134: 0.5932321056 | BM134: 9 | BN134: 0 | BO134: 0 | BP134: 3329.334648
A135: 4892.26752 | B135: 1 | C135: 2.8 | D135: 0 | E135: 0 | F135: 2049.426828 | G135: 0 | H135: 545.5720476 | I135: 326.852393 | J135: 139.3929323 | K135: 3880.450147 | L135: 4019.843079 | M135: 1 | N135: 2.805678778 | O135: 6941.694348 | P135: 3824.779333 | Q135: 3442.3014 | R135: 3256.671145 | S135: 3256.671145 | T135: 0 | U135: =IF(AND($T135>0,$T135=$AL135),Barème!$C$199,0) -> 0 | V135: 3625 | W135: 0 | X135: 0 | Y135: 4059.5 | Z135: 2030.083333 | AA135: 0 | AB135: 3074.166667 | AC135: 2584.583333 | AD135: 0 | AE135: 2202.23724 | AF135: 0 | AG135: =IF(AND($A135=0,AF135=AAH_montant,Base!$W135>0,$H$10=1),AAH_mva,0) -> 0 | AH135: 3201.192105 | AI135: 0 | AJ135: =IF(AND($E$4=0,AI135=AAH_montant,Base!$W135>0,$J$10=1),AAH_mva,0) -> 0 | AK135: 0 | AL135: 0 | AM135: 3880.450147 | AN135: 0 | AO135: 0 | AP135: 0 | AQ135: 3880.450147 | AR135: 173.2237025 | AS135: 0 | AT135: 0 | AU135: 3617.858771 | AV135: 3617.858771 | AW135: 525.8749714 | AX135: 525.8749714 | AY135: 3617.858771 | AZ135: 525.8749714 | BA135: 525.8749714 | BB135: 0 | BC135: 525.8749714 | BD135: 0 | BE135: 525.8749714 | BF135: 525.8749714 | BG135: 3880.450147 | BH135: 0 | BI135: 3354.575176 | BJ135: 3354.575176 | BK135: 0.2795910722 | BL135: 0.5932321056 | BM135: 9 | BN135: 0 | BO135: 0 | BP135: 3354.575176
A136: 4935.94848 | B136: 1 | C136: 2.825 | D136: 0 | E136: 0 | F136: 2067.797293 | G136: 0 | H136: 550.053714 | I136: 329.7707179 | J136: 140.6375121 | K136: 3915.486536 | L136: 4056.124048 | M136: 1 | N136: 2.83101111 | O136: 7003.745773 | P136: 3859.29976 | Q136: 3473.369784 | R136: 3286.064129 | S136: 3286.064129 | T136: 0 | U136: =IF(AND($T136>0,$T136=$AL136),Barème!$C$199,0) -> 0 | V136: 3658.333333 | W136: 0 | X136: 0 | Y136: 4059.5 | Z136: 2030.083333 | AA136: 0 | AB136: 3074.166667 | AC136: 2584.583333 | AD136: 0 | AE136: 2224.005821 | AF136: 0 | AG136: =IF(AND($A136=0,AF136=AAH_montant,Base!$W136>0,$H$10=1),AAH_mva,0) -> 0 | AH136: 3233.844977 | AI136: 0 | AJ136: =IF(AND($E$4=0,AI136=AAH_montant,Base!$W136>0,$J$10=1),AAH_mva,0) -> 0 | AK136: 0 | AL136: 0 | AM136: 3915.486536 | AN136: 0 | AO136: 0 | AP136: 0 | AQ136: 3915.486536 | AR136: 173.2237025 | AS136: 0 | AT136: 0 | AU136: 3650.511643 | AV136: 3650.511643 | AW136: 535.670833 | AX136: 535.670833 | AY136: 3650.511643 | AZ136: 535.670833 | BA136: 535.670833 | BB136: 0 | BC136: 535.670833 | BD136: 0 | BE136: 535.670833 | BF136: 535.670833 | BG136: 3915.486536 | BH136: 0 | BI136: 3379.815703 | BJ136: 3379.815703 | BK136: 0.2795910722 | BL136: 0.5932321056 | BM136: 9 | BN136: 0 | BO136: 0 | BP136: 3379.815703
A137: 4979.62944 | B137: 1 | C137: 2.85 | D137: 0 | E137: 0 | F137: 2086.167757 | G137: 0 | H137: 554.5353805 | I137: 332.6890429 | J137: 141.8820918 | K137: 3950.522925 | L137: 4092.405017 | M137: 1 | N137: 2.856343442 | O137: 7065.797197 | P137: 3893.820187 | Q137: 3504.438168 | R137: 3315.457113 | S137: 3315.457113 | T137: 0 | U137: =IF(AND($T137>0,$T137=$AL137),Barème!$C$199,0) -> 0 | V137: 3683.333333 | W137: 0 | X137: 0 | Y137: 4059.5 | Z137: 2030.083333 | AA137: 0 | AB137: 3074.166667 | AC137: 2584.583333 | AD137: 0 | AE137: 2245.774402 | AF137: 0 | AG137: =IF(AND($A137=0,AF137=AAH_montant,Base!$W137>0,$H$10=1),AAH_mva,0) -> 0 | AH137: 3266.497848 | AI137: 0 | AJ137: =IF(AND($E$4=0,AI137=AAH_montant,Base!$W137>0,$J$10=1),AAH_mva,0) -> 0 | AK137: 0 | AL137: 0 | AM137: 3950.522925 | AN137: 0 | AO137: 0 | AP137: 0 | AQ137: 3950.522925 | AR137: 173.2237025 | AS137: 0 | AT137: 0 | AU137: 3683.164515 | AV137: 3683.164515 | AW137: 545.4666945 | AX137: 545.4666945 | AY137: 3683.164515 | AZ137: 545.4666945 | BA137: 545.4666945 | BB137: 0 | BC137: 545.4666945 | BD137: 0 | BE137: 545.4666945 | BF137: 545.4666945 | BG137: 3950.522925 | BH137: 0 | BI137: 3405.05623 | BJ137: 3405.05623 | BK137: 0.2795910722 | BL137: 0.5932321056 | BM137: 9 | BN137: 0 | BO137: 0 | BP137: 3405.05623
A138: 5023.3104 | B138: 1 | C138: 2.875 | D138: 0 | E138: 0 | F138: 2104.538222 | G138: 0 | H138: 559.017047 | I138: 335.6073678 | J138: 143.1266716 | K138: 3985.559314 | L138: 4128.685985 | M138: 1 | N138: 2.881675775 | O138: 7127.848622 | P138: 3928.340614 | Q138: 3535.506552 | R138: 3344.850097 | S138: 3344.850097 | T138: 0 | U138: =IF(AND($T138>0,$T138=$AL138),Barème!$C$199,0) -> 0 | V138: 3716.666667 | W138: 0 | X138: 0 | Y138: 4059.5 | Z138: 2030.083333 | AA138: 0 | AB138: 3074.166667 | AC138: 2584.583333 | AD138: 0 | AE138: 2267.542983 | AF138: 0 | AG138: =IF(AND($A138=0,AF138=AAH_montant,Base!$W138>0,$H$10=1),AAH_mva,0) -> 0 | AH138: 3299.15072 | AI138: 0 | AJ138: =IF(AND($E$4=0,AI138=AAH_montant,Base!$W138>0,$J$10=1),AAH_mva,0) -> 0 | AK138: 0 | AL138: 0 | AM138: 3985.559314 | AN138: 0 | AO138: 0 | AP138: 0 | AQ138: 3985.559314 | AR138: 173.2237025 | AS138: 0 | AT138: 0 | AU138: 3715.817387 | AV138: 3715.817387 | AW138: 555.262556 | AX138: 555.262556 | AY138: 3715.817387 | AZ138: 555.262556 | BA138: 555.262556 | BB138: 0 | BC138: 555.262556 | BD138: 0 | BE138: 555.262556 | BF138: 555.262556 | BG138: 3985.559314 | BH138: 0 | BI138: 3430.296758 | BJ138: 3430.296758 | BK138: 0.2795910722 | BL138: 0.5932321056 | BM138: 9 | BN138: 0 | BO138: 0 | BP138: 3430.296758
A139: 5066.99136 | B139: 1 | C139: 2.9 | D139: 0 | E139: 0 | F139: 2122.908686 | G139: 0 | H139: 563.4987135 | I139: 338.5256928 | J139: 144.3712513 | K139: 4020.595702 | L139: 4164.966954 | M139: 1 | N139: 2.907008107 | O139: 7189.900046 | P139: 3962.861041 | Q139: 3566.574937 | R139: 3374.243081 | S139: 3374.243081 | T139: 0 | U139: =IF(AND($T139>0,$T139=$AL139),Barème!$C$199,0) -> 0 | V139: 3750 | W139: 0 | X139: 0 | Y139: 4059.5 | Z139: 2030.083333 | AA139: 0 | AB139: 3074.166667 | AC139: 2584.583333 | AD139: 0 | AE139: 2289.311564 | AF139: 0 | AG139: =IF(AND($A139=0,AF139=AAH_montant,Base!$W139>0,$H$10=1),AAH_mva,0) -> 0 | AH139: 3331.803592 | AI139: 0 | AJ139: =IF(AND($E$4=0,AI139=AAH_montant,Base!$W139>0,$J$10=1),AAH_mva,0) -> 0 | AK139: 0 | AL139: 0 | AM139: 4020.595702 | AN139: 0 | AO139: 0 | AP139: 0 | AQ139: 4020.595702 | AR139: 173.2237025 | AS139: 0 | AT139: 0 | AU139: 3748.470258 | AV139: 3748.470258 | AW139: 565.0584175 | AX139: 565.0584175 | AY139: 3748.470258 | AZ139: 565.0584175 | BA139: 565.0584175 | BB139: 0 | BC139: 565.0584175 | BD139: 0 | BE139: 565.0584175 | BF139: 565.0584175 | BG139: 4020.595702 | BH139: 0 | BI139: 3455.537285 | BJ139: 3455.537285 | BK139: 0.2795910722 | BL139: 0.5932321056 | BM139: 9 | BN139: 0 | BO139: 0 | BP139: 3455.537285
A140: 5110.67232 | B140: 1 | C140: 2.925 | D140: 0 | E140: 0 | F140: 2141.279151 | G140: 0 | H140: 567.98038 | I140: 341.4440177 | J140: 145.6158311 | K140: 4055.632091 | L140: 4201.247922 | M140: 1 | N140: 2.932340439 | O140: 7251.951471 | P140: 3997.381467 | Q140: 3597.643321 | R140: 3403.636065 | S140: 3403.636065 | T140: 0 | U140: =IF(AND($T140>0,$T140=$AL140),Barème!$C$199,0) -> 0 | V140: 3783.333333 | W140: 0 | X140: 0 | Y140: 4059.5 | Z140: 2030.083333 | AA140: 0 | AB140: 3074.166667 | AC140: 2584.583333 | AD140: 0 | AE140: 2311.080145 | AF140: 0 | AG140: =IF(AND($A140=0,AF140=AAH_montant,Base!$W140>0,$H$10=1),AAH_mva,0) -> 0 | AH140: 3364.456463 | AI140: 0 | AJ140: =IF(AND($E$4=0,AI140=AAH_montant,Base!$W140>0,$J$10=1),AAH_mva,0) -> 0 | AK140: 0 | AL140: 0 | AM140: 4055.632091 | AN140: 0 | AO140: 0 | AP140: 0 | AQ140: 4055.632091 | AR140: 173.2237025 | AS140: 0 | AT140: 0 | AU140: 3781.12313 | AV140: 3781.12313 | AW140: 574.854279 | AX140: 574.854279 | AY140: 3781.12313 | AZ140: 574.854279 | BA140: 574.854279 | BB140: 0 | BC140: 574.854279 | BD140: 0 | BE140: 574.854279 | BF140: 574.854279 | BG140: 4055.632091 | BH140: 0 | BI140: 3480.777812 | BJ140: 3480.777812 | BK140: 0.2795910722 | BL140: 0.5932321056 | BM140: 9 | BN140: 0 | BO140: 0 | BP140: 3480.777812
A141: 5154.35328 | B141: 1 | C141: 2.95 | D141: 0 | E141: 0 | F141: 2159.649615 | G141: 0 | H141: 572.4620465 | I141: 344.3623426 | J141: 146.8604108 | K141: 4090.66848 | L141: 4237.528891 | M141: 1 | N141: 2.957672771 | O141: 7314.002895 | P141: 4031.901894 | Q141: 3628.711705 | R141: 3433.029049 | S141: 3433.029049 | T141: 0 | U141: =IF(AND($T141>0,$T141=$AL141),Barème!$C$199,0) -> 0 | V141: 3816.666667 | W141: 0 | X141: 0 | Y141: 4059.5 | Z141: 2030.083333 | AA141: 0 | AB141: 3074.166667 | AC141: 2584.583333 | AD141: 0 | AE141: 2332.848727 | AF141: 0 | AG141: =IF(AND($A141=0,AF141=AAH_montant,Base!$W141>0,$H$10=1),AAH_mva,0) -> 0 | AH141: 3397.109335 | AI141: 0 | AJ141: =IF(AND($E$4=0,AI141=AAH_montant,Base!$W141>0,$J$10=1),AAH_mva,0) -> 0 | AK141: 0 | AL141: 0 | AM141: 4090.66848 | AN141: 0 | AO141: 0 | AP141: 0 | AQ141: 4090.66848 | AR141: 173.2237025 | AS141: 0 | AT141: 0 | AU141: 3813.776002 | AV141: 3813.776002 | AW141: 584.6501405 | AX141: 584.6501405 | AY141: 3813.776002 | AZ141: 584.6501405 | BA141: 584.6501405 | BB141: 0 | BC141: 584.6501405 | BD141: 0 | BE141: 584.6501405 | BF141: 584.6501405 | BG141: 4090.66848 | BH141: 0 | BI141: 3506.018339 | BJ141: 3506.018339 | BK141: 0.2795910722 | BL141: 0.5932321056 | BM141: 9 | BN141: 0 | BO141: 0 | BP141: 3506.018339
A142: 5198.03424 | B142: 1 | C142: 2.975 | D142: 0 | E142: 0 | F142: 2178.02008 | G142: 0 | H142: 576.943713 | I142: 347.2806676 | J142: 148.1049906 | K142: 4125.704869 | L142: 4273.809859 | M142: 1 | N142: 2.983005104 | O142: 7376.05432 | P142: 4066.422321 | Q142: 3659.780089 | R142: 3462.422033 | S142: 3462.422033 | T142: 0 | U142: =IF(AND($T142>0,$T142=$AL142),Barème!$C$199,0) -> 0 | V142: 3850 | W142: 0 | X142: 0 | Y142: 4059.5 | Z142: 2030.083333 | AA142: 0 | AB142: 3074.166667 | AC142: 2584.583333 | AD142: 0 | AE142: 2354.617308 | AF142: 0 | AG142: =IF(AND($A142=0,AF142=AAH_montant,Base!$W142>0,$H$10=1),AAH_mva,0) -> 0 | AH142: 3429.762207 | AI142: 0 | AJ142: =IF(AND($E$4=0,AI142=AAH_montant,Base!$W142>0,$J$10=1),AAH_mva,0) -> 0 | AK142: 0 | AL142: 0 | AM142: 4125.704869 | AN142: 0 | AO142: 0 | AP142: 0 | AQ142: 4125.704869 | AR142: 173.2237025 | AS142: 0 | AT142: 0 | AU142: 3846.428873 | AV142: 3846.428873 | AW142: 594.446002 | AX142: 594.446002 | AY142: 3846.428873 | AZ142: 594.446002 | BA142: 594.446002 | BB142: 0 | BC142: 594.446002 | BD142: 0 | BE142: 594.446002 | BF142: 594.446002 | BG142: 4125.704869 | BH142: 0 | BI142: 3531.258867 | BJ142: 3531.258867 | BK142: 0.2795910722 | BL142: 0.5932321056 | BM142: 9 | BN142: 0 | BO142: 0 | BP142: 3531.258867
A143: 5241.7152 | B143: 1 | C143: 3 | D143: 0 | E143: 0 | F143: 2196.390545 | G143: 0 | H143: 581.4253795 | I143: 350.1989925 | J143: 149.3495703 | K143: 4160.741258 | L143: 4310.090828 | M143: 1 | N143: 3.008337436 | O143: 7438.105745 | P143: 4100.942748 | Q143: 3690.848473 | R143: 3491.815017 | S143: 3491.815017 | T143: 0 | U143: =IF(AND($T143>0,$T143=$AL143),Barème!$C$199,0) -> 0 | V143: 3883.333333 | W143: 0 | X143: 0 | Y143: 4059.5 | Z143: 2030.083333 | AA143: 0 | AB143: 3074.166667 | AC143: 2584.583333 | AD143: 0 | AE143: 2376.385889 | AF143: 0 | AG143: =IF(AND($A143=0,AF143=AAH_montant,Base!$W143>0,$H$10=1),AAH_mva,0) -> 0 | AH143: 3462.415079 | AI143: 0 | AJ143: =IF(AND($E$4=0,AI143=AAH_montant,Base!$W143>0,$J$10=1),AAH_mva,0) -> 0 | AK143: 0 | AL143: 0 | AM143: 4160.741258 | AN143: 0 | AO143: 0 | AP143: 0 | AQ143: 4160.741258 | AR143: 173.2237025 | AS143: 0 | AT143: 0 | AU143: 3879.081745 | AV143: 3879.081745 | AW143: 604.2418636 | AX143: 604.2418636 | AY143: 3879.081745 | AZ143: 604.2418636 | BA143: 604.2418636 | BB143: 0 | BC143: 604.2418636 | BD143: 0 | BE143: 604.2418636 | BF143: 604.2418636 | BG143: 4160.741258 | BH143: 0 | BI143: 3556.499394 | BJ143: 3556.499394 | BK143: 0.2795910722 | BL143: 0.5932321056 | BM143: 9 | BN143: 0 | BO143: 0 | BP143: 3556.499394
A144: 5285.39616 | B144: 1 | C144: 3.025 | D144: 0 | E144: 0 | F144: 2214.761009 | G144: 0 | H144: 585.907046 | I144: 353.1173174 | J144: 150.5941501 | K144: 4195.777646 | L144: 4346.371797 | M144: 1 | N144: 3.033669768 | O144: 7500.157169 | P144: 4135.463175 | Q144: 3721.916857 | R144: 3521.208001 | S144: 3521.208001 | T144: 0 | U144: =IF(AND($T144>0,$T144=$AL144),Barème!$C$199,0) -> 0 | V144: 3916.666667 | W144: 0 | X144: 0 | Y144: 4059.5 | Z144: 2030.083333 | AA144: 0 | AB144: 3074.166667 | AC144: 2584.583333 | AD144: 0 | AE144: 2398.15447 | AF144: 0 | AG144: =IF(AND($A144=0,AF144=AAH_montant,Base!$W144>0,$H$10=1),AAH_mva,0) -> 0 | AH144: 3495.06795 | AI144: 0 | AJ144: =IF(AND($E$4=0,AI144=AAH_montant,Base!$W144>0,$J$10=1),AAH_mva,0) -> 0 | AK144: 0 | AL144: 0 | AM144: 4195.777646 | AN144: 0 | AO144: 0 | AP144: 0 | AQ144: 4195.777646 | AR144: 173.2237025 | AS144: 0 | AT144: 0 | AU144: 3911.734617 | AV144: 3911.734617 | AW144: 614.0377251 | AX144: 614.0377251 | AY144: 3911.734617 | AZ144: 614.0377251 | BA144: 614.0377251 | BB144: 0 | BC144: 614.0377251 | BD144: 0 | BE144: 614.0377251 | BF144: 614.0377251 | BG144: 4195.777646 | BH144: 0 | BI144: 3581.739921 | BJ144: 3581.739921 | BK144: 0.2795910722 | BL144: 0.5932321056 | BM144: 9 | BN144: 0 | BO144: 0 | BP144: 3581.739921
A145: 5329.07712 | B145: 1 | C145: 3.05 | D145: 0 | E145: 0 | F145: 2233.131474 | G145: 0 | H145: 590.3887125 | I145: 356.0356424 | J145: 151.8387298 | K145: 4230.814035 | L145: 4382.652765 | M145: 1 | N145: 3.059002101 | O145: 7562.208594 | P145: 4169.983601 | Q145: 3752.985241 | R145: 3550.600985 | S145: 3550.600985 | T145: 0 | U145: =IF(AND($T145>0,$T145=$AL145),Barème!$C$199,0) -> 0 | V145: 3950 | W145: 0 | X145: 0 | Y145: 4059.5 | Z145: 2030.083333 | AA145: 0 | AB145: 3074.166667 | AC145: 2584.583333 | AD145: 0 | AE145: 2419.923051 | AF145: 0 | AG145: =IF(AND($A145=0,AF145=AAH_montant,Base!$W145>0,$H$10=1),AAH_mva,0) -> 0 | AH145: 3527.720822 | AI145: 0 | AJ145: =IF(AND($E$4=0,AI145=AAH_montant,Base!$W145>0,$J$10=1),AAH_mva,0) -> 0 | AK145: 0 | AL145: 0 | AM145: 4230.814035 | AN145: 0 | AO145: 0 | AP145: 0 | AQ145: 4230.814035 | AR145: 173.2237025 | AS145: 0 | AT145: 0 | AU145: 3944.387489 | AV145: 3944.387489 | AW145: 623.8335866 | AX145: 623.8335866 | AY145: 3944.387489 | AZ145: 623.8335866 | BA145: 623.8335866 | BB145: 0 | BC145: 623.8335866 | BD145: 0 | BE145: 623.8335866 | BF145: 623.8335866 | BG145: 4230.814035 | BH145: 0 | BI145: 3606.980449 | BJ145: 3606.980449 | BK145: 0.2795910722 | BL145: 0.5932321056 | BM145: 9 | BN145: 0 | BO145: 0 | BP145: 3606.980449
A146: 5372.75808 | B146: 1 | C146: 3.075 | D146: 0 | E146: 0 | F146: 2251.501938 | G146: 0 | H146: 594.870379 | I146: 358.9539673 | J146: 153.0833096 | K146: 4265.850424 | L146: 4418.933734 | M146: 1 | N146: 3.084334433 | O146: 7624.260018 | P146: 4204.504028 | Q146: 3784.053625 | R146: 3579.993969 | S146: 3579.993969 | T146: 0 | U146: =IF(AND($T146>0,$T146=$AL146),Barème!$C$199,0) -> 0 | V146: 3983.333333 | W146: 0 | X146: 0 | Y146: 4059.5 | Z146: 2030.083333 | AA146: 0 | AB146: 3074.166667 | AC146: 2584.583333 | AD146: 0 | AE146: 2441.691632 | AF146: 0 | AG146: =IF(AND($A146=0,AF146=AAH_montant,Base!$W146>0,$H$10=1),AAH_mva,0) -> 0 | AH146: 3560.373694 | AI146: 0 | AJ146: =IF(AND($E$4=0,AI146=AAH_montant,Base!$W146>0,$J$10=1),AAH_mva,0) -> 0 | AK146: 0 | AL146: 0 | AM146: 4265.850424 | AN146: 0 | AO146: 0 | AP146: 0 | AQ146: 4265.850424 | AR146: 173.2237025 | AS146: 0 | AT146: 0 | AU146: 3977.04036 | AV146: 3977.04036 | AW146: 633.6294481 | AX146: 633.6294481 | AY146: 3977.04036 | AZ146: 633.6294481 | BA146: 633.6294481 | BB146: 0 | BC146: 633.6294481 | BD146: 0 | BE146: 633.6294481 | BF146: 633.6294481 | BG146: 4265.850424 | BH146: 0 | BI146: 3632.220976 | BJ146: 3632.220976 | BK146: 0.2795910722 | BL146: 0.5932321056 | BM146: 9 | BN146: 0 | BO146: 0 | BP146: 3632.220976
A147: 5416.43904 | B147: 1 | C147: 3.1 | D147: 0 | E147: 0 | F147: 2269.872403 | G147: 0 | H147: 599.3520455 | I147: 361.8722923 | J147: 154.3278893 | K147: 4300.886813 | L147: 4455.214702 | M147: 1 | N147: 3.109666765 | O147: 7686.311443 | P147: 4239.024455 | Q147: 3815.12201 | R147: 3609.386953 | S147: 3609.386953 | T147: 0 | U147: =IF(AND($T147>0,$T147=$AL147),Barème!$C$199,0) -> 0 | V147: 4016.666667 | W147: 0 | X147: 0 | Y147: 4059.5 | Z147: 2030.083333 | AA147: 0 | AB147: 3074.166667 | AC147: 2584.583333 | AD147: 0 | AE147: 2463.460213 | AF147: 0 | AG147: =IF(AND($A147=0,AF147=AAH_montant,Base!$W147>0,$H$10=1),AAH_mva,0) -> 0 | AH147: 3593.026565 | AI147: 0 | AJ147: =IF(AND($E$4=0,AI147=AAH_montant,Base!$W147>0,$J$10=1),AAH_mva,0) -> 0 | AK147: 0 | AL147: 0 | AM147: 4300.886813 | AN147: 0 | AO147: 0 | AP147: 0 | AQ147: 4300.886813 | AR147: 173.2237025 | AS147: 0 | AT147: 0 | AU147: 4009.693232 | AV147: 4009.693232 | AW147: 643.4253096 | AX147: 643.4253096 | AY147: 4009.693232 | AZ147: 643.4253096 | BA147: 643.4253096 | BB147: 0 | BC147: 643.4253096 | BD147: 0 | BE147: 643.4253096 | BF147: 643.4253096 | BG147: 4300.886813 | BH147: 0 | BI147: 3657.461503 | BJ147: 3657.461503 | BK147: 0.2795910722 | BL147: 0.5932321056 | BM147: 9 | BN147: 0 | BO147: 0 | BP147: 3657.461503
A148: 5460.12 | B148: 1 | C148: 3.125 | D148: 0 | E148: 0 | F148: 2288.242867 | G148: 0 | H148: 603.833712 | I148: 364.7906172 | J148: 155.5724691 | K148: 4335.923202 | L148: 4491.495671 | M148: 1 | N148: 3.134999097 | O148: 7748.362867 | P148: 4273.544882 | Q148: 3846.190394 | R148: 3638.779937 | S148: 3638.779937 | T148: 0 | U148: =IF(AND($T148>0,$T148=$AL148),Barème!$C$199,0) -> 0 | V148: 4050 | W148: 0 | X148: 0 | Y148: 4059.5 | Z148: 2030.083333 | AA148: 0 | AB148: 3074.166667 | AC148: 2584.583333 | AD148: 0 | AE148: 2485.228794 | AF148: 0 | AG148: =IF(AND($A148=0,AF148=AAH_montant,Base!$W148>0,$H$10=1),AAH_mva,0) -> 0 | AH148: 3625.679437 | AI148: 0 | AJ148: =IF(AND($E$4=0,AI148=AAH_montant,Base!$W148>0,$J$10=1),AAH_mva,0) -> 0 | AK148: 0 | AL148: 0 | AM148: 4335.923202 | AN148: 0 | AO148: 0 | AP148: 0 | AQ148: 4335.923202 | AR148: 173.2237025 | AS148: 0 | AT148: 0 | AU148: 4042.346104 | AV148: 4042.346104 | AW148: 653.2211711 | AX148: 653.2211711 | AY148: 4042.346104 | AZ148: 653.2211711 | BA148: 653.2211711 | BB148: 0 | BC148: 653.2211711 | BD148: 0 | BE148: 653.2211711 | BF148: 653.2211711 | BG148: 4335.923202 | BH148: 0 | BI148: 3682.702031 | BJ148: 3682.702031 | BK148: 0.2795910722 | BL148: 0.5932321056 | BM148: 9 | BN148: 0 | BO148: 0 | BP148: 3682.702031
A149: 5503.80096 | B149: 1 | C149: 3.15 | D149: 0 | E149: 0 | F149: 2306.613332 | G149: 0 | H149: 608.3153785 | I149: 367.7089421 | J149: 156.8170489 | K149: 4370.959591 | L149: 4527.776639 | M149: 1 | N149: 3.16033143 | O149: 7810.414292 | P149: 4308.065309 | Q149: 3877.258778 | R149: 3668.172921 | S149: 3668.172921 | T149: 0 | U149: =IF(AND($T149>0,$T149=$AL149),Barème!$C$199,0) -> 0 | V149: 4075 | W149: 0 | X149: 0 | Y149: 4059.5 | Z149: 2030.083333 | AA149: 0 | AB149: 3074.166667 | AC149: 2584.583333 | AD149: 0 | AE149: 2506.997376 | AF149: 0 | AG149: =IF(AND($A149=0,AF149=AAH_montant,Base!$W149>0,$H$10=1),AAH_mva,0) -> 0 | AH149: 3658.332309 | AI149: 0 | AJ149: =IF(AND($E$4=0,AI149=AAH_montant,Base!$W149>0,$J$10=1),AAH_mva,0) -> 0 | AK149: 0 | AL149: 0 | AM149: 4370.959591 | AN149: 0 | AO149: 0 | AP149: 0 | AQ149: 4370.959591 | AR149: 173.2237025 | AS149: 0 | AT149: 0 | AU149: 4074.998975 | AV149: 4074.998975 | AW149: 663.0170326 | AX149: 663.0170326 | AY149: 4074.998975 | AZ149: 663.0170326 | BA149: 663.0170326 | BB149: 0 | BC149: 663.0170326 | BD149: 0 | BE149: 663.0170326 | BF149: 663.0170326 | BG149: 4370.959591 | BH149: 0 | BI149: 3707.942558 | BJ149: 3707.942558 | BK149: 0.2795910722 | BL149: 0.5932321056 | BM149: 10 | BN149: 0 | BO149: 0 | BP149: 3707.942558
A150: 5547.48192 | B150: 1 | C150: 3.175 | D150: 0 | E150: 0 | F150: 2324.983796 | G150: 0 | H150: 612.797045 | I150: 370.6272671 | J150: 158.0616286 | K150: 4405.995979 | L150: 4564.057608 | M150: 1 | N150: 3.185663762 | O150: 7872.465716 | P150: 4342.585735 | Q150: 3908.327162 | R150: 3697.565905 | S150: 3697.565905 | T150: 0 | U150: =IF(AND($T150>0,$T150=$AL150),Barème!$C$199,0) -> 0 | V150: 4108.333333 | W150: 0 | X150: 0 | Y150: 4059.5 | Z150: 2030.083333 | AA150: 0 | AB150: 3074.166667 | AC150: 2584.583333 | AD150: 0 | AE150: 2528.765957 | AF150: 0 | AG150: =IF(AND($A150=0,AF150=AAH_montant,Base!$W150>0,$H$10=1),AAH_mva,0) -> 0 | AH150: 3690.98518 | AI150: 0 | AJ150: =IF(AND($E$4=0,AI150=AAH_montant,Base!$W150>0,$J$10=1),AAH_mva,0) -> 0 | AK150: 0 | AL150: 0 | AM150: 4405.995979 | AN150: 0 | AO150: 0 | AP150: 0 | AQ150: 4405.995979 | AR150: 173.2237025 | AS150: 0 | AT150: 0 | AU150: 4107.651847 | AV150: 4107.651847 | AW150: 672.8128941 | AX150: 672.8128941 | AY150: 4107.651847 | AZ150: 672.8128941 | BA150: 672.8128941 | BB150: 0 | BC150: 672.8128941 | BD150: 0 | BE150: 672.8128941 | BF150: 672.8128941 | BG150: 4405.995979 | BH150: 0 | BI150: 3733.183085 | BJ150: 3733.183085 | BK150: 0.2795910722 | BL150: 0.5932321056 | BM150: 10 | BN150: 0 | BO150: 0 | BP150: 3733.183085
A151: 5591.16288 | B151: =MIN(100%,A151/smic_b) -> 1 | C151: =A151/smic_b -> 3.2 | D151: 0 | E151: =D151/rap_salnet_are -> 0 | F151: =IF(0<A151,taux_cs_emp_t1*MIN(A151,plafond_ss),0) +IF(plafond_ss<A151,taux_cs_emp_t2*MIN(A151-plafond_ss,2*plafond_ss),0) +IF(3*plafond_ss<A151,taux_cs_emp_t3*MIN(A151-3*plafond_ss,plafond_ss),0) +IF(4*plafond_ss<A151,taux_cs_emp_t4*MIN(A151-4*plafond_ss,4*plafond_ss),0) +IF(8*plafond_ss<A151,taux_cs_emp_t5*(A151-8*plafond_ss),0) +IF(plafond_ss<A151,MIN(A151,8*plafond_ss)*taux_cet_pat,0) -IF(C151<=part_smic_exo,mod_cotis_fam*A151,0) -IF(C151<=seuil_smic_pat_assmal,reduc_pat_assmal*A151,0) -> 2343.354261 | G151: 0 | H151: =IF(0<A151,taux_cs_sal_t1*MIN(A151,plafond_ss),0) +IF(plafond_ss<A151,taux_cs_sal_t2*MIN(A151-plafond_ss,2*plafond_ss),0) +IF(3*plafond_ss<A151,taux_cs_sal_t3*MIN(A151-3*plafond_ss,plafond_ss),0) +IF(4*plafond_ss<A151,taux_cs_sal_t4*MIN(A151-4*plafond_ss,4*plafond_ss),0) +IF(8*plafond_ss<A151,taux_cs_sal_t5*(A151-8*plafond_ss),0) +IF(plafond_ss<A151,MIN(A151,8*plafond_ss)*taux_cet_sal,0) -> 617.2787115 | I151: =IF(0<A151,taux_csg_deduc_t1*MIN(A151,4*plafond_ss),0) +IF(4*plafond_ss<A151,taux_csg_deduc_t2*(A151-4*plafond_ss),0) -> 373.545592 | J151: =IF(0<A151,taux_csgcrds_nondeduc_t1*MIN(A151,4*plafond_ss),0) +IF(4*plafond_ss<A151,taux_csgcrds_nondeduc_t2*(A151-4*plafond_ss),0) -> 159.3062084 | K151: =A151-H151-I151-J151 -> 4441.032368 | L151: =A151-H151-I151 -> 4600.338576 | M151: =MIN(100%,K151/smic_n) -> 1 | N151: =K151/smic_n -> 3.210996094 | O151: =A151+F151-G151 -> 7934.517141 | P151: =($L151+$E$7+$Z$16+$E151+$AO$16)/(1+deflat) -> 4377.106162 | Q151: =($L151+$E$7+$Z$16+$E151+$AO$16 + IF($AI151=$AL151,0,$T151))/(1+deflat)*abatt_rfr -> 3939.395546 | R151: =($L151+$E$7+$Z$16+$E151+$AO$16+IF($AI151=$AL151,0,$T151))/(1+deflat_2)*abatt_rfr -> 3726.958889 | S151: =($L151+$E$7+$Z$16+IF($AI151=$AL151,0,$T151)+(1-abatt_rbg_are)*($E151+$AO$16))/(1+deflat_2)*abatt_rfr -> 3726.958889 | T151: =(Nb_adultes=2)*$H$6*IF($P151<ASS_plaf_couple,ASS_mtt_forf,IF(ASS_diff_plaf_couple-$P151>=seuil_vers_ASS,ASS_diff_plaf_couple-$P151,0)) -> 0 | U151: =IF(AND($T151>0,$T151=$AL151),Barème!$C$199,0) -> 0 | V151: =ROUNDUP(12*((1+deflat_2)*rbg-$T151-IF((Nb_adultes=2)*AND(L151>bmaf,$Z$16>bmaf),APL_abatt_biactifs,0)),-2)/12 -> 4141.666667 | W151: =TRUNC((1-$K$6) * IF(($N$16-($N$17+12*($P$16+al_taux_compl)*MAX(0,V151-$P$17))-Mfo_AL)* (1-tx_crds)>=seuil_versement_AL, $N$16-($N$17+12*($P$16+al_taux_compl)*MAX(0,V151-$P$17))-Mfo_AL,0) * (1-tx_crds)) -> 0 | X151: =IF(rbg<=p1_modulation_af,$I$16, IF(rbg<=p1_modulation_af+$I$16/2,$I$16+p1_modulation_af-rbg, IF(rbg<=p2_modulation_af,$I$16/2, IF(rbg<=p2_modulation_af+$I$16/4,$I$16/2+p2_modulation_af-rbg,$I$16/4)))) -> 0 | Y151: =IF(OR(Nb_adultes=1,AND(L151/(1+deflat_2)>bmaf_n_2,$Z$16/(1+deflat_2)>bmaf_n_2)), plafond_maj_CF+MAX(Nb_enfants-3,0)*pers_sup_CF, plafond_simple_CF+MAX(Nb_enfants-3,0)*pers_sup_CF) -> 4059.5 | Z151: =IF(OR(Nb_adultes=1,AND(L151/(1+deflat_2)>bmaf_n_2,$Z$16/(1+deflat_2)>bmaf_n_2)), plafond_maj_CF_majo+MAX(Nb_enfants-3,0)*pers_sup_CF_majo, plafond_simple_CF_majo+MAX(Nb_enfants-3,0)*pers_sup_CF_majo) -> 2030.083333 | AA151: =IF(OR(($B$7+$B$8+$B$9+$B$10+$B$11+$B$12)<3,$B$6>=1),0, IF(rbg<$Z151,montant_CF_majo, IF(rbg<$Y151,montant_CF, IF(rbg<($Y151+montant_CF),montant_CF+$Y151-rbg,0)))) -> 0 | AB151: =IF(OR(Nb_adultes=1,AND(L151/(1+deflat_2)>bmaf_n_2,$Z$16/(1+deflat_2)>bmaf_n_2)), plafond_majore_paje+MIN(Nb_enfants,2)*plafond_sup_enf_12_paje+MAX(Nb_enfants-3,0)*plafond_sup_enf_3_paje, plaf_simple_paje+MIN(Nb_enfants,2)*plafond_sup_enf_12_paje+MAX(Nb_enfants-3,0)*plafond_sup_enf_3_paje) -> 3074.166667 | AC151: =IF(OR(Nb_adultes=1,AND(L151/(1+deflat_2)>bmaf_n_2,$Z$16/(1+deflat_2)>bmaf_n_2)), plafond_majore_paje_plein+MIN(Nb_enfants,2)*plafond_sup_enf_12_paje_plein+MAX(Nb_enfants-3,0)*plafond_sup_enf_3_paje_plein, plaf_simple_paje_plein+MIN(Nb_enfants,2)*plafond_sup_enf_12_paje_plein+MAX(Nb_enfants-3,0)*plafond_sup_enf_3_paje_plein) -> 2584.583333 | AD151: =IF(rbg<AC151,montant_paje_plein*($B$6>0),IF(rbg<AB151,montant_paje*($B$6>0),0)) -> 0 | AE151: =($K$1="01/07")*MAX($Z$16*abatt_rfr-AAH_abatt_general-AAH_abatt_majo*Nb_enfants,0)+($E$7+$E$6+$D151+IF($BC151=BE151,0,$T151))*abatt_rfr +MIN($L151,AAH_plafond_abatt_salaire)*AAH_abatt_salaire_t1 +MAX($L151-AAH_plafond_abatt_salaire,0)*AAH_abatt_salaire_t2 -> 2550.534538 | AF151: =($H$8=1)*( IF($AR$16-AE151>=AAH_montant, AAH_montant, MAX(0,$AR$16-AE151)) ) -> 0 | AG151: =IF(AND($A151=0,AF151=AAH_montant,Base!$W151>0,$H$10=1),AAH_mva,0) -> 0 | AH151: =($K$1="01/07")*MAX($L151*abatt_rfr-AAH_abatt_general-AAH_abatt_majo*Nb_enfants,0)+($E$7+$E$6+$D151)*abatt_rfr +MIN($Z$16,AAH_plafond_abatt_salaire)*AAH_abatt_salaire_t1 +MAX($Z$16-AAH_plafond_abatt_salaire,0)*AAH_abatt_salaire_t2 -> 3723.638052 | AI151: =($H$9=1)*( IF($AR$16-AH151>=AAH_montant, AAH_montant, MAX(0,$AR$16-AH151)) ) -> 0 | AJ151: =IF(AND($E$4=0,AI151=AAH_montant,Base!$W151>0,$J$10=1),AAH_mva,0) -> 0 | AK151: 0 | AL151: 0 | AM151: =$K151+$Z$17+$AK151+($W151>0)*MIN($W151,$E$17)+($K$6=1)*$E$17+$I$16-$I$17+MIN($AA151,montant_CF)+$AD151+$AL$17+$D151+$E$6+$E$7+IF($AI151=AL151,0,$T151) -> 4441.032368 | AN151: =IF(AM151+seuil_versement_rsa<=$E$16,$E$16-AM151,0) -> 0 | AO151: =((AN151)>0)* IF((Nb_adultes+Nb_enfants)=1,noel_1pers, IF((Nb_adultes+Nb_enfants)=2,noel_2pers, IF((Nb_adultes+Nb_enfants)=3,noel_3pers, IF(AND(Nb_adultes=1,(Nb_adultes+Nb_enfants)=4),noel_isole_4pers, IF(AND(Nb_adultes=2,(Nb_adultes+Nb_enfants)=4),noel_couple_4pers, IF(Nb_adultes=1,noel_isole_4pers+noel_pers_sup*(Nb_adultes+Nb_enfants-4), noel_couple_4pers+noel_pers_sup*(Nb_adultes+Nb_enfants-4))))))) -> 0 | AP151: =MAX($AO151,$U151) -> 0 | AQ151: =$K151+$Z$17+$AK151-$AI151+$AL151+($W151>0)*MIN($W151,$F$17)+($K$6=1)*$F$17+$I$16-$I$17+MIN($AA151,montant_CF)+$AD151+$AL$17+$D151+$E$6+$E$7 -> 4441.032368 | AR151: =PA_bonus*( IF($K151+($K151>=Sal_min_AAH_PA)*$AF151>PA_tranche1_smic*smic_n, (MIN($K151+($K151>=Sal_min_AAH_PA)*$AF151,PA_tranche2_smic*smic_n)-PA_tranche1_smic*smic_n)/((PA_tranche2_smic-PA_tranche1_smic)*smic_n),0) +(IF($Z$17+($Z$17>=Sal_min_AAH_PA)*($AI151>=$T151)*$AI151>PA_tranche1_smic*smic_n, (MIN($Z$17+($Z$17>=Sal_min_AAH_PA)*($AI151>=$T151)*$AI151,PA_tranche2_smic*smic_n)-PA_tranche1_smic*smic_n)/((PA_tranche2_smic-PA_tranche1_smic)*smic_n),0)) ) -> 173.2237025 | AS151: =(OR($H$4,($AN151>0))*($A151+$Z$17>0)* IF(($F$16+(1-PA_pente)*($K151+$Z$17+($K151>=Sal_min_AAH_PA)*$AF151+($Z$17>=Sal_min_AAH_PA)*($AI151>=$T151)*$AI151)+$AR151-MAX($AQ151,$F$16))*(1-tx_crds)>=seuil_versement_PA, $F$16+(1-PA_pente)*($K151+$Z$17+($K151>=Sal_min_AAH_PA)*$AF151+($Z$17>=Sal_min_AAH_PA)*($AI151>=$T151)*$AI151)+$AR151-MAX($AQ151,$F$16), 0))*(1-tx_crds) -> 0 | AT151: =IF(rbg<plaf_ars+plaf_ars_enf*($B$6+$B$7+$B$8+$B$9+$B$10+$B$11+$B$12), (ars6_10*$B$8+ars11_14*($B$9+$B$10)+ars15_18*$B$11)/12, IF(rbg<plaf_ars+plaf_ars_enf*($B$6+$B$7+$B$8+$B$9+$B$10+$B$11+$B$12)+(ars6_10*$B$8+ars11_14*($B$9+$B$10)+ars15_18*$B$11)/12, plaf_ars+plaf_ars_enf*($B$6+$B$7+$B$8+$B$9+$B$10+$B$11+$B$12)+(ars6_10*$B$8+ars11_14*($B$9+$B$10)+ars15_18*$B$11)/12-rbg, 0)) -> 0 | AU151: =$Q151*(1+deflat) -> 4140.304719 | AV151: =AU151/$AE$17 -> 4140.304719 | AW151: =IF(0<AV151,taux_ir_t1*MIN(AV151,plafond_ir_t1),0) +IF(plafond_ir_t1<AV151,taux_ir_t2*MIN(AV151-plafond_ir_t1,plafond_ir_t2-plafond_ir_t1),0) +IF(plafond_ir_t2<AV151,taux_ir_t3*MIN(AV151-plafond_ir_t2,plafond_ir_t3-plafond_ir_t2),0) +IF(plafond_ir_t3<AV151,taux_ir_t4*MIN(AV151-plafond_ir_t3,plafond_ir_t4-plafond_ir_t3),0) +IF(plafond_ir_t4<AV151,taux_ir_t5*(AV151-plafond_ir_t4),0) -> 682.6087557 | AX151: =AW151*$AE$17 -> 682.6087557 | AY151: =AU151/Nb_adultes -> 4140.304719 | AZ151: =IF(0<AY151,taux_ir_t1*MIN(AY151,plafond_ir_t1),0) +IF(plafond_ir_t1<AY151,taux_ir_t2*MIN(AY151-plafond_ir_t1,plafond_ir_t2-plafond_ir_t1),0) +IF(plafond_ir_t2<AY151,taux_ir_t3*MIN(AY151-plafond_ir_t2,plafond_ir_t3-plafond_ir_t2),0) +IF(plafond_ir_t3<AY151,taux_ir_t4*MIN(AY151-plafond_ir_t3,plafond_ir_t4-plafond_ir_t3),0) +IF(plafond_ir_t4<AY151,taux_ir_t5*(AY151-plafond_ir_t4),0) -> 682.6087557 | BA151: =AZ151*Nb_adultes -> 682.6087557 | BB151: 0 | BC151: =IF(BB151<$AE$16,AX151,BA151-$AE$16) -> 682.6087557 | BD151: =IF(Nb_adultes=1, MAX(Decote_taux*mont_decote_celib-Decote_taux*BC151,0),MAX(Decote_taux*mont_decote_couple-Decote_taux*BC151,0)) -> 0 | BE151: 682.6087557 | BF151: =IF(BE151>seuil_recouvrement_IR,BE151,0) -> 682.6087557 | BG151: =$K151+$Z$17 -> 4441.032368 | BH151: =X151+AN151+AS151+AA151+W151+AT151+AD151+$AL$16+D151+$E$6+AK151-$AI151+$AL151+$AP151 -> 0 | BI151: 3758.423612 | BJ151: =BI151/$AV$17 -> 3758.423612 | BK151: =1-(BI152-BI151)/(BG152-BG151) -> 0.2795910722 | BL151: =1-(BI152-BI151)/(O152-O151) -> 0.5932321056 | BM151: =1+IF(seuil_D1< BJ151*12,1,0)+IF(seuil_D2<BJ151*12,1,0)+IF(seuil_D3<BJ151*12,1,0)+IF(seuil_D4<BJ151*12,1,0)+IF(seuil_D5<BJ151*12,1,0)+IF(seuil_D6<BJ151*12,1,0)+IF(seuil_D7<BJ151*12,1,0)+IF(seuil_D8<BJ151*12,1,0)+IF(seuil_D9<BJ151*12,1,0) -> 10 | BN151: =$H$5*IF(AN151=0, (AM151<$AH$16)*(Nb_adultes*montant_cmuc_16_49+(Nb_enfants-$B$11-$B$12)*montant_cmuc_0_15+($B$11+$B$12)*montant_cmuc_16_49), (Nb_adultes*montant_cmuc_16_49+(Nb_enfants-$B$11-$B$12)*montant_cmuc_0_15+($B$11+$B$12)*montant_cmuc_16_49)) -> 0 | BO151: =((Q151/$AV$16<plaf_cheque_energie_t1) * IF($AV$16=1,montant_t1_1UC,IF($AV$16<2,montant_t1_12UC,montant_t1_2UC_et_plus))+ (AND(Q151/$AV$16>=plaf_cheque_energie_t1,Q151/$AV$16<plaf_cheque_energie_t2)) * IF($AV$16=1,montant_t2_1UC,IF($AV$16<2,montant_t2_12UC,montant_t2_2UC_et_plus))+ (AND(Q151/$AV$16>=plaf_cheque_energie_t2,Q151/$AV$16<plaf_cheque_energie_t3)) * IF($AV$16=1,montant_t3_1UC,IF($AV$16<2,montant_t3_12UC,montant_t3_2UC_et_plus))+ (AND(Q151/$AV$16>=plaf_cheque_energie_t3,Q151/$AV$16<plaf_cheque_energie_t4)) * IF($AV$16=1,montant_t4_1UC,IF($AV$16<2,montant_t4_12UC,montant_t4_2UC_et_plus))+ (AND(Q151/$AV$16>=plaf_cheque_energie_t3,Q151/$AV$16<plaf_cheque_energie_t5)) *bonus_2022 )/12 -> 0 | BP151: 3758.423612
A152: =A151+$E$9 -> 5634.84384 | B152: 1 | C152: 3.225 | D152: 0 | E152: 0 | F152: 2361.724725 | G152: =MAX(tx_exo_fillon_smic*A152*(plafond_exo_fillon*(B152/C152)-1)/(plafond_exo_fillon-1),0) -> 0 | H152: 621.760378 | I152: 376.463917 | J152: 160.5507881 | K152: 4476.068757 | L152: 4636.619545 | M152: 1 | N152: 3.236328427 | O152: 7996.568565 | P152: 4411.626589 | Q152: 3970.46393 | R152: 3756.351873 | S152: 3756.351873 | T152: 0 | U152: =IF(AND($T152>0,$T152=$AL152),Barème!$C$199,0) -> 0 | V152: 4175 | W152: 0 | X152: 0 | Y152: 4059.5 | Z152: 2030.083333 | AA152: 0 | AB152: 3074.166667 | AC152: 2584.583333 | AD152: 0 | AE152: 2572.303119 | AF152: 0 | AG152: =IF(AND($A152=0,AF152=AAH_montant,Base!$W152>0,$H$10=1),AAH_mva,0) -> 0 | AH152: 3756.290924 | AI152: 0 | AJ152: =IF(AND($E$4=0,AI152=AAH_montant,Base!$W152>0,$J$10=1),AAH_mva,0) -> 0 | AK152: =AF152+AG152+AI152+AJ152 -> 0 | AL152: =MAX($T152,$AI152) -> 0 | AM152: 4476.068757 | AN152: 0 | AO152: 0 | AP152: 0 | AQ152: 4476.068757 | AR152: 173.2237025 | AS152: 0 | AT152: 0 | AU152: 4172.957591 | AV152: 4172.957591 | AW152: 692.4046172 | AX152: 692.4046172 | AY152: 4172.957591 | AZ152: 692.4046172 | BA152: 692.4046172 | BB152: =BA152-AX152 -> 0 | BC152: 692.4046172 | BD152: 0 | BE152: =MAX(0,BC152-BD152) -> 692.4046172 | BF152: 692.4046172 | BG152: 4476.068757 | BH152: 0 | BI152: =BG152+BH152-BF152+$E$7 -> 3783.66414 | BJ152: 3783.66414 | BK152: 0.2795910722 | BL152: 0.5932321056 | BM152: 10 | BN152: 0 | BO152: 0 | BP152: =BI152+BN152+BO152 -> 3783.66414
A153: 5678.5248 | B153: 1 | C153: 3.25 | D153: =D152+$E$10 -> 0 | E153: 0 | F153: 2380.09519 | G153: 0 | H153: 626.2420445 | I153: 379.3822419 | J153: 161.7953679 | K153: 4511.105146 | L153: 4672.900514 | M153: 1 | N153: 3.261660759 | O153: 8058.61999 | P153: 4446.147016 | Q153: 4001.532314 | R153: 3785.744857 | S153: 3785.744857 | T153: 0 | U153: =IF(AND($T153>0,$T153=$AL153),Barème!$C$199,0) -> 0 | V153: 4208.333333 | W153: 0 | X153: 0 | Y153: 4059.5 | Z153: 2030.083333 | AA153: 0 | AB153: 3074.166667 | AC153: 2584.583333 | AD153: 0 | AE153: 2594.0717 | AF153: 0 | AG153: =IF(AND($A153=0,AF153=AAH_montant,Base!$W153>0,$H$10=1),AAH_mva,0) -> 0 | AH153: 3788.943796 | AI153: 0 | AJ153: =IF(AND($E$4=0,AI153=AAH_montant,Base!$W153>0,$J$10=1),AAH_mva,0) -> 0 | AK153: 0 | AL153: 0 | AM153: 4511.105146 | AN153: 0 | AO153: 0 | AP153: 0 | AQ153: 4511.105146 | AR153: 173.2237025 | AS153: 0 | AT153: 0 | AU153: 4205.610462 | AV153: 4205.610462 | AW153: 702.2004787 | AX153: 702.2004787 | AY153: 4205.610462 | AZ153: 702.2004787 | BA153: 702.2004787 | BB153: 0 | BC153: 702.2004787 | BD153: 0 | BE153: 702.2004787 | BF153: 702.2004787 | BG153: 4511.105146 | BH153: 0 | BI153: 3808.904667 | BJ153: 3808.904667 | BK153: 0.2795910722 | BL153: 0.5932321056 | BM153: 10 | BN153: 0 | BO153: 0 | BP153: 3808.904667
A154: 5722.20576 | B154: 1 | C154: 3.275 | D154: 0 | E154: 0 | F154: 2398.465654 | G154: 0 | H154: 630.723711 | I154: 382.3005668 | J154: 163.0399476 | K154: 4546.141535 | L154: 4709.181482 | M154: 1 | N154: 3.286993091 | O154: 8120.671414 | P154: 4480.667443 | Q154: 4032.600698 | R154: 3815.137841 | S154: 3815.137841 | T154: 0 | U154: =IF(AND($T154>0,$T154=$AL154),Barème!$C$199,0) -> 0 | V154: 4241.666667 | W154: 0 | X154: 0 | Y154: 4059.5 | Z154: 2030.083333 | AA154: 0 | AB154: 3074.166667 | AC154: 2584.583333 | AD154: 0 | AE154: 2615.840281 | AF154: 0 | AG154: =IF(AND($A154=0,AF154=AAH_montant,Base!$W154>0,$H$10=1),AAH_mva,0) -> 0 | AH154: 3821.596667 | AI154: 0 | AJ154: =IF(AND($E$4=0,AI154=AAH_montant,Base!$W154>0,$J$10=1),AAH_mva,0) -> 0 | AK154: 0 | AL154: 0 | AM154: 4546.141535 | AN154: 0 | AO154: 0 | AP154: 0 | AQ154: 4546.141535 | AR154: 173.2237025 | AS154: 0 | AT154: 0 | AU154: 4238.263334 | AV154: 4238.263334 | AW154: 711.9963402 | AX154: 711.9963402 | AY154: 4238.263334 | AZ154: 711.9963402 | BA154: 711.9963402 | BB154: 0 | BC154: 711.9963402 | BD154: 0 | BE154: 711.9963402 | BF154: 711.9963402 | BG154: 4546.141535 | BH154: 0 | BI154: 3834.145194 | BJ154: 3834.145194 | BK154: 0.2795910722 | BL154: 0.5932321056 | BM154: 10 | BN154: 0 | BO154: 0 | BP154: 3834.145194
A155: 5765.88672 | B155: 1 | C155: 3.3 | D155: 0 | E155: 0 | F155: 2416.836119 | G155: 0 | H155: 635.2053775 | I155: 385.2188918 | J155: 164.2845274 | K155: 4581.177923 | L155: 4745.462451 | M155: 1 | N155: 3.312325423 | O155: 8182.722839 | P155: 4515.187869 | Q155: 4063.669082 | R155: 3844.530825 | S155: 3844.530825 | T155: 0 | U155: =IF(AND($T155>0,$T155=$AL155),Barème!$C$199,0) -> 0 | V155: 4275 | W155: 0 | X155: 0 | Y155: 4059.5 | Z155: 2030.083333 | AA155: 0 | AB155: 3074.166667 | AC155: 2584.583333 | AD155: 0 | AE155: 2637.608862 | AF155: 0 | AG155: =IF(AND($A155=0,AF155=AAH_montant,Base!$W155>0,$H$10=1),AAH_mva,0) -> 0 | AH155: 3854.249539 | AI155: 0 | AJ155: =IF(AND($E$4=0,AI155=AAH_montant,Base!$W155>0,$J$10=1),AAH_mva,0) -> 0 | AK155: 0 | AL155: 0 | AM155: 4581.177923 | AN155: 0 | AO155: 0 | AP155: 0 | AQ155: 4581.177923 | AR155: 173.2237025 | AS155: 0 | AT155: 0 | AU155: 4270.916206 | AV155: 4270.916206 | AW155: 721.7922017 | AX155: 721.7922017 | AY155: 4270.916206 | AZ155: 721.7922017 | BA155: 721.7922017 | BB155: 0 | BC155: 721.7922017 | BD155: 0 | BE155: 721.7922017 | BF155: 721.7922017 | BG155: 4581.177923 | BH155: 0 | BI155: 3859.385722 | BJ155: 3859.385722 | BK155: 0.2795910722 | BL155: 0.5932321056 | BM155: 10 | BN155: 0 | BO155: 0 | BP155: 3859.385722
A156: 5809.56768 | B156: 1 | C156: 3.325 | D156: 0 | E156: 0 | F156: 2435.206584 | G156: 0 | H156: 639.687044 | I156: 388.1372167 | J156: 165.5291071 | K156: 4616.214312 | L156: 4781.743419 | M156: 1 | N156: 3.337657756 | O156: 8244.774264 | P156: 4549.708296 | Q156: 4094.737467 | R156: 3873.923809 | S156: 3873.923809 | T156: 0 | U156: =IF(AND($T156>0,$T156=$AL156),Barème!$C$199,0) -> 0 | V156: 4308.333333 | W156: 0 | X156: 0 | Y156: 4059.5 | Z156: 2030.083333 | AA156: 0 | AB156: 3074.166667 | AC156: 2584.583333 | AD156: 0 | AE156: 2659.377444 | AF156: 0 | AG156: =IF(AND($A156=0,AF156=AAH_montant,Base!$W156>0,$H$10=1),AAH_mva,0) -> 0 | AH156: 3886.902411 | AI156: 0 | AJ156: =IF(AND($E$4=0,AI156=AAH_montant,Base!$W156>0,$J$10=1),AAH_mva,0) -> 0 | AK156: 0 | AL156: 0 | AM156: 4616.214312 | AN156: 0 | AO156: 0 | AP156: 0 | AQ156: 4616.214312 | AR156: 173.2237025 | AS156: 0 | AT156: 0 | AU156: 4303.569077 | AV156: 4303.569077 | AW156: 731.5880632 | AX156: 731.5880632 | AY156: 4303.569077 | AZ156: 731.5880632 | BA156: 731.5880632 | BB156: 0 | BC156: 731.5880632 | BD156: 0 | BE156: 731.5880632 | BF156: 731.5880632 | BG156: 4616.214312 | BH156: 0 | BI156: 3884.626249 | BJ156: 3884.626249 | BK156: 0.2795910722 | BL156: 0.5932321056 | BM156: 10 | BN156: 0 | BO156: 0 | BP156: 3884.626249
A157: 5853.24864 | B157: 1 | C157: 3.35 | D157: 0 | E157: 0 | F157: 2453.577048 | G157: 0 | H157: 644.1687105 | I157: 391.0555416 | J157: 166.7736869 | K157: 4651.250701 | L157: 4818.024388 | M157: 1 | N157: 3.362990088 | O157: 8306.825688 | P157: 4584.228723 | Q157: 4125.805851 | R157: 3903.316793 | S157: 3903.316793 | T157: 0 | U157: =IF(AND($T157>0,$T157=$AL157),Barème!$C$199,0) -> 0 | V157: 4341.666667 | W157: 0 | X157: 0 | Y157: 4059.5 | Z157: 2030.083333 | AA157: 0 | AB157: 3074.166667 | AC157: 2584.583333 | AD157: 0 | AE157: 2681.146025 | AF157: 0 | AG157: =IF(AND($A157=0,AF157=AAH_montant,Base!$W157>0,$H$10=1),AAH_mva,0) -> 0 | AH157: 3919.555282 | AI157: 0 | AJ157: =IF(AND($E$4=0,AI157=AAH_montant,Base!$W157>0,$J$10=1),AAH_mva,0) -> 0 | AK157: 0 | AL157: 0 | AM157: 4651.250701 | AN157: 0 | AO157: 0 | AP157: 0 | AQ157: 4651.250701 | AR157: 173.2237025 | AS157: 0 | AT157: 0 | AU157: 4336.221949 | AV157: 4336.221949 | AW157: 741.3839247 | AX157: 741.3839247 | AY157: 4336.221949 | AZ157: 741.3839247 | BA157: 741.3839247 | BB157: 0 | BC157: 741.3839247 | BD157: 0 | BE157: 741.3839247 | BF157: 741.3839247 | BG157: 4651.250701 | BH157: 0 | BI157: 3909.866776 | BJ157: 3909.866776 | BK157: 0.2795910722 | BL157: 0.5932321056 | BM157: 10 | BN157: 0 | BO157: 0 | BP157: 3909.866776
A158: 5896.9296 | B158: 1 | C158: 3.375 | D158: 0 | E158: 0 | F158: 2471.947513 | G158: 0 | H158: 648.650377 | I158: 393.9738666 | J158: 168.0182666 | K158: 4686.28709 | L158: 4854.305356 | M158: 1 | N158: 3.38832242 | O158: 8368.877113 | P158: 4618.74915 | Q158: 4156.874235 | R158: 3932.709778 | S158: 3932.709778 | T158: 0 | U158: =IF(AND($T158>0,$T158=$AL158),Barème!$C$199,0) -> 0 | V158: 4375 | W158: 0 | X158: 0 | Y158: 4059.5 | Z158: 2030.083333 | AA158: 0 | AB158: 3074.166667 | AC158: 2584.583333 | AD158: 0 | AE158: 2702.914606 | AF158: 0 | AG158: =IF(AND($A158=0,AF158=AAH_montant,Base!$W158>0,$H$10=1),AAH_mva,0) -> 0 | AH158: 3952.208154 | AI158: 0 | AJ158: =IF(AND($E$4=0,AI158=AAH_montant,Base!$W158>0,$J$10=1),AAH_mva,0) -> 0 | AK158: 0 | AL158: 0 | AM158: 4686.28709 | AN158: 0 | AO158: 0 | AP158: 0 | AQ158: 4686.28709 | AR158: 173.2237025 | AS158: 0 | AT158: 0 | AU158: 4368.874821 | AV158: 4368.874821 | AW158: 751.1797862 | AX158: 751.1797862 | AY158: 4368.874821 | AZ158: 751.1797862 | BA158: 751.1797862 | BB158: 0 | BC158: 751.1797862 | BD158: 0 | BE158: 751.1797862 | BF158: 751.1797862 | BG158: 4686.28709 | BH158: 0 | BI158: 3935.107304 | BJ158: 3935.107304 | BK158: 0.2795910722 | BL158: 0.5932321056 | BM158: 10 | BN158: 0 | BO158: 0 | BP158: 3935.107304
A159: 5940.61056 | B159: 1 | C159: 3.4 | D159: 0 | E159: 0 | F159: 2490.317977 | G159: 0 | H159: 653.1320435 | I159: 396.8921915 | J159: 169.2628464 | K159: 4721.323479 | L159: 4890.586325 | M159: 1 | N159: 3.413654753 | O159: 8430.928537 | P159: 4653.269577 | Q159: 4187.942619 | R159: 3962.102762 | S159: 3962.102762 | T159: 0 | U159: =IF(AND($T159>0,$T159=$AL159),Barème!$C$199,0) -> 0 | V159: 4408.333333 | W159: 0 | X159: 0 | Y159: 4059.5 | Z159: 2030.083333 | AA159: 0 | AB159: 3074.166667 | AC159: 2584.583333 | AD159: 0 | AE159: 2724.683187 | AF159: 0 | AG159: =IF(AND($A159=0,AF159=AAH_montant,Base!$W159>0,$H$10=1),AAH_mva,0) -> 0 | AH159: 3984.861026 | AI159: 0 | AJ159: =IF(AND($E$4=0,AI159=AAH_montant,Base!$W159>0,$J$10=1),AAH_mva,0) -> 0 | AK159: 0 | AL159: 0 | AM159: 4721.323479 | AN159: 0 | AO159: 0 | AP159: 0 | AQ159: 4721.323479 | AR159: 173.2237025 | AS159: 0 | AT159: 0 | AU159: 4401.527693 | AV159: 4401.527693 | AW159: 760.9756478 | AX159: 760.9756478 | AY159: 4401.527693 | AZ159: 760.9756478 | BA159: 760.9756478 | BB159: 0 | BC159: 760.9756478 | BD159: 0 | BE159: 760.9756478 | BF159: 760.9756478 | BG159: 4721.323479 | BH159: 0 | BI159: 3960.347831 | BJ159: 3960.347831 | BK159: 0.2795910722 | BL159: 0.5932321056 | BM159: 10 | BN159: 0 | BO159: 0 | BP159: 3960.347831
A160: 5984.29152 | B160: 1 | C160: 3.425 | D160: 0 | E160: 0 | F160: 2508.688442 | G160: 0 | H160: 657.61371 | I160: 399.8105165 | J160: 170.5074261 | K160: 4756.359867 | L160: 4926.867294 | M160: 1 | N160: 3.438987085 | O160: 8492.979962 | P160: 4687.790003 | Q160: 4219.011003 | R160: 3991.495746 | S160: 3991.495746 | T160: 0 | U160: =IF(AND($T160>0,$T160=$AL160),Barème!$C$199,0) -> 0 | V160: 4441.666667 | W160: 0 | X160: 0 | Y160: 4059.5 | Z160: 2030.083333 | AA160: 0 | AB160: 3074.166667 | AC160: 2584.583333 | AD160: 0 | AE160: 2746.451768 | AF160: 0 | AG160: =IF(AND($A160=0,AF160=AAH_montant,Base!$W160>0,$H$10=1),AAH_mva,0) -> 0 | AH160: 4017.513898 | AI160: 0 | AJ160: =IF(AND($E$4=0,AI160=AAH_montant,Base!$W160>0,$J$10=1),AAH_mva,0) -> 0 | AK160: 0 | AL160: 0 | AM160: 4756.359867 | AN160: 0 | AO160: 0 | AP160: 0 | AQ160: 4756.359867 | AR160: 173.2237025 | AS160: 0 | AT160: 0 | AU160: 4434.180564 | AV160: 4434.180564 | AW160: 770.7715093 | AX160: 770.7715093 | AY160: 4434.180564 | AZ160: 770.7715093 | BA160: 770.7715093 | BB160: 0 | BC160: 770.7715093 | BD160: 0 | BE160: 770.7715093 | BF160: 770.7715093 | BG160: 4756.359867 | BH160: 0 | BI160: 3985.588358 | BJ160: 3985.588358 | BK160: =1-(BI187-BI160)/(BG187-BG160) -> 0.1620507133 | BL160: =1-(BI187-BI160)/(O187-O160) -> 0.5307196795 | BM160: 10 | BN160: 0 | BO160: 0 | BP160: 3985.588358
A161: 6027.97248 | B161: =MIN(100%,A161/smic_b) -> 1 | C161: 3.45 | D161: 0 | E161: =D161/rap_salnet_are -> 0 | F161: 2527.058906 | G161: 0 | H161: 662.0953764 | I161: 402.7288414 | J161: 171.7520059 | K161: 4791.396256 | L161: 4963.148262 | M161: =MIN(100%,K161/smic_n) -> 1 | N161: =K161/smic_n -> 3.464319417 | O161: 8555.031386 | P161: 4722.31043 | Q161: 4250.079387 | R161: 4020.88873 | S161: 4020.88873 | T161: 0 | U161: =IF(AND($T161>0,$T161=$AL161),Barème!$C$199,0) -> 0 | V161: 4475 | W161: 0 | X161: 0 | Y161: 4059.5 | Z161: 2030.083333 | AA161: 0 | AB161: 3074.166667 | AC161: 2584.583333 | AD161: 0 | AE161: 2768.220349 | AF161: 0 | AG161: =IF(AND($A161=0,AF161=AAH_montant,Base!$W161>0,$H$10=1),AAH_mva,0) -> 0 | AH161: 4050.166769 | AI161: 0 | AJ161: =IF(AND($E$4=0,AI161=AAH_montant,Base!$W161>0,$J$10=1),AAH_mva,0) -> 0 | AK161: =AF161+AG161+AI161+AJ161 -> 0 | AL161: 0 | AM161: 4791.396256 | AN161: 0 | AO161: 0 | AP161: 0 | AQ161: 4791.396256 | AR161: 173.2237025 | AS161: 0 | AT161: 0 | AU161: 4466.833436 | AV161: =AU161/$AE$17 -> 4466.833436 | AW161: =IF(0<AV161,taux_ir_t1*MIN(AV161,plafond_ir_t1),0) +IF(plafond_ir_t1<AV161,taux_ir_t2*MIN(AV161-plafond_ir_t1,plafond_ir_t2-plafond_ir_t1),0) +IF(plafond_ir_t2<AV161,taux_ir_t3*MIN(AV161-plafond_ir_t2,plafond_ir_t3-plafond_ir_t2),0) +IF(plafond_ir_t3<AV161,taux_ir_t4*MIN(AV161-plafond_ir_t3,plafond_ir_t4-plafond_ir_t3),0) +IF(plafond_ir_t4<AV161,taux_ir_t5*(AV161-plafond_ir_t4),0) -> 780.5673708 | AX161: =AW161*$AE$17 -> 780.5673708 | AY161: =AU161/Nb_adultes -> 4466.833436 | AZ161: =IF(0<AY161,taux_ir_t1*MIN(AY161,plafond_ir_t1),0) +IF(plafond_ir_t1<AY161,taux_ir_t2*MIN(AY161-plafond_ir_t1,plafond_ir_t2-plafond_ir_t1),0) +IF(plafond_ir_t2<AY161,taux_ir_t3*MIN(AY161-plafond_ir_t2,plafond_ir_t3-plafond_ir_t2),0) +IF(plafond_ir_t3<AY161,taux_ir_t4*MIN(AY161-plafond_ir_t3,plafond_ir_t4-plafond_ir_t3),0) +IF(plafond_ir_t4<AY161,taux_ir_t5*(AY161-plafond_ir_t4),0) -> 780.5673708 | BA161: =AZ161*Nb_adultes -> 780.5673708 | BB161: =BA161-AX161 -> 0 | BC161: =IF(BB161<$AE$16,AX161,BA161-$AE$16) -> 780.5673708 | BD161: =IF(Nb_adultes=1, MAX(Decote_taux*mont_decote_celib-Decote_taux*BC161,0),MAX(Decote_taux*mont_decote_couple-Decote_taux*BC161,0)) -> 0 | BE161: 780.5673708 | BF161: =IF(BE161>seuil_recouvrement_IR,BE161,0) -> 780.5673708 | BG161: 4791.396256 | BH161: 0 | BI161: 4010.828885 | BJ161: 4010.828885 | BK161: 0.1629102101 | BL161: 0.5311730952 | BM161: 10 | BN161: 0 | BO161: 0 | BP161: 4010.828885
A162: 6071.65344 | B162: 1 | C162: 3.475 | D162: 0 | E162: 0 | F162: 2545.429371 | G162: 0 | H162: 666.5770429 | I162: 405.6471663 | J162: 172.9965856 | K162: 4826.432645 | L162: 4999.429231 | M162: 1 | N162: 3.489651749 | O162: 8617.082811 | P162: 4756.830857 | Q162: 4281.147771 | R162: 4050.281714 | S162: 4050.281714 | T162: 0 | U162: =IF(AND($T162>0,$T162=$AL162),Barème!$C$199,0) -> 0 | V162: 4500 | W162: 0 | X162: 0 | Y162: 4059.5 | Z162: 2030.083333 | AA162: 0 | AB162: 3074.166667 | AC162: 2584.583333 | AD162: 0 | AE162: 2789.98893 | AF162: 0 | AG162: =IF(AND($A162=0,AF162=AAH_montant,Base!$W162>0,$H$10=1),AAH_mva,0) -> 0 | AH162: 4082.819641 | AI162: 0 | AJ162: =IF(AND($E$4=0,AI162=AAH_montant,Base!$W162>0,$J$10=1),AAH_mva,0) -> 0 | AK162: 0 | AL162: 0 | AM162: 4826.432645 | AN162: 0 | AO162: 0 | AP162: 0 | AQ162: 4826.432645 | AR162: 173.2237025 | AS162: 0 | AT162: 0 | AU162: 4499.486308 | AV162: 4499.486308 | AW162: 790.3632323 | AX162: 790.3632323 | AY162: 4499.486308 | AZ162: 790.3632323 | BA162: 790.3632323 | BB162: 0 | BC162: 790.3632323 | BD162: 0 | BE162: 790.3632323 | BF162: 790.3632323 | BG162: 4826.432645 | BH162: 0 | BI162: 4036.069413 | BJ162: 4036.069413 | BK162: 0.1637572283 | BL162: 0.5316199807 | BM162: 10 | BN162: 0 | BO162: 0 | BP162: 4036.069413
A163: 6115.3344 | B163: 1 | C163: 3.5 | D163: 0 | E163: 0 | F163: 2563.799835 | G163: 0 | H163: 671.0587094 | I163: 408.5654913 | J163: 174.2411654 | K163: 4861.469034 | L163: 5035.710199 | M163: 1 | N163: 3.514984082 | O163: 8679.134235 | P163: 4791.351284 | Q163: 4312.216155 | R163: 4079.674698 | S163: 4079.674698 | T163: 0 | U163: =IF(AND($T163>0,$T163=$AL163),Barème!$C$199,0) -> 0 | V163: 4533.333333 | W163: 0 | X163: 0 | Y163: 4059.5 | Z163: 2030.083333 | AA163: 0 | AB163: 3074.166667 | AC163: 2584.583333 | AD163: 0 | AE163: 2811.757512 | AF163: 0 | AG163: =IF(AND($A163=0,AF163=AAH_montant,Base!$W163>0,$H$10=1),AAH_mva,0) -> 0 | AH163: 4115.472513 | AI163: 0 | AJ163: =IF(AND($E$4=0,AI163=AAH_montant,Base!$W163>0,$J$10=1),AAH_mva,0) -> 0 | AK163: 0 | AL163: 0 | AM163: 4861.469034 | AN163: 0 | AO163: 0 | AP163: 0 | AQ163: 4861.469034 | AR163: 173.2237025 | AS163: 0 | AT163: 0 | AU163: 4532.139179 | AV163: 4532.139179 | AW163: 800.1590938 | AX163: 800.1590938 | AY163: 4532.139179 | AZ163: 800.1590938 | BA163: 800.1590938 | BB163: 0 | BC163: 800.1590938 | BD163: 0 | BE163: 800.1590938 | BF163: 800.1590938 | BG163: 4861.469034 | BH163: 0 | BI163: 4061.30994 | BJ163: 4061.30994 | BK163: 0.1645920376 | BL163: 0.5320604763 | BM163: 10 | BN163: 0 | BO163: 0 | BP163: 4061.30994
A164: 6159.01536 | B164: 1 | C164: 3.525 | D164: 0 | E164: 0 | F164: 2693.032576 | G164: 0 | H164: 675.5403759 | I164: 411.4838162 | J164: 175.4857451 | K164: 4896.505423 | L164: 5071.991168 | M164: 1 | N164: 3.540316414 | O164: 8852.047936 | P164: 4825.871711 | Q164: 4343.28454 | R164: 4109.067682 | S164: 4109.067682 | T164: 0 | U164: =IF(AND($T164>0,$T164=$AL164),Barème!$C$199,0) -> 0 | V164: 4566.666667 | W164: 0 | X164: 0 | Y164: 4059.5 | Z164: 2030.083333 | AA164: 0 | AB164: 3074.166667 | AC164: 2584.583333 | AD164: 0 | AE164: 2833.526093 | AF164: 0 | AG164: =IF(AND($A164=0,AF164=AAH_montant,Base!$W164>0,$H$10=1),AAH_mva,0) -> 0 | AH164: 4148.125384 | AI164: 0 | AJ164: =IF(AND($E$4=0,AI164=AAH_montant,Base!$W164>0,$J$10=1),AAH_mva,0) -> 0 | AK164: 0 | AL164: 0 | AM164: 4896.505423 | AN164: 0 | AO164: 0 | AP164: 0 | AQ164: 4896.505423 | AR164: 173.2237025 | AS164: 0 | AT164: 0 | AU164: 4564.792051 | AV164: 4564.792051 | AW164: 809.9549553 | AX164: 809.9549553 | AY164: 4564.792051 | AZ164: 809.9549553 | BA164: 809.9549553 | BB164: 0 | BC164: 809.9549553 | BD164: 0 | BE164: 809.9549553 | BF164: 809.9549553 | BG164: 4896.505423 | BH164: 0 | BI164: 4086.550467 | BJ164: 4086.550467 | BK164: 0.1654149001 | BL164: 0.5383497133 | BM164: 10 | BN164: 0 | BO164: 0 | BP164: 4086.550467
A165: 6202.69632 | B165: 1 | C165: 3.55 | D165: 0 | E165: 0 | F165: 2712.189298 | G165: 0 | H165: 680.0220424 | I165: 414.4021411 | J165: 176.7303249 | K165: 4931.541812 | L165: 5108.272136 | M165: 1 | N165: 3.565648746 | O165: 8914.885618 | P165: 4860.392137 | Q165: 4374.352924 | R165: 4138.460666 | S165: 4138.460666 | T165: 0 | U165: =IF(AND($T165>0,$T165=$AL165),Barème!$C$199,0) -> 0 | V165: 4600 | W165: 0 | X165: 0 | Y165: 4059.5 | Z165: 2030.083333 | AA165: 0 | AB165: 3074.166667 | AC165: 2584.583333 | AD165: 0 | AE165: 2855.294674 | AF165: 0 | AG165: =IF(AND($A165=0,AF165=AAH_montant,Base!$W165>0,$H$10=1),AAH_mva,0) -> 0 | AH165: 4180.778256 | AI165: 0 | AJ165: =IF(AND($E$4=0,AI165=AAH_montant,Base!$W165>0,$J$10=1),AAH_mva,0) -> 0 | AK165: 0 | AL165: 0 | AM165: 4931.541812 | AN165: 0 | AO165: 0 | AP165: 0 | AQ165: 4931.541812 | AR165: 173.2237025 | AS165: 0 | AT165: 0 | AU165: 4597.444923 | AV165: 4597.444923 | AW165: 819.7508168 | AX165: 819.7508168 | AY165: 4597.444923 | AZ165: 819.7508168 | BA165: 819.7508168 | BB165: 0 | BC165: 819.7508168 | BD165: 0 | BE165: 819.7508168 | BF165: 819.7508168 | BG165: 4931.541812 | BH165: 0 | BI165: 4111.790995 | BJ165: 4111.790995 | BK165: 0.1662260705 | BL165: 0.538772434 | BM165: 10 | BN165: 0 | BO165: 0 | BP165: 4111.790995
A166: 6246.37728 | B166: 1 | C166: 3.575 | D166: 0 | E166: 0 | F166: 2731.34602 | G166: 0 | H166: 684.5037089 | I166: 417.3204661 | J166: 177.9749047 | K166: 4966.5782 | L166: 5144.553105 | M166: 1 | N166: 3.590981079 | O166: 8977.7233 | P166: 4894.912564 | Q166: 4405.421308 | R166: 4167.85365 | S166: 4167.85365 | T166: 0 | U166: =IF(AND($T166>0,$T166=$AL166),Barème!$C$199,0) -> 0 | V166: 4633.333333 | W166: 0 | X166: 0 | Y166: 4059.5 | Z166: 2030.083333 | AA166: 0 | AB166: 3074.166667 | AC166: 2584.583333 | AD166: 0 | AE166: 2877.063255 | AF166: 0 | AG166: =IF(AND($A166=0,AF166=AAH_montant,Base!$W166>0,$H$10=1),AAH_mva,0) -> 0 | AH166: 4213.431128 | AI166: 0 | AJ166: =IF(AND($E$4=0,AI166=AAH_montant,Base!$W166>0,$J$10=1),AAH_mva,0) -> 0 | AK166: 0 | AL166: 0 | AM166: 4966.5782 | AN166: 0 | AO166: 0 | AP166: 0 | AQ166: 4966.5782 | AR166: 173.2237025 | AS166: 0 | AT166: 0 | AU166: 4630.097794 | AV166: 4630.097794 | AW166: 829.5466783 | AX166: 829.5466783 | AY166: 4630.097794 | AZ166: 829.5466783 | BA166: 829.5466783 | BB166: 0 | BC166: 829.5466783 | BD166: 0 | BE166: 829.5466783 | BF166: 829.5466783 | BG166: 4966.5782 | BH166: 0 | BI166: 4137.031522 | BJ166: 4137.031522 | BK166: 0.1670257962 | BL166: 0.5391892372 | BM166: 10 | BN166: 0 | BO166: 0 | BP166: 4137.031522
A167: 6290.05824 | B167: 1 | C167: 3.6 | D167: 0 | E167: 0 | F167: 2750.502742 | G167: 0 | H167: 688.9853754 | I167: 420.238791 | J167: 179.2194844 | K167: 5001.614589 | L167: 5180.834074 | M167: 1 | N167: 3.616313411 | O167: 9040.560982 | P167: 4929.432991 | Q167: 4436.489692 | R167: 4197.246634 | S167: 4197.246634 | T167: 0 | U167: =IF(AND($T167>0,$T167=$AL167),Barème!$C$199,0) -> 0 | V167: 4666.666667 | W167: 0 | X167: 0 | Y167: 4059.5 | Z167: 2030.083333 | AA167: 0 | AB167: 3074.166667 | AC167: 2584.583333 | AD167: 0 | AE167: 2898.831836 | AF167: 0 | AG167: =IF(AND($A167=0,AF167=AAH_montant,Base!$W167>0,$H$10=1),AAH_mva,0) -> 0 | AH167: 4246.084 | AI167: 0 | AJ167: =IF(AND($E$4=0,AI167=AAH_montant,Base!$W167>0,$J$10=1),AAH_mva,0) -> 0 | AK167: 0 | AL167: 0 | AM167: 5001.614589 | AN167: 0 | AO167: 0 | AP167: 0 | AQ167: 5001.614589 | AR167: 173.2237025 | AS167: 0 | AT167: 0 | AU167: 4662.750666 | AV167: 4662.750666 | AW167: 839.3425399 | AX167: 839.3425399 | AY167: 4662.750666 | AZ167: 839.3425399 | BA167: 839.3425399 | BB167: 0 | BC167: 839.3425399 | BD167: 0 | BE167: 839.3425399 | BF167: 839.3425399 | BG167: 5001.614589 | BH167: 0 | BI167: 4162.272049 | BJ167: 4162.272049 | BK167: 0.1678143177 | BL167: 0.5396002463 | BM167: 10 | BN167: 0 | BO167: 0 | BP167: 4162.272049
A168: 6333.7392 | B168: 1 | C168: 3.625 | D168: 0 | E168: 0 | F168: 2769.659464 | G168: 0 | H168: 693.4670419 | I168: 423.157116 | J168: 180.4640642 | K168: 5036.650978 | L168: 5217.115042 | M168: 1 | N168: 3.641645743 | O168: 9103.398664 | P168: 4963.953418 | Q168: 4467.558076 | R168: 4226.639618 | S168: 4226.639618 | T168: 0 | U168: =IF(AND($T168>0,$T168=$AL168),Barème!$C$199,0) -> 0 | V168: 4700 | W168: 0 | X168: 0 | Y168: 4059.5 | Z168: 2030.083333 | AA168: 0 | AB168: 3074.166667 | AC168: 2584.583333 | AD168: 0 | AE168: 2920.600417 | AF168: 0 | AG168: =IF(AND($A168=0,AF168=AAH_montant,Base!$W168>0,$H$10=1),AAH_mva,0) -> 0 | AH168: 4278.736871 | AI168: 0 | AJ168: =IF(AND($E$4=0,AI168=AAH_montant,Base!$W168>0,$J$10=1),AAH_mva,0) -> 0 | AK168: 0 | AL168: 0 | AM168: 5036.650978 | AN168: 0 | AO168: 0 | AP168: 0 | AQ168: 5036.650978 | AR168: 173.2237025 | AS168: 0 | AT168: 0 | AU168: 4695.403538 | AV168: 4695.403538 | AW168: 849.1384014 | AX168: 849.1384014 | AY168: 4695.403538 | AZ168: 849.1384014 | BA168: 849.1384014 | BB168: 0 | BC168: 849.1384014 | BD168: 0 | BE168: 849.1384014 | BF168: 849.1384014 | BG168: 5036.650978 | BH168: 0 | BI168: 4187.512577 | BJ168: 4187.512577 | BK168: 0.1685918689 | BL168: 0.5400055813 | BM168: 10 | BN168: 0 | BO168: 0 | BP168: 4187.512577
A169: 6377.42016 | B169: 1 | C169: 3.65 | D169: 0 | E169: 0 | F169: 2788.816185 | G169: 0 | H169: 697.9487084 | I169: 426.0754409 | J169: 181.7086439 | K169: 5071.687367 | L169: 5253.396011 | M169: 1 | N169: 3.666978075 | O169: 9166.236345 | P169: 4998.473845 | Q169: 4498.62646 | R169: 4256.032602 | S169: 4256.032602 | T169: 0 | U169: =IF(AND($T169>0,$T169=$AL169),Barème!$C$199,0) -> 0 | V169: 4733.333333 | W169: 0 | X169: 0 | Y169: 4059.5 | Z169: 2030.083333 | AA169: 0 | AB169: 3074.166667 | AC169: 2584.583333 | AD169: 0 | AE169: 2942.368998 | AF169: 0 | AG169: =IF(AND($A169=0,AF169=AAH_montant,Base!$W169>0,$H$10=1),AAH_mva,0) -> 0 | AH169: 4311.389743 | AI169: 0 | AJ169: =IF(AND($E$4=0,AI169=AAH_montant,Base!$W169>0,$J$10=1),AAH_mva,0) -> 0 | AK169: 0 | AL169: 0 | AM169: 5071.687367 | AN169: 0 | AO169: 0 | AP169: 0 | AQ169: 5071.687367 | AR169: 173.2237025 | AS169: 0 | AT169: 0 | AU169: 4728.05641 | AV169: 4728.05641 | AW169: 858.9342629 | AX169: 858.9342629 | AY169: 4728.05641 | AZ169: 858.9342629 | BA169: 858.9342629 | BB169: 0 | BC169: 858.9342629 | BD169: 0 | BE169: 858.9342629 | BF169: 858.9342629 | BG169: 5071.687367 | BH169: 0 | BI169: 4212.753104 | BJ169: 4212.753104 | BK169: 0.1693586771 | BL169: 0.5404053588 | BM169: 10 | BN169: 0 | BO169: 0 | BP169: 4212.753104
A170: 6421.10112 | B170: 1 | C170: 3.675 | D170: 0 | E170: 0 | F170: 2807.972907 | G170: 0 | H170: 702.4303749 | I170: 428.9937658 | J170: 182.9532237 | K170: 5106.723756 | L170: 5289.676979 | M170: 1 | N170: 3.692310408 | O170: 9229.074027 | P170: 5032.994271 | Q170: 4529.694844 | R170: 4285.425586 | S170: 4285.425586 | T170: 0 | U170: =IF(AND($T170>0,$T170=$AL170),Barème!$C$199,0) -> 0 | V170: 4766.666667 | W170: 0 | X170: 0 | Y170: 4059.5 | Z170: 2030.083333 | AA170: 0 | AB170: 3074.166667 | AC170: 2584.583333 | AD170: 0 | AE170: 2964.13758 | AF170: 0 | AG170: =IF(AND($A170=0,AF170=AAH_montant,Base!$W170>0,$H$10=1),AAH_mva,0) -> 0 | AH170: 4344.042615 | AI170: 0 | AJ170: =IF(AND($E$4=0,AI170=AAH_montant,Base!$W170>0,$J$10=1),AAH_mva,0) -> 0 | AK170: 0 | AL170: 0 | AM170: 5106.723756 | AN170: 0 | AO170: 0 | AP170: 0 | AQ170: 5106.723756 | AR170: 173.2237025 | AS170: 0 | AT170: 0 | AU170: 4760.709281 | AV170: 4760.709281 | AW170: 868.7301244 | AX170: 868.7301244 | AY170: 4760.709281 | AZ170: 868.7301244 | BA170: 868.7301244 | BB170: 0 | BC170: 868.7301244 | BD170: 0 | BE170: 868.7301244 | BF170: 868.7301244 | BG170: 5106.723756 | BH170: 0 | BI170: 4237.993631 | BJ170: 4237.993631 | BK170: 0.1701149633 | BL170: 0.5407996925 | BM170: 10 | BN170: 0 | BO170: 0 | BP170: 4237.993631
A171: 6464.78208 | B171: 1 | C171: 3.7 | D171: 0 | E171: 0 | F171: 2827.129629 | G171: 0 | H171: 706.9120414 | I171: 431.9120908 | J171: 184.1978034 | K171: 5141.760144 | L171: 5325.957948 | M171: 1 | N171: 3.71764274 | O171: 9291.911709 | P171: 5067.514698 | Q171: 4560.763228 | R171: 4314.81857 | S171: 4314.81857 | T171: 0 | U171: =IF(AND($T171>0,$T171=$AL171),Barème!$C$199,0) -> 0 | V171: 4800 | W171: 0 | X171: 0 | Y171: 4059.5 | Z171: 2030.083333 | AA171: 0 | AB171: 3074.166667 | AC171: 2584.583333 | AD171: 0 | AE171: 2985.906161 | AF171: 0 | AG171: =IF(AND($A171=0,AF171=AAH_montant,Base!$W171>0,$H$10=1),AAH_mva,0) -> 0 | AH171: 4376.695486 | AI171: 0 | AJ171: =IF(AND($E$4=0,AI171=AAH_montant,Base!$W171>0,$J$10=1),AAH_mva,0) -> 0 | AK171: 0 | AL171: 0 | AM171: 5141.760144 | AN171: 0 | AO171: 0 | AP171: 0 | AQ171: 5141.760144 | AR171: 173.2237025 | AS171: 0 | AT171: 0 | AU171: 4793.362153 | AV171: 4793.362153 | AW171: 878.5259859 | AX171: 878.5259859 | AY171: 4793.362153 | AZ171: 878.5259859 | BA171: 878.5259859 | BB171: 0 | BC171: 878.5259859 | BD171: 0 | BE171: 878.5259859 | BF171: 878.5259859 | BG171: 5141.760144 | BH171: 0 | BI171: 4263.234158 | BJ171: 4263.234158 | BK171: 0.1708609428 | BL171: 0.5411886927 | BM171: 10 | BN171: 0 | BO171: 0 | BP171: 4263.234158
A172: 6508.46304 | B172: 1 | C172: 3.725 | D172: 0 | E172: 0 | F172: 2846.286351 | G172: 0 | H172: 711.3937079 | I172: 434.8304157 | J172: 185.4423832 | K172: 5176.796533 | L172: 5362.238916 | M172: 1 | N172: 3.742975072 | O172: 9354.749391 | P172: 5102.035125 | Q172: 4591.831613 | R172: 4344.211554 | S172: 4344.211554 | T172: 0 | U172: =IF(AND($T172>0,$T172=$AL172),Barème!$C$199,0) -> 0 | V172: 4833.333333 | W172: 0 | X172: 0 | Y172: 4059.5 | Z172: 2030.083333 | AA172: 0 | AB172: 3074.166667 | AC172: 2584.583333 | AD172: 0 | AE172: 3007.674742 | AF172: 0 | AG172: =IF(AND($A172=0,AF172=AAH_montant,Base!$W172>0,$H$10=1),AAH_mva,0) -> 0 | AH172: 4409.348358 | AI172: 0 | AJ172: =IF(AND($E$4=0,AI172=AAH_montant,Base!$W172>0,$J$10=1),AAH_mva,0) -> 0 | AK172: 0 | AL172: 0 | AM172: 5176.796533 | AN172: 0 | AO172: 0 | AP172: 0 | AQ172: 5176.796533 | AR172: 173.2237025 | AS172: 0 | AT172: 0 | AU172: 4826.015025 | AV172: 4826.015025 | AW172: 888.3218474 | AX172: 888.3218474 | AY172: 4826.015025 | AZ172: 888.3218474 | BA172: 888.3218474 | BB172: 0 | BC172: 888.3218474 | BD172: 0 | BE172: 888.3218474 | BF172: 888.3218474 | BG172: 5176.796533 | BH172: 0 | BI172: 4288.474686 | BJ172: 4288.474686 | BK172: 0.1715968247 | BL172: 0.5415724669 | BM172: 10 | BN172: 0 | BO172: 0 | BP172: 4288.474686
A173: 6552.144 | B173: 1 | C173: 3.75 | D173: 0 | E173: 0 | F173: 2865.443073 | G173: 0 | H173: 715.8753744 | I173: 437.7487406 | J173: 186.6869629 | K173: 5211.832922 | L173: 5398.519885 | M173: 1 | N173: 3.768307405 | O173: 9417.587073 | P173: 5136.555552 | Q173: 4622.899997 | R173: 4373.604538 | S173: 4373.604538 | T173: 0 | U173: =IF(AND($T173>0,$T173=$AL173),Barème!$C$199,0) -> 0 | V173: 4866.666667 | W173: 0 | X173: 0 | Y173: 4059.5 | Z173: 2030.083333 | AA173: 0 | AB173: 3074.166667 | AC173: 2584.583333 | AD173: 0 | AE173: 3029.443323 | AF173: 0 | AG173: =IF(AND($A173=0,AF173=AAH_montant,Base!$W173>0,$H$10=1),AAH_mva,0) -> 0 | AH173: 4442.00123 | AI173: 0 | AJ173: =IF(AND($E$4=0,AI173=AAH_montant,Base!$W173>0,$J$10=1),AAH_mva,0) -> 0 | AK173: 0 | AL173: 0 | AM173: 5211.832922 | AN173: 0 | AO173: 0 | AP173: 0 | AQ173: 5211.832922 | AR173: 173.2237025 | AS173: 0 | AT173: 0 | AU173: 4858.667896 | AV173: 4858.667896 | AW173: 898.1177089 | AX173: 898.1177089 | AY173: 4858.667896 | AZ173: 898.1177089 | BA173: 898.1177089 | BB173: 0 | BC173: 898.1177089 | BD173: 0 | BE173: 898.1177089 | BF173: 898.1177089 | BG173: 5211.832922 | BH173: 0 | BI173: 4313.715213 | BJ173: 4313.715213 | BK173: 0.1723228128 | BL173: 0.5419511198 | BM173: 10 | BN173: 0 | BO173: 0 | BP173: 4313.715213
A174: 6595.82496 | B174: 1 | C174: 3.775 | D174: 0 | E174: 0 | F174: 2884.599794 | G174: 0 | H174: 720.3570409 | I174: 440.6670656 | J174: 187.9315427 | K174: 5246.869311 | L174: 5434.800854 | M174: 1 | N174: 3.793639737 | O174: 9480.424754 | P174: 5171.075979 | Q174: 4653.968381 | R174: 4402.997522 | S174: 4402.997522 | T174: 0 | U174: =IF(AND($T174>0,$T174=$AL174),Barème!$C$199,0) -> 0 | V174: 4891.666667 | W174: 0 | X174: 0 | Y174: 4059.5 | Z174: 2030.083333 | AA174: 0 | AB174: 3074.166667 | AC174: 2584.583333 | AD174: 0 | AE174: 3051.211904 | AF174: 0 | AG174: =IF(AND($A174=0,AF174=AAH_montant,Base!$W174>0,$H$10=1),AAH_mva,0) -> 0 | AH174: 4474.654102 | AI174: 0 | AJ174: =IF(AND($E$4=0,AI174=AAH_montant,Base!$W174>0,$J$10=1),AAH_mva,0) -> 0 | AK174: 0 | AL174: 0 | AM174: 5246.869311 | AN174: 0 | AO174: 0 | AP174: 0 | AQ174: 5246.869311 | AR174: 173.2237025 | AS174: 0 | AT174: 0 | AU174: 4891.320768 | AV174: 4891.320768 | AW174: 907.9135705 | AX174: 907.9135705 | AY174: 4891.320768 | AZ174: 907.9135705 | BA174: 907.9135705 | BB174: 0 | BC174: 907.9135705 | BD174: 0 | BE174: 907.9135705 | BF174: 907.9135705 | BG174: 5246.869311 | BH174: 0 | BI174: 4338.95574 | BJ174: 4338.95574 | BK174: 0.1730391052 | BL174: 0.5423247531 | BM174: 10 | BN174: 0 | BO174: 0 | BP174: 4338.95574
A175: 6639.50592 | B175: 1 | C175: 3.8 | D175: 0 | E175: 0 | F175: 2903.756516 | G175: 0 | H175: 724.8387074 | I175: 443.5853905 | J175: 189.1761224 | K175: 5281.9057 | L175: 5471.081822 | M175: 1 | N175: 3.818972069 | O175: 9543.262436 | P175: 5205.596405 | Q175: 4685.036765 | R175: 4432.390506 | S175: 4432.390506 | T175: 0 | U175: =IF(AND($T175>0,$T175=$AL175),Barème!$C$199,0) -> 0 | V175: 4925 | W175: 0 | X175: 0 | Y175: 4059.5 | Z175: 2030.083333 | AA175: 0 | AB175: 3074.166667 | AC175: 2584.583333 | AD175: 0 | AE175: 3072.980485 | AF175: 0 | AG175: =IF(AND($A175=0,AF175=AAH_montant,Base!$W175>0,$H$10=1),AAH_mva,0) -> 0 | AH175: 4507.306973 | AI175: 0 | AJ175: =IF(AND($E$4=0,AI175=AAH_montant,Base!$W175>0,$J$10=1),AAH_mva,0) -> 0 | AK175: 0 | AL175: 0 | AM175: 5281.9057 | AN175: 0 | AO175: 0 | AP175: 0 | AQ175: 5281.9057 | AR175: 173.2237025 | AS175: 0 | AT175: 0 | AU175: 4923.97364 | AV175: 4923.97364 | AW175: 917.709432 | AX175: 917.709432 | AY175: 4923.97364 | AZ175: 917.709432 | BA175: 917.709432 | BB175: 0 | BC175: 917.709432 | BD175: 0 | BE175: 917.709432 | BF175: 917.709432 | BG175: 5281.9057 | BH175: 0 | BI175: 4364.196268 | BJ175: 4364.196268 | BK175: 0.1737458948 | BL175: 0.542693466 | BM175: 10 | BN175: 0 | BO175: 0 | BP175: 4364.196268
A176: 6683.18688 | B176: =MIN(100%,A176/smic_b) -> 1 | C176: 3.825 | D176: 0 | E176: =D176/rap_salnet_are -> 0 | F176: 2922.913238 | G176: 0 | H176: 729.3203739 | I176: 446.5037155 | J176: 190.4207022 | K176: 5316.942088 | L176: 5507.362791 | M176: =MIN(100%,K176/smic_n) -> 1 | N176: =K176/smic_n -> 3.844304401 | O176: 9606.100118 | P176: 5240.116832 | Q176: 4716.105149 | R176: 4461.78349 | S176: 4461.78349 | T176: 0 | U176: =IF(AND($T176>0,$T176=$AL176),Barème!$C$199,0) -> 0 | V176: 4958.333333 | W176: 0 | X176: 0 | Y176: 4059.5 | Z176: 2030.083333 | AA176: 0 | AB176: 3074.166667 | AC176: 2584.583333 | AD176: 0 | AE176: 3094.749066 | AF176: 0 | AG176: =IF(AND($A176=0,AF176=AAH_montant,Base!$W176>0,$H$10=1),AAH_mva,0) -> 0 | AH176: 4539.959845 | AI176: 0 | AJ176: =IF(AND($E$4=0,AI176=AAH_montant,Base!$W176>0,$J$10=1),AAH_mva,0) -> 0 | AK176: =AF176+AG176+AI176+AJ176 -> 0 | AL176: 0 | AM176: 5316.942088 | AN176: 0 | AO176: 0 | AP176: 0 | AQ176: 5316.942088 | AR176: 173.2237025 | AS176: 0 | AT176: 0 | AU176: 4956.626512 | AV176: =AU176/$AE$17 -> 4956.626512 | AW176: =IF(0<AV176,taux_ir_t1*MIN(AV176,plafond_ir_t1),0) +IF(plafond_ir_t1<AV176,taux_ir_t2*MIN(AV176-plafond_ir_t1,plafond_ir_t2-plafond_ir_t1),0) +IF(plafond_ir_t2<AV176,taux_ir_t3*MIN(AV176-plafond_ir_t2,plafond_ir_t3-plafond_ir_t2),0) +IF(plafond_ir_t3<AV176,taux_ir_t4*MIN(AV176-plafond_ir_t3,plafond_ir_t4-plafond_ir_t3),0) +IF(plafond_ir_t4<AV176,taux_ir_t5*(AV176-plafond_ir_t4),0) -> 927.5052935 | AX176: =AW176*$AE$17 -> 927.5052935 | AY176: =AU176/Nb_adultes -> 4956.626512 | AZ176: =IF(0<AY176,taux_ir_t1*MIN(AY176,plafond_ir_t1),0) +IF(plafond_ir_t1<AY176,taux_ir_t2*MIN(AY176-plafond_ir_t1,plafond_ir_t2-plafond_ir_t1),0) +IF(plafond_ir_t2<AY176,taux_ir_t3*MIN(AY176-plafond_ir_t2,plafond_ir_t3-plafond_ir_t2),0) +IF(plafond_ir_t3<AY176,taux_ir_t4*MIN(AY176-plafond_ir_t3,plafond_ir_t4-plafond_ir_t3),0) +IF(plafond_ir_t4<AY176,taux_ir_t5*(AY176-plafond_ir_t4),0) -> 927.5052935 | BA176: =AZ176*Nb_adultes -> 927.5052935 | BB176: =BA176-AX176 -> 0 | BC176: =IF(BB176<$AE$16,AX176,BA176-$AE$16) -> 927.5052935 | BD176: =IF(Nb_adultes=1, MAX(Decote_taux*mont_decote_celib-Decote_taux*BC176,0),MAX(Decote_taux*mont_decote_couple-Decote_taux*BC176,0)) -> 0 | BE176: 927.5052935 | BF176: =IF(BE176>seuil_recouvrement_IR,BE176,0) -> 927.5052935 | BG176: 5316.942088 | BH176: 0 | BI176: 4389.436795 | BJ176: 4389.436795 | BK176: 0.1744433695 | BL176: 0.5430573551 | BM176: 10 | BN176: 0 | BO176: 0 | BP176: 4389.436795
A177: 6726.86784 | B177: 1 | C177: 3.85 | D177: 0 | E177: 0 | F177: 2942.06996 | G177: 0 | H177: 733.8020404 | I177: 449.4220404 | J177: 191.6652819 | K177: 5351.978477 | L177: 5543.643759 | M177: 1 | N177: 3.869636734 | O177: 9668.9378 | P177: 5274.637259 | Q177: 4747.173533 | R177: 4491.176474 | S177: 4491.176474 | T177: 0 | U177: =IF(AND($T177>0,$T177=$AL177),Barème!$C$199,0) -> 0 | V177: 4991.666667 | W177: 0 | X177: 0 | Y177: 4059.5 | Z177: 2030.083333 | AA177: 0 | AB177: 3074.166667 | AC177: 2584.583333 | AD177: 0 | AE177: 3116.517648 | AF177: 0 | AG177: =IF(AND($A177=0,AF177=AAH_montant,Base!$W177>0,$H$10=1),AAH_mva,0) -> 0 | AH177: 4572.612717 | AI177: 0 | AJ177: =IF(AND($E$4=0,AI177=AAH_montant,Base!$W177>0,$J$10=1),AAH_mva,0) -> 0 | AK177: 0 | AL177: 0 | AM177: 5351.978477 | AN177: 0 | AO177: 0 | AP177: 0 | AQ177: 5351.978477 | AR177: 173.2237025 | AS177: 0 | AT177: 0 | AU177: 4989.279383 | AV177: 4989.279383 | AW177: 937.301155 | AX177: 937.301155 | AY177: 4989.279383 | AZ177: 937.301155 | BA177: 937.301155 | BB177: 0 | BC177: 937.301155 | BD177: 0 | BE177: 937.301155 | BF177: 937.301155 | BG177: 5351.978477 | BH177: 0 | BI177: 4414.677322 | BJ177: 4414.677322 | BK177: 0.1751317123 | BL177: 0.5434165144 | BM177: 10 | BN177: 0 | BO177: 0 | BP177: 4414.677322
A178: 6770.5488 | B178: 1 | C178: 3.875 | D178: 0 | E178: 0 | F178: 2961.226682 | G178: 0 | H178: 738.2837069 | I178: 452.3403653 | J178: 192.9098617 | K178: 5387.014866 | L178: 5579.924728 | M178: 1 | N178: 3.894969066 | O178: 9731.775482 | P178: 5309.157686 | Q178: 4778.241917 | R178: 4520.569458 | S178: 4520.569458 | T178: 0 | U178: =IF(AND($T178>0,$T178=$AL178),Barème!$C$199,0) -> 0 | V178: 5025 | W178: 0 | X178: 0 | Y178: 4059.5 | Z178: 2030.083333 | AA178: 0 | AB178: 3074.166667 | AC178: 2584.583333 | AD178: 0 | AE178: 3138.286229 | AF178: 0 | AG178: =IF(AND($A178=0,AF178=AAH_montant,Base!$W178>0,$H$10=1),AAH_mva,0) -> 0 | AH178: 4605.265588 | AI178: 0 | AJ178: =IF(AND($E$4=0,AI178=AAH_montant,Base!$W178>0,$J$10=1),AAH_mva,0) -> 0 | AK178: 0 | AL178: 0 | AM178: 5387.014866 | AN178: 0 | AO178: 0 | AP178: 0 | AQ178: 5387.014866 | AR178: 173.2237025 | AS178: 0 | AT178: 0 | AU178: 5021.932255 | AV178: 5021.932255 | AW178: 947.0970165 | AX178: 947.0970165 | AY178: 5021.932255 | AZ178: 947.0970165 | BA178: 947.0970165 | BB178: 0 | BC178: 947.0970165 | BD178: 0 | BE178: 947.0970165 | BF178: 947.0970165 | BG178: 5387.014866 | BH178: 0 | BI178: 4439.91785 | BJ178: 4439.91785 | BK178: 0.1758111013 | BL178: 0.5437710356 | BM178: 10 | BN178: 0 | BO178: 0 | BP178: 4439.91785
A179: 6814.22976 | B179: 1 | C179: 3.9 | D179: 0 | E179: 0 | F179: 2980.383404 | G179: 0 | H179: 742.7653734 | I179: 455.2586903 | J179: 194.1544414 | K179: 5422.051255 | L179: 5616.205696 | M179: 1 | N179: 3.920301398 | O179: 9794.613164 | P179: 5343.678113 | Q179: 4809.310301 | R179: 4549.962442 | S179: 4549.962442 | T179: 0 | U179: =IF(AND($T179>0,$T179=$AL179),Barème!$C$199,0) -> 0 | V179: 5058.333333 | W179: 0 | X179: 0 | Y179: 4059.5 | Z179: 2030.083333 | AA179: 0 | AB179: 3074.166667 | AC179: 2584.583333 | AD179: 0 | AE179: 3160.05481 | AF179: 0 | AG179: =IF(AND($A179=0,AF179=AAH_montant,Base!$W179>0,$H$10=1),AAH_mva,0) -> 0 | AH179: 4637.91846 | AI179: 0 | AJ179: =IF(AND($E$4=0,AI179=AAH_montant,Base!$W179>0,$J$10=1),AAH_mva,0) -> 0 | AK179: 0 | AL179: 0 | AM179: 5422.051255 | AN179: 0 | AO179: 0 | AP179: 0 | AQ179: 5422.051255 | AR179: 173.2237025 | AS179: 0 | AT179: 0 | AU179: 5054.585127 | AV179: 5054.585127 | AW179: 956.892878 | AX179: 956.892878 | AY179: 5054.585127 | AZ179: 956.892878 | BA179: 956.892878 | BB179: 0 | BC179: 956.892878 | BD179: 0 | BE179: 956.892878 | BF179: 956.892878 | BG179: 5422.051255 | BH179: 0 | BI179: 4465.158377 | BJ179: 4465.158377 | BK179: 0.1764817102 | BL179: 0.5441210079 | BM179: 10 | BN179: 0 | BO179: 0 | BP179: 4465.158377
A180: 6857.91072 | B180: 1 | C180: 3.925 | D180: 0 | E180: 0 | F180: 2999.540125 | G180: 0 | H180: 747.2470399 | I180: 458.1770152 | J180: 195.3990212 | K180: 5457.087644 | L180: 5652.486665 | M180: 1 | N180: 3.945633731 | O180: 9857.450845 | P180: 5378.198539 | Q180: 4840.378685 | R180: 4579.355426 | S180: 4579.355426 | T180: 0 | U180: =IF(AND($T180>0,$T180=$AL180),Barème!$C$199,0) -> 0 | V180: 5091.666667 | W180: 0 | X180: 0 | Y180: 4059.5 | Z180: 2030.083333 | AA180: 0 | AB180: 3074.166667 | AC180: 2584.583333 | AD180: 0 | AE180: 3181.823391 | AF180: 0 | AG180: =IF(AND($A180=0,AF180=AAH_montant,Base!$W180>0,$H$10=1),AAH_mva,0) -> 0 | AH180: 4670.571332 | AI180: 0 | AJ180: =IF(AND($E$4=0,AI180=AAH_montant,Base!$W180>0,$J$10=1),AAH_mva,0) -> 0 | AK180: 0 | AL180: 0 | AM180: 5457.087644 | AN180: 0 | AO180: 0 | AP180: 0 | AQ180: 5457.087644 | AR180: 173.2237025 | AS180: 0 | AT180: 0 | AU180: 5087.237998 | AV180: 5087.237998 | AW180: 966.6887395 | AX180: 966.6887395 | AY180: 5087.237998 | AZ180: 966.6887395 | BA180: 966.6887395 | BB180: 0 | BC180: 966.6887395 | BD180: 0 | BE180: 966.6887395 | BF180: 966.6887395 | BG180: 5457.087644 | BH180: 0 | BI180: 4490.398904 | BJ180: 4490.398904 | BK180: 0.1771437079 | BL180: 0.5444665183 | BM180: 10 | BN180: 0 | BO180: 0 | BP180: 4490.398904
A181: 6901.59168 | B181: 1 | C181: 3.95 | D181: 0 | E181: 0 | F181: 3018.696847 | G181: 0 | H181: 751.7287064 | I181: 461.0953401 | J181: 196.6436009 | K181: 5492.124033 | L181: 5688.767633 | M181: 1 | N181: 3.970966063 | O181: 9920.288527 | P181: 5412.718966 | Q181: 4871.44707 | R181: 4608.74841 | S181: 4608.74841 | T181: 0 | U181: =IF(AND($T181>0,$T181=$AL181),Barème!$C$199,0) -> 0 | V181: 5125 | W181: 0 | X181: 0 | Y181: 4059.5 | Z181: 2030.083333 | AA181: 0 | AB181: 3074.166667 | AC181: 2584.583333 | AD181: 0 | AE181: 3203.591972 | AF181: 0 | AG181: =IF(AND($A181=0,AF181=AAH_montant,Base!$W181>0,$H$10=1),AAH_mva,0) -> 0 | AH181: 4703.224203 | AI181: 0 | AJ181: =IF(AND($E$4=0,AI181=AAH_montant,Base!$W181>0,$J$10=1),AAH_mva,0) -> 0 | AK181: 0 | AL181: 0 | AM181: 5492.124033 | AN181: 0 | AO181: 0 | AP181: 0 | AQ181: 5492.124033 | AR181: 173.2237025 | AS181: 0 | AT181: 0 | AU181: 5119.89087 | AV181: 5119.89087 | AW181: 976.484601 | AX181: 976.484601 | AY181: 5119.89087 | AZ181: 976.484601 | BA181: 976.484601 | BB181: 0 | BC181: 976.484601 | BD181: 0 | BE181: 976.484601 | BF181: 976.484601 | BG181: 5492.124033 | BH181: 0 | BI181: 4515.639432 | BJ181: 4515.639432 | BK181: 0.1777972594 | BL181: 0.5448076516 | BM181: 10 | BN181: 0 | BO181: 0 | BP181: 4515.639432
A182: 6945.27264 | B182: 1 | C182: 3.975 | D182: 0 | E182: 0 | F182: 3037.853569 | G182: 0 | H182: 756.2103729 | I182: 464.0136651 | J182: 197.8881807 | K182: 5527.160421 | L182: 5725.048602 | M182: 1 | N182: 3.996298395 | O182: 9983.126209 | P182: 5447.239393 | Q182: 4902.515454 | R182: 4638.141394 | S182: 4638.141394 | T182: 0 | U182: =IF(AND($T182>0,$T182=$AL182),Barème!$C$199,0) -> 0 | V182: 5158.333333 | W182: 0 | X182: 0 | Y182: 4059.5 | Z182: 2030.083333 | AA182: 0 | AB182: 3074.166667 | AC182: 2584.583333 | AD182: 0 | AE182: 3225.360553 | AF182: 0 | AG182: =IF(AND($A182=0,AF182=AAH_montant,Base!$W182>0,$H$10=1),AAH_mva,0) -> 0 | AH182: 4735.877075 | AI182: 0 | AJ182: =IF(AND($E$4=0,AI182=AAH_montant,Base!$W182>0,$J$10=1),AAH_mva,0) -> 0 | AK182: 0 | AL182: 0 | AM182: 5527.160421 | AN182: 0 | AO182: 0 | AP182: 0 | AQ182: 5527.160421 | AR182: 173.2237025 | AS182: 0 | AT182: 0 | AU182: 5152.543742 | AV182: 5152.543742 | AW182: 986.2804626 | AX182: 986.2804626 | AY182: 5152.543742 | AZ182: 986.2804626 | BA182: 986.2804626 | BB182: 0 | BC182: 986.2804626 | BD182: 0 | BE182: 986.2804626 | BF182: 986.2804626 | BG182: 5527.160421 | BH182: 0 | BI182: 4540.879959 | BJ182: 4540.879959 | BK182: 0.1784425252 | BL182: 0.5451444904 | BM182: 10 | BN182: 0 | BO182: 0 | BP182: 4540.879959
A183: 6988.9536 | B183: 1 | C183: 4 | D183: 0 | E183: 0 | F183: 3057.010291 | G183: 0 | H183: 760.6920394 | I183: 466.93199 | J183: 199.1327604 | K183: =A183-H183-I183-J183 -> 5562.19681 | L183: 5761.329571 | M183: 1 | N183: 4.021630727 | O183: 10045.96389 | P183: 5481.75982 | Q183: 4933.583838 | R183: 4667.534378 | S183: 4667.534378 | T183: 0 | U183: =IF(AND($T183>0,$T183=$AL183),Barème!$C$199,0) -> 0 | V183: 5191.666667 | W183: =TRUNC((1-$K$6) * IF(($N$16-($N$17+12*($P$16+al_taux_compl)*MAX(0,V183-$P$17))-Mfo_AL)* (1-tx_crds)>=seuil_versement_AL, $N$16-($N$17+12*($P$16+al_taux_compl)*MAX(0,V183-$P$17))-Mfo_AL,0) * (1-tx_crds)) -> 0 | X183: 0 | Y183: 4059.5 | Z183: 2030.083333 | AA183: 0 | AB183: 3074.166667 | AC183: 2584.583333 | AD183: =IF(rbg<AC183,montant_paje_plein*($B$6>0),IF(rbg<AB183,montant_paje*($B$6>0),0)) -> 0 | AE183: 3247.129134 | AF183: =($H$8=1)*( IF($AR$16-AE183>=AAH_montant, AAH_montant, MAX(0,$AR$16-AE183)) ) -> 0 | AG183: =IF(AND($A183=0,AF183=AAH_montant,Base!$W183>0,$H$10=1),AAH_mva,0) -> 0 | AH183: 4768.529947 | AI183: =($H$9=1)*( IF($AR$16-AH183>=AAH_montant, AAH_montant, MAX(0,$AR$16-AH183)) ) -> 0 | AJ183: =IF(AND($E$4=0,AI183=AAH_montant,Base!$W183>0,$J$10=1),AAH_mva,0) -> 0 | AK183: 0 | AL183: 0 | AM183: =$K183+$Z$17+$AK183+($W183>0)*MIN($W183,$E$17)+($K$6=1)*$E$17+$I$16-$I$17+MIN($AA183,montant_CF)+$AD183+$AL$17+$D183+$E$6+$E$7+IF($AI183=AL183,0,$T183) -> 5562.19681 | AN183: =IF(AM183+seuil_versement_rsa<=$E$16,$E$16-AM183,0) -> 0 | AO183: =((AN183)>0)* IF((Nb_adultes+Nb_enfants)=1,noel_1pers, IF((Nb_adultes+Nb_enfants)=2,noel_2pers, IF((Nb_adultes+Nb_enfants)=3,noel_3pers, IF(AND(Nb_adultes=1,(Nb_adultes+Nb_enfants)=4),noel_isole_4pers, IF(AND(Nb_adultes=2,(Nb_adultes+Nb_enfants)=4),noel_couple_4pers, IF(Nb_adultes=1,noel_isole_4pers+noel_pers_sup*(Nb_adultes+Nb_enfants-4), noel_couple_4pers+noel_pers_sup*(Nb_adultes+Nb_enfants-4))))))) -> 0 | AP183: 0 | AQ183: 5562.19681 | AR183: 173.2237025 | AS183: 0 | AT183: 0 | AU183: 5185.196614 | AV183: 5185.196614 | AW183: 996.0763241 | AX183: 996.0763241 | AY183: 5185.196614 | AZ183: 996.0763241 | BA183: 996.0763241 | BB183: 0 | BC183: 996.0763241 | BD183: 0 | BE183: 996.0763241 | BF183: 996.0763241 | BG183: 5562.19681 | BH183: 0 | BI183: 4566.120486 | BJ183: =BI183/$AV$17 -> 4566.120486 | BK183: 0.1790796619 | BL183: 0.5454771154 | BM183: 10 | BN183: 0 | BO183: 0 | BP183: 4566.120486
A188: Graphiques et sorties
A189: Retourner en haut de page
A226: Tableau. Revenu total en fonction du temps de travail, au Smic horaire (valide quand le pas est de smic_b/40)
B227: Revenus d'activité | C227: Revenus totaux | D227: RSA socle | E227: Prime d'activité | F227: CF | G227: AB Paje | H227: AL | I227: ARS | J227: AF | K227: AAH | L227: Impôts | M227: CMUC | N227: Droits sociaux éléctricité | O227: Revenu ajusté
A228: Inactif | B228: =$BG23 -> 0 | C228: =$BI23 -> 828.5241667 | D228: =$AN23 -> 534.82 | E228: =$AS23 -> 0 | F228: =$AA23 -> 0 | G228: =$AD23 -> 0 | H228: =$W23 -> 281 | I228: =$AT23 -> 0 | J228: =$X23 -> 0 | K228: =$AK23 -> 0 | L228: =$BF23 -> 0 | M228: =$BN23 -> 36.52225 | N228: =$BO23 -> 16.16666667 | O228: =$BP23 -> 881.2130833
A229: Quart temps | B229: =$BG33 -> 345.7773873 | C229: =$BI33 -> 1038.393752 | D229: =$AN33 -> 189.0426127 | E229: =$AS33 -> 209.8695852 | F229: =$AA33 -> 0 | G229: =$AD33 -> 0 | H229: =$W33 -> 281 | I229: =$AT33 -> 0 | J229: =$X33 -> 0 | K229: =$AK33 -> 0 | L229: =$BF33 -> 0 | M229: =$BN33 -> 36.52225 | N229: =$BO33 -> 16.16666667 | O229: =$BP33 -> 1091.082669
A230: Mi temps | B230: =$BG43 -> 691.5547747 | C230: =$BI43 -> 1137.402773 | D230: =$AN43 -> 0 | E230: =$AS43 -> 252.8479983 | F230: =$AA43 -> 0 | G230: =$AD43 -> 0 | H230: =$W43 -> 193 | I230: =$AT43 -> 0 | J230: =$X43 -> 0 | K230: =$AK43 -> 0 | L230: =$BF43 -> 0 | M230: =$BN43 -> 36.52225 | N230: =$BO43 -> 8.166666667 | O230: =$BP43 -> 1182.09169
